Workbook

Sheet Introduction
A1: Comprehensive Stock Price and Economic Series Database
B3: Sometimes it is best to re-start your computer before a new run
B5: Website Link Describing How to Use the Database | N5: Copy tickers
N6: Adjust the start and end tickers
B7: Video Describing Operation of the Stock Price Database
B9: Video Describing Use of the Database and Finding Tickers
B11: Video Describing Analysis with Database
B13: Powerpoint Slides Reference
B15: Link to Relevant Part of this Workbook
B18: General Information

Sheet Read Stocks
M1: Final Applied | N1: Final Applied | O1: Column | P1: Source | S1: Finance.yahoo Index | X1: FRED Index | AF1: Google Index | AN1: FRED Commodities | AV1: Yahoo Stock Prices | BD1: Google Stock Prices | BL1: FRED Exonomic Data
G2: Start Row | H2: Number | I2: Column | J2: Source | M2: Sheet Name | N2: Stock or Index Name | Q2: Counter | R2: Accum | S2: Sheet | T2: Name | U2: Column | V2: Source | X2: Counter | Y2: Counter 1 | Z2: Sheet | AA2: Re-ordered | AB2: Name | AC2: Re-ordered | AD2: Column | AE2: Source | AF2: Counter | AG2: Counter | AH2: Sheet | AI2: Re-ordered | AJ2: Name | AK2: Re-ordered | AL2: Column | AM2: Source | AN2: counter | AO2: Accum | AP2: Sheet | AQ2: Re-ordered | AR2: Name | AS2: Re-ordered | AT2: Column | AU2: Source | AV2: Counter | AW2: Counter 1 | AX2: Sheet | AY2: Re-ordered | AZ2: Name | BA2: Re-ordered | BB2: Column | BC2: Source | BD2: Counter | BE2: Counter 1 | BF2: Sheet | BG2: Re-ordered | BH2: Name | BI2: Re-ordered | BJ2: Column | BK2: Source | BL2: Counter | BM2: Counter 1 | BN2: Sheet | BO2: Re-ordered | BP2: Name | BQ2: Re-ordered | BR2: Column | BS2: Source
F3: TRUE | G3: 1 | H3: ='Yahoo Index'!Total_Tickers*F3 -> 7 | I3: F | J3: yahoo | L3: 1 | M3: =S3&AA3&AI3&AQ3&AY3&BG3&BO3 -> S&P 500 | N3: =T3&AC3&AK3&AS3&BA3&BI3&BQ3 -> US S&P 500 | O3: =U3&AD3&AL3&AT3&BB3&BJ3&BR3 -> F | P3: =V3&AE3&AM3&AU3&BC3&BK3&BS3 -> yahoo | Q3: =G3 -> 1 | R3: =IF(AND($F$3,Q3<=$H$3),Q3,0) -> 1 | S3: =IF(R3,'Yahoo Index'!E53,"") -> S&P 500 | T3: =IF(R3,'Yahoo Index'!F53,"") -> US S&P 500 | U3: =IF(R3,$I$3,"") -> F | V3: =IF(R3,$J$3,"") -> yahoo | X3: =G6 -> 8 | Y3: =IF(AND($F$6,X3<=$H$6),X3) -> 8 | Z3: =IF($F$6,'FRED Indicies'!E16) -> NASDAQ100 | AA3: =IFERROR(INDEX(Z:Z,MATCH(L3,Y:Y,0)),"") ->  | AB3: =IF($F$6,'FRED Indicies'!D16) -> Nasdaq 100 Index | AC3: =IFERROR(INDEX(AB:AB,MATCH(L3,Y:Y,0)),"") ->  | AD3: =IF(AA3<>"",$I$6,"") ->  | AE3: =IF(AA3<>"",$J$6,"") ->  | AF3: =G9 -> 9 | AG3: =IF(AND($F$9,AF3<=$H$9),AF3) -> FALSE | AH3: =IF(AG3,'Google Index'!E30) -> FALSE | AI3: =IFERROR(INDEX(AH:AH,MATCH(Q3,AG:AG,0)),"") ->  | AJ3: =IF(AF3,'Google Index'!F30) -> HT Media | AK3: =IFERROR(INDEX(AJ:AJ,MATCH(Q3,AG:AG,0)),"") ->  | AL3: =IF(AI3<>"",$I$6,"") ->  | AM3: =IF(AK3<>"",$J$6,"") ->  | AN3: =G12 -> 9 | AO3: =IF(AND($F$12,AN3<=$H$12),AN3) -> 9 | AP3: =IF(AO3,'Commodity Prices'!C16) -> DCOILBRENTEU | AQ3: =IFERROR(INDEX(AP:AP,MATCH(L3,AO:AO,0)),"") ->  | AR3: =IF(AO3,'Commodity Prices'!D16) -> Crude Oil Prices: Brent - Europe (DCOILBRENTEU) | AS3: =IFERROR(INDEX(AR:AR,MATCH(L3,AO:AO,0)),"") ->  | AT3: =IF(AQ3<>"",$I$12,"") ->  | AU3: =IF(AS3<>"",$J$12,"") ->  | AV3: =G15 -> 12 | AW3: =IF(AND($F$15,AV3<=$H$15),AV3) -> 12 | AX3: =IF(AW3,'Yahoo Stocks'!D30) -> M | AY3: =IFERROR(INDEX(AX:AX,MATCH(L3,AW:AW,0)),"") ->  | AZ3: =IF(AW3,'Yahoo Stocks'!E30) -> Macys | BA3: =IFERROR(INDEX(AZ:AZ,MATCH(L3,AW:AW,0)),"") ->  | BB3: =IF(AY3<>"",$I$15,"") ->  | BC3: =IF(BA3<>"",$J$15,"") ->  | BD3: =G18 -> 123 | BE3: =IF(AND($F$18,BD3<=$H$18),BD3) -> FALSE | BF3: =IF(BE3,'Google Finance Stocks'!D27) -> FALSE | BG3: =IFERROR(INDEX(BF:BF,MATCH(Q3,BE:BE,0)),"") ->  | BH3: =IF(BE3,'Google Finance Stocks'!E27) -> FALSE | BI3: =IFERROR(INDEX(BH:BH,MATCH(Q3,BE:BE,0)),"") ->  | BJ3: =IF(BI3<>"",$I$18,"") ->  | BK3: =IF(BI3<>"",$J$18,"") ->  | BL3: =G21 -> 123 | BM3: =IF(AND($F$21,BL3<=$H$21),BL3) -> 123 | BN3: ='Exchange Rates'!D13 -> GDP Inf | BO3: =IFERROR(INDEX(BN:BN,MATCH(L3,BM:BM,0)),"") ->  | BP3: =IF(BM3,'Exchange Rates'!E13) -> Implicit Price Deflator | BQ3: =IFERROR(INDEX(BP:BP,MATCH(L3,BM:BM,0)),"") ->  | BR3: =IF(BQ3<>"",$I$21,"") ->  | BS3: =IF(BQ3<>"",$J$21,"") -> 
L4: 2 | M4: =S4&AA4&AI4&AQ4&AY4&BG4&BO4 -> DAX | N4: =T4&AC4&AK4&AS4&BA4&BI4&BQ4 -> DAX in Euro | O4: =U4&AD4&AL4&AT4&BB4&BJ4&BR4 -> F | P4: =V4&AE4&AM4&AU4&BC4&BK4&BS4 -> yahoo | Q4: =Q3+1 -> 2 | R4: =IF(AND($F$3,Q4<=$H$3),Q4) -> 2 | S4: =IF(R4,'Yahoo Index'!E54,"") -> DAX | T4: =IF(R4,'Yahoo Index'!F54,"") -> DAX in Euro | U4: =IF(R4,$I$3,"") -> F | V4: =IF(R4,$J$3,"") -> yahoo | X4: =X3+1 -> 9 | Y4: FALSE | Z4: =IF($F$6,'FRED Indicies'!E17) -> 0 | AB4: =IF($F$6,'FRED Indicies'!D17) -> 0 | AD4: =IF(AA4<>"",$I$6,"") ->  | AE4: =IF(AA4<>"",$J$6,"") ->  | AF4: =AF3+1 -> 10 | AG4: =IF(AND($F$9,AF4<=$H$9),AF4) -> FALSE | AH4: =IF(AG4,'Google Index'!E31) -> FALSE | AJ4: =IF(AF4,'Google Index'!F31) -> 0 | AL4: =IF(AI4<>"",$I$6,"") ->  | AM4: =IF(AK4<>"",$J$6,"") ->  | AN4: =AN3+1 -> 10 | AO4: =IF(AND($F$12,AN4<=$H$12),AN4) -> 10 | AP4: =IF(AO4,'Commodity Prices'!C17) -> PCOPPUSDM | AQ4: =IFERROR(INDEX(AP:AP,MATCH(L4,AO:AO,0)),"") ->  | AR4: =IF(AO4,'Commodity Prices'!D17) -> Global price of Copper© (PCOPPUSDM) | AT4: =IF(AQ4<>"",$I$12,"") ->  | AU4: =IF(AS4<>"",$J$12,"") ->  | AV4: =AV3+1 -> 13 | AW4: =IF(AND($F$15,AV4<=$H$15),AV4) -> 13 | AX4: =IF(AW4,'Yahoo Stocks'!D31) -> AAPL | AY4: =IFERROR(INDEX(AX:AX,MATCH(L4,AW:AW,0)),"") ->  | AZ4: =IF(AW4,'Yahoo Stocks'!E31) -> Apple | BA4: =IFERROR(INDEX(AZ:AZ,MATCH(L4,AW:AW,0)),"") ->  | BB4: =IF(AY4<>"",$I$15,"") ->  | BC4: =IF(BA4<>"",$J$15,"") ->  | BD4: =BD3+1 -> 124 | BE4: =IF(AND($F$18,BD4<=$H$18),BD4) -> FALSE | BF4: =IF(BE4,'Google Finance Stocks'!D28) -> FALSE | BG4: =IFERROR(INDEX(BF:BF,MATCH(Q4,BE:BE,0)),"") ->  | BH4: =IF(BE4,'Google Finance Stocks'!E28) -> FALSE | BI4: =IFERROR(INDEX(BH:BH,MATCH(Q4,BE:BE,0)),"") ->  | BJ4: =IF(BI4<>"",$I$18,"") ->  | BK4: =IF(BI4<>"",$J$18,"") ->  | BL4: =BL3+1 -> 124 | BM4: =IF(AND($F$21,BL4<=$H$21),BL4) -> 124 | BN4: ='Exchange Rates'!D14 -> CPI US | BO4: =IFERROR(INDEX(BN:BN,MATCH(L4,BM:BM,0)),"") ->  | BP4: =IF(BM4,'Exchange Rates'!E14) -> Consumer Price Inflation | BQ4: =IFERROR(INDEX(BP:BP,MATCH(L4,BM:BM,0)),"") ->  | BR4: =IF(BQ4<>"",$I$21,"") ->  | BS4: =IF(BQ4<>"",$J$21,"") -> 
L5: 3 | M5: Milan | N5: =T5&AC5&AK5&AS5&BA5&BI5&BQ5 -> Italy Milan | O5: F | P5: yahoo | Q5: =Q4+1 -> 3 | R5: 3 | S5: =IF(R5,'Yahoo Index'!E55,"") -> Milan | T5: =IF(R5,'Yahoo Index'!F55,"") -> Italy Milan | U5: F | V5: yahoo | X5: =X4+1 -> 10 | Y5: FALSE | Z5: =IF($F$6,'FRED Indicies'!E18) -> 0 | AB5: =IF($F$6,'FRED Indicies'!D18) -> 0 | AF5: =AF4+1 -> 11 | AG5: FALSE | AH5: =IF(AG5,'Google Index'!E32) -> FALSE | AJ5: =IF(AF5,'Google Index'!F32) -> 0 | AN5: =AN4+1 -> 11 | AO5: 11 | AP5: =IF(AO5,'Commodity Prices'!C18) -> MHHNGSP | AR5: =IF(AO5,'Commodity Prices'!D18) -> Henry Hub Natural Gas Spot Price (MHHNGSP) | AV5: =AV4+1 -> 14 | AW5: 14 | AX5: =IF(AW5,'Yahoo Stocks'!D32) -> GOOG | AZ5: =IF(AW5,'Yahoo Stocks'!E32) -> Google | BD5: =BD4+1 -> 125 | BE5: FALSE | BF5: =IF(BE5,'Google Finance Stocks'!D29) -> FALSE | BH5: =IF(BE5,'Google Finance Stocks'!E29) -> FALSE | BL5: =BL4+1 -> 125 | BM5: 125 | BN5: ='Exchange Rates'!D15 -> Euro | BP5: =IF(BM5,'Exchange Rates'!E15) -> U.S. / Euro Foreign Exchange Rate (EXUSEU)
F6: TRUE | G6: =H3+1 -> 8 | H6: ='FRED Indicies'!Total_Index*F6+G6-1 -> 8 | I6: B | J6: FRED | L6: 4 | M6: CAC 40 | N6: France CAC 40 | O6: F | P6: yahoo | Q6: 4 | R6: 4 | S6: =IF(R6,'Yahoo Index'!E56,"") -> CAC 40 | T6: =IF(R6,'Yahoo Index'!F56,"") -> France CAC 40 | U6: F | V6: yahoo | X6: 11 | Y6: FALSE | Z6: =IF($F$6,'FRED Indicies'!E19) -> 0 | AB6: =IF($F$6,'FRED Indicies'!D19) -> 0 | AF6: 12 | AG6: FALSE | AH6: =IF(AG6,'Google Index'!E33) -> FALSE | AJ6: =IF(AF6,'Google Index'!F33) -> 0 | AN6: 12 | AO6: FALSE | AP6: =IF(AO6,'Commodity Prices'!C19) -> FALSE | AR6: =IF(AO6,'Commodity Prices'!D19) -> FALSE | AV6: 15 | AW6: 15 | AX6: =IF(AW6,'Yahoo Stocks'!D33) -> AMZN | AZ6: =IF(AW6,'Yahoo Stocks'!E33) -> Amazon | BD6: 126 | BE6: FALSE | BF6: =IF(BE6,'Google Finance Stocks'!D30) -> FALSE | BH6: =IF(BE6,'Google Finance Stocks'!E30) -> FALSE | BL6: 126 | BM6: 126 | BN6: ='Exchange Rates'!D16 -> INR | BP6: =IF(BM6,'Exchange Rates'!E16) -> India / U.S. Foreign Exchange Rate (DEXINUS)
L7: 5 | M7: Nasdaq 100 | N7: Nasdaq 100 | O7: F | P7: yahoo | Q7: 5 | R7: 5 | S7: =IF(R7,'Yahoo Index'!E57,"") -> Nasdaq 100 | T7: =IF(R7,'Yahoo Index'!F57,"") -> Nasdaq 100 | U7: F | V7: yahoo | X7: 12 | Y7: FALSE | Z7: =IF($F$6,'FRED Indicies'!E20) -> 0 | AB7: =IF($F$6,'FRED Indicies'!D20) -> 0 | AF7: 13 | AG7: FALSE | AH7: =IF(AG7,'Google Index'!E34) -> FALSE | AJ7: =IF(AF7,'Google Index'!F34) -> 0 | AN7: 13 | AO7: FALSE | AP7: =IF(AO7,'Commodity Prices'!C20) -> FALSE | AR7: =IF(AO7,'Commodity Prices'!D20) -> FALSE | AV7: 16 | AW7: 16 | AX7: =IF(AW7,'Yahoo Stocks'!D34) -> FB | AZ7: =IF(AW7,'Yahoo Stocks'!E34) -> Facebook | BD7: 127 | BE7: FALSE | BF7: =IF(BE7,'Google Finance Stocks'!D31) -> FALSE | BH7: =IF(BE7,'Google Finance Stocks'!E31) -> FALSE | BL7: 127 | BM7: 127 | BN7: ='Exchange Rates'!D17 -> UK | BP7: =IF(BM7,'Exchange Rates'!E17) -> U.S. / U.K. Foreign Exchange Rate (EXUSUK)
L8: 6 | M8: 30 Industrials | N8: Dow Jones 30 Industrials | O8: F | P8: yahoo | Q8: 6 | R8: 6 | S8: =IF(R8,'Yahoo Index'!E58,"") -> 30 Industrials | T8: =IF(R8,'Yahoo Index'!F58,"") -> Dow Jones 30 Industrials | U8: F | V8: yahoo | X8: 13 | Y8: FALSE | Z8: =IF($F$6,'FRED Indicies'!E21) -> 0 | AB8: =IF($F$6,'FRED Indicies'!D21) -> 0 | AF8: 14 | AG8: FALSE | AH8: =IF(AG8,'Google Index'!E35) -> FALSE | AJ8: =IF(AF8,'Google Index'!F35) -> 0 | AN8: 14 | AO8: FALSE | AP8: =IF(AO8,'Commodity Prices'!C21) -> FALSE | AR8: =IF(AO8,'Commodity Prices'!D21) -> FALSE | AV8: 17 | AW8: 17 | AX8: =IF(AW8,'Yahoo Stocks'!D35) -> UAL | AZ8: =IF(AW8,'Yahoo Stocks'!E35) -> United Airlnes | BD8: 128 | BE8: FALSE | BF8: =IF(BE8,'Google Finance Stocks'!D32) -> FALSE | BH8: =IF(BE8,'Google Finance Stocks'!E32) -> FALSE | BL8: 128 | BM8: 128 | BN8: ='Exchange Rates'!D18 -> IDR | BP8: =IF(BM8,'Exchange Rates'!E18) -> National Currency to US Dollar Spot Exchange Rate for Indonesia (CCUSSP02IDM650N)
F9: FALSE | G9: =H6+1 -> 9 | H9: ='Google Index'!D20*F9+G9-1 -> 8 | I9: D | J9: Google | L9: 7 | M9: Swiss | N9: Swiss SMI | O9: F | P9: yahoo | Q9: 7 | R9: 7 | S9: =IF(R9,'Yahoo Index'!E59,"") -> Swiss | T9: =IF(R9,'Yahoo Index'!F59,"") -> Swiss SMI | U9: F | V9: yahoo | X9: 14 | Y9: FALSE | Z9: =IF($F$6,'FRED Indicies'!E22) -> 0 | AB9: =IF($F$6,'FRED Indicies'!D22) -> 0 | AF9: 15 | AG9: FALSE | AH9: =IF(AG9,'Google Index'!E36) -> FALSE | AJ9: =IF(AF9,'Google Index'!F36) -> 0 | AN9: 15 | AO9: FALSE | AP9: =IF(AO9,'Commodity Prices'!C22) -> FALSE | AR9: =IF(AO9,'Commodity Prices'!D22) -> FALSE | AV9: 18 | AW9: 18 | AX9: =IF(AW9,'Yahoo Stocks'!D36) -> MAR | AZ9: =IF(AW9,'Yahoo Stocks'!E36) -> Mariott | BD9: 129 | BE9: FALSE | BF9: =IF(BE9,'Google Finance Stocks'!D33) -> FALSE | BH9: =IF(BE9,'Google Finance Stocks'!E33) -> FALSE | BL9: 129 | BM9: 129 | BN9: ='Exchange Rates'!D19 -> US NOM GNP | BP9: =IF(BM9,'Exchange Rates'!E19) -> Gross National Product (GNP)
A10: s | L10: 8 | M10: NASDAQ100 | N10: Nasdaq 100 Index | O10: B | P10: FRED | Q10: 8 | R10: FALSE | S10: =IF(R10,'Yahoo Index'!E60,"") ->  | T10: =IF(R10,'Yahoo Index'!F60,"") ->  | X10: 15 | Y10: FALSE | Z10: =IF($F$6,'FRED Indicies'!E23) -> 0 | AA10: NASDAQ100 | AB10: =IF($F$6,'FRED Indicies'!D23) -> 0 | AC10: Nasdaq 100 Index | AD10: B | AE10: FRED | AF10: 16 | AG10: FALSE | AH10: =IF(AG10,'Google Index'!E37) -> FALSE | AJ10: =IF(AF10,'Google Index'!F37) -> 0 | AN10: 16 | AO10: FALSE | AP10: =IF(AO10,'Commodity Prices'!C23) -> FALSE | AR10: =IF(AO10,'Commodity Prices'!D23) -> FALSE | AV10: 19 | AW10: 19 | AX10: =IF(AW10,'Yahoo Stocks'!D37) -> BT | AZ10: =IF(AW10,'Yahoo Stocks'!E37) -> BT Group plc (ADR) (BT) | BD10: 130 | BE10: FALSE | BF10: =IF(BE10,'Google Finance Stocks'!D34) -> FALSE | BH10: =IF(BE10,'Google Finance Stocks'!E34) -> FALSE | BL10: 130 | BM10: 130 | BN10: ='Exchange Rates'!D20 -> India Disc Rate | BP10: =IF(BM10,'Exchange Rates'!E20) -> Interest Rates, Discount Rate for India (INTDSRINM193N)
L11: 9 | M11: DCOILBRENTEU | N11: Crude Oil Prices: Brent - Europe (DCOILBRENTEU) | O11: B | P11: FRED | Q11: 9 | R11: FALSE | S11: =IF(R11,'Yahoo Index'!E61,"") ->  | T11: =IF(R11,'Yahoo Index'!F61,"") ->  | X11: 16 | Y11: FALSE | Z11: =IF($F$6,'FRED Indicies'!E24) -> 0 | AB11: =IF($F$6,'FRED Indicies'!D24) -> 0 | AF11: 17 | AG11: FALSE | AH11: =IF(AG11,'Google Index'!E38) -> FALSE | AJ11: =IF(AF11,'Google Index'!F38) -> 0 | AN11: 17 | AO11: FALSE | AP11: =IF(AO11,'Commodity Prices'!C24) -> FALSE | AQ11: DCOILBRENTEU | AR11: =IF(AO11,'Commodity Prices'!D24) -> FALSE | AS11: Crude Oil Prices: Brent - Europe (DCOILBRENTEU) | AT11: B | AU11: FRED | AV11: 20 | AW11: 20 | AX11: =IF(AW11,'Yahoo Stocks'!D38) -> VOD | AZ11: =IF(AW11,'Yahoo Stocks'!E38) -> Vodafone Group plc | BD11: 131 | BE11: FALSE | BF11: =IF(BE11,'Google Finance Stocks'!D35) -> FALSE | BH11: =IF(BE11,'Google Finance Stocks'!E35) -> FALSE | BL11: 131 | BM11: 131 | BN11: ='Exchange Rates'!D21 -> India Gvt Bonds | BP11: =IF(BM11,'Exchange Rates'!E21) -> Interest Rates, Government Securities, Government Bonds for India (INTGSBINM193N)
F12: TRUE | G12: =H9+1 -> 9 | H12: =Total_Com*F12+G12-1 -> 11 | I12: B | J12: FRED | L12: 10 | M12: PCOPPUSDM | N12: Global price of Copper© (PCOPPUSDM) | O12: B | P12: FRED | Q12: 10 | R12: FALSE | S12: =IF(R12,'Yahoo Index'!E62,"") ->  | T12: =IF(R12,'Yahoo Index'!F62,"") ->  | X12: 17 | Y12: FALSE | Z12: =IF($F$6,'FRED Indicies'!E25) -> 0 | AB12: =IF($F$6,'FRED Indicies'!D25) -> 0 | AF12: 18 | AG12: FALSE | AH12: =IF(AG12,'Google Index'!E39) -> FALSE | AJ12: =IF(AF12,'Google Index'!F39) -> 0 | AN12: 18 | AO12: FALSE | AP12: =IF(AO12,'Commodity Prices'!C25) -> FALSE | AQ12: PCOPPUSDM | AR12: =IF(AO12,'Commodity Prices'!D25) -> FALSE | AS12: Global price of Copper© (PCOPPUSDM) | AT12: B | AU12: FRED | AV12: 21 | AW12: 21 | AX12: =IF(AW12,'Yahoo Stocks'!D39) -> VZ | AZ12: =IF(AW12,'Yahoo Stocks'!E39) -> Verizon Communications... | BD12: 132 | BE12: FALSE | BF12: =IF(BE12,'Google Finance Stocks'!D36) -> FALSE | BH12: =IF(BE12,'Google Finance Stocks'!E36) -> FALSE | BL12: 132 | BM12: 132 | BN12: ='Exchange Rates'!D22 -> India 10 Yr Main | BP12: =IF(BM12,'Exchange Rates'!E22) -> Interest Rates: Long-term government bond yields: 10-year: Main including benchmark for India (INDIRLTLT01STM)
L13: 11 | M13: MHHNGSP | N13: Henry Hub Natural Gas Spot Price (MHHNGSP) | O13: B | P13: FRED | Q13: 11 | R13: FALSE | S13: =IF(R13,'Yahoo Index'!E63,"") ->  | T13: =IF(R13,'Yahoo Index'!F63,"") ->  | X13: 18 | Y13: FALSE | Z13: =IF($F$6,'FRED Indicies'!E26) -> 0 | AB13: =IF($F$6,'FRED Indicies'!D26) -> 0 | AF13: 19 | AG13: FALSE | AH13: =IF(AG13,'Google Index'!E40) -> FALSE | AJ13: =IF(AF13,'Google Index'!F40) -> 0 | AN13: 19 | AO13: FALSE | AP13: =IF(AO13,'Commodity Prices'!C26) -> FALSE | AQ13: MHHNGSP | AR13: =IF(AO13,'Commodity Prices'!D26) -> FALSE | AS13: Henry Hub Natural Gas Spot Price (MHHNGSP) | AT13: B | AU13: FRED | AV13: 22 | AW13: 22 | AX13: =IF(AW13,'Yahoo Stocks'!D40) -> S | AZ13: =IF(AW13,'Yahoo Stocks'!E40) -> Sprint | BD13: 133 | BE13: FALSE | BF13: =IF(BE13,'Google Finance Stocks'!D37) -> FALSE | BH13: =IF(BE13,'Google Finance Stocks'!E37) -> FALSE | BL13: 133 | BM13: 133 | BN13: ='Exchange Rates'!D23 -> India Inflation | BP13: =IF(BM13,'Exchange Rates'!E23) -> Consumer Price Index: Total All Items for India (CPALTT01INM659N)
L14: 12 | M14: M | N14: Macys | O14: F | P14: Yahoo | Q14: 12 | R14: FALSE | S14: =IF(R14,'Yahoo Index'!E64,"") ->  | T14: =IF(R14,'Yahoo Index'!F64,"") ->  | X14: 19 | Y14: FALSE | Z14: =IF($F$6,'FRED Indicies'!E27) -> 0 | AB14: =IF($F$6,'FRED Indicies'!D27) -> 0 | AF14: 20 | AG14: FALSE | AH14: =IF(AG14,'Google Index'!E41) -> FALSE | AJ14: =IF(AF14,'Google Index'!F41) -> 0 | AN14: 20 | AO14: FALSE | AP14: =IF(AO14,'Commodity Prices'!C27) -> FALSE | AR14: =IF(AO14,'Commodity Prices'!D27) -> FALSE | AV14: 23 | AW14: 23 | AX14: =IF(AW14,'Yahoo Stocks'!D41) -> PHI | AY14: M | AZ14: =IF(AW14,'Yahoo Stocks'!E41) -> Philippine Long Distance (PHI) | BA14: Macys | BB14: F | BC14: Yahoo | BD14: 134 | BE14: FALSE | BF14: =IF(BE14,'Google Finance Stocks'!D38) -> FALSE | BH14: =IF(BE14,'Google Finance Stocks'!E38) -> FALSE | BL14: 134 | BM14: 134 | BN14: ='Exchange Rates'!D24 -> 5 yr treasury | BP14: =IF(BM14,'Exchange Rates'!E24) -> 5-Year Treasury Constant Maturity Rate (GS5)
F15: TRUE | G15: =H12+1 -> 12 | H15: =Yahoo_Stock_Tickers*F15+G15-1 -> 122 | I15: F | J15: Yahoo | L15: 13 | M15: AAPL | N15: Apple | O15: F | P15: Yahoo | Q15: 13 | R15: FALSE | S15: =IF(R15,'Yahoo Index'!E65,"") ->  | T15: =IF(R15,'Yahoo Index'!F65,"") ->  | X15: 20 | Y15: FALSE | Z15: =IF($F$6,'FRED Indicies'!E28) -> 0 | AB15: =IF($F$6,'FRED Indicies'!D28) -> 0 | AF15: 21 | AG15: FALSE | AH15: =IF(AG15,'Google Index'!E42) -> FALSE | AJ15: =IF(AF15,'Google Index'!F42) -> 0 | AN15: 21 | AO15: FALSE | AP15: =IF(AO15,'Commodity Prices'!C28) -> FALSE | AR15: =IF(AO15,'Commodity Prices'!D28) -> FALSE | AV15: 24 | AW15: 24 | AX15: =IF(AW15,'Yahoo Stocks'!D42) -> KLL | AY15: AAPL | AZ15: =IF(AW15,'Yahoo Stocks'!E42) -> Kohls | BA15: Apple | BB15: F | BC15: Yahoo | BD15: 135 | BE15: FALSE | BF15: =IF(BE15,'Google Finance Stocks'!D39) -> FALSE | BH15: =IF(BE15,'Google Finance Stocks'!E39) -> FALSE | BL15: 135 | BM15: 135 | BN15: ='Exchange Rates'!D25 -> 10 year treasury | BP15: =IF(BM15,'Exchange Rates'!E25) -> 10-Year Treasury Constant Maturity Rate (GS10)
L16: 14 | M16: GOOG | N16: Google | O16: F | P16: Yahoo | Q16: 14 | R16: FALSE | S16: =IF(R16,'Yahoo Index'!E66,"") ->  | T16: =IF(R16,'Yahoo Index'!F66,"") ->  | X16: 21 | Y16: FALSE | Z16: =IF($F$6,'FRED Indicies'!E29) -> 0 | AB16: =IF($F$6,'FRED Indicies'!D29) -> 0 | AF16: 22 | AG16: FALSE | AH16: =IF(AG16,'Google Index'!E43) -> FALSE | AJ16: =IF(AF16,'Google Index'!F43) -> 0 | AN16: 22 | AO16: FALSE | AP16: =IF(AO16,'Commodity Prices'!C29) -> FALSE | AR16: =IF(AO16,'Commodity Prices'!D29) -> FALSE | AV16: 25 | AW16: 25 | AX16: =IF(AW16,'Yahoo Stocks'!D43) -> DRI | AY16: GOOG | AZ16: =IF(AW16,'Yahoo Stocks'!E43) -> Darden Resturants | BA16: Google | BB16: F | BC16: Yahoo | BD16: 136 | BE16: FALSE | BF16: =IF(BE16,'Google Finance Stocks'!D40) -> FALSE | BH16: =IF(BE16,'Google Finance Stocks'!E40) -> FALSE | BL16: 136 | BM16: 136 | BN16: ='Exchange Rates'!D26 -> US Med Inc Nom | BP16: =IF(BM16,'Exchange Rates'!E26) -> Median Household Income in the United States (MEHOINUSA646N)
L17: 15 | M17: AMZN | N17: Amazon | O17: F | P17: Yahoo | Q17: 15 | R17: FALSE | S17: =IF(R17,'Yahoo Index'!E67,"") ->  | T17: =IF(R17,'Yahoo Index'!F67,"") ->  | X17: 22 | Y17: FALSE | Z17: =IF($F$6,'FRED Indicies'!E30) -> 0 | AB17: =IF($F$6,'FRED Indicies'!D30) -> 0 | AF17: 23 | AG17: FALSE | AH17: =IF(AG17,'Google Index'!E44) -> FALSE | AJ17: =IF(AF17,'Google Index'!F44) -> 0 | AN17: 23 | AO17: FALSE | AP17: =IF(AO17,'Commodity Prices'!C30) -> FALSE | AR17: =IF(AO17,'Commodity Prices'!D30) -> FALSE | AV17: 26 | AW17: 26 | AX17: =IF(AW17,'Yahoo Stocks'!D44) -> MCD | AY17: AMZN | AZ17: =IF(AW17,'Yahoo Stocks'!E44) -> McDonalds | BA17: Amazon | BB17: F | BC17: Yahoo | BD17: 137 | BE17: FALSE | BF17: =IF(BE17,'Google Finance Stocks'!D41) -> FALSE | BH17: =IF(BE17,'Google Finance Stocks'!E41) -> FALSE | BL17: 137 | BM17: 137 | BN17: ='Exchange Rates'!D27 -> Median Income | BP17: =IF(BM17,'Exchange Rates'!E27) -> Employed full time: Median usual weekly real earnings: d over (LES1252881600Q)
F18: FALSE | G18: =H15+1 -> 123 | H18: =Google_Tickers*F18+G18-1 -> 122 | I18: D | J18: Google | L18: 16 | M18: FB | N18: Facebook | O18: F | P18: Yahoo | Q18: 16 | R18: FALSE | S18: =IF(R18,'Yahoo Index'!E68,"") ->  | T18: =IF(R18,'Yahoo Index'!F68,"") ->  | X18: 23 | Y18: FALSE | Z18: =IF($F$6,'FRED Indicies'!E31) -> 0 | AB18: =IF($F$6,'FRED Indicies'!D31) -> 0 | AF18: 24 | AG18: FALSE | AH18: =IF(AG18,'Google Index'!E45) -> FALSE | AJ18: =IF(AF18,'Google Index'!F45) -> 0 | AN18: 24 | AO18: FALSE | AP18: =IF(AO18,'Commodity Prices'!C31) -> FALSE | AR18: =IF(AO18,'Commodity Prices'!D31) -> FALSE | AV18: 27 | AW18: 27 | AX18: =IF(AW18,'Yahoo Stocks'!D45) -> WMT | AY18: FB | AZ18: =IF(AW18,'Yahoo Stocks'!E45) -> Wall Mart | BA18: Facebook | BB18: F | BC18: Yahoo | BD18: 138 | BE18: FALSE | BF18: =IF(BE18,'Google Finance Stocks'!D42) -> FALSE | BH18: =IF(BE18,'Google Finance Stocks'!E42) -> FALSE | BL18: 138 | BM18: 138 | BN18: ='Exchange Rates'!D28 -> Corp Profit | BP18: =IF(BM18,'Exchange Rates'!E28) -> Corporate Profits
L19: 17 | M19: UAL | N19: United Airlnes | O19: F | P19: Yahoo | Q19: 17 | R19: FALSE | S19: =IF(R19,'Yahoo Index'!E69,"") ->  | T19: =IF(R19,'Yahoo Index'!F69,"") ->  | X19: 24 | Y19: FALSE | Z19: =IF($F$6,'FRED Indicies'!E32) -> 0 | AB19: =IF($F$6,'FRED Indicies'!D32) -> 0 | AF19: 25 | AG19: FALSE | AH19: =IF(AG19,'Google Index'!E46) -> FALSE | AJ19: =IF(AF19,'Google Index'!F46) -> 0 | AN19: 25 | AO19: FALSE | AP19: =IF(AO19,'Commodity Prices'!C32) -> FALSE | AR19: =IF(AO19,'Commodity Prices'!D32) -> FALSE | AV19: 28 | AW19: 28 | AX19: =IF(AW19,'Yahoo Stocks'!D46) -> NG.L | AY19: UAL | AZ19: =IF(AW19,'Yahoo Stocks'!E46) -> National Grid | BA19: United Airlnes | BB19: F | BC19: Yahoo | BD19: 139 | BE19: FALSE | BF19: =IF(BE19,'Google Finance Stocks'!D43) -> FALSE | BH19: =IF(BE19,'Google Finance Stocks'!E43) -> FALSE | BL19: 139 | BM19: 139 | BN19: ='Exchange Rates'!D29 -> Corp Nonfin | BP19: =IF(BM19,'Exchange Rates'!E29) -> Non Financial Corporate Profits
L20: 18 | M20: MAR | N20: Mariott | O20: F | P20: Yahoo | Q20: 18 | R20: FALSE | S20: =IF(R20,'Yahoo Index'!E70,"") ->  | T20: =IF(R20,'Yahoo Index'!F70,"") ->  | X20: 25 | Y20: FALSE | Z20: =IF($F$6,'FRED Indicies'!E33) -> 0 | AB20: =IF($F$6,'FRED Indicies'!D33) -> 0 | AF20: 26 | AG20: FALSE | AH20: =IF(AG20,'Google Index'!E47) -> FALSE | AJ20: =IF(AF20,'Google Index'!F47) -> 0 | AN20: 26 | AO20: FALSE | AP20: =IF(AO20,'Commodity Prices'!C33) -> FALSE | AR20: =IF(AO20,'Commodity Prices'!D33) -> FALSE | AV20: 29 | AW20: 29 | AX20: =IF(AW20,'Yahoo Stocks'!D47) -> EXC | AY20: MAR | AZ20: =IF(AW20,'Yahoo Stocks'!E47) -> Exelon | BA20: Mariott | BB20: F | BC20: Yahoo | BD20: 140 | BE20: FALSE | BF20: =IF(BE20,'Google Finance Stocks'!D44) -> FALSE | BH20: =IF(BE20,'Google Finance Stocks'!E44) -> FALSE | BL20: 140 | BM20: 140 | BN20: ='Exchange Rates'!D30 -> Corp Aft Tax | BP20: =IF(BM20,'Exchange Rates'!E30) -> Corporate Profits After Tax
F21: TRUE | G21: =H18+1 -> 123 | H21: ='Exchange Rates'!D5*'Read Stocks'!F21+G21-1 -> 145 | I21: B | J21: FRED | L21: 19 | M21: BT | N21: BT Group plc (ADR) (BT) | O21: F | P21: Yahoo | Q21: 19 | R21: FALSE | S21: =IF(R21,'Yahoo Index'!E71,"") ->  | T21: =IF(R21,'Yahoo Index'!F71,"") ->  | X21: 26 | Y21: FALSE | Z21: =IF($F$6,'FRED Indicies'!E34) -> 0 | AB21: =IF($F$6,'FRED Indicies'!D34) -> 0 | AF21: 27 | AG21: FALSE | AH21: =IF(AG21,'Google Index'!E48) -> FALSE | AJ21: =IF(AF21,'Google Index'!F48) -> 0 | AN21: 27 | AO21: FALSE | AP21: =IF(AO21,'Commodity Prices'!C34) -> FALSE | AR21: =IF(AO21,'Commodity Prices'!D34) -> FALSE | AV21: 30 | AW21: 30 | AX21: =IF(AW21,'Yahoo Stocks'!D48) -> ENGI.PA | AY21: BT | AZ21: =IF(AW21,'Yahoo Stocks'!E48) -> GDF Suez | BA21: BT Group plc (ADR) (BT) | BB21: F | BC21: Yahoo | BD21: 141 | BE21: FALSE | BF21: =IF(BE21,'Google Finance Stocks'!D45) -> FALSE | BH21: =IF(BE21,'Google Finance Stocks'!E45) -> FALSE | BL21: 141 | BM21: 141 | BN21: ='Exchange Rates'!D31 -> Corp Inf Adjusted | BP21: =IF(BM21,'Exchange Rates'!E31) -> Corporate Profits with Inflation Adj
L22: 20 | M22: VOD | N22: Vodafone Group plc | O22: F | P22: Yahoo | Q22: 20 | R22: FALSE | S22: =IF(R22,'Yahoo Index'!E72,"") ->  | T22: =IF(R22,'Yahoo Index'!F72,"") ->  | X22: 27 | Y22: FALSE | Z22: =IF($F$6,'FRED Indicies'!E35) -> 0 | AB22: =IF($F$6,'FRED Indicies'!D35) -> 0 | AF22: 28 | AG22: FALSE | AH22: =IF(AG22,'Google Index'!E49) -> FALSE | AJ22: =IF(AF22,'Google Index'!F49) -> 0 | AN22: 28 | AO22: FALSE | AP22: =IF(AO22,'Commodity Prices'!C35) -> FALSE | AR22: =IF(AO22,'Commodity Prices'!D35) -> FALSE | AV22: 31 | AW22: 31 | AX22: =IF(AW22,'Yahoo Stocks'!D49) -> EDF.PA | AY22: VOD | AZ22: =IF(AW22,'Yahoo Stocks'!E49) -> EDF | BA22: Vodafone Group plc | BB22: F | BC22: Yahoo | BD22: 142 | BE22: FALSE | BF22: =IF(BE22,'Google Finance Stocks'!D46) -> FALSE | BH22: =IF(BE22,'Google Finance Stocks'!E46) -> FALSE | BL22: 142 | BM22: 142 | BN22: ='Exchange Rates'!D32 -> GDP Inflation Index | BP22: =IF(BM22,'Exchange Rates'!E32) -> GDP Inflation Index
L23: 21 | M23: VZ | N23: Verizon Communications... | O23: F | P23: Yahoo | Q23: 21 | R23: FALSE | S23: =IF(R23,'Yahoo Index'!E73,"") ->  | T23: =IF(R23,'Yahoo Index'!F73,"") ->  | X23: 28 | Y23: FALSE | Z23: =IF($F$6,'FRED Indicies'!E36) -> 0 | AB23: =IF($F$6,'FRED Indicies'!D36) -> 0 | AF23: 29 | AG23: FALSE | AH23: =IF(AG23,'Google Index'!E50) -> FALSE | AJ23: =IF(AF23,'Google Index'!F50) -> 0 | AN23: 29 | AO23: FALSE | AP23: =IF(AO23,'Commodity Prices'!C36) -> FALSE | AR23: =IF(AO23,'Commodity Prices'!D36) -> FALSE | AV23: 32 | AW23: 32 | AX23: =IF(AW23,'Yahoo Stocks'!D50) -> ED | AY23: VZ | AZ23: =IF(AW23,'Yahoo Stocks'!E50) -> Consolidated Edison | BA23: Verizon Communications... | BB23: F | BC23: Yahoo | BD23: 143 | BE23: FALSE | BF23: =IF(BE23,'Google Finance Stocks'!D47) -> FALSE | BH23: =IF(BE23,'Google Finance Stocks'!E47) -> FALSE | BL23: 143 | BM23: 143 | BN23: ='Exchange Rates'!D33 -> CPI US Index | BP23: =IF(BM23,'Exchange Rates'!E33) -> CPI US Index
L24: 22 | M24: S | N24: Sprint | O24: F | P24: Yahoo | Q24: 22 | R24: FALSE | S24: =IF(R24,'Yahoo Index'!E74,"") ->  | T24: =IF(R24,'Yahoo Index'!F74,"") ->  | X24: 29 | Y24: FALSE | Z24: =IF($F$6,'FRED Indicies'!E37) -> 0 | AB24: =IF($F$6,'FRED Indicies'!D37) -> 0 | AF24: 30 | AG24: FALSE | AH24: =IF(AG24,'Google Index'!E51) -> FALSE | AJ24: =IF(AF24,'Google Index'!F51) -> 0 | AN24: 30 | AO24: FALSE | AP24: =IF(AO24,'Commodity Prices'!C37) -> FALSE | AR24: =IF(AO24,'Commodity Prices'!D37) -> FALSE | AV24: 33 | AW24: 33 | AX24: =IF(AW24,'Yahoo Stocks'!D51) -> TENA.KL | AY24: S | AZ24: =IF(AW24,'Yahoo Stocks'!E51) -> Tenaga | BA24: Sprint | BB24: F | BC24: Yahoo | BD24: 144 | BE24: FALSE | BF24: =IF(BE24,'Google Finance Stocks'!D48) -> FALSE | BH24: =IF(BE24,'Google Finance Stocks'!E48) -> FALSE | BL24: 144 | BM24: 144 | BN24: ='Exchange Rates'!D34 -> US GDP | BP24: =IF(BM24,'Exchange Rates'!E34) -> US GDP Gross Domestic Product (GDP)
L25: 23 | M25: PHI | N25: Philippine Long Distance (PHI) | O25: F | P25: Yahoo | Q25: 23 | R25: FALSE | S25: =IF(R25,'Yahoo Index'!E75,"") ->  | T25: =IF(R25,'Yahoo Index'!F75,"") ->  | X25: 30 | Y25: FALSE | Z25: =IF($F$6,'FRED Indicies'!E38) -> 0 | AB25: =IF($F$6,'FRED Indicies'!D38) -> 0 | AF25: 31 | AG25: FALSE | AH25: =IF(AG25,'Google Index'!E52) -> FALSE | AJ25: =IF(AF25,'Google Index'!F52) -> 0 | AN25: 31 | AO25: FALSE | AP25: =IF(AO25,'Commodity Prices'!C38) -> FALSE | AR25: =IF(AO25,'Commodity Prices'!D38) -> FALSE | AV25: 34 | AW25: 34 | AX25: =IF(AW25,'Yahoo Stocks'!D52) -> MAEOY | AY25: PHI | AZ25: =IF(AW25,'Yahoo Stocks'!E52) -> Meralco | BA25: Philippine Long Distance (PHI) | BB25: F | BC25: Yahoo | BD25: 145 | BE25: FALSE | BF25: =IF(BE25,'Google Finance Stocks'!D49) -> FALSE | BH25: =IF(BE25,'Google Finance Stocks'!E49) -> FALSE | BL25: 145 | BM25: 145 | BN25: ='Exchange Rates'!D35 -> Median Family Income | BP25: =IF(BM25,'Exchange Rates'!E35) -> Median Family Income in the United States (MEFAINUSA646N)
L26: 24 | M26: KLL | N26: Kohls | O26: F | P26: Yahoo | Q26: 24 | R26: FALSE | S26: =IF(R26,'Yahoo Index'!E76,"") ->  | T26: =IF(R26,'Yahoo Index'!F76,"") ->  | X26: 31 | Y26: FALSE | Z26: =IF($F$6,'FRED Indicies'!E39) -> 0 | AB26: =IF($F$6,'FRED Indicies'!D39) -> 0 | AF26: 32 | AG26: FALSE | AH26: =IF(AG26,'Google Index'!E53) -> FALSE | AJ26: =IF(AF26,'Google Index'!F53) -> 0 | AN26: 32 | AO26: FALSE | AP26: =IF(AO26,'Commodity Prices'!C39) -> FALSE | AR26: =IF(AO26,'Commodity Prices'!D39) -> FALSE | AV26: 35 | AW26: 35 | AX26: =IF(AW26,'Yahoo Stocks'!D53) -> VWDRY | AY26: KLL | AZ26: =IF(AW26,'Yahoo Stocks'!E53) -> Vestas ADR | BA26: Kohls | BB26: F | BC26: Yahoo | BD26: 146 | BE26: FALSE | BF26: =IF(BE26,'Google Finance Stocks'!D50) -> FALSE | BH26: =IF(BE26,'Google Finance Stocks'!E50) -> FALSE | BL26: 146 | BM26: FALSE | BN26: ='Exchange Rates'!D36 -> 0 | BP26: =IF(BM26,'Exchange Rates'!E36) -> FALSE
L27: 25 | M27: DRI | N27: Darden Resturants | O27: F | P27: Yahoo | Q27: 25 | R27: FALSE | S27: =IF(R27,'Yahoo Index'!E77,"") ->  | T27: =IF(R27,'Yahoo Index'!F77,"") ->  | X27: 32 | Y27: FALSE | Z27: =IF($F$6,'FRED Indicies'!E40) -> 0 | AB27: =IF($F$6,'FRED Indicies'!D40) -> 0 | AF27: 33 | AG27: FALSE | AH27: =IF(AG27,'Google Index'!E54) -> FALSE | AJ27: =IF(AF27,'Google Index'!F54) -> 0 | AN27: 33 | AO27: FALSE | AP27: =IF(AO27,'Commodity Prices'!C40) -> FALSE | AR27: =IF(AO27,'Commodity Prices'!D40) -> FALSE | AV27: 36 | AW27: =IF(AND($F$15,AV27<=$H$15),AV27) -> 36 | AX27: =IF(AW27,'Yahoo Stocks'!D54) -> VWS.CO | AY27: =IFERROR(INDEX(AX:AX,MATCH(L27,AW:AW,0)),"") -> DRI | AZ27: =IF(AW27,'Yahoo Stocks'!E54) -> Vestas (Denmark) | BA27: =IFERROR(INDEX(AZ:AZ,MATCH(L27,AW:AW,0)),"") -> Darden Resturants | BB27: =IF(AY27<>"",$I$15,"") -> F | BC27: Yahoo | BD27: 147 | BE27: FALSE | BF27: =IF(BE27,'Google Finance Stocks'!D51) -> FALSE | BH27: =IF(BE27,'Google Finance Stocks'!E51) -> FALSE | BL27: 147 | BM27: FALSE | BN27: ='Exchange Rates'!D37 -> 0 | BP27: =IF(BM27,'Exchange Rates'!E37) -> FALSE
L28: 26 | M28: MCD | N28: McDonalds | O28: F | P28: Yahoo | Q28: 26 | R28: FALSE | S28: =IF(R28,'Yahoo Index'!E78,"") ->  | T28: =IF(R28,'Yahoo Index'!F78,"") ->  | X28: 33 | Y28: FALSE | Z28: =IF($F$6,'FRED Indicies'!E41) -> 0 | AB28: =IF($F$6,'FRED Indicies'!D41) -> 0 | AF28: 34 | AG28: FALSE | AH28: =IF(AG28,'Google Index'!E55) -> FALSE | AJ28: =IF(AF28,'Google Index'!F55) -> 0 | AN28: 34 | AO28: FALSE | AP28: =IF(AO28,'Commodity Prices'!C41) -> FALSE | AR28: =IF(AO28,'Commodity Prices'!D41) -> FALSE | AV28: 37 | AW28: 37 | AX28: =IF(AW28,'Yahoo Stocks'!D55) -> GE | AY28: MCD | AZ28: =IF(AW28,'Yahoo Stocks'!E55) -> General Electric | BA28: McDonalds | BB28: F | BC28: Yahoo | BD28: 148 | BE28: FALSE | BF28: =IF(BE28,'Google Finance Stocks'!D52) -> FALSE | BH28: =IF(BE28,'Google Finance Stocks'!E52) -> FALSE | BL28: 148 | BM28: FALSE | BN28: ='Exchange Rates'!D38 -> 0 | BP28: =IF(BM28,'Exchange Rates'!E38) -> FALSE
L29: 27 | M29: WMT | N29: Wall Mart | O29: F | P29: Yahoo | Q29: 27 | R29: FALSE | S29: =IF(R29,'Yahoo Index'!E79,"") ->  | T29: =IF(R29,'Yahoo Index'!F79,"") ->  | X29: 34 | Y29: FALSE | Z29: =IF($F$6,'FRED Indicies'!E42) -> 0 | AB29: =IF($F$6,'FRED Indicies'!D42) -> 0 | AF29: 35 | AG29: FALSE | AH29: =IF(AG29,'Google Index'!E56) -> FALSE | AJ29: =IF(AF29,'Google Index'!F56) -> 0 | AN29: 35 | AO29: FALSE | AP29: =IF(AO29,'Commodity Prices'!C42) -> FALSE | AR29: =IF(AO29,'Commodity Prices'!D42) -> FALSE | AV29: 38 | AW29: 38 | AX29: =IF(AW29,'Yahoo Stocks'!D56) -> NDX1.DE | AY29: WMT | AZ29: =IF(AW29,'Yahoo Stocks'!E56) -> Nordex Wind SE: German On-Shore Wind | BA29: Wall Mart | BB29: F | BC29: Yahoo | BD29: 149 | BE29: FALSE | BF29: =IF(BE29,'Google Finance Stocks'!D53) -> FALSE | BH29: =IF(BE29,'Google Finance Stocks'!E53) -> FALSE | BL29: 149 | BM29: FALSE | BN29: ='Exchange Rates'!D39 -> 0 | BP29: =IF(BM29,'Exchange Rates'!E39) -> FALSE
L30: 28 | M30: NG.L | N30: National Grid | O30: F | P30: Yahoo | Q30: 28 | R30: FALSE | S30: =IF(R30,'Yahoo Index'!E80,"") ->  | T30: =IF(R30,'Yahoo Index'!F80,"") ->  | X30: 35 | Y30: FALSE | Z30: =IF($F$6,'FRED Indicies'!E43) -> 0 | AB30: =IF($F$6,'FRED Indicies'!D43) -> 0 | AF30: 36 | AG30: FALSE | AH30: =IF(AG30,'Google Index'!E57) -> FALSE | AJ30: =IF(AF30,'Google Index'!F57) -> 0 | AN30: 36 | AO30: FALSE | AP30: =IF(AO30,'Commodity Prices'!C43) -> FALSE | AR30: =IF(AO30,'Commodity Prices'!D43) -> FALSE | AV30: 39 | AW30: 39 | AX30: =IF(AW30,'Yahoo Stocks'!D57) -> 601558.SS | AY30: NG.L | AZ30: =IF(AW30,'Yahoo Stocks'!E57) -> Sinovel Wind: Chinese Wind Manufactrer | BA30: National Grid | BB30: F | BC30: Yahoo | BD30: 150 | BE30: FALSE | BF30: =IF(BE30,'Google Finance Stocks'!D54) -> FALSE | BH30: =IF(BE30,'Google Finance Stocks'!E54) -> FALSE | BL30: 150 | BM30: FALSE | BN30: ='Exchange Rates'!D40 -> 0 | BP30: =IF(BM30,'Exchange Rates'!E40) -> FALSE
L31: 29 | M31: EXC | N31: Exelon | O31: F | P31: Yahoo | Q31: 29 | R31: FALSE | S31: =IF(R31,'Yahoo Index'!E81,"") ->  | T31: =IF(R31,'Yahoo Index'!F81,"") ->  | X31: 36 | Y31: FALSE | Z31: =IF($F$6,'FRED Indicies'!E44) -> 0 | AB31: =IF($F$6,'FRED Indicies'!D44) -> 0 | AF31: 37 | AG31: FALSE | AH31: =IF(AG31,'Google Index'!E58) -> FALSE | AJ31: =IF(AF31,'Google Index'!F58) -> 0 | AN31: 37 | AO31: FALSE | AP31: =IF(AO31,'Commodity Prices'!C44) -> FALSE | AR31: =IF(AO31,'Commodity Prices'!D44) -> FALSE | AV31: 40 | AW31: 40 | AX31: =IF(AW31,'Yahoo Stocks'!D58) -> SUZLON.NS | AY31: EXC | AZ31: =IF(AW31,'Yahoo Stocks'!E58) -> Suzlon: Indian Wind Manufacturer | BA31: Exelon | BB31: F | BC31: Yahoo | BD31: 151 | BE31: FALSE | BF31: =IF(BE31,'Google Finance Stocks'!D55) -> FALSE | BH31: =IF(BE31,'Google Finance Stocks'!E55) -> FALSE | BL31: 151 | BM31: FALSE | BN31: ='Exchange Rates'!D41 -> 0 | BP31: =IF(BM31,'Exchange Rates'!E41) -> FALSE
L32: 30 | M32: ENGI.PA | N32: GDF Suez | O32: F | P32: Yahoo | Q32: 30 | R32: FALSE | S32: =IF(R32,'Yahoo Index'!E82,"") ->  | T32: =IF(R32,'Yahoo Index'!F82,"") ->  | X32: 37 | Y32: FALSE | Z32: =IF($F$6,'FRED Indicies'!E45) -> 0 | AB32: =IF($F$6,'FRED Indicies'!D45) -> 0 | AF32: 38 | AG32: FALSE | AH32: =IF(AG32,'Google Index'!E59) -> FALSE | AJ32: =IF(AF32,'Google Index'!F59) -> 0 | AN32: 38 | AO32: FALSE | AP32: =IF(AO32,'Commodity Prices'!C45) -> FALSE | AR32: =IF(AO32,'Commodity Prices'!D45) -> FALSE | AV32: 41 | AW32: 41 | AX32: =IF(AW32,'Yahoo Stocks'!D59) -> 002202.SZ | AY32: ENGI.PA | AZ32: =IF(AW32,'Yahoo Stocks'!E59) -> Goldwind: Chinese Wind Manufacturer | BA32: GDF Suez | BB32: F | BC32: Yahoo | BD32: 152 | BE32: FALSE | BF32: =IF(BE32,'Google Finance Stocks'!D56) -> FALSE | BH32: =IF(BE32,'Google Finance Stocks'!E56) -> FALSE | BL32: 152 | BM32: FALSE | BN32: ='Exchange Rates'!D42 -> 0 | BP32: =IF(BM32,'Exchange Rates'!E42) -> FALSE
L33: 31 | M33: EDF.PA | N33: EDF | O33: F | P33: Yahoo | Q33: 31 | R33: FALSE | S33: =IF(R33,'Yahoo Index'!E83,"") ->  | T33: =IF(R33,'Yahoo Index'!F83,"") ->  | X33: 38 | Y33: FALSE | Z33: =IF($F$6,'FRED Indicies'!E46) -> 0 | AB33: =IF($F$6,'FRED Indicies'!D46) -> 0 | AF33: 39 | AG33: FALSE | AH33: =IF(AG33,'Google Index'!E60) -> FALSE | AJ33: =IF(AF33,'Google Index'!F60) -> 0 | AN33: 39 | AO33: FALSE | AP33: =IF(AO33,'Commodity Prices'!C46) -> FALSE | AR33: =IF(AO33,'Commodity Prices'!D46) -> FALSE | AV33: 42 | AW33: 42 | AX33: =IF(AW33,'Yahoo Stocks'!D60) -> LB | AY33: EDF.PA | AZ33: =IF(AW33,'Yahoo Stocks'!E60) -> Victoria Secret | BA33: EDF | BB33: F | BC33: Yahoo | BD33: 153 | BE33: FALSE | BF33: =IF(BE33,'Google Finance Stocks'!D57) -> FALSE | BH33: =IF(BE33,'Google Finance Stocks'!E57) -> FALSE | BL33: 153 | BM33: FALSE | BN33: ='Exchange Rates'!D43 -> 0 | BP33: =IF(BM33,'Exchange Rates'!E43) -> FALSE
L34: 32 | M34: ED | N34: Consolidated Edison | O34: F | P34: Yahoo | Q34: 32 | R34: FALSE | S34: =IF(R34,'Yahoo Index'!E84,"") ->  | T34: =IF(R34,'Yahoo Index'!F84,"") ->  | X34: 39 | Y34: FALSE | Z34: =IF($F$6,'FRED Indicies'!E47) -> 0 | AB34: =IF($F$6,'FRED Indicies'!D47) -> 0 | AF34: 40 | AG34: FALSE | AH34: =IF(AG34,'Google Index'!E61) -> FALSE | AJ34: =IF(AF34,'Google Index'!F61) -> 0 | AN34: 40 | AO34: FALSE | AP34: =IF(AO34,'Commodity Prices'!C47) -> FALSE | AR34: =IF(AO34,'Commodity Prices'!D47) -> FALSE | AV34: 43 | AW34: 43 | AX34: =IF(AW34,'Yahoo Stocks'!D61) -> MY | AY34: ED | AZ34: =IF(AW34,'Yahoo Stocks'!E61) -> Ming Yang: Chinese Wind Manufacturer | BA34: Consolidated Edison | BB34: F | BC34: Yahoo | BD34: 154 | BE34: FALSE | BF34: =IF(BE34,'Google Finance Stocks'!D58) -> FALSE | BH34: =IF(BE34,'Google Finance Stocks'!E58) -> FALSE | BL34: 154 | BM34: FALSE | BN34: ='Exchange Rates'!D44 -> 0 | BP34: =IF(BM34,'Exchange Rates'!E44) -> FALSE
L35: 33 | M35: TENA.KL | N35: Tenaga | O35: F | P35: Yahoo | Q35: 33 | R35: FALSE | S35: =IF(R35,'Yahoo Index'!E85,"") ->  | T35: =IF(R35,'Yahoo Index'!F85,"") ->  | X35: 40 | Y35: =IF(AND($F$6,X35<=$H$6),X35) -> FALSE | Z35: =IF($F$6,'FRED Indicies'!E48) -> 0 | AA35: =IFERROR(INDEX(Z:Z,MATCH(L35,Y:Y,0)),"") ->  | AB35: =IF($F$6,'FRED Indicies'!D48) -> 0 | AC35: =IFERROR(INDEX(AB:AB,MATCH(L35,Y:Y,0)),"") ->  | AF35: 41 | AG35: FALSE | AH35: =IF(AG35,'Google Index'!E62) -> FALSE | AI35: =IFERROR(INDEX(AH:AH,MATCH(Q35,AG:AG,0)),"") ->  | AJ35: =IF(AF35,'Google Index'!F62) -> 0 | AK35: =IFERROR(INDEX(AJ:AJ,MATCH(Q35,AG:AG,0)),"") ->  | AN35: 41 | AO35: FALSE | AP35: =IF(AO35,'Commodity Prices'!C48) -> FALSE | AQ35: =IFERROR(INDEX(AP:AP,MATCH(L35,AO:AO,0)),"") ->  | AR35: =IF(AO35,'Commodity Prices'!D48) -> FALSE | AS35: =IFERROR(INDEX(AR:AR,MATCH(L35,AO:AO,0)),"") ->  | AV35: 44 | AW35: 44 | AX35: =IF(AW35,'Yahoo Stocks'!D62) -> FSLR | AY35: TENA.KL | AZ35: =IF(AW35,'Yahoo Stocks'!E62) -> First Solar (U.S.) | BA35: Tenaga | BB35: F | BC35: Yahoo | BD35: 155 | BE35: FALSE | BF35: =IF(BE35,'Google Finance Stocks'!D59) -> FALSE | BH35: =IF(BE35,'Google Finance Stocks'!E59) -> FALSE | BL35: 155 | BM35: FALSE | BN35: ='Exchange Rates'!D45 -> 0 | BP35: =IF(BM35,'Exchange Rates'!E45) -> FALSE
L36: 34 | M36: MAEOY | N36: Meralco | O36: F | P36: Yahoo | Q36: 34 | R36: FALSE | S36: =IF(R36,'Yahoo Index'!E86,"") ->  | T36: =IF(R36,'Yahoo Index'!F86,"") ->  | X36: 41 | Y36: FALSE | Z36: =IF($F$6,'FRED Indicies'!E49) -> 0 | AB36: =IF($F$6,'FRED Indicies'!D49) -> 0 | AF36: 42 | AG36: FALSE | AH36: =IF(AG36,'Google Index'!E63) -> FALSE | AJ36: =IF(AF36,'Google Index'!F63) -> 0 | AN36: 42 | AO36: FALSE | AP36: =IF(AO36,'Commodity Prices'!C49) -> FALSE | AR36: =IF(AO36,'Commodity Prices'!D49) -> FALSE | AV36: 45 | AW36: 45 | AX36: =IF(AW36,'Yahoo Stocks'!D63) -> RECSOL.OL | AY36: MAEOY | AZ36: =IF(AW36,'Yahoo Stocks'!E63) -> REC: Solar Manufacturer Norway | BA36: Meralco | BB36: F | BC36: Yahoo | BD36: 156 | BE36: FALSE | BF36: =IF(BE36,'Google Finance Stocks'!D60) -> FALSE | BH36: =IF(BE36,'Google Finance Stocks'!E60) -> FALSE | BL36: 156 | BM36: FALSE | BN36: ='Exchange Rates'!D46 -> 0 | BP36: =IF(BM36,'Exchange Rates'!E46) -> FALSE
L37: 35 | M37: VWDRY | N37: Vestas ADR | O37: F | P37: Yahoo | Q37: 35 | R37: FALSE | S37: =IF(R37,'Yahoo Index'!E87,"") ->  | T37: =IF(R37,'Yahoo Index'!F87,"") ->  | X37: 42 | Y37: FALSE | Z37: =IF($F$6,'FRED Indicies'!E50) -> 0 | AB37: =IF($F$6,'FRED Indicies'!D50) -> 0 | AF37: 43 | AG37: FALSE | AH37: =IF(AG37,'Google Index'!E64) -> FALSE | AJ37: =IF(AF37,'Google Index'!F64) -> 0 | AN37: 43 | AO37: FALSE | AP37: =IF(AO37,'Commodity Prices'!C50) -> FALSE | AR37: =IF(AO37,'Commodity Prices'!D50) -> FALSE | AV37: 46 | AW37: 46 | AX37: =IF(AW37,'Yahoo Stocks'!D64) -> SPWR | AY37: VWDRY | AZ37: =IF(AW37,'Yahoo Stocks'!E64) -> SunPower Corporation (U.S.) | BA37: Vestas ADR | BB37: F | BC37: Yahoo | BD37: 157 | BE37: FALSE | BF37: =IF(BE37,'Google Finance Stocks'!D61) -> FALSE | BH37: =IF(BE37,'Google Finance Stocks'!E61) -> FALSE | BL37: 157 | BM37: FALSE | BN37: ='Exchange Rates'!D47 -> 0 | BP37: =IF(BM37,'Exchange Rates'!E47) -> FALSE
L38: 36 | M38: VWS.CO | N38: Vestas (Denmark) | O38: F | P38: Yahoo | Q38: 36 | R38: FALSE | S38: =IF(R38,'Yahoo Index'!E88,"") ->  | T38: =IF(R38,'Yahoo Index'!F88,"") ->  | X38: 43 | Y38: FALSE | Z38: =IF($F$6,'FRED Indicies'!E51) -> 0 | AB38: =IF($F$6,'FRED Indicies'!D51) -> 0 | AF38: 44 | AG38: FALSE | AH38: =IF(AG38,'Google Index'!E65) -> FALSE | AJ38: =IF(AF38,'Google Index'!F65) -> 0 | AN38: 44 | AO38: FALSE | AP38: =IF(AO38,'Commodity Prices'!C51) -> FALSE | AR38: =IF(AO38,'Commodity Prices'!D51) -> FALSE | AV38: 47 | AW38: 47 | AX38: =IF(AW38,'Yahoo Stocks'!D65) -> TSL | AY38: VWS.CO | AZ38: =IF(AW38,'Yahoo Stocks'!E65) -> Trina Solar Limited (China) | BA38: Vestas (Denmark) | BB38: F | BC38: Yahoo | BD38: 158 | BE38: FALSE | BF38: =IF(BE38,'Google Finance Stocks'!D62) -> FALSE | BH38: =IF(BE38,'Google Finance Stocks'!E62) -> FALSE | BL38: 158 | BM38: FALSE | BN38: ='Exchange Rates'!D48 -> 0 | BP38: =IF(BM38,'Exchange Rates'!E48) -> FALSE
L39: 37 | M39: GE | N39: General Electric | O39: F | P39: Yahoo | Q39: 37 | R39: FALSE | S39: =IF(R39,'Yahoo Index'!E89,"") ->  | T39: =IF(R39,'Yahoo Index'!F89,"") ->  | X39: 44 | Y39: FALSE | Z39: =IF($F$6,'FRED Indicies'!E52) -> 0 | AB39: =IF($F$6,'FRED Indicies'!D52) -> 0 | AF39: 45 | AG39: FALSE | AH39: =IF(AG39,'Google Index'!E66) -> FALSE | AJ39: =IF(AF39,'Google Index'!F66) -> 0 | AN39: 45 | AO39: FALSE | AP39: =IF(AO39,'Commodity Prices'!C52) -> FALSE | AR39: =IF(AO39,'Commodity Prices'!D52) -> FALSE | AV39: 48 | AW39: 48 | AX39: =IF(AW39,'Yahoo Stocks'!D66) -> SCTY | AY39: GE | AZ39: =IF(AW39,'Yahoo Stocks'!E66) -> Solar City | BA39: General Electric | BB39: F | BC39: Yahoo | BD39: 159 | BE39: FALSE | BF39: =IF(BE39,'Google Finance Stocks'!D63) -> FALSE | BH39: =IF(BE39,'Google Finance Stocks'!E63) -> FALSE | BL39: 159 | BM39: FALSE | BN39: ='Exchange Rates'!D49 -> 0 | BP39: =IF(BM39,'Exchange Rates'!E49) -> FALSE
L40: 38 | M40: NDX1.DE | N40: Nordex Wind SE: German On-Shore Wind | O40: F | P40: Yahoo | Q40: 38 | R40: FALSE | S40: =IF(R40,'Yahoo Index'!E90,"") ->  | T40: =IF(R40,'Yahoo Index'!F90,"") ->  | X40: 45 | Y40: FALSE | Z40: =IF($F$6,'FRED Indicies'!E53) -> 0 | AB40: =IF($F$6,'FRED Indicies'!D53) -> 0 | AF40: 46 | AG40: FALSE | AH40: =IF(AG40,'Google Index'!E67) -> FALSE | AJ40: =IF(AF40,'Google Index'!F67) -> 0 | AN40: 46 | AO40: FALSE | AP40: =IF(AO40,'Commodity Prices'!C53) -> FALSE | AR40: =IF(AO40,'Commodity Prices'!D53) -> FALSE | AV40: 49 | AW40: 49 | AX40: =IF(AW40,'Yahoo Stocks'!D67) -> BN.PA | AY40: NDX1.DE | AZ40: =IF(AW40,'Yahoo Stocks'!E67) -> Dannone | BA40: Nordex Wind SE: German On-Shore Wind | BB40: F | BC40: Yahoo | BD40: 160 | BE40: FALSE | BF40: =IF(BE40,'Google Finance Stocks'!D64) -> FALSE | BH40: =IF(BE40,'Google Finance Stocks'!E64) -> FALSE | BL40: 160 | BM40: FALSE | BN40: ='Exchange Rates'!D50 -> 0 | BP40: =IF(BM40,'Exchange Rates'!E50) -> FALSE
L41: 39 | M41: 601558.SS | N41: Sinovel Wind: Chinese Wind Manufactrer | O41: F | P41: Yahoo | Q41: 39 | R41: FALSE | S41: =IF(R41,'Yahoo Index'!E91,"") ->  | T41: =IF(R41,'Yahoo Index'!F91,"") ->  | X41: 46 | Y41: FALSE | Z41: =IF($F$6,'FRED Indicies'!E54) -> 0 | AB41: =IF($F$6,'FRED Indicies'!D54) -> 0 | AF41: 47 | AG41: FALSE | AH41: =IF(AG41,'Google Index'!E68) -> FALSE | AJ41: =IF(AF41,'Google Index'!F68) -> 0 | AN41: 47 | AO41: FALSE | AP41: =IF(AO41,'Commodity Prices'!C54) -> FALSE | AR41: =IF(AO41,'Commodity Prices'!D54) -> FALSE | AV41: 50 | AW41: 50 | AX41: =IF(AW41,'Yahoo Stocks'!D68) -> PEP | AY41: 601558.SS | AZ41: =IF(AW41,'Yahoo Stocks'!E68) -> Pepsi Co | BA41: Sinovel Wind: Chinese Wind Manufactrer | BB41: F | BC41: Yahoo | BD41: 161 | BE41: FALSE | BF41: =IF(BE41,'Google Finance Stocks'!D65) -> FALSE | BH41: =IF(BE41,'Google Finance Stocks'!E65) -> FALSE | BL41: 161 | BM41: FALSE | BN41: ='Exchange Rates'!D51 -> 0 | BP41: =IF(BM41,'Exchange Rates'!E51) -> FALSE
L42: 40 | M42: SUZLON.NS | N42: Suzlon: Indian Wind Manufacturer | O42: F | P42: Yahoo | Q42: 40 | R42: FALSE | S42: =IF(R42,'Yahoo Index'!E92,"") ->  | T42: =IF(R42,'Yahoo Index'!F92,"") ->  | X42: 47 | Y42: FALSE | Z42: =IF($F$6,'FRED Indicies'!E55) -> 0 | AB42: =IF($F$6,'FRED Indicies'!D55) -> 0 | AF42: 48 | AG42: FALSE | AH42: =IF(AG42,'Google Index'!E69) -> FALSE | AJ42: =IF(AF42,'Google Index'!F69) -> 0 | AN42: 48 | AO42: FALSE | AP42: =IF(AO42,'Commodity Prices'!C55) -> FALSE | AR42: =IF(AO42,'Commodity Prices'!D55) -> FALSE | AV42: 51 | AW42: 51 | AX42: =IF(AW42,'Yahoo Stocks'!D69) -> CCE | AY42: SUZLON.NS | AZ42: =IF(AW42,'Yahoo Stocks'!E69) -> Coca Cola | BA42: Suzlon: Indian Wind Manufacturer | BB42: F | BC42: Yahoo | BD42: 162 | BE42: FALSE | BF42: =IF(BE42,'Google Finance Stocks'!D66) -> FALSE | BH42: =IF(BE42,'Google Finance Stocks'!E66) -> FALSE | BL42: 162 | BM42: FALSE | BN42: ='Exchange Rates'!D52 -> 0 | BP42: =IF(BM42,'Exchange Rates'!E52) -> FALSE
L43: 41 | M43: 002202.SZ | N43: Goldwind: Chinese Wind Manufacturer | O43: F | P43: Yahoo | Q43: 41 | R43: FALSE | S43: =IF(R43,'Yahoo Index'!E93,"") ->  | T43: =IF(R43,'Yahoo Index'!F93,"") ->  | X43: 48 | Y43: FALSE | Z43: =IF($F$6,'FRED Indicies'!E56) -> 0 | AB43: =IF($F$6,'FRED Indicies'!D56) -> 0 | AF43: 49 | AG43: FALSE | AH43: =IF(AG43,'Google Index'!E70) -> FALSE | AJ43: =IF(AF43,'Google Index'!F70) -> 0 | AN43: 49 | AO43: FALSE | AP43: =IF(AO43,'Commodity Prices'!C56) -> FALSE | AR43: =IF(AO43,'Commodity Prices'!D56) -> FALSE | AV43: 52 | AW43: 52 | AX43: =IF(AW43,'Yahoo Stocks'!D70) -> K | AY43: 002202.SZ | AZ43: =IF(AW43,'Yahoo Stocks'!E70) -> Kellog | BA43: Goldwind: Chinese Wind Manufacturer | BB43: F | BC43: Yahoo | BD43: 163 | BE43: FALSE | BF43: =IF(BE43,'Google Finance Stocks'!D67) -> FALSE | BH43: =IF(BE43,'Google Finance Stocks'!E67) -> FALSE | BL43: 163 | BM43: FALSE | BN43: ='Exchange Rates'!D53 -> 0 | BP43: =IF(BM43,'Exchange Rates'!E53) -> FALSE
L44: 42 | M44: LB | N44: Victoria Secret | O44: F | P44: Yahoo | Q44: 42 | R44: FALSE | S44: =IF(R44,'Yahoo Index'!E94,"") ->  | T44: =IF(R44,'Yahoo Index'!F94,"") ->  | X44: 49 | Y44: FALSE | Z44: =IF($F$6,'FRED Indicies'!E57) -> 0 | AB44: =IF($F$6,'FRED Indicies'!D57) -> 0 | AF44: 50 | AG44: FALSE | AH44: =IF(AG44,'Google Index'!E71) -> FALSE | AJ44: =IF(AF44,'Google Index'!F71) -> 0 | AN44: 50 | AO44: FALSE | AP44: =IF(AO44,'Commodity Prices'!C57) -> FALSE | AR44: =IF(AO44,'Commodity Prices'!D57) -> FALSE | AV44: 53 | AW44: 53 | AX44: =IF(AW44,'Yahoo Stocks'!D71) -> GIS | AY44: LB | AZ44: =IF(AW44,'Yahoo Stocks'!E71) -> General Mills | BA44: Victoria Secret | BB44: F | BC44: Yahoo | BD44: 164 | BE44: FALSE | BF44: =IF(BE44,'Google Finance Stocks'!D68) -> FALSE | BH44: =IF(BE44,'Google Finance Stocks'!E68) -> FALSE | BL44: 164 | BM44: FALSE | BN44: ='Exchange Rates'!D54 -> 0 | BP44: =IF(BM44,'Exchange Rates'!E54) -> FALSE
L45: 43 | M45: MY | N45: Ming Yang: Chinese Wind Manufacturer | O45: F | P45: Yahoo | Q45: 43 | R45: FALSE | S45: =IF(R45,'Yahoo Index'!E95,"") ->  | T45: =IF(R45,'Yahoo Index'!F95,"") ->  | X45: 50 | Y45: FALSE | Z45: =IF($F$6,'FRED Indicies'!E58) -> 0 | AB45: =IF($F$6,'FRED Indicies'!D58) -> 0 | AF45: 51 | AG45: FALSE | AH45: =IF(AG45,'Google Index'!E72) -> FALSE | AJ45: =IF(AF45,'Google Index'!F72) -> 0 | AN45: 51 | AO45: FALSE | AP45: =IF(AO45,'Commodity Prices'!C58) -> FALSE | AR45: =IF(AO45,'Commodity Prices'!D58) -> FALSE | AV45: 54 | AW45: 54 | AX45: =IF(AW45,'Yahoo Stocks'!D72) -> CAG | AY45: MY | AZ45: =IF(AW45,'Yahoo Stocks'!E72) -> ConAgra | BA45: Ming Yang: Chinese Wind Manufacturer | BB45: F | BC45: Yahoo | BD45: 165 | BE45: FALSE | BF45: =IF(BE45,'Google Finance Stocks'!D69) -> FALSE | BH45: =IF(BE45,'Google Finance Stocks'!E69) -> FALSE | BL45: 165 | BM45: FALSE | BN45: ='Exchange Rates'!D55 -> 0 | BP45: =IF(BM45,'Exchange Rates'!E55) -> FALSE
L46: 44 | M46: FSLR | N46: First Solar (U.S.) | O46: F | P46: Yahoo | Q46: 44 | R46: FALSE | S46: =IF(R46,'Yahoo Index'!E96,"") ->  | T46: =IF(R46,'Yahoo Index'!F96,"") ->  | X46: 51 | Y46: FALSE | Z46: =IF($F$6,'FRED Indicies'!E59) -> 0 | AB46: =IF($F$6,'FRED Indicies'!D59) -> 0 | AF46: 52 | AG46: FALSE | AH46: =IF(AG46,'Google Index'!E73) -> FALSE | AJ46: =IF(AF46,'Google Index'!F73) -> 0 | AN46: 52 | AO46: FALSE | AP46: =IF(AO46,'Commodity Prices'!C59) -> FALSE | AR46: =IF(AO46,'Commodity Prices'!D59) -> FALSE | AV46: 55 | AW46: 55 | AX46: =IF(AW46,'Yahoo Stocks'!D73) -> HNZ | AY46: FSLR | AZ46: =IF(AW46,'Yahoo Stocks'!E73) -> Heinz | BA46: First Solar (U.S.) | BB46: F | BC46: Yahoo | BD46: 166 | BE46: FALSE | BF46: =IF(BE46,'Google Finance Stocks'!D70) -> FALSE | BH46: =IF(BE46,'Google Finance Stocks'!E70) -> FALSE | BL46: 166 | BM46: FALSE | BN46: ='Exchange Rates'!D56 -> 0 | BP46: =IF(BM46,'Exchange Rates'!E56) -> FALSE
L47: 45 | M47: RECSOL.OL | N47: REC: Solar Manufacturer Norway | O47: F | P47: Yahoo | Q47: 45 | R47: FALSE | S47: =IF(R47,'Yahoo Index'!E97,"") ->  | T47: =IF(R47,'Yahoo Index'!F97,"") ->  | X47: 52 | Y47: FALSE | Z47: =IF($F$6,'FRED Indicies'!E60) -> 0 | AB47: =IF($F$6,'FRED Indicies'!D60) -> 0 | AF47: 53 | AG47: FALSE | AH47: =IF(AG47,'Google Index'!E74) -> FALSE | AJ47: =IF(AF47,'Google Index'!F74) -> 0 | AN47: 53 | AO47: FALSE | AP47: =IF(AO47,'Commodity Prices'!C60) -> FALSE | AR47: =IF(AO47,'Commodity Prices'!D60) -> FALSE | AV47: 56 | AW47: 56 | AX47: =IF(AW47,'Yahoo Stocks'!D74) -> SLE | AY47: RECSOL.OL | AZ47: =IF(AW47,'Yahoo Stocks'!E74) -> Sara Lee | BA47: REC: Solar Manufacturer Norway | BB47: F | BC47: Yahoo | BD47: 167 | BE47: FALSE | BF47: =IF(BE47,'Google Finance Stocks'!D71) -> FALSE | BH47: =IF(BE47,'Google Finance Stocks'!E71) -> FALSE | BL47: 167 | BM47: FALSE | BN47: ='Exchange Rates'!D57 -> 0 | BP47: =IF(BM47,'Exchange Rates'!E57) -> FALSE
L48: 46 | M48: SPWR | N48: SunPower Corporation (U.S.) | O48: F | P48: Yahoo | Q48: 46 | R48: FALSE | S48: =IF(R48,'Yahoo Index'!E98,"") ->  | T48: =IF(R48,'Yahoo Index'!F98,"") ->  | X48: 53 | Y48: FALSE | Z48: =IF($F$6,'FRED Indicies'!E61) -> 0 | AB48: =IF($F$6,'FRED Indicies'!D61) -> 0 | AF48: 54 | AG48: FALSE | AH48: =IF(AG48,'Google Index'!E75) -> FALSE | AJ48: =IF(AF48,'Google Index'!F75) -> 0 | AN48: 54 | AO48: FALSE | AP48: =IF(AO48,'Commodity Prices'!C61) -> FALSE | AR48: =IF(AO48,'Commodity Prices'!D61) -> FALSE | AV48: 57 | AW48: 57 | AX48: =IF(AW48,'Yahoo Stocks'!D75) -> CHK | AY48: SPWR | AZ48: =IF(AW48,'Yahoo Stocks'!E75) -> Cheasapeak Energy | BA48: SunPower Corporation (U.S.) | BB48: F | BC48: Yahoo | BD48: 168 | BE48: FALSE | BF48: =IF(BE48,'Google Finance Stocks'!D72) -> FALSE | BH48: =IF(BE48,'Google Finance Stocks'!E72) -> FALSE | BL48: 168 | BM48: FALSE | BN48: ='Exchange Rates'!D58 -> 0 | BP48: =IF(BM48,'Exchange Rates'!E58) -> FALSE
L49: 47 | M49: TSL | N49: Trina Solar Limited (China) | O49: F | P49: Yahoo | Q49: 47 | R49: FALSE | S49: =IF(R49,'Yahoo Index'!E99,"") ->  | T49: =IF(R49,'Yahoo Index'!F99,"") ->  | X49: 54 | Y49: FALSE | Z49: =IF($F$6,'FRED Indicies'!E62) -> 0 | AB49: =IF($F$6,'FRED Indicies'!D62) -> 0 | AF49: 55 | AG49: FALSE | AH49: =IF(AG49,'Google Index'!E76) -> FALSE | AJ49: =IF(AF49,'Google Index'!F76) -> 0 | AN49: 55 | AO49: FALSE | AP49: =IF(AO49,'Commodity Prices'!C62) -> FALSE | AR49: =IF(AO49,'Commodity Prices'!D62) -> FALSE | AV49: 58 | AW49: 58 | AX49: =IF(AW49,'Yahoo Stocks'!D76) -> RRC | AY49: TSL | AZ49: =IF(AW49,'Yahoo Stocks'!E76) -> Range Resources | BA49: Trina Solar Limited (China) | BB49: F | BC49: Yahoo | BD49: 169 | BE49: FALSE | BF49: =IF(BE49,'Google Finance Stocks'!D73) -> FALSE | BH49: =IF(BE49,'Google Finance Stocks'!E73) -> FALSE | BL49: 169 | BM49: FALSE | BN49: ='Exchange Rates'!D59 -> 0 | BP49: =IF(BM49,'Exchange Rates'!E59) -> FALSE
L50: 48 | M50: SCTY | N50: Solar City | O50: F | P50: Yahoo | Q50: 48 | R50: FALSE | S50: =IF(R50,'Yahoo Index'!E100,"") ->  | T50: =IF(R50,'Yahoo Index'!F100,"") ->  | X50: 55 | Y50: FALSE | Z50: =IF($F$6,'FRED Indicies'!E63) -> 0 | AB50: =IF($F$6,'FRED Indicies'!D63) -> 0 | AF50: 56 | AG50: FALSE | AH50: =IF(AG50,'Google Index'!E77) -> FALSE | AJ50: =IF(AF50,'Google Index'!F77) -> 0 | AN50: 56 | AO50: FALSE | AP50: =IF(AO50,'Commodity Prices'!C63) -> FALSE | AR50: =IF(AO50,'Commodity Prices'!D63) -> FALSE | AV50: 59 | AW50: 59 | AX50: =IF(AW50,'Yahoo Stocks'!D77) -> CLR | AY50: SCTY | AZ50: =IF(AW50,'Yahoo Stocks'!E77) -> Contential Resources | BA50: Solar City | BB50: F | BC50: Yahoo | BD50: 170 | BE50: FALSE | BF50: =IF(BE50,'Google Finance Stocks'!D74) -> FALSE | BH50: =IF(BE50,'Google Finance Stocks'!E74) -> FALSE | BL50: 170 | BM50: FALSE | BN50: ='Exchange Rates'!D60 -> 0 | BP50: =IF(BM50,'Exchange Rates'!E60) -> FALSE
L51: 49 | M51: BN.PA | N51: Dannone | O51: F | P51: Yahoo | Q51: 49 | R51: FALSE | S51: =IF(R51,'Yahoo Index'!E101,"") ->  | T51: =IF(R51,'Yahoo Index'!F101,"") ->  | X51: 56 | Y51: FALSE | Z51: =IF($F$6,'FRED Indicies'!E64) -> 0 | AB51: =IF($F$6,'FRED Indicies'!D64) -> 0 | AF51: 57 | AG51: FALSE | AH51: =IF(AG51,'Google Index'!E78) -> FALSE | AJ51: =IF(AF51,'Google Index'!F78) -> 0 | AN51: 57 | AO51: FALSE | AP51: =IF(AO51,'Commodity Prices'!C64) -> FALSE | AR51: =IF(AO51,'Commodity Prices'!D64) -> FALSE | AV51: 60 | AW51: 60 | AX51: =IF(AW51,'Yahoo Stocks'!D78) -> SD | AY51: BN.PA | AZ51: =IF(AW51,'Yahoo Stocks'!E78) -> Sandy Ridge | BA51: Dannone | BB51: F | BC51: Yahoo | BD51: 171 | BE51: FALSE | BF51: =IF(BE51,'Google Finance Stocks'!D75) -> FALSE | BH51: =IF(BE51,'Google Finance Stocks'!E75) -> FALSE | BL51: 171 | BM51: FALSE | BN51: ='Exchange Rates'!D61 -> 0 | BP51: =IF(BM51,'Exchange Rates'!E61) -> FALSE
L52: 50 | M52: PEP | N52: Pepsi Co | O52: F | P52: Yahoo | Q52: 50 | R52: FALSE | S52: =IF(R52,'Yahoo Index'!E102,"") ->  | T52: =IF(R52,'Yahoo Index'!F102,"") ->  | X52: 57 | Y52: FALSE | Z52: =IF($F$6,'FRED Indicies'!E65) -> 0 | AB52: =IF($F$6,'FRED Indicies'!D65) -> 0 | AF52: 58 | AG52: FALSE | AH52: =IF(AG52,'Google Index'!E79) -> FALSE | AJ52: =IF(AF52,'Google Index'!F79) -> 0 | AN52: 58 | AO52: FALSE | AP52: =IF(AO52,'Commodity Prices'!C65) -> FALSE | AR52: =IF(AO52,'Commodity Prices'!D65) -> FALSE | AV52: 61 | AW52: 61 | AX52: =IF(AW52,'Yahoo Stocks'!D79) -> MPO | AY52: PEP | AZ52: =IF(AW52,'Yahoo Stocks'!E79) -> Midstates Petroleum | BA52: Pepsi Co | BB52: F | BC52: Yahoo | BD52: 172 | BE52: FALSE | BF52: =IF(BE52,'Google Finance Stocks'!D76) -> FALSE | BH52: =IF(BE52,'Google Finance Stocks'!E76) -> FALSE | BL52: 172 | BM52: FALSE | BN52: ='Exchange Rates'!D62 -> 0 | BP52: =IF(BM52,'Exchange Rates'!E62) -> FALSE
L53: 51 | M53: =S53&AA53&AI53&AQ53&AY53&BG53&BO53 -> CCE | N53: =T53&AC53&AK53&AS53&BA53&BI53&BQ53 -> Coca Cola | O53: =U53&AD53&AL53&AT53&BB53&BJ53&BR53 -> F | P53: =V53&AE53&AM53&AU53&BC53&BK53&BS53 -> Yahoo | Q53: 51 | R53: =IF(AND($F$3,Q53<=$H$3),Q53) -> FALSE | S53: =IF(R53,'Yahoo Index'!E103,"") ->  | T53: =IF(R53,'Yahoo Index'!F103,"") ->  | U53: =IF(R53,$I$3,"") ->  | V53: =IF(R53,$J$3,"") ->  | X53: 58 | Y53: =IF(AND($F$6,X53<=$H$6),X53) -> FALSE | Z53: =IF($F$6,'FRED Indicies'!E66) -> 0 | AA53: =IFERROR(INDEX(Z:Z,MATCH(L53,Y:Y,0)),"") ->  | AB53: =IF($F$6,'FRED Indicies'!D66) -> 0 | AC53: =IFERROR(INDEX(AB:AB,MATCH(L53,Y:Y,0)),"") ->  | AD53: =IF(AA53<>"",$I$6,"") ->  | AE53: =IF(AA53<>"",$J$6,"") ->  | AF53: 59 | AG53: =IF(AND($F$9,AF53<=$H$9),AF53) -> FALSE | AH53: =IF(AG53,'Google Index'!E80) -> FALSE | AI53: =IFERROR(INDEX(AH:AH,MATCH(Q53,AG:AG,0)),"") ->  | AJ53: =IF(AF53,'Google Index'!F80) -> 0 | AK53: =IFERROR(INDEX(AJ:AJ,MATCH(Q53,AG:AG,0)),"") ->  | AL53: =IF(AI53<>"",$I$6,"") ->  | AM53: =IF(AK53<>"",$J$6,"") ->  | AN53: 59 | AO53: =IF(AND($F$12,AN53<=$H$12),AN53) -> FALSE | AP53: =IF(AO53,'Commodity Prices'!C66) -> FALSE | AQ53: =IFERROR(INDEX(AP:AP,MATCH(L53,AO:AO,0)),"") ->  | AR53: =IF(AO53,'Commodity Prices'!D66) -> FALSE | AS53: =IFERROR(INDEX(AR:AR,MATCH(L53,AO:AO,0)),"") ->  | AT53: =IF(AQ53<>"",$I$12,"") ->  | AU53: =IF(AS53<>"",$J$12,"") ->  | AV53: 62 | AW53: 62 | AX53: =IF(AW53,'Yahoo Stocks'!D80) -> RDS-B | AY53: CCE | AZ53: =IF(AW53,'Yahoo Stocks'!E80) -> Shell Oil | BA53: Coca Cola | BB53: F | BC53: Yahoo | BD53: 173 | BE53: =IF(AND($F$18,BD53<=$H$18),BD53) -> FALSE | BF53: =IF(BE53,'Google Finance Stocks'!D77) -> FALSE | BG53: =IFERROR(INDEX(BF:BF,MATCH(Q53,BE:BE,0)),"") ->  | BH53: =IF(BE53,'Google Finance Stocks'!E77) -> FALSE | BI53: =IFERROR(INDEX(BH:BH,MATCH(Q53,BE:BE,0)),"") ->  | BJ53: =IF(BI53<>"",$I$18,"") ->  | BK53: =IF(BI53<>"",$J$18,"") ->  | BL53: 173 | BM53: =IF(AND($F$21,BL53<=$H$21),BL53) -> FALSE | BN53: ='Exchange Rates'!D63 -> 0 | BO53: =IFERROR(INDEX(BN:BN,MATCH(L53,BM:BM,0)),"") ->  | BP53: =IF(BM53,'Exchange Rates'!E63) -> FALSE | BQ53: =IFERROR(INDEX(BP:BP,MATCH(L53,BM:BM,0)),"") ->  | BR53: =IF(BQ53<>"",$I$21,"") ->  | BS53: =IF(BQ53<>"",$J$21,"") -> 
L54: 52 | M54: K | N54: Kellog | O54: F | P54: Yahoo | Q54: 52 | R54: FALSE | S54: =IF(R54,'Yahoo Index'!E104,"") ->  | T54: =IF(R54,'Yahoo Index'!F104,"") ->  | X54: 59 | Y54: FALSE | Z54: =IF($F$6,'FRED Indicies'!E67) -> 0 | AB54: =IF($F$6,'FRED Indicies'!D67) -> 0 | AF54: 60 | AG54: FALSE | AH54: =IF(AG54,'Google Index'!E81) -> FALSE | AJ54: =IF(AF54,'Google Index'!F81) -> 0 | AN54: 60 | AO54: FALSE | AP54: =IF(AO54,'Commodity Prices'!C67) -> FALSE | AR54: =IF(AO54,'Commodity Prices'!D67) -> FALSE | AV54: 63 | AW54: 63 | AX54: =IF(AW54,'Yahoo Stocks'!D81) -> XOM | AY54: K | AZ54: =IF(AW54,'Yahoo Stocks'!E81) -> Exxon Mobil | BA54: Kellog | BB54: F | BC54: Yahoo | BD54: 174 | BE54: FALSE | BF54: =IF(BE54,'Google Finance Stocks'!D78) -> FALSE | BH54: =IF(BE54,'Google Finance Stocks'!E78) -> FALSE | BL54: 174 | BM54: FALSE | BN54: ='Exchange Rates'!D64 -> 0 | BP54: =IF(BM54,'Exchange Rates'!E64) -> FALSE
L55: 53 | M55: GIS | N55: General Mills | O55: F | P55: Yahoo | Q55: 53 | R55: FALSE | S55: =IF(R55,'Yahoo Index'!E105,"") ->  | T55: =IF(R55,'Yahoo Index'!F105,"") ->  | X55: 60 | Y55: FALSE | Z55: =IF($F$6,'FRED Indicies'!E68) -> 0 | AB55: =IF($F$6,'FRED Indicies'!D68) -> 0 | AF55: 61 | AG55: FALSE | AH55: =IF(AG55,'Google Index'!E82) -> FALSE | AJ55: =IF(AF55,'Google Index'!F82) -> 0 | AN55: 61 | AO55: FALSE | AP55: =IF(AO55,'Commodity Prices'!C68) -> FALSE | AR55: =IF(AO55,'Commodity Prices'!D68) -> FALSE | AV55: 64 | AW55: 64 | AX55: =IF(AW55,'Yahoo Stocks'!D82) -> CVX | AY55: GIS | AZ55: =IF(AW55,'Yahoo Stocks'!E82) -> Chevron | BA55: General Mills | BB55: F | BC55: Yahoo | BD55: 175 | BE55: FALSE | BF55: =IF(BE55,'Google Finance Stocks'!D79) -> FALSE | BH55: =IF(BE55,'Google Finance Stocks'!E79) -> FALSE | BL55: 175 | BM55: FALSE | BN55: ='Exchange Rates'!D65 -> 0 | BP55: =IF(BM55,'Exchange Rates'!E65) -> FALSE
L56: 54 | M56: CAG | N56: ConAgra | O56: F | P56: Yahoo | Q56: 54 | R56: FALSE | S56: =IF(R56,'Yahoo Index'!E106,"") ->  | T56: =IF(R56,'Yahoo Index'!F106,"") ->  | X56: 61 | Y56: FALSE | Z56: =IF($F$6,'FRED Indicies'!E69) -> 0 | AB56: =IF($F$6,'FRED Indicies'!D69) -> 0 | AF56: 62 | AG56: FALSE | AH56: =IF(AG56,'Google Index'!E83) -> FALSE | AJ56: =IF(AF56,'Google Index'!F83) -> 0 | AN56: 62 | AO56: FALSE | AP56: =IF(AO56,'Commodity Prices'!C69) -> FALSE | AR56: =IF(AO56,'Commodity Prices'!D69) -> FALSE | AV56: 65 | AW56: 65 | AX56: =IF(AW56,'Yahoo Stocks'!D83) -> TOT | AY56: CAG | AZ56: =IF(AW56,'Yahoo Stocks'!E83) -> Total | BA56: ConAgra | BB56: F | BC56: Yahoo | BD56: 176 | BE56: FALSE | BF56: =IF(BE56,'Google Finance Stocks'!D80) -> FALSE | BH56: =IF(BE56,'Google Finance Stocks'!E80) -> FALSE | BL56: 176 | BM56: FALSE | BN56: ='Exchange Rates'!D79 -> 0 | BP56: =IF(BM56,'Exchange Rates'!E79) -> FALSE
L57: 55 | M57: HNZ | N57: Heinz | O57: F | P57: Yahoo | Q57: 55 | R57: FALSE | S57: =IF(R57,'Yahoo Index'!E107,"") ->  | T57: =IF(R57,'Yahoo Index'!F107,"") ->  | X57: 62 | Y57: FALSE | Z57: =IF($F$6,'FRED Indicies'!E70) -> 0 | AB57: =IF($F$6,'FRED Indicies'!D70) -> 0 | AF57: 63 | AG57: FALSE | AH57: =IF(AG57,'Google Index'!E84) -> FALSE | AJ57: =IF(AF57,'Google Index'!F84) -> 0 | AN57: 63 | AO57: FALSE | AP57: =IF(AO57,'Commodity Prices'!C70) -> FALSE | AR57: =IF(AO57,'Commodity Prices'!D70) -> FALSE | AV57: 66 | AW57: 66 | AX57: =IF(AW57,'Yahoo Stocks'!D84) -> BP | AY57: HNZ | AZ57: =IF(AW57,'Yahoo Stocks'!E84) -> BP | BA57: Heinz | BB57: F | BC57: Yahoo | BD57: 177 | BE57: FALSE | BF57: =IF(BE57,'Google Finance Stocks'!D81) -> FALSE | BH57: =IF(BE57,'Google Finance Stocks'!E81) -> FALSE | BL57: 177 | BM57: FALSE | BN57: ='Exchange Rates'!D80 -> 0 | BP57: =IF(BM57,'Exchange Rates'!E80) -> FALSE
L58: 56 | M58: SLE | N58: Sara Lee | O58: F | P58: Yahoo | Q58: 56 | R58: FALSE | S58: =IF(R58,'Yahoo Index'!E108,"") ->  | T58: =IF(R58,'Yahoo Index'!F108,"") ->  | X58: 63 | Y58: FALSE | Z58: =IF($F$6,'FRED Indicies'!E71) -> 0 | AB58: =IF($F$6,'FRED Indicies'!D71) -> 0 | AF58: 64 | AG58: FALSE | AH58: =IF(AG58,'Google Index'!E85) -> FALSE | AJ58: =IF(AF58,'Google Index'!F85) -> 0 | AN58: 64 | AO58: FALSE | AP58: =IF(AO58,'Commodity Prices'!C71) -> FALSE | AR58: =IF(AO58,'Commodity Prices'!D71) -> FALSE | AV58: 67 | AW58: 67 | AX58: =IF(AW58,'Yahoo Stocks'!D85) -> GDP | AY58: SLE | AZ58: =IF(AW58,'Yahoo Stocks'!E85) -> Goodrich Petroleum Corp. | BA58: Sara Lee | BB58: F | BC58: Yahoo | BD58: 178 | BE58: FALSE | BF58: =IF(BE58,'Google Finance Stocks'!D82) -> FALSE | BH58: =IF(BE58,'Google Finance Stocks'!E82) -> FALSE | BL58: 178 | BM58: FALSE | BN58: ='Exchange Rates'!D81 -> 0 | BP58: =IF(BM58,'Exchange Rates'!E81) -> FALSE
L59: 57 | M59: CHK | N59: Cheasapeak Energy | O59: F | P59: Yahoo | Q59: 57 | R59: FALSE | S59: =IF(R59,'Yahoo Index'!E109,"") ->  | T59: =IF(R59,'Yahoo Index'!F109,"") ->  | X59: 64 | Y59: FALSE | Z59: =IF($F$6,'FRED Indicies'!E72) -> 0 | AB59: =IF($F$6,'FRED Indicies'!D72) -> 0 | AF59: 65 | AG59: FALSE | AH59: =IF(AG59,'Google Index'!E86) -> FALSE | AJ59: =IF(AF59,'Google Index'!F86) -> 0 | AN59: 65 | AO59: FALSE | AP59: =IF(AO59,'Commodity Prices'!C72) -> FALSE | AR59: =IF(AO59,'Commodity Prices'!D72) -> FALSE | AV59: 68 | AW59: 68 | AX59: =IF(AW59,'Yahoo Stocks'!D86) -> SN | AY59: CHK | AZ59: =IF(AW59,'Yahoo Stocks'!E86) -> Sanchez Energy Corp. | BA59: Cheasapeak Energy | BB59: F | BC59: Yahoo | BD59: 179 | BE59: FALSE | BF59: =IF(BE59,'Google Finance Stocks'!D83) -> FALSE | BH59: =IF(BE59,'Google Finance Stocks'!E83) -> FALSE | BL59: 179 | BM59: FALSE | BN59: ='Exchange Rates'!D82 -> 0 | BP59: =IF(BM59,'Exchange Rates'!E82) -> FALSE
L60: 58 | M60: RRC | N60: Range Resources | O60: F | P60: Yahoo | Q60: 58 | R60: FALSE | S60: =IF(R60,'Yahoo Index'!E110,"") ->  | T60: =IF(R60,'Yahoo Index'!F110,"") ->  | X60: 65 | Y60: FALSE | Z60: =IF($F$6,'FRED Indicies'!E73) -> 0 | AB60: =IF($F$6,'FRED Indicies'!D73) -> 0 | AF60: 66 | AG60: FALSE | AH60: =IF(AG60,'Google Index'!E87) -> FALSE | AJ60: =IF(AF60,'Google Index'!F87) -> 0 | AN60: 66 | AO60: FALSE | AP60: =IF(AO60,'Commodity Prices'!C73) -> FALSE | AR60: =IF(AO60,'Commodity Prices'!D73) -> FALSE | AV60: 69 | AW60: 69 | AX60: =IF(AW60,'Yahoo Stocks'!D87) -> CWEI | AY60: RRC | AZ60: =IF(AW60,'Yahoo Stocks'!E87) -> Clayton Williams Energy Inc. | BA60: Range Resources | BB60: F | BC60: Yahoo | BD60: 180 | BE60: FALSE | BF60: =IF(BE60,'Google Finance Stocks'!D84) -> FALSE | BH60: =IF(BE60,'Google Finance Stocks'!E84) -> FALSE | BL60: 180 | BM60: FALSE | BN60: ='Exchange Rates'!D83 -> 0 | BP60: =IF(BM60,'Exchange Rates'!E83) -> FALSE
L61: 59 | M61: CLR | N61: Contential Resources | O61: F | P61: Yahoo | Q61: 59 | R61: FALSE | S61: =IF(R61,'Yahoo Index'!E111,"") ->  | T61: =IF(R61,'Yahoo Index'!F111,"") ->  | X61: 66 | Y61: FALSE | Z61: =IF($F$6,'FRED Indicies'!E74) -> 0 | AB61: =IF($F$6,'FRED Indicies'!D74) -> 0 | AF61: 67 | AG61: FALSE | AH61: =IF(AG61,'Google Index'!E88) -> FALSE | AJ61: =IF(AF61,'Google Index'!F88) -> 0 | AN61: 67 | AO61: FALSE | AP61: =IF(AO61,'Commodity Prices'!C74) -> FALSE | AR61: =IF(AO61,'Commodity Prices'!D74) -> FALSE | AV61: 70 | AW61: 70 | AX61: =IF(AW61,'Yahoo Stocks'!D88) -> CPE | AY61: CLR | AZ61: =IF(AW61,'Yahoo Stocks'!E88) -> Callon Petroleum Co. | BA61: Contential Resources | BB61: F | BC61: Yahoo | BD61: 181 | BE61: FALSE | BF61: =IF(BE61,'Google Finance Stocks'!D85) -> FALSE | BH61: =IF(BE61,'Google Finance Stocks'!E85) -> FALSE | BL61: 181 | BM61: FALSE | BN61: ='Exchange Rates'!D84 -> 0 | BP61: =IF(BM61,'Exchange Rates'!E84) -> FALSE
L62: 60 | M62: SD | N62: Sandy Ridge | O62: F | P62: Yahoo | Q62: 60 | R62: FALSE | S62: =IF(R62,'Yahoo Index'!E112,"") ->  | T62: =IF(R62,'Yahoo Index'!F112,"") ->  | X62: 67 | Y62: FALSE | Z62: =IF($F$6,'FRED Indicies'!E75) -> 0 | AB62: =IF($F$6,'FRED Indicies'!D75) -> 0 | AF62: 68 | AG62: FALSE | AH62: =IF(AG62,'Google Index'!E89) -> FALSE | AJ62: =IF(AF62,'Google Index'!F89) -> 0 | AN62: 68 | AO62: FALSE | AP62: =IF(AO62,'Commodity Prices'!C75) -> FALSE | AR62: =IF(AO62,'Commodity Prices'!D75) -> FALSE | AV62: 71 | AW62: 71 | AX62: =IF(AW62,'Yahoo Stocks'!D89) -> C | AY62: SD | AZ62: =IF(AW62,'Yahoo Stocks'!E89) -> Citibank | BA62: Sandy Ridge | BB62: F | BC62: Yahoo | BD62: 182 | BE62: FALSE | BF62: =IF(BE62,'Google Finance Stocks'!D86) -> FALSE | BH62: =IF(BE62,'Google Finance Stocks'!E86) -> FALSE | BL62: 182 | BM62: FALSE | BN62: ='Exchange Rates'!D85 -> 0 | BP62: =IF(BM62,'Exchange Rates'!E85) -> FALSE
L63: 61 | M63: MPO | N63: Midstates Petroleum | O63: F | P63: Yahoo | Q63: 61 | R63: FALSE | S63: =IF(R63,'Yahoo Index'!E113,"") ->  | T63: =IF(R63,'Yahoo Index'!F113,"") ->  | X63: 68 | Y63: FALSE | Z63: =IF($F$6,'FRED Indicies'!E76) -> 0 | AB63: =IF($F$6,'FRED Indicies'!D76) -> 0 | AF63: 69 | AG63: FALSE | AH63: =IF(AG63,'Google Index'!E90) -> FALSE | AJ63: =IF(AF63,'Google Index'!F90) -> 0 | AN63: 69 | AO63: FALSE | AP63: =IF(AO63,'Commodity Prices'!C76) -> FALSE | AR63: =IF(AO63,'Commodity Prices'!D76) -> FALSE | AV63: 72 | AW63: 72 | AX63: =IF(AW63,'Yahoo Stocks'!D90) -> HEINY | AY63: MPO | AZ63: =IF(AW63,'Yahoo Stocks'!E90) -> Heineken | BA63: Midstates Petroleum | BB63: F | BC63: Yahoo | BD63: 183 | BE63: FALSE | BF63: =IF(BE63,'Google Finance Stocks'!D87) -> FALSE | BH63: =IF(BE63,'Google Finance Stocks'!E87) -> FALSE | BL63: 183 | BM63: FALSE | BN63: ='Exchange Rates'!D86 -> 0 | BP63: =IF(BM63,'Exchange Rates'!E86) -> FALSE
L64: 62 | M64: RDS-B | N64: Shell Oil | O64: F | P64: Yahoo | Q64: 62 | R64: FALSE | S64: =IF(R64,'Yahoo Index'!E114,"") ->  | T64: =IF(R64,'Yahoo Index'!F114,"") ->  | X64: 69 | Y64: FALSE | Z64: =IF($F$6,'FRED Indicies'!E77) -> 0 | AB64: =IF($F$6,'FRED Indicies'!D77) -> 0 | AF64: 70 | AG64: FALSE | AH64: =IF(AG64,'Google Index'!E91) -> FALSE | AJ64: =IF(AF64,'Google Index'!F91) -> 0 | AN64: 70 | AO64: FALSE | AP64: =IF(AO64,'Commodity Prices'!C77) -> FALSE | AR64: =IF(AO64,'Commodity Prices'!D77) -> FALSE | AV64: 73 | AW64: 73 | AX64: =IF(AW64,'Yahoo Stocks'!D91) -> NYT | AY64: RDS-B | AZ64: =IF(AW64,'Yahoo Stocks'!E91) -> New York Times | BA64: Shell Oil | BB64: F | BC64: Yahoo | BD64: 184 | BE64: FALSE | BF64: =IF(BE64,'Google Finance Stocks'!D88) -> FALSE | BH64: =IF(BE64,'Google Finance Stocks'!E88) -> FALSE | BL64: 184 | BM64: FALSE | BN64: ='Exchange Rates'!D87 -> 0 | BP64: =IF(BM64,'Exchange Rates'!E87) -> FALSE
L65: 63 | M65: XOM | N65: Exxon Mobil | O65: F | P65: Yahoo | Q65: 63 | R65: FALSE | S65: =IF(R65,'Yahoo Index'!E115,"") ->  | T65: =IF(R65,'Yahoo Index'!F115,"") ->  | X65: 70 | Y65: FALSE | Z65: =IF($F$6,'FRED Indicies'!E78) -> 0 | AB65: =IF($F$6,'FRED Indicies'!D78) -> 0 | AF65: 71 | AG65: FALSE | AH65: =IF(AG65,'Google Index'!E92) -> FALSE | AJ65: =IF(AF65,'Google Index'!F92) -> 0 | AN65: 71 | AO65: FALSE | AP65: =IF(AO65,'Commodity Prices'!C78) -> FALSE | AR65: =IF(AO65,'Commodity Prices'!D78) -> FALSE | AV65: 74 | AW65: 74 | AX65: =IF(AW65,'Yahoo Stocks'!D92) -> BUD | AY65: XOM | AZ65: =IF(AW65,'Yahoo Stocks'!E92) -> Anheuser-Busch Inbev SA (USD) | BA65: Exxon Mobil | BB65: F | BC65: Yahoo | BD65: 185 | BE65: FALSE | BF65: =IF(BE65,'Google Finance Stocks'!D89) -> FALSE | BH65: =IF(BE65,'Google Finance Stocks'!E89) -> FALSE | BL65: 185 | BM65: FALSE | BN65: ='Exchange Rates'!D88 -> 0 | BP65: =IF(BM65,'Exchange Rates'!E88) -> FALSE
L66: 64 | M66: CVX | N66: Chevron | O66: F | P66: Yahoo | Q66: 64 | R66: FALSE | S66: =IF(R66,'Yahoo Index'!E116,"") ->  | T66: =IF(R66,'Yahoo Index'!F116,"") ->  | X66: 71 | Y66: FALSE | Z66: =IF($F$6,'FRED Indicies'!E79) -> 0 | AB66: =IF($F$6,'FRED Indicies'!D79) -> 0 | AF66: 72 | AG66: FALSE | AH66: =IF(AG66,'Google Index'!E93) -> FALSE | AJ66: =IF(AF66,'Google Index'!F93) -> 0 | AN66: 72 | AO66: FALSE | AP66: =IF(AO66,'Commodity Prices'!C79) -> FALSE | AR66: =IF(AO66,'Commodity Prices'!D79) -> FALSE | AV66: 75 | AW66: 75 | AX66: =IF(AW66,'Yahoo Stocks'!D93) -> KOF | AY66: CVX | AZ66: =IF(AW66,'Yahoo Stocks'!E93) -> Coca Cola | BA66: Chevron | BB66: F | BC66: Yahoo | BD66: 186 | BE66: FALSE | BF66: =IF(BE66,'Google Finance Stocks'!D90) -> FALSE | BH66: =IF(BE66,'Google Finance Stocks'!E90) -> FALSE | BL66: 186 | BM66: FALSE | BN66: ='Exchange Rates'!D89 -> 0 | BP66: =IF(BM66,'Exchange Rates'!E89) -> FALSE
L67: 65 | M67: TOT | N67: Total | O67: F | P67: Yahoo | Q67: 65 | R67: FALSE | S67: =IF(R67,'Yahoo Index'!E117,"") ->  | T67: =IF(R67,'Yahoo Index'!F117,"") ->  | X67: 72 | Y67: FALSE | Z67: =IF($F$6,'FRED Indicies'!E80) -> 0 | AB67: =IF($F$6,'FRED Indicies'!D80) -> 0 | AF67: 73 | AG67: FALSE | AH67: =IF(AG67,'Google Index'!E94) -> FALSE | AJ67: =IF(AF67,'Google Index'!F94) -> 0 | AN67: 73 | AO67: FALSE | AP67: =IF(AO67,'Commodity Prices'!C80) -> FALSE | AR67: =IF(AO67,'Commodity Prices'!D80) -> FALSE | AV67: 76 | AW67: 76 | AX67: =IF(AW67,'Yahoo Stocks'!D94) -> DEO | AY67: TOT | AZ67: =IF(AW67,'Yahoo Stocks'!E94) -> Diageo | BA67: Total | BB67: F | BC67: Yahoo | BD67: 187 | BE67: FALSE | BF67: =IF(BE67,'Google Finance Stocks'!D91) -> FALSE | BH67: =IF(BE67,'Google Finance Stocks'!E91) -> FALSE | BL67: 187 | BM67: FALSE | BN67: ='Exchange Rates'!D90 -> 0 | BP67: =IF(BM67,'Exchange Rates'!E90) -> FALSE
L68: 66 | M68: BP | N68: BP | O68: F | P68: Yahoo | Q68: 66 | R68: FALSE | S68: =IF(R68,'Yahoo Index'!E118,"") ->  | T68: =IF(R68,'Yahoo Index'!F118,"") ->  | X68: 73 | Y68: FALSE | Z68: =IF($F$6,'FRED Indicies'!E81) -> 0 | AB68: =IF($F$6,'FRED Indicies'!D81) -> 0 | AF68: 74 | AG68: FALSE | AH68: =IF(AG68,'Google Index'!E95) -> FALSE | AJ68: =IF(AF68,'Google Index'!F95) -> 0 | AN68: 74 | AO68: FALSE | AP68: =IF(AO68,'Commodity Prices'!C81) -> FALSE | AR68: =IF(AO68,'Commodity Prices'!D81) -> FALSE | AV68: 77 | AW68: 77 | AX68: =IF(AW68,'Yahoo Stocks'!D95) -> ECL | AY68: BP | AZ68: =IF(AW68,'Yahoo Stocks'!E95) -> Eco Lab | BA68: BP | BB68: F | BC68: =IF(BA68<>"",$J$15,"") -> Yahoo | BD68: 188 | BE68: FALSE | BF68: =IF(BE68,'Google Finance Stocks'!D92) -> FALSE | BH68: =IF(BE68,'Google Finance Stocks'!E92) -> FALSE | BL68: 188 | BM68: FALSE | BN68: ='Exchange Rates'!D91 -> 0 | BP68: =IF(BM68,'Exchange Rates'!E91) -> FALSE
L69: 67 | M69: GDP | N69: Goodrich Petroleum Corp. | O69: F | P69: Yahoo | Q69: =Q68+1 -> 67 | R69: FALSE | S69: =IF(R69,'Yahoo Index'!E119,"") ->  | T69: =IF(R69,'Yahoo Index'!F119,"") ->  | X69: =X68+1 -> 74 | Y69: FALSE | Z69: =IF($F$6,'FRED Indicies'!E82) -> 0 | AB69: =IF($F$6,'FRED Indicies'!D82) -> 0 | AF69: =AF68+1 -> 75 | AG69: FALSE | AH69: =IF(AG69,'Google Index'!E96) -> FALSE | AJ69: =IF(AF69,'Google Index'!F96) -> 0 | AN69: =AN68+1 -> 75 | AO69: FALSE | AP69: =IF(AO69,'Commodity Prices'!C82) -> FALSE | AR69: =IF(AO69,'Commodity Prices'!D82) -> FALSE | AV69: =AV68+1 -> 78 | AW69: 78 | AX69: =IF(AW69,'Yahoo Stocks'!D96) -> LNT | AY69: GDP | AZ69: =IF(AW69,'Yahoo Stocks'!E96) -> Alliant Energy | BA69: Goodrich Petroleum Corp. | BB69: F | BC69: Yahoo | BD69: =BD68+1 -> 189 | BE69: FALSE | BF69: =IF(BE69,'Google Finance Stocks'!D93) -> FALSE | BH69: =IF(BE69,'Google Finance Stocks'!E93) -> FALSE | BL69: =BL68+1 -> 189 | BM69: FALSE | BN69: ='Exchange Rates'!D92 -> 0 | BP69: =IF(BM69,'Exchange Rates'!E92) -> FALSE
L70: 68 | M70: SN | N70: Sanchez Energy Corp. | O70: F | P70: Yahoo | Q70: 68 | R70: FALSE | S70: =IF(R70,'Yahoo Index'!E120,"") ->  | T70: =IF(R70,'Yahoo Index'!F120,"") ->  | X70: 75 | Y70: FALSE | Z70: =IF($F$6,'FRED Indicies'!E83) -> 0 | AB70: =IF($F$6,'FRED Indicies'!D83) -> 0 | AF70: 76 | AG70: FALSE | AH70: =IF(AG70,'Google Index'!E97) -> FALSE | AJ70: =IF(AF70,'Google Index'!F97) -> 0 | AN70: 76 | AO70: FALSE | AP70: =IF(AO70,'Commodity Prices'!C83) -> FALSE | AR70: =IF(AO70,'Commodity Prices'!D83) -> FALSE | AV70: 79 | AW70: 79 | AX70: =IF(AW70,'Yahoo Stocks'!D97) -> IBE.MC | AY70: SN | AZ70: =IF(AW70,'Yahoo Stocks'!E97) -> Ibdrola | BA70: Sanchez Energy Corp. | BB70: F | BC70: Yahoo | BD70: 190 | BE70: FALSE | BF70: =IF(BE70,'Google Finance Stocks'!D94) -> FALSE | BH70: =IF(BE70,'Google Finance Stocks'!E94) -> FALSE | BL70: 190 | BM70: FALSE | BN70: ='Exchange Rates'!D93 -> 0 | BP70: =IF(BM70,'Exchange Rates'!E93) -> FALSE
L71: 69 | M71: CWEI | N71: Clayton Williams Energy Inc. | O71: F | P71: Yahoo | Q71: 69 | R71: FALSE | S71: =IF(R71,'Yahoo Index'!E121,"") ->  | T71: =IF(R71,'Yahoo Index'!F121,"") ->  | X71: 76 | Y71: FALSE | Z71: =IF($F$6,'FRED Indicies'!E84) -> 0 | AB71: =IF($F$6,'FRED Indicies'!D84) -> 0 | AF71: 77 | AG71: FALSE | AH71: =IF(AG71,'Google Index'!E98) -> FALSE | AJ71: =IF(AF71,'Google Index'!F98) -> 0 | AN71: 77 | AO71: FALSE | AP71: =IF(AO71,'Commodity Prices'!C84) -> FALSE | AR71: =IF(AO71,'Commodity Prices'!D84) -> FALSE | AV71: 80 | AW71: 80 | AX71: =IF(AW71,'Yahoo Stocks'!D98) -> 5347.KL | AY71: CWEI | AZ71: =IF(AW71,'Yahoo Stocks'!E98) -> Tenaga | BA71: Clayton Williams Energy Inc. | BB71: F | BC71: Yahoo | BD71: 191 | BE71: FALSE | BF71: =IF(BE71,'Google Finance Stocks'!D95) -> FALSE | BH71: =IF(BE71,'Google Finance Stocks'!E95) -> FALSE | BL71: 191 | BM71: FALSE | BN71: ='Exchange Rates'!D94 -> 0 | BP71: =IF(BM71,'Exchange Rates'!E94) -> FALSE
L72: 70 | M72: CPE | N72: Callon Petroleum Co. | O72: F | P72: Yahoo | Q72: 70 | R72: FALSE | S72: =IF(R72,'Yahoo Index'!E122,"") ->  | T72: =IF(R72,'Yahoo Index'!F122,"") ->  | X72: 77 | Y72: FALSE | Z72: =IF($F$6,'FRED Indicies'!E85) -> 0 | AB72: =IF($F$6,'FRED Indicies'!D85) -> 0 | AF72: 78 | AG72: FALSE | AH72: =IF(AG72,'Google Index'!E99) -> FALSE | AJ72: =IF(AF72,'Google Index'!F99) -> 0 | AN72: 78 | AO72: FALSE | AP72: =IF(AO72,'Commodity Prices'!C85) -> FALSE | AR72: =IF(AO72,'Commodity Prices'!D85) -> FALSE | AV72: 81 | AW72: 81 | AX72: =IF(AW72,'Yahoo Stocks'!D99) -> MAEOY | AY72: CPE | AZ72: =IF(AW72,'Yahoo Stocks'!E99) -> Meralco | BA72: Callon Petroleum Co. | BB72: F | BC72: Yahoo | BD72: 192 | BE72: FALSE | BF72: =IF(BE72,'Google Finance Stocks'!D96) -> FALSE | BH72: =IF(BE72,'Google Finance Stocks'!E96) -> FALSE | BL72: 192 | BM72: FALSE | BN72: ='Exchange Rates'!D95 -> 0 | BP72: =IF(BM72,'Exchange Rates'!E95) -> FALSE
L73: 71 | M73: C | N73: Citibank | O73: F | P73: Yahoo | Q73: 71 | R73: FALSE | S73: =IF(R73,'Yahoo Index'!E123,"") ->  | T73: =IF(R73,'Yahoo Index'!F123,"") ->  | X73: 78 | Y73: FALSE | Z73: =IF($F$6,'FRED Indicies'!E86) -> 0 | AB73: =IF($F$6,'FRED Indicies'!D86) -> 0 | AF73: 79 | AG73: FALSE | AH73: =IF(AG73,'Google Index'!E100) -> FALSE | AJ73: =IF(AF73,'Google Index'!F100) -> 0 | AN73: 79 | AO73: FALSE | AP73: =IF(AO73,'Commodity Prices'!C86) -> FALSE | AR73: =IF(AO73,'Commodity Prices'!D86) -> FALSE | AV73: 82 | AW73: 82 | AX73: =IF(AW73,'Yahoo Stocks'!D100) -> ED | AY73: C | AZ73: =IF(AW73,'Yahoo Stocks'!E100) -> ConEd | BA73: Citibank | BB73: F | BC73: Yahoo | BD73: 193 | BE73: FALSE | BF73: =IF(BE73,'Google Finance Stocks'!D97) -> FALSE | BH73: =IF(BE73,'Google Finance Stocks'!E97) -> FALSE | BL73: 193 | BM73: FALSE | BN73: ='Exchange Rates'!D96 -> 0 | BP73: =IF(BM73,'Exchange Rates'!E96) -> FALSE
L74: 72 | M74: HEINY | N74: Heineken | O74: F | P74: Yahoo | Q74: 72 | R74: FALSE | S74: =IF(R74,'Yahoo Index'!E124,"") ->  | T74: =IF(R74,'Yahoo Index'!F124,"") ->  | X74: 79 | Y74: FALSE | Z74: =IF($F$6,'FRED Indicies'!E87) -> 0 | AB74: =IF($F$6,'FRED Indicies'!D87) -> 0 | AF74: 80 | AG74: FALSE | AH74: =IF(AG74,'Google Index'!E101) -> FALSE | AJ74: =IF(AF74,'Google Index'!F101) -> 0 | AN74: 80 | AO74: FALSE | AP74: =IF(AO74,'Commodity Prices'!C87) -> FALSE | AR74: =IF(AO74,'Commodity Prices'!D87) -> FALSE | AV74: 83 | AW74: 83 | AX74: =IF(AW74,'Yahoo Stocks'!D101) -> 015760.KS | AY74: HEINY | AZ74: =IF(AW74,'Yahoo Stocks'!E101) -> Kepco | BA74: Heineken | BB74: F | BC74: Yahoo | BD74: 194 | BE74: FALSE | BF74: =IF(BE74,'Google Finance Stocks'!D98) -> FALSE | BH74: =IF(BE74,'Google Finance Stocks'!E98) -> FALSE | BL74: 194 | BM74: FALSE | BN74: ='Exchange Rates'!D97 -> 0 | BP74: =IF(BM74,'Exchange Rates'!E97) -> FALSE
L75: 73 | M75: NYT | N75: New York Times | O75: F | P75: Yahoo | Q75: 73 | R75: FALSE | S75: =IF(R75,'Yahoo Index'!E125,"") ->  | T75: =IF(R75,'Yahoo Index'!F125,"") ->  | X75: 80 | Y75: FALSE | Z75: =IF($F$6,'FRED Indicies'!E88) -> 0 | AB75: =IF($F$6,'FRED Indicies'!D88) -> 0 | AF75: 81 | AG75: FALSE | AH75: =IF(AG75,'Google Index'!E102) -> FALSE | AJ75: =IF(AF75,'Google Index'!F102) -> 0 | AN75: 81 | AO75: FALSE | AP75: =IF(AO75,'Commodity Prices'!C88) -> FALSE | AR75: =IF(AO75,'Commodity Prices'!D88) -> FALSE | AV75: 84 | AW75: 84 | AX75: =IF(AW75,'Yahoo Stocks'!D102) -> TKECF | AY75: NYT | AZ75: =IF(AW75,'Yahoo Stocks'!E102) -> Tepco | BA75: New York Times | BB75: F | BC75: Yahoo | BD75: 195 | BE75: FALSE | BF75: =IF(BE75,'Google Finance Stocks'!D99) -> FALSE | BH75: =IF(BE75,'Google Finance Stocks'!E99) -> FALSE | BL75: 195 | BM75: FALSE | BN75: ='Exchange Rates'!D98 -> 0 | BP75: =IF(BM75,'Exchange Rates'!E98) -> FALSE
L76: 74 | M76: BUD | N76: Anheuser-Busch Inbev SA (USD) | O76: F | P76: Yahoo | Q76: 74 | R76: FALSE | S76: =IF(R76,'Yahoo Index'!E126,"") ->  | T76: =IF(R76,'Yahoo Index'!F126,"") ->  | X76: 81 | Y76: FALSE | Z76: =IF($F$6,'FRED Indicies'!E89) -> 0 | AB76: =IF($F$6,'FRED Indicies'!D89) -> 0 | AF76: 82 | AG76: FALSE | AH76: =IF(AG76,'Google Index'!E103) -> FALSE | AJ76: =IF(AF76,'Google Index'!F103) -> 0 | AN76: 82 | AO76: FALSE | AP76: =IF(AO76,'Commodity Prices'!C89) -> FALSE | AR76: =IF(AO76,'Commodity Prices'!D89) -> FALSE | AV76: 85 | AW76: 85 | AX76: =IF(AW76,'Yahoo Stocks'!D103) -> SO | AY76: BUD | AZ76: =IF(AW76,'Yahoo Stocks'!E103) -> Southern Companies | BA76: Anheuser-Busch Inbev SA (USD) | BB76: F | BC76: Yahoo | BD76: 196 | BE76: FALSE | BF76: =IF(BE76,'Google Finance Stocks'!D100) -> FALSE | BH76: =IF(BE76,'Google Finance Stocks'!E100) -> FALSE | BL76: 196 | BM76: FALSE | BN76: ='Exchange Rates'!D99 -> 0 | BP76: =IF(BM76,'Exchange Rates'!E99) -> FALSE
L77: 75 | M77: KOF | N77: Coca Cola | O77: F | P77: Yahoo | Q77: 75 | R77: FALSE | S77: =IF(R77,'Yahoo Index'!E127,"") ->  | T77: =IF(R77,'Yahoo Index'!F127,"") ->  | X77: 82 | Y77: FALSE | Z77: =IF($F$6,'FRED Indicies'!E90) -> 0 | AB77: =IF($F$6,'FRED Indicies'!D90) -> 0 | AF77: 83 | AG77: FALSE | AH77: =IF(AG77,'Google Index'!E104) -> FALSE | AJ77: =IF(AF77,'Google Index'!F104) -> 0 | AN77: 83 | AO77: FALSE | AP77: =IF(AO77,'Commodity Prices'!C90) -> FALSE | AR77: =IF(AO77,'Commodity Prices'!D90) -> FALSE | AV77: 86 | AW77: 86 | AX77: =IF(AW77,'Yahoo Stocks'!D104) -> EDF.PA | AY77: KOF | AZ77: =IF(AW77,'Yahoo Stocks'!E104) -> EDF | BA77: Coca Cola | BB77: F | BC77: Yahoo | BD77: 197 | BE77: FALSE | BF77: =IF(BE77,'Google Finance Stocks'!D101) -> FALSE | BH77: =IF(BE77,'Google Finance Stocks'!E101) -> FALSE | BL77: 197 | BM77: FALSE | BN77: ='Exchange Rates'!D100 -> 0 | BP77: =IF(BM77,'Exchange Rates'!E100) -> FALSE
L78: 76 | M78: DEO | N78: Diageo | O78: F | P78: Yahoo | Q78: 76 | R78: FALSE | S78: =IF(R78,'Yahoo Index'!E128,"") ->  | T78: =IF(R78,'Yahoo Index'!F128,"") ->  | X78: 83 | Y78: FALSE | Z78: =IF($F$6,'FRED Indicies'!E91) -> 0 | AB78: =IF($F$6,'FRED Indicies'!D91) -> 0 | AF78: 84 | AG78: FALSE | AH78: =IF(AG78,'Google Index'!E105) -> FALSE | AJ78: =IF(AF78,'Google Index'!F105) -> 0 | AN78: 84 | AO78: FALSE | AP78: =IF(AO78,'Commodity Prices'!C91) -> FALSE | AR78: =IF(AO78,'Commodity Prices'!D91) -> FALSE | AV78: 87 | AW78: 87 | AX78: =IF(AW78,'Yahoo Stocks'!D105) -> ENGI.PA | AY78: DEO | AZ78: =IF(AW78,'Yahoo Stocks'!E105) -> Engie | BA78: Diageo | BB78: F | BC78: Yahoo | BD78: 198 | BE78: FALSE | BF78: =IF(BE78,'Google Finance Stocks'!D102) -> FALSE | BH78: =IF(BE78,'Google Finance Stocks'!E102) -> FALSE | BL78: 198 | BM78: FALSE | BN78: ='Exchange Rates'!D101 -> 0 | BP78: =IF(BM78,'Exchange Rates'!E101) -> FALSE
L79: 77 | M79: ECL | N79: Eco Lab | O79: F | P79: Yahoo | Q79: 77 | R79: FALSE | S79: =IF(R79,'Yahoo Index'!E129,"") ->  | T79: =IF(R79,'Yahoo Index'!F129,"") ->  | X79: 84 | Y79: FALSE | Z79: =IF($F$6,'FRED Indicies'!E92) -> 0 | AB79: =IF($F$6,'FRED Indicies'!D92) -> 0 | AF79: 85 | AG79: FALSE | AH79: =IF(AG79,'Google Index'!E106) -> FALSE | AJ79: =IF(AF79,'Google Index'!F106) -> 0 | AN79: 85 | AO79: FALSE | AP79: =IF(AO79,'Commodity Prices'!C92) -> FALSE | AR79: =IF(AO79,'Commodity Prices'!D92) -> FALSE | AV79: 88 | AW79: 88 | AX79: =IF(AW79,'Yahoo Stocks'!D106) -> NG.L | AY79: ECL | AZ79: =IF(AW79,'Yahoo Stocks'!E106) -> National Grid | BA79: Eco Lab | BB79: F | BC79: Yahoo | BD79: 199 | BE79: FALSE | BF79: =IF(BE79,'Google Finance Stocks'!D103) -> FALSE | BH79: =IF(BE79,'Google Finance Stocks'!E103) -> FALSE | BL79: 199 | BM79: FALSE | BN79: ='Exchange Rates'!D102 -> 0 | BP79: =IF(BM79,'Exchange Rates'!E102) -> FALSE
L80: 78 | M80: LNT | N80: Alliant Energy | O80: F | P80: Yahoo | Q80: 78 | R80: FALSE | S80: =IF(R80,'Yahoo Index'!E130,"") ->  | T80: =IF(R80,'Yahoo Index'!F130,"") ->  | X80: 85 | Y80: FALSE | Z80: =IF($F$6,'FRED Indicies'!E93) -> 0 | AB80: =IF($F$6,'FRED Indicies'!D93) -> 0 | AF80: 86 | AG80: FALSE | AH80: =IF(AG80,'Google Index'!E107) -> FALSE | AJ80: =IF(AF80,'Google Index'!F107) -> 0 | AN80: 86 | AO80: FALSE | AP80: =IF(AO80,'Commodity Prices'!C93) -> FALSE | AR80: =IF(AO80,'Commodity Prices'!D93) -> FALSE | AV80: 89 | AW80: 89 | AX80: =IF(AW80,'Yahoo Stocks'!D107) -> ENEL.MI | AY80: LNT | AZ80: =IF(AW80,'Yahoo Stocks'!E107) -> Enel | BA80: Alliant Energy | BB80: F | BC80: Yahoo | BD80: 200 | BE80: FALSE | BF80: =IF(BE80,'Google Finance Stocks'!D104) -> FALSE | BH80: =IF(BE80,'Google Finance Stocks'!E104) -> FALSE | BL80: 200 | BM80: FALSE | BN80: ='Exchange Rates'!D103 -> 0 | BP80: =IF(BM80,'Exchange Rates'!E103) -> FALSE
L81: 79 | M81: IBE.MC | N81: Ibdrola | O81: F | P81: Yahoo | Q81: 79 | R81: FALSE | S81: =IF(R81,'Yahoo Index'!E131,"") ->  | T81: =IF(R81,'Yahoo Index'!F131,"") ->  | X81: 86 | Y81: FALSE | Z81: =IF($F$6,'FRED Indicies'!E94) -> 0 | AB81: =IF($F$6,'FRED Indicies'!D94) -> 0 | AF81: 87 | AG81: FALSE | AH81: =IF(AG81,'Google Index'!E108) -> FALSE | AJ81: =IF(AF81,'Google Index'!F108) -> 0 | AN81: 87 | AO81: FALSE | AP81: =IF(AO81,'Commodity Prices'!C94) -> FALSE | AR81: =IF(AO81,'Commodity Prices'!D94) -> FALSE | AV81: 90 | AW81: 90 | AX81: =IF(AW81,'Yahoo Stocks'!D108) -> EOAN.DE | AY81: IBE.MC | AZ81: =IF(AW81,'Yahoo Stocks'!E108) -> E.on | BA81: Ibdrola | BB81: F | BC81: Yahoo | BD81: 201 | BE81: FALSE | BF81: =IF(BE81,'Google Finance Stocks'!D105) -> FALSE | BH81: =IF(BE81,'Google Finance Stocks'!E105) -> FALSE | BL81: 201 | BM81: FALSE | BN81: ='Exchange Rates'!D104 -> 0 | BP81: =IF(BM81,'Exchange Rates'!E104) -> FALSE
L82: 80 | M82: 5347.KL | N82: Tenaga | O82: F | P82: Yahoo | Q82: 80 | R82: FALSE | S82: =IF(R82,'Yahoo Index'!E132,"") ->  | T82: =IF(R82,'Yahoo Index'!F132,"") ->  | X82: 87 | Y82: FALSE | Z82: =IF($F$6,'FRED Indicies'!E95) -> 0 | AB82: =IF($F$6,'FRED Indicies'!D95) -> 0 | AF82: 88 | AG82: FALSE | AH82: =IF(AG82,'Google Index'!E109) -> FALSE | AJ82: =IF(AF82,'Google Index'!F109) -> 0 | AN82: 88 | AO82: FALSE | AP82: =IF(AO82,'Commodity Prices'!C95) -> FALSE | AR82: =IF(AO82,'Commodity Prices'!D95) -> FALSE | AV82: 91 | AW82: 91 | AX82: =IF(AW82,'Yahoo Stocks'!D109) -> EXC | AY82: 5347.KL | AZ82: =IF(AW82,'Yahoo Stocks'!E109) -> Exelon | BA82: Tenaga | BB82: F | BC82: Yahoo | BD82: 202 | BE82: FALSE | BF82: =IF(BE82,'Google Finance Stocks'!D106) -> FALSE | BH82: =IF(BE82,'Google Finance Stocks'!E106) -> FALSE | BL82: 202 | BM82: FALSE | BN82: ='Exchange Rates'!D105 -> 0 | BP82: =IF(BM82,'Exchange Rates'!E105) -> FALSE
L83: 81 | M83: MAEOY | N83: Meralco | O83: F | P83: Yahoo | Q83: 81 | R83: FALSE | S83: =IF(R83,'Yahoo Index'!E133,"") ->  | T83: =IF(R83,'Yahoo Index'!F133,"") ->  | X83: 88 | Y83: FALSE | Z83: =IF($F$6,'FRED Indicies'!E96) -> 0 | AB83: =IF($F$6,'FRED Indicies'!D96) -> 0 | AF83: 89 | AG83: FALSE | AH83: =IF(AG83,'Google Index'!E110) -> FALSE | AJ83: =IF(AF83,'Google Index'!F110) -> 0 | AN83: 89 | AO83: FALSE | AP83: =IF(AO83,'Commodity Prices'!C96) -> FALSE | AR83: =IF(AO83,'Commodity Prices'!D96) -> FALSE | AV83: 92 | AW83: 92 | AX83: =IF(AW83,'Yahoo Stocks'!D110) -> DTE | AY83: MAEOY | AZ83: =IF(AW83,'Yahoo Stocks'!E110) -> Detroit Edison | BA83: Meralco | BB83: F | BC83: Yahoo | BD83: 203 | BE83: FALSE | BF83: =IF(BE83,'Google Finance Stocks'!D107) -> FALSE | BH83: =IF(BE83,'Google Finance Stocks'!E107) -> FALSE | BL83: 203 | BM83: FALSE | BN83: ='Exchange Rates'!D106 -> 0 | BP83: =IF(BM83,'Exchange Rates'!E106) -> FALSE
L84: 82 | M84: ED | N84: ConEd | O84: F | P84: Yahoo | Q84: 82 | R84: FALSE | S84: =IF(R84,'Yahoo Index'!E134,"") ->  | T84: =IF(R84,'Yahoo Index'!F134,"") ->  | X84: 89 | Y84: FALSE | Z84: =IF($F$6,'FRED Indicies'!E97) -> 0 | AB84: =IF($F$6,'FRED Indicies'!D97) -> 0 | AF84: 90 | AG84: FALSE | AH84: =IF(AG84,'Google Index'!E111) -> FALSE | AJ84: =IF(AF84,'Google Index'!F111) -> 0 | AN84: 90 | AO84: FALSE | AP84: =IF(AO84,'Commodity Prices'!C97) -> FALSE | AR84: =IF(AO84,'Commodity Prices'!D97) -> FALSE | AV84: 93 | AW84: 93 | AX84: =IF(AW84,'Yahoo Stocks'!D111) -> AES | AY84: ED | AZ84: =IF(AW84,'Yahoo Stocks'!E111) -> AES | BA84: ConEd | BB84: F | BC84: Yahoo | BD84: 204 | BE84: FALSE | BF84: =IF(BE84,'Google Finance Stocks'!D108) -> FALSE | BH84: =IF(BE84,'Google Finance Stocks'!E108) -> FALSE | BL84: 204 | BM84: FALSE | BN84: ='Exchange Rates'!D107 -> 0 | BP84: =IF(BM84,'Exchange Rates'!E107) -> FALSE
L85: 83 | M85: 015760.KS | N85: Kepco | O85: F | P85: Yahoo | Q85: 83 | R85: FALSE | S85: =IF(R85,'Yahoo Index'!E135,"") ->  | T85: =IF(R85,'Yahoo Index'!F135,"") ->  | X85: 90 | Y85: FALSE | Z85: =IF($F$6,'FRED Indicies'!E98) -> 0 | AB85: =IF($F$6,'FRED Indicies'!D98) -> 0 | AF85: 91 | AG85: FALSE | AH85: =IF(AG85,'Google Index'!E112) -> FALSE | AJ85: =IF(AF85,'Google Index'!F112) -> 0 | AN85: 91 | AO85: FALSE | AP85: =IF(AO85,'Commodity Prices'!C98) -> FALSE | AR85: =IF(AO85,'Commodity Prices'!D98) -> FALSE | AV85: 94 | AW85: 94 | AX85: =IF(AW85,'Yahoo Stocks'!D112) -> NRG | AY85: 015760.KS | AZ85: =IF(AW85,'Yahoo Stocks'!E112) -> NRG Energy | BA85: Kepco | BB85: F | BC85: Yahoo | BD85: 205 | BE85: FALSE | BF85: =IF(BE85,'Google Finance Stocks'!D109) -> FALSE | BH85: =IF(BE85,'Google Finance Stocks'!E109) -> FALSE | BL85: 205 | BM85: FALSE | BN85: ='Exchange Rates'!D108 -> 0 | BP85: =IF(BM85,'Exchange Rates'!E108) -> FALSE
L86: 84 | M86: TKECF | N86: Tepco | O86: F | P86: Yahoo | Q86: 84 | R86: FALSE | S86: =IF(R86,'Yahoo Index'!E136,"") ->  | T86: =IF(R86,'Yahoo Index'!F136,"") ->  | X86: 91 | Y86: FALSE | Z86: =IF($F$6,'FRED Indicies'!E99) -> 0 | AB86: =IF($F$6,'FRED Indicies'!D99) -> 0 | AF86: 92 | AG86: FALSE | AH86: =IF(AG86,'Google Index'!E113) -> FALSE | AJ86: =IF(AF86,'Google Index'!F113) -> 0 | AN86: 92 | AO86: FALSE | AP86: =IF(AO86,'Commodity Prices'!C99) -> FALSE | AR86: =IF(AO86,'Commodity Prices'!D99) -> FALSE | AV86: 95 | AW86: 95 | AX86: =IF(AW86,'Yahoo Stocks'!D113) -> PCG | AY86: TKECF | AZ86: =IF(AW86,'Yahoo Stocks'!E113) -> PG&E | BA86: Tepco | BB86: F | BC86: Yahoo | BD86: 206 | BE86: FALSE | BF86: =IF(BE86,'Google Finance Stocks'!D110) -> FALSE | BH86: =IF(BE86,'Google Finance Stocks'!E110) -> FALSE | BL86: 206 | BM86: FALSE | BN86: ='Exchange Rates'!D109 -> 0 | BP86: =IF(BM86,'Exchange Rates'!E109) -> FALSE
L87: 85 | M87: SO | N87: Southern Companies | O87: F | P87: Yahoo | Q87: 85 | R87: FALSE | S87: =IF(R87,'Yahoo Index'!E137,"") ->  | T87: =IF(R87,'Yahoo Index'!F137,"") ->  | X87: 92 | Y87: FALSE | Z87: =IF($F$6,'FRED Indicies'!E100) -> 0 | AB87: =IF($F$6,'FRED Indicies'!D100) -> 0 | AF87: 93 | AG87: FALSE | AH87: =IF(AG87,'Google Index'!E114) -> FALSE | AJ87: =IF(AF87,'Google Index'!F114) -> 0 | AN87: 93 | AO87: FALSE | AP87: =IF(AO87,'Commodity Prices'!C100) -> FALSE | AR87: =IF(AO87,'Commodity Prices'!D100) -> FALSE | AV87: 96 | AW87: 96 | AX87: =IF(AW87,'Yahoo Stocks'!D114) -> RWE.DE | AY87: SO | AZ87: =IF(AW87,'Yahoo Stocks'!E114) -> RWE | BA87: Southern Companies | BB87: F | BC87: Yahoo | BD87: 207 | BE87: FALSE | BF87: =IF(BE87,'Google Finance Stocks'!D111) -> FALSE | BH87: =IF(BE87,'Google Finance Stocks'!E111) -> FALSE | BL87: 207 | BM87: FALSE | BN87: ='Exchange Rates'!D110 -> 0 | BP87: =IF(BM87,'Exchange Rates'!E110) -> FALSE
L88: 86 | M88: EDF.PA | N88: EDF | O88: F | P88: Yahoo | Q88: 86 | R88: FALSE | S88: =IF(R88,'Yahoo Index'!E138,"") ->  | T88: =IF(R88,'Yahoo Index'!F138,"") ->  | X88: 93 | Y88: FALSE | Z88: =IF($F$6,'FRED Indicies'!E101) -> 0 | AB88: =IF($F$6,'FRED Indicies'!D101) -> 0 | AF88: 94 | AG88: FALSE | AH88: =IF(AG88,'Google Index'!E115) -> FALSE | AJ88: =IF(AF88,'Google Index'!F115) -> 0 | AN88: 94 | AO88: FALSE | AP88: =IF(AO88,'Commodity Prices'!C101) -> FALSE | AR88: =IF(AO88,'Commodity Prices'!D101) -> FALSE | AV88: 97 | AW88: 97 | AX88: =IF(AW88,'Yahoo Stocks'!D115) -> MGEE | AY88: EDF.PA | AZ88: =IF(AW88,'Yahoo Stocks'!E115) -> Madison Gas and Electric | BA88: EDF | BB88: F | BC88: Yahoo | BD88: 208 | BE88: FALSE | BF88: =IF(BE88,'Google Finance Stocks'!D112) -> FALSE | BH88: =IF(BE88,'Google Finance Stocks'!E112) -> FALSE | BL88: 208 | BM88: FALSE | BN88: ='Exchange Rates'!D111 -> 0 | BP88: =IF(BM88,'Exchange Rates'!E111) -> FALSE
L89: 87 | M89: ENGI.PA | N89: Engie | O89: F | P89: Yahoo | Q89: 87 | R89: FALSE | S89: =IF(R89,'Yahoo Index'!E139,"") ->  | T89: =IF(R89,'Yahoo Index'!F139,"") ->  | X89: 94 | Y89: FALSE | Z89: =IF($F$6,'FRED Indicies'!E102) -> 0 | AB89: =IF($F$6,'FRED Indicies'!D102) -> 0 | AF89: 95 | AG89: FALSE | AH89: =IF(AG89,'Google Index'!E116) -> FALSE | AJ89: =IF(AF89,'Google Index'!F116) -> 0 | AN89: 95 | AO89: FALSE | AP89: =IF(AO89,'Commodity Prices'!C102) -> FALSE | AR89: =IF(AO89,'Commodity Prices'!D102) -> FALSE | AV89: 98 | AW89: 98 | AX89: =IF(AW89,'Yahoo Stocks'!D116) -> WEC | AY89: ENGI.PA | AZ89: =IF(AW89,'Yahoo Stocks'!E116) -> Wisconsin Public Service | BA89: Engie | BB89: F | BC89: Yahoo | BD89: 209 | BE89: FALSE | BF89: =IF(BE89,'Google Finance Stocks'!D113) -> FALSE | BH89: =IF(BE89,'Google Finance Stocks'!E113) -> FALSE | BL89: 209 | BM89: FALSE | BN89: ='Exchange Rates'!D112 -> 0 | BP89: =IF(BM89,'Exchange Rates'!E112) -> FALSE
L90: 88 | M90: NG.L | N90: National Grid | O90: F | P90: Yahoo | Q90: 88 | R90: FALSE | S90: =IF(R90,'Yahoo Index'!E140,"") ->  | T90: =IF(R90,'Yahoo Index'!F140,"") ->  | X90: 95 | Y90: FALSE | Z90: =IF($F$6,'FRED Indicies'!E103) -> 0 | AB90: =IF($F$6,'FRED Indicies'!D103) -> 0 | AF90: 96 | AG90: FALSE | AH90: =IF(AG90,'Google Index'!E117) -> FALSE | AJ90: =IF(AF90,'Google Index'!F117) -> 0 | AN90: 96 | AO90: FALSE | AP90: =IF(AO90,'Commodity Prices'!C103) -> FALSE | AR90: =IF(AO90,'Commodity Prices'!D103) -> FALSE | AV90: 99 | AW90: 99 | AX90: =IF(AW90,'Yahoo Stocks'!D117) -> AEE | AY90: NG.L | AZ90: =IF(AW90,'Yahoo Stocks'!E117) -> Ameren | BA90: National Grid | BB90: F | BC90: Yahoo | BD90: 210 | BE90: FALSE | BF90: =IF(BE90,'Google Finance Stocks'!D114) -> FALSE | BH90: =IF(BE90,'Google Finance Stocks'!E114) -> FALSE | BL90: 210 | BM90: FALSE | BN90: ='Exchange Rates'!D113 -> 0 | BP90: =IF(BM90,'Exchange Rates'!E113) -> FALSE
L91: 89 | M91: ENEL.MI | N91: Enel | O91: F | P91: Yahoo | Q91: 89 | R91: FALSE | S91: =IF(R91,'Yahoo Index'!E141,"") ->  | T91: =IF(R91,'Yahoo Index'!F141,"") ->  | X91: 96 | Y91: FALSE | Z91: =IF($F$6,'FRED Indicies'!E104) -> 0 | AB91: =IF($F$6,'FRED Indicies'!D104) -> 0 | AF91: 97 | AG91: FALSE | AH91: =IF(AG91,'Google Index'!E118) -> FALSE | AJ91: =IF(AF91,'Google Index'!F118) -> 0 | AN91: 97 | AO91: FALSE | AP91: =IF(AO91,'Commodity Prices'!C104) -> FALSE | AR91: =IF(AO91,'Commodity Prices'!D104) -> FALSE | AV91: 100 | AW91: =IF(AND($F$15,AV91<=$H$15),AV91) -> 100 | AX91: =IF(AW91,'Yahoo Stocks'!D118) -> CMS | AY91: =IFERROR(INDEX(AX:AX,MATCH(L91,AW:AW,0)),"") -> ENEL.MI | AZ91: =IF(AW91,'Yahoo Stocks'!E118) -> CMS Energy | BA91: =IFERROR(INDEX(AZ:AZ,MATCH(L91,AW:AW,0)),"") -> Enel | BB91: =IF(AY91<>"",$I$15,"") -> F | BC91: Yahoo | BD91: 211 | BE91: FALSE | BF91: =IF(BE91,'Google Finance Stocks'!D115) -> FALSE | BH91: =IF(BE91,'Google Finance Stocks'!E115) -> FALSE | BL91: 211 | BM91: FALSE | BN91: ='Exchange Rates'!D114 -> 0 | BP91: =IF(BM91,'Exchange Rates'!E114) -> FALSE
L92: 90 | M92: EOAN.DE | N92: E.on | O92: F | P92: Yahoo | Q92: 90 | R92: FALSE | S92: =IF(R92,'Yahoo Index'!E142,"") ->  | T92: =IF(R92,'Yahoo Index'!F142,"") ->  | X92: 97 | Y92: FALSE | Z92: =IF($F$6,'FRED Indicies'!E105) -> 0 | AB92: =IF($F$6,'FRED Indicies'!D105) -> 0 | AF92: 98 | AG92: FALSE | AH92: =IF(AG92,'Google Index'!E119) -> FALSE | AJ92: =IF(AF92,'Google Index'!F119) -> 0 | AN92: 98 | AO92: FALSE | AP92: =IF(AO92,'Commodity Prices'!C105) -> FALSE | AR92: =IF(AO92,'Commodity Prices'!D105) -> FALSE | AV92: 101 | AW92: 101 | AX92: =IF(AW92,'Yahoo Stocks'!D119) -> MMM | AY92: EOAN.DE | AZ92: =IF(AW92,'Yahoo Stocks'!E119) -> 3M | BA92: E.on | BB92: F | BC92: Yahoo | BD92: 212 | BE92: FALSE | BF92: =IF(BE92,'Google Finance Stocks'!D116) -> FALSE | BH92: =IF(BE92,'Google Finance Stocks'!E116) -> FALSE | BL92: 212 | BM92: FALSE | BN92: ='Exchange Rates'!D115 -> 0 | BP92: =IF(BM92,'Exchange Rates'!E115) -> FALSE
L93: 91 | M93: EXC | N93: Exelon | O93: F | P93: Yahoo | Q93: 91 | R93: FALSE | S93: =IF(R93,'Yahoo Index'!E143,"") ->  | T93: =IF(R93,'Yahoo Index'!F143,"") ->  | X93: 98 | Y93: FALSE | Z93: =IF($F$6,'FRED Indicies'!E106) -> 0 | AB93: =IF($F$6,'FRED Indicies'!D106) -> 0 | AF93: 99 | AG93: FALSE | AH93: =IF(AG93,'Google Index'!E120) -> FALSE | AJ93: =IF(AF93,'Google Index'!F120) -> 0 | AN93: 99 | AO93: FALSE | AP93: =IF(AO93,'Commodity Prices'!C106) -> FALSE | AR93: =IF(AO93,'Commodity Prices'!D106) -> FALSE | AV93: 102 | AW93: 102 | AX93: =IF(AW93,'Yahoo Stocks'!D120) -> AAPL | AY93: EXC | AZ93: =IF(AW93,'Yahoo Stocks'!E120) -> Apple | BA93: Exelon | BB93: F | BC93: Yahoo | BD93: 213 | BE93: FALSE | BF93: =IF(BE93,'Google Finance Stocks'!D117) -> FALSE | BH93: =IF(BE93,'Google Finance Stocks'!E117) -> FALSE | BL93: 213 | BM93: FALSE | BN93: ='Exchange Rates'!D116 -> 0 | BP93: =IF(BM93,'Exchange Rates'!E116) -> FALSE
L94: 92 | M94: DTE | N94: Detroit Edison | O94: F | P94: Yahoo | Q94: 92 | R94: FALSE | S94: =IF(R94,'Yahoo Index'!E144,"") ->  | T94: =IF(R94,'Yahoo Index'!F144,"") ->  | X94: 99 | Y94: FALSE | Z94: =IF($F$6,'FRED Indicies'!E107) -> 0 | AB94: =IF($F$6,'FRED Indicies'!D107) -> 0 | AF94: 100 | AG94: FALSE | AH94: =IF(AG94,'Google Index'!E121) -> FALSE | AJ94: =IF(AF94,'Google Index'!F121) -> 0 | AN94: 100 | AO94: FALSE | AP94: =IF(AO94,'Commodity Prices'!C107) -> FALSE | AR94: =IF(AO94,'Commodity Prices'!D107) -> FALSE | AV94: 103 | AW94: 103 | AX94: =IF(AW94,'Yahoo Stocks'!D121) -> BA | AY94: DTE | AZ94: =IF(AW94,'Yahoo Stocks'!E121) -> Boeing | BA94: Detroit Edison | BB94: F | BC94: Yahoo | BD94: 214 | BE94: FALSE | BF94: =IF(BE94,'Google Finance Stocks'!D118) -> FALSE | BH94: =IF(BE94,'Google Finance Stocks'!E118) -> FALSE | BL94: 214 | BM94: FALSE | BN94: ='Exchange Rates'!D117 -> 0 | BP94: =IF(BM94,'Exchange Rates'!E117) -> FALSE
L95: 93 | M95: AES | N95: AES | O95: F | P95: Yahoo | Q95: 93 | R95: FALSE | S95: =IF(R95,'Yahoo Index'!E145,"") ->  | T95: =IF(R95,'Yahoo Index'!F145,"") ->  | X95: 100 | Y95: FALSE | Z95: =IF($F$6,'FRED Indicies'!E108) -> 0 | AB95: =IF($F$6,'FRED Indicies'!D108) -> 0 | AF95: 101 | AG95: FALSE | AH95: =IF(AG95,'Google Index'!E122) -> FALSE | AJ95: =IF(AF95,'Google Index'!F122) -> 0 | AN95: 101 | AO95: FALSE | AP95: =IF(AO95,'Commodity Prices'!C108) -> FALSE | AR95: =IF(AO95,'Commodity Prices'!D108) -> FALSE | AV95: 104 | AW95: 104 | AX95: =IF(AW95,'Yahoo Stocks'!D122) -> CAT | AY95: AES | AZ95: =IF(AW95,'Yahoo Stocks'!E122) -> Caterpillar | BA95: AES | BB95: F | BC95: Yahoo | BD95: 215 | BE95: FALSE | BF95: =IF(BE95,'Google Finance Stocks'!D119) -> FALSE | BH95: =IF(BE95,'Google Finance Stocks'!E119) -> FALSE | BL95: 215 | BM95: FALSE | BN95: ='Exchange Rates'!D118 -> 0 | BP95: =IF(BM95,'Exchange Rates'!E118) -> FALSE
L96: 94 | M96: NRG | N96: NRG Energy | O96: F | P96: Yahoo | Q96: 94 | R96: FALSE | S96: =IF(R96,'Yahoo Index'!E146,"") ->  | T96: =IF(R96,'Yahoo Index'!F146,"") ->  | X96: 101 | Y96: FALSE | Z96: =IF($F$6,'FRED Indicies'!E109) -> 0 | AB96: =IF($F$6,'FRED Indicies'!D109) -> 0 | AF96: 102 | AG96: FALSE | AH96: =IF(AG96,'Google Index'!E123) -> FALSE | AJ96: =IF(AF96,'Google Index'!F123) -> 0 | AN96: 102 | AO96: FALSE | AP96: =IF(AO96,'Commodity Prices'!C109) -> FALSE | AR96: =IF(AO96,'Commodity Prices'!D109) -> FALSE | AV96: 105 | AW96: 105 | AX96: =IF(AW96,'Yahoo Stocks'!D123) -> CVX | AY96: NRG | AZ96: =IF(AW96,'Yahoo Stocks'!E123) -> Chevron | BA96: NRG Energy | BB96: F | BC96: Yahoo | BD96: 216 | BE96: FALSE | BF96: =IF(BE96,'Google Finance Stocks'!D120) -> FALSE | BH96: =IF(BE96,'Google Finance Stocks'!E120) -> FALSE | BL96: 216 | BM96: FALSE | BN96: ='Exchange Rates'!D119 -> 0 | BP96: =IF(BM96,'Exchange Rates'!E119) -> FALSE
L97: 95 | M97: PCG | N97: PG&E | O97: F | P97: Yahoo | Q97: 95 | R97: FALSE | S97: =IF(R97,'Yahoo Index'!E147,"") ->  | T97: =IF(R97,'Yahoo Index'!F147,"") ->  | X97: 102 | Y97: FALSE | Z97: =IF($F$6,'FRED Indicies'!E110) -> 0 | AB97: =IF($F$6,'FRED Indicies'!D110) -> 0 | AF97: 103 | AG97: FALSE | AH97: =IF(AG97,'Google Index'!E124) -> FALSE | AJ97: =IF(AF97,'Google Index'!F124) -> 0 | AN97: 103 | AO97: FALSE | AP97: =IF(AO97,'Commodity Prices'!C110) -> FALSE | AR97: =IF(AO97,'Commodity Prices'!D110) -> FALSE | AV97: 106 | AW97: 106 | AX97: =IF(AW97,'Yahoo Stocks'!D124) -> CSCO | AY97: PCG | AZ97: =IF(AW97,'Yahoo Stocks'!E124) -> Cisco | BA97: PG&E | BB97: F | BC97: Yahoo | BD97: 217 | BE97: FALSE | BF97: =IF(BE97,'Google Finance Stocks'!D121) -> FALSE | BH97: =IF(BE97,'Google Finance Stocks'!E121) -> FALSE | BL97: 217 | BM97: FALSE | BN97: ='Exchange Rates'!D120 -> 0 | BP97: =IF(BM97,'Exchange Rates'!E120) -> FALSE
L98: 96 | M98: RWE.DE | N98: RWE | O98: F | P98: Yahoo | Q98: 96 | R98: FALSE | S98: =IF(R98,'Yahoo Index'!E148,"") ->  | T98: =IF(R98,'Yahoo Index'!F148,"") ->  | X98: 103 | Y98: FALSE | Z98: =IF($F$6,'FRED Indicies'!E111) -> 0 | AB98: =IF($F$6,'FRED Indicies'!D111) -> 0 | AF98: 104 | AG98: FALSE | AH98: =IF(AG98,'Google Index'!E125) -> FALSE | AJ98: =IF(AF98,'Google Index'!F125) -> 0 | AN98: 104 | AO98: FALSE | AP98: =IF(AO98,'Commodity Prices'!C111) -> FALSE | AR98: =IF(AO98,'Commodity Prices'!D111) -> FALSE | AV98: 107 | AW98: 107 | AX98: =IF(AW98,'Yahoo Stocks'!D125) -> KO | AY98: RWE.DE | AZ98: =IF(AW98,'Yahoo Stocks'!E125) -> Coca-Cola | BA98: RWE | BB98: F | BC98: Yahoo | BD98: 218 | BE98: FALSE | BF98: =IF(BE98,'Google Finance Stocks'!D122) -> FALSE | BH98: =IF(BE98,'Google Finance Stocks'!E122) -> FALSE | BL98: 218 | BM98: FALSE | BN98: ='Exchange Rates'!D121 -> 0 | BP98: =IF(BM98,'Exchange Rates'!E121) -> FALSE
L99: 97 | M99: MGEE | N99: Madison Gas and Electric | O99: F | P99: Yahoo | Q99: 97 | R99: FALSE | S99: =IF(R99,'Yahoo Index'!E149,"") ->  | T99: =IF(R99,'Yahoo Index'!F149,"") ->  | X99: 104 | Y99: FALSE | Z99: =IF($F$6,'FRED Indicies'!E112) -> 0 | AB99: =IF($F$6,'FRED Indicies'!D112) -> 0 | AF99: 105 | AG99: FALSE | AH99: =IF(AG99,'Google Index'!E126) -> FALSE | AJ99: =IF(AF99,'Google Index'!F126) -> 0 | AN99: 105 | AO99: FALSE | AP99: =IF(AO99,'Commodity Prices'!C112) -> FALSE | AR99: =IF(AO99,'Commodity Prices'!D112) -> FALSE | AV99: 108 | AW99: 108 | AX99: =IF(AW99,'Yahoo Stocks'!D126) -> DIS | AY99: MGEE | AZ99: =IF(AW99,'Yahoo Stocks'!E126) -> Disney | BA99: Madison Gas and Electric | BB99: F | BC99: Yahoo | BD99: 219 | BE99: FALSE | BF99: =IF(BE99,'Google Finance Stocks'!D123) -> FALSE | BH99: =IF(BE99,'Google Finance Stocks'!E123) -> FALSE | BL99: 219 | BM99: FALSE | BN99: ='Exchange Rates'!D122 -> 0 | BP99: =IF(BM99,'Exchange Rates'!E122) -> FALSE
L100: 98 | M100: WEC | N100: Wisconsin Public Service | O100: F | P100: Yahoo | Q100: 98 | R100: FALSE | S100: =IF(R100,'Yahoo Index'!E150,"") ->  | T100: =IF(R100,'Yahoo Index'!F150,"") ->  | X100: 105 | Y100: FALSE | Z100: =IF($F$6,'FRED Indicies'!E113) -> 0 | AB100: =IF($F$6,'FRED Indicies'!D113) -> 0 | AF100: 106 | AG100: FALSE | AH100: =IF(AG100,'Google Index'!E127) -> FALSE | AJ100: =IF(AF100,'Google Index'!F127) -> 0 | AN100: 106 | AO100: FALSE | AP100: =IF(AO100,'Commodity Prices'!C113) -> FALSE | AR100: =IF(AO100,'Commodity Prices'!D113) -> FALSE | AV100: 109 | AW100: 109 | AX100: =IF(AW100,'Yahoo Stocks'!D127) -> DWDP | AY100: WEC | AZ100: =IF(AW100,'Yahoo Stocks'!E127) -> E I du Pont de Nemours and Co | BA100: Wisconsin Public Service | BB100: F | BC100: Yahoo | BD100: 220 | BE100: FALSE | BF100: =IF(BE100,'Google Finance Stocks'!D124) -> FALSE | BH100: =IF(BE100,'Google Finance Stocks'!E124) -> FALSE | BL100: 220 | BM100: FALSE | BN100: ='Exchange Rates'!D123 -> 0 | BP100: =IF(BM100,'Exchange Rates'!E123) -> FALSE
L101: 99 | M101: AEE | N101: Ameren | O101: F | P101: Yahoo | Q101: 99 | R101: FALSE | S101: =IF(R101,'Yahoo Index'!E151,"") ->  | T101: =IF(R101,'Yahoo Index'!F151,"") ->  | X101: 106 | Y101: FALSE | Z101: =IF($F$6,'FRED Indicies'!E114) -> 0 | AB101: =IF($F$6,'FRED Indicies'!D114) -> 0 | AF101: 107 | AG101: FALSE | AH101: =IF(AG101,'Google Index'!E128) -> FALSE | AJ101: =IF(AF101,'Google Index'!F128) -> 0 | AN101: 107 | AO101: FALSE | AP101: =IF(AO101,'Commodity Prices'!C114) -> FALSE | AR101: =IF(AO101,'Commodity Prices'!D114) -> FALSE | AV101: 110 | AW101: 110 | AX101: =IF(AW101,'Yahoo Stocks'!D128) -> XOM | AY101: AEE | AZ101: =IF(AW101,'Yahoo Stocks'!E128) -> Exxon Mobil | BA101: Ameren | BB101: F | BC101: Yahoo | BD101: 221 | BE101: FALSE | BF101: =IF(BE101,'Google Finance Stocks'!D125) -> FALSE | BH101: =IF(BE101,'Google Finance Stocks'!E125) -> FALSE | BL101: 221 | BM101: FALSE | BN101: ='Exchange Rates'!D124 -> 0 | BP101: =IF(BM101,'Exchange Rates'!E124) -> FALSE
L102: 100 | M102: CMS | N102: CMS Energy | O102: F | P102: Yahoo | Q102: 100 | R102: FALSE | S102: =IF(R102,'Yahoo Index'!E152,"") ->  | T102: =IF(R102,'Yahoo Index'!F152,"") ->  | X102: 107 | Y102: FALSE | Z102: =IF($F$6,'FRED Indicies'!E115) -> 0 | AB102: =IF($F$6,'FRED Indicies'!D115) -> 0 | AF102: 108 | AG102: FALSE | AH102: =IF(AG102,'Google Index'!E129) -> FALSE | AJ102: =IF(AF102,'Google Index'!F129) -> 0 | AN102: 108 | AO102: FALSE | AP102: =IF(AO102,'Commodity Prices'!C115) -> FALSE | AR102: =IF(AO102,'Commodity Prices'!D115) -> FALSE | AV102: 111 | AW102: 111 | AX102: =IF(AW102,'Yahoo Stocks'!D129) -> GE | AY102: CMS | AZ102: =IF(AW102,'Yahoo Stocks'!E129) -> General Electric | BA102: CMS Energy | BB102: F | BC102: Yahoo | BD102: 222 | BE102: FALSE | BF102: =IF(BE102,'Google Finance Stocks'!D126) -> FALSE | BH102: =IF(BE102,'Google Finance Stocks'!E126) -> FALSE | BL102: 222 | BM102: FALSE | BN102: ='Exchange Rates'!D125 -> 0 | BP102: =IF(BM102,'Exchange Rates'!E125) -> FALSE
L103: 101 | M103: MMM | N103: 3M | O103: F | P103: Yahoo | Q103: 101 | R103: FALSE | S103: =IF(R103,'Yahoo Index'!E153,"") ->  | T103: =IF(R103,'Yahoo Index'!F153,"") ->  | X103: 108 | Y103: FALSE | Z103: =IF($F$6,'FRED Indicies'!E116) -> 0 | AB103: =IF($F$6,'FRED Indicies'!D116) -> 0 | AF103: 109 | AG103: FALSE | AH103: =IF(AG103,'Google Index'!E130) -> FALSE | AJ103: =IF(AF103,'Google Index'!F130) -> 0 | AN103: 109 | AO103: FALSE | AP103: =IF(AO103,'Commodity Prices'!C116) -> FALSE | AR103: =IF(AO103,'Commodity Prices'!D116) -> FALSE | AV103: 112 | AW103: 112 | AX103: =IF(AW103,'Yahoo Stocks'!D130) -> HD | AY103: MMM | AZ103: =IF(AW103,'Yahoo Stocks'!E130) -> Home Depot | BA103: 3M | BB103: F | BC103: Yahoo | BD103: 223 | BE103: FALSE | BF103: =IF(BE103,'Google Finance Stocks'!D127) -> FALSE | BH103: =IF(BE103,'Google Finance Stocks'!E127) -> FALSE | BL103: 223 | BM103: FALSE | BN103: ='Exchange Rates'!D126 -> 0 | BP103: =IF(BM103,'Exchange Rates'!E126) -> FALSE
L104: 102 | M104: AAPL | N104: Apple | O104: F | P104: Yahoo | Q104: 102 | R104: FALSE | S104: =IF(R104,'Yahoo Index'!E154,"") ->  | T104: =IF(R104,'Yahoo Index'!F154,"") ->  | X104: 109 | Y104: FALSE | Z104: =IF($F$6,'FRED Indicies'!E117) -> 0 | AB104: =IF($F$6,'FRED Indicies'!D117) -> 0 | AF104: 110 | AG104: FALSE | AH104: =IF(AG104,'Google Index'!E131) -> FALSE | AJ104: =IF(AF104,'Google Index'!F131) -> 0 | AN104: 110 | AO104: FALSE | AP104: =IF(AO104,'Commodity Prices'!C117) -> FALSE | AR104: =IF(AO104,'Commodity Prices'!D117) -> FALSE | AV104: 113 | AW104: 113 | AX104: =IF(AW104,'Yahoo Stocks'!D131) -> IBM | AY104: AAPL | AZ104: =IF(AW104,'Yahoo Stocks'!E131) -> IBM | BA104: Apple | BB104: F | BC104: Yahoo | BD104: 224 | BE104: FALSE | BF104: =IF(BE104,'Google Finance Stocks'!D128) -> FALSE | BH104: =IF(BE104,'Google Finance Stocks'!E128) -> FALSE | BL104: 224 | BM104: FALSE | BN104: ='Exchange Rates'!D127 -> 0 | BP104: =IF(BM104,'Exchange Rates'!E127) -> FALSE
L105: 103 | M105: BA | N105: Boeing | O105: F | P105: Yahoo | Q105: 103 | R105: FALSE | S105: =IF(R105,'Yahoo Index'!E155,"") ->  | T105: =IF(R105,'Yahoo Index'!F155,"") ->  | X105: 110 | Y105: FALSE | Z105: =IF($F$6,'FRED Indicies'!E118) -> 0 | AB105: =IF($F$6,'FRED Indicies'!D118) -> 0 | AF105: 111 | AG105: FALSE | AH105: =IF(AG105,'Google Index'!E132) -> FALSE | AJ105: =IF(AF105,'Google Index'!F132) -> 0 | AN105: 111 | AO105: FALSE | AP105: =IF(AO105,'Commodity Prices'!C118) -> FALSE | AR105: =IF(AO105,'Commodity Prices'!D118) -> FALSE | AV105: 114 | AW105: 114 | AX105: =IF(AW105,'Yahoo Stocks'!D132) -> INTC | AY105: BA | AZ105: =IF(AW105,'Yahoo Stocks'!E132) -> Intel | BA105: Boeing | BB105: F | BC105: Yahoo | BD105: 225 | BE105: FALSE | BF105: =IF(BE105,'Google Finance Stocks'!D129) -> FALSE | BH105: =IF(BE105,'Google Finance Stocks'!E129) -> FALSE | BL105: 225 | BM105: FALSE | BN105: ='Exchange Rates'!D128 -> 0 | BP105: =IF(BM105,'Exchange Rates'!E128) -> FALSE
L106: 104 | M106: CAT | N106: Caterpillar | O106: F | P106: Yahoo | Q106: 104 | R106: FALSE | S106: =IF(R106,'Yahoo Index'!E156,"") ->  | T106: =IF(R106,'Yahoo Index'!F156,"") ->  | X106: 111 | Y106: FALSE | Z106: =IF($F$6,'FRED Indicies'!E119) -> 0 | AB106: =IF($F$6,'FRED Indicies'!D119) -> 0 | AF106: 112 | AG106: FALSE | AH106: =IF(AG106,'Google Index'!E133) -> FALSE | AJ106: =IF(AF106,'Google Index'!F133) -> 0 | AN106: 112 | AO106: FALSE | AP106: =IF(AO106,'Commodity Prices'!C119) -> FALSE | AR106: =IF(AO106,'Commodity Prices'!D119) -> FALSE | AV106: 115 | AW106: 115 | AX106: =IF(AW106,'Yahoo Stocks'!D133) -> JNJ | AY106: CAT | AZ106: =IF(AW106,'Yahoo Stocks'!E133) -> Johnson & Johnson | BA106: Caterpillar | BB106: F | BC106: Yahoo | BD106: 226 | BE106: FALSE | BF106: =IF(BE106,'Google Finance Stocks'!D130) -> FALSE | BH106: =IF(BE106,'Google Finance Stocks'!E130) -> FALSE | BL106: 226 | BM106: FALSE | BN106: ='Exchange Rates'!D129 -> 0 | BP106: =IF(BM106,'Exchange Rates'!E129) -> FALSE
L107: 105 | M107: CVX | N107: Chevron | O107: F | P107: Yahoo | Q107: 105 | R107: FALSE | S107: =IF(R107,'Yahoo Index'!E157,"") ->  | T107: =IF(R107,'Yahoo Index'!F157,"") ->  | X107: 112 | Y107: FALSE | Z107: =IF($F$6,'FRED Indicies'!E120) -> 0 | AB107: =IF($F$6,'FRED Indicies'!D120) -> 0 | AF107: 113 | AG107: FALSE | AH107: =IF(AG107,'Google Index'!E134) -> FALSE | AJ107: =IF(AF107,'Google Index'!F134) -> 0 | AN107: 113 | AO107: FALSE | AP107: =IF(AO107,'Commodity Prices'!C120) -> FALSE | AR107: =IF(AO107,'Commodity Prices'!D120) -> FALSE | AV107: 116 | AW107: 116 | AX107: =IF(AW107,'Yahoo Stocks'!D134) -> MCD | AY107: CVX | AZ107: =IF(AW107,'Yahoo Stocks'!E134) -> McDonald's | BA107: Chevron | BB107: F | BC107: Yahoo | BD107: 227 | BE107: FALSE | BF107: =IF(BE107,'Google Finance Stocks'!D131) -> FALSE | BH107: =IF(BE107,'Google Finance Stocks'!E131) -> FALSE | BL107: 227 | BM107: FALSE | BN107: ='Exchange Rates'!D130 -> 0 | BP107: =IF(BM107,'Exchange Rates'!E130) -> FALSE
L108: 106 | M108: CSCO | N108: Cisco | O108: F | P108: Yahoo | Q108: 106 | R108: FALSE | S108: =IF(R108,'Yahoo Index'!E158,"") ->  | T108: =IF(R108,'Yahoo Index'!F158,"") ->  | X108: 113 | Y108: FALSE | Z108: =IF($F$6,'FRED Indicies'!E121) -> 0 | AB108: =IF($F$6,'FRED Indicies'!D121) -> 0 | AF108: 114 | AG108: FALSE | AH108: =IF(AG108,'Google Index'!E135) -> FALSE | AJ108: =IF(AF108,'Google Index'!F135) -> 0 | AN108: 114 | AO108: FALSE | AP108: =IF(AO108,'Commodity Prices'!C121) -> FALSE | AR108: =IF(AO108,'Commodity Prices'!D121) -> FALSE | AV108: 117 | AW108: 117 | AX108: =IF(AW108,'Yahoo Stocks'!D135) -> MRK | AY108: CSCO | AZ108: =IF(AW108,'Yahoo Stocks'!E135) -> Merck | BA108: Cisco | BB108: F | BC108: Yahoo | BD108: 228 | BE108: FALSE | BF108: =IF(BE108,'Google Finance Stocks'!D132) -> FALSE | BH108: =IF(BE108,'Google Finance Stocks'!E132) -> FALSE | BL108: 228 | BM108: FALSE | BN108: ='Exchange Rates'!D131 -> 0 | BP108: =IF(BM108,'Exchange Rates'!E131) -> FALSE
L109: 107 | M109: KO | N109: Coca-Cola | O109: F | P109: Yahoo | Q109: 107 | R109: FALSE | S109: =IF(R109,'Yahoo Index'!E159,"") ->  | T109: =IF(R109,'Yahoo Index'!F159,"") ->  | X109: 114 | Y109: FALSE | Z109: =IF($F$6,'FRED Indicies'!E122) -> 0 | AB109: =IF($F$6,'FRED Indicies'!D122) -> 0 | AF109: 115 | AG109: FALSE | AH109: =IF(AG109,'Google Index'!E136) -> FALSE | AJ109: =IF(AF109,'Google Index'!F136) -> 0 | AN109: 115 | AO109: FALSE | AP109: =IF(AO109,'Commodity Prices'!C122) -> FALSE | AR109: =IF(AO109,'Commodity Prices'!D122) -> FALSE | AV109: 118 | AW109: 118 | AX109: =IF(AW109,'Yahoo Stocks'!D136) -> MSFT | AY109: KO | AZ109: =IF(AW109,'Yahoo Stocks'!E136) -> Microsoft | BA109: Coca-Cola | BB109: F | BC109: Yahoo | BD109: 229 | BE109: FALSE | BF109: =IF(BE109,'Google Finance Stocks'!D133) -> FALSE | BH109: =IF(BE109,'Google Finance Stocks'!E133) -> FALSE | BL109: 229 | BM109: FALSE | BN109: ='Exchange Rates'!D132 -> 0 | BP109: =IF(BM109,'Exchange Rates'!E132) -> FALSE
L110: 108 | M110: DIS | N110: Disney | O110: F | P110: Yahoo | Q110: 108 | R110: FALSE | S110: =IF(R110,'Yahoo Index'!E160,"") ->  | T110: =IF(R110,'Yahoo Index'!F160,"") ->  | X110: 115 | Y110: FALSE | Z110: =IF($F$6,'FRED Indicies'!E123) -> 0 | AB110: =IF($F$6,'FRED Indicies'!D123) -> 0 | AF110: 116 | AG110: FALSE | AH110: =IF(AG110,'Google Index'!E137) -> FALSE | AJ110: =IF(AF110,'Google Index'!F137) -> 0 | AN110: 116 | AO110: FALSE | AP110: =IF(AO110,'Commodity Prices'!C123) -> FALSE | AR110: =IF(AO110,'Commodity Prices'!D123) -> FALSE | AV110: 119 | AW110: 119 | AX110: =IF(AW110,'Yahoo Stocks'!D137) -> NKE | AY110: DIS | AZ110: =IF(AW110,'Yahoo Stocks'!E137) -> Nike | BA110: Disney | BB110: F | BC110: Yahoo | BD110: 230 | BE110: FALSE | BF110: =IF(BE110,'Google Finance Stocks'!D134) -> FALSE | BH110: =IF(BE110,'Google Finance Stocks'!E134) -> FALSE | BL110: 230 | BM110: FALSE | BN110: ='Exchange Rates'!D133 -> 0 | BP110: =IF(BM110,'Exchange Rates'!E133) -> FALSE
L111: 109 | M111: DWDP | N111: E I du Pont de Nemours and Co | O111: F | P111: Yahoo | Q111: 109 | R111: FALSE | S111: =IF(R111,'Yahoo Index'!E161,"") ->  | T111: =IF(R111,'Yahoo Index'!F161,"") ->  | X111: 116 | Y111: FALSE | Z111: =IF($F$6,'FRED Indicies'!E124) -> 0 | AB111: =IF($F$6,'FRED Indicies'!D124) -> 0 | AF111: 117 | AG111: FALSE | AH111: =IF(AG111,'Google Index'!E138) -> FALSE | AJ111: =IF(AF111,'Google Index'!F138) -> 0 | AN111: 117 | AO111: FALSE | AP111: =IF(AO111,'Commodity Prices'!C124) -> FALSE | AR111: =IF(AO111,'Commodity Prices'!D124) -> FALSE | AV111: 120 | AW111: 120 | AX111: =IF(AW111,'Yahoo Stocks'!D138) -> PFE | AY111: DWDP | AZ111: =IF(AW111,'Yahoo Stocks'!E138) -> Pfizer | BA111: E I du Pont de Nemours and Co | BB111: F | BC111: Yahoo | BD111: 231 | BE111: FALSE | BF111: =IF(BE111,'Google Finance Stocks'!D135) -> FALSE | BH111: =IF(BE111,'Google Finance Stocks'!E135) -> FALSE | BL111: 231 | BM111: FALSE | BN111: ='Exchange Rates'!D134 -> 0 | BP111: =IF(BM111,'Exchange Rates'!E134) -> FALSE
L112: 110 | M112: XOM | N112: Exxon Mobil | O112: F | P112: Yahoo | Q112: 110 | R112: FALSE | S112: =IF(R112,'Yahoo Index'!E162,"") ->  | T112: =IF(R112,'Yahoo Index'!F162,"") ->  | X112: 117 | Y112: FALSE | Z112: =IF($F$6,'FRED Indicies'!E125) -> 0 | AB112: =IF($F$6,'FRED Indicies'!D125) -> 0 | AF112: 118 | AG112: FALSE | AH112: =IF(AG112,'Google Index'!E139) -> FALSE | AJ112: =IF(AF112,'Google Index'!F139) -> 0 | AN112: 118 | AO112: FALSE | AP112: =IF(AO112,'Commodity Prices'!C125) -> FALSE | AR112: =IF(AO112,'Commodity Prices'!D125) -> FALSE | AV112: 121 | AW112: 121 | AX112: =IF(AW112,'Yahoo Stocks'!D139) -> PG | AY112: XOM | AZ112: =IF(AW112,'Yahoo Stocks'!E139) -> Procter & Gamble | BA112: Exxon Mobil | BB112: F | BC112: Yahoo | BD112: 232 | BE112: FALSE | BF112: =IF(BE112,'Google Finance Stocks'!D136) -> FALSE | BH112: =IF(BE112,'Google Finance Stocks'!E136) -> FALSE | BL112: 232 | BM112: FALSE | BN112: ='Exchange Rates'!D135 -> 0 | BP112: =IF(BM112,'Exchange Rates'!E135) -> FALSE
L113: 111 | M113: GE | N113: General Electric | O113: F | P113: Yahoo | Q113: 111 | R113: FALSE | S113: =IF(R113,'Yahoo Index'!E163,"") ->  | T113: =IF(R113,'Yahoo Index'!F163,"") ->  | X113: 118 | Y113: FALSE | Z113: =IF($F$6,'FRED Indicies'!E126) -> 0 | AB113: =IF($F$6,'FRED Indicies'!D126) -> 0 | AF113: 119 | AG113: FALSE | AH113: =IF(AG113,'Google Index'!E140) -> FALSE | AJ113: =IF(AF113,'Google Index'!F140) -> 0 | AN113: 119 | AO113: FALSE | AP113: =IF(AO113,'Commodity Prices'!C126) -> FALSE | AR113: =IF(AO113,'Commodity Prices'!D126) -> FALSE | AV113: 122 | AW113: 122 | AX113: =IF(AW113,'Yahoo Stocks'!D140) -> IAG.L | AY113: GE | AZ113: =IF(AW113,'Yahoo Stocks'!E140) -> British Airways | BA113: General Electric | BB113: F | BC113: Yahoo | BD113: 233 | BE113: FALSE | BF113: =IF(BE113,'Google Finance Stocks'!D137) -> FALSE | BH113: =IF(BE113,'Google Finance Stocks'!E137) -> FALSE | BL113: 233 | BM113: FALSE | BN113: ='Exchange Rates'!D136 -> 0 | BP113: =IF(BM113,'Exchange Rates'!E136) -> FALSE
L114: 112 | M114: HD | N114: Home Depot | O114: F | P114: Yahoo | Q114: 112 | R114: FALSE | S114: =IF(R114,'Yahoo Index'!E164,"") ->  | T114: =IF(R114,'Yahoo Index'!F164,"") ->  | X114: 119 | Y114: FALSE | Z114: =IF($F$6,'FRED Indicies'!E127) -> 0 | AB114: =IF($F$6,'FRED Indicies'!D127) -> 0 | AF114: 120 | AG114: FALSE | AH114: =IF(AG114,'Google Index'!E141) -> FALSE | AJ114: =IF(AF114,'Google Index'!F141) -> 0 | AN114: 120 | AO114: FALSE | AP114: =IF(AO114,'Commodity Prices'!C127) -> FALSE | AR114: =IF(AO114,'Commodity Prices'!D127) -> FALSE | AV114: 123 | AW114: FALSE | AX114: =IF(AW114,'Yahoo Stocks'!D141) -> FALSE | AY114: HD | AZ114: =IF(AW114,'Yahoo Stocks'!E141) -> FALSE | BA114: Home Depot | BB114: F | BC114: Yahoo | BD114: 234 | BE114: FALSE | BF114: =IF(BE114,'Google Finance Stocks'!D138) -> FALSE | BH114: =IF(BE114,'Google Finance Stocks'!E138) -> FALSE | BL114: 234 | BM114: FALSE | BN114: ='Exchange Rates'!D137 -> 0 | BP114: =IF(BM114,'Exchange Rates'!E137) -> FALSE
L115: 113 | M115: IBM | N115: IBM | O115: F | P115: Yahoo | Q115: 113 | R115: FALSE | S115: =IF(R115,'Yahoo Index'!E165,"") ->  | T115: =IF(R115,'Yahoo Index'!F165,"") ->  | X115: 120 | Y115: FALSE | Z115: =IF($F$6,'FRED Indicies'!E128) -> 0 | AB115: =IF($F$6,'FRED Indicies'!D128) -> 0 | AF115: 121 | AG115: FALSE | AH115: =IF(AG115,'Google Index'!E142) -> FALSE | AJ115: =IF(AF115,'Google Index'!F142) -> 0 | AN115: 121 | AO115: FALSE | AP115: =IF(AO115,'Commodity Prices'!C128) -> FALSE | AR115: =IF(AO115,'Commodity Prices'!D128) -> FALSE | AV115: 124 | AW115: FALSE | AX115: =IF(AW115,'Yahoo Stocks'!D142) -> FALSE | AY115: IBM | AZ115: =IF(AW115,'Yahoo Stocks'!E142) -> FALSE | BA115: IBM | BB115: F | BC115: Yahoo | BD115: 235 | BE115: FALSE | BF115: =IF(BE115,'Google Finance Stocks'!D139) -> FALSE | BH115: =IF(BE115,'Google Finance Stocks'!E139) -> FALSE | BL115: 235 | BM115: FALSE | BN115: ='Exchange Rates'!D138 -> 0 | BP115: =IF(BM115,'Exchange Rates'!E138) -> FALSE
L116: 114 | M116: INTC | N116: Intel | O116: F | P116: Yahoo | Q116: 114 | R116: FALSE | S116: =IF(R116,'Yahoo Index'!E166,"") ->  | T116: =IF(R116,'Yahoo Index'!F166,"") ->  | X116: 121 | Y116: FALSE | Z116: =IF($F$6,'FRED Indicies'!E129) -> 0 | AB116: =IF($F$6,'FRED Indicies'!D129) -> 0 | AF116: 122 | AG116: FALSE | AH116: =IF(AG116,'Google Index'!E143) -> FALSE | AJ116: =IF(AF116,'Google Index'!F143) -> 0 | AN116: 122 | AO116: FALSE | AP116: =IF(AO116,'Commodity Prices'!C129) -> FALSE | AR116: =IF(AO116,'Commodity Prices'!D129) -> FALSE | AV116: 125 | AW116: FALSE | AX116: =IF(AW116,'Yahoo Stocks'!D143) -> FALSE | AY116: INTC | AZ116: =IF(AW116,'Yahoo Stocks'!E143) -> FALSE | BA116: Intel | BB116: F | BC116: Yahoo | BD116: 236 | BE116: FALSE | BF116: =IF(BE116,'Google Finance Stocks'!D140) -> FALSE | BH116: =IF(BE116,'Google Finance Stocks'!E140) -> FALSE | BL116: 236 | BM116: FALSE | BN116: ='Exchange Rates'!D139 -> 0 | BP116: =IF(BM116,'Exchange Rates'!E139) -> FALSE
L117: 115 | M117: =S117&AA117&AI117&AQ117&AY117&BG117&BO117 -> JNJ | N117: =T117&AC117&AK117&AS117&BA117&BI117&BQ117 -> Johnson & Johnson | O117: =U117&AD117&AL117&AT117&BB117&BJ117&BR117 -> F | P117: =V117&AE117&AM117&AU117&BC117&BK117&BS117 -> Yahoo | Q117: 115 | R117: =IF(AND($F$3,Q117<=$H$3),Q117) -> FALSE | S117: =IF(R117,'Yahoo Index'!E167,"") ->  | T117: =IF(R117,'Yahoo Index'!F167,"") ->  | U117: =IF(R117,$I$3,"") ->  | V117: =IF(R117,$J$3,"") ->  | X117: 122 | Y117: =IF(AND($F$6,X117<=$H$6),X117) -> FALSE | Z117: =IF($F$6,'FRED Indicies'!E130) -> 0 | AA117: =IFERROR(INDEX(Z:Z,MATCH(L117,Y:Y,0)),"") ->  | AB117: =IF($F$6,'FRED Indicies'!D130) -> 0 | AC117: =IFERROR(INDEX(AB:AB,MATCH(L117,Y:Y,0)),"") ->  | AD117: =IF(AA117<>"",$I$6,"") ->  | AE117: =IF(AA117<>"",$J$6,"") ->  | AF117: 123 | AG117: =IF(AND($F$9,AF117<=$H$9),AF117) -> FALSE | AH117: =IF(AG117,'Google Index'!E144) -> FALSE | AI117: =IFERROR(INDEX(AH:AH,MATCH(Q117,AG:AG,0)),"") ->  | AJ117: =IF(AF117,'Google Index'!F144) -> 0 | AK117: =IFERROR(INDEX(AJ:AJ,MATCH(Q117,AG:AG,0)),"") ->  | AL117: =IF(AI117<>"",$I$6,"") ->  | AM117: =IF(AK117<>"",$J$6,"") ->  | AN117: 123 | AO117: =IF(AND($F$12,AN117<=$H$12),AN117) -> FALSE | AP117: =IF(AO117,'Commodity Prices'!C130) -> FALSE | AQ117: =IFERROR(INDEX(AP:AP,MATCH(L117,AO:AO,0)),"") ->  | AR117: =IF(AO117,'Commodity Prices'!D130) -> FALSE | AS117: =IFERROR(INDEX(AR:AR,MATCH(L117,AO:AO,0)),"") ->  | AT117: =IF(AQ117<>"",$I$12,"") ->  | AU117: =IF(AS117<>"",$J$12,"") ->  | AV117: 126 | AW117: FALSE | AX117: =IF(AW117,'Yahoo Stocks'!D144) -> FALSE | AY117: JNJ | AZ117: =IF(AW117,'Yahoo Stocks'!E144) -> FALSE | BA117: Johnson & Johnson | BB117: F | BC117: Yahoo | BD117: 237 | BE117: =IF(AND($F$18,BD117<=$H$18),BD117) -> FALSE | BF117: =IF(BE117,'Google Finance Stocks'!D141) -> FALSE | BG117: =IFERROR(INDEX(BF:BF,MATCH(Q117,BE:BE,0)),"") ->  | BH117: =IF(BE117,'Google Finance Stocks'!E141) -> FALSE | BI117: =IFERROR(INDEX(BH:BH,MATCH(Q117,BE:BE,0)),"") ->  | BJ117: =IF(BI117<>"",$I$18,"") ->  | BK117: =IF(BI117<>"",$J$18,"") ->  | BL117: 237 | BM117: =IF(AND($F$21,BL117<=$H$21),BL117) -> FALSE | BN117: ='Exchange Rates'!D140 -> 0 | BO117: =IFERROR(INDEX(BN:BN,MATCH(L117,BM:BM,0)),"") ->  | BP117: =IF(BM117,'Exchange Rates'!E140) -> FALSE | BQ117: =IFERROR(INDEX(BP:BP,MATCH(L117,BM:BM,0)),"") ->  | BR117: =IF(BQ117<>"",$I$21,"") ->  | BS117: =IF(BQ117<>"",$J$21,"") -> 
L118: 116 | M118: MCD | N118: McDonald's | O118: F | P118: Yahoo | Q118: 116 | R118: FALSE | S118: =IF(R118,'Yahoo Index'!E168,"") ->  | T118: =IF(R118,'Yahoo Index'!F168,"") ->  | X118: 123 | Y118: FALSE | Z118: =IF($F$6,'FRED Indicies'!E131) -> 0 | AB118: =IF($F$6,'FRED Indicies'!D131) -> 0 | AF118: 124 | AG118: FALSE | AH118: =IF(AG118,'Google Index'!E145) -> FALSE | AJ118: =IF(AF118,'Google Index'!F145) -> 0 | AN118: 124 | AO118: FALSE | AP118: =IF(AO118,'Commodity Prices'!C131) -> FALSE | AR118: =IF(AO118,'Commodity Prices'!D131) -> FALSE | AV118: 127 | AW118: FALSE | AX118: =IF(AW118,'Yahoo Stocks'!D145) -> FALSE | AY118: MCD | AZ118: =IF(AW118,'Yahoo Stocks'!E145) -> FALSE | BA118: McDonald's | BB118: F | BC118: Yahoo | BD118: 238 | BE118: FALSE | BF118: =IF(BE118,'Google Finance Stocks'!D142) -> FALSE | BH118: =IF(BE118,'Google Finance Stocks'!E142) -> FALSE | BL118: 238 | BM118: FALSE | BN118: ='Exchange Rates'!D141 -> 0 | BP118: =IF(BM118,'Exchange Rates'!E141) -> FALSE
L119: 117 | M119: MRK | N119: Merck | O119: F | P119: Yahoo | Q119: 117 | R119: FALSE | S119: =IF(R119,'Yahoo Index'!E169,"") ->  | T119: =IF(R119,'Yahoo Index'!F169,"") ->  | X119: 124 | Y119: FALSE | Z119: =IF($F$6,'FRED Indicies'!E132) -> 0 | AB119: =IF($F$6,'FRED Indicies'!D132) -> 0 | AF119: 125 | AG119: FALSE | AH119: =IF(AG119,'Google Index'!E146) -> FALSE | AJ119: =IF(AF119,'Google Index'!F146) -> 0 | AN119: 125 | AO119: FALSE | AP119: =IF(AO119,'Commodity Prices'!C132) -> FALSE | AR119: =IF(AO119,'Commodity Prices'!D132) -> FALSE | AV119: 128 | AW119: FALSE | AX119: =IF(AW119,'Yahoo Stocks'!D146) -> FALSE | AY119: MRK | AZ119: =IF(AW119,'Yahoo Stocks'!E146) -> FALSE | BA119: Merck | BB119: F | BC119: Yahoo | BD119: 239 | BE119: FALSE | BF119: =IF(BE119,'Google Finance Stocks'!D143) -> FALSE | BH119: =IF(BE119,'Google Finance Stocks'!E143) -> FALSE | BL119: 239 | BM119: FALSE | BN119: ='Exchange Rates'!D142 -> 0 | BP119: =IF(BM119,'Exchange Rates'!E142) -> FALSE
L120: 118 | M120: MSFT | N120: Microsoft | O120: F | P120: Yahoo | Q120: 118 | R120: FALSE | S120: =IF(R120,'Yahoo Index'!E170,"") ->  | T120: =IF(R120,'Yahoo Index'!F170,"") ->  | X120: 125 | Y120: FALSE | Z120: =IF($F$6,'FRED Indicies'!E133) -> 0 | AB120: =IF($F$6,'FRED Indicies'!D133) -> 0 | AF120: 126 | AG120: FALSE | AH120: =IF(AG120,'Google Index'!E147) -> FALSE | AJ120: =IF(AF120,'Google Index'!F147) -> 0 | AN120: 126 | AO120: FALSE | AP120: =IF(AO120,'Commodity Prices'!C133) -> FALSE | AR120: =IF(AO120,'Commodity Prices'!D133) -> FALSE | AV120: 129 | AW120: FALSE | AX120: =IF(AW120,'Yahoo Stocks'!D147) -> FALSE | AY120: MSFT | AZ120: =IF(AW120,'Yahoo Stocks'!E147) -> FALSE | BA120: Microsoft | BB120: F | BC120: Yahoo | BD120: 240 | BE120: FALSE | BF120: =IF(BE120,'Google Finance Stocks'!D144) -> FALSE | BH120: =IF(BE120,'Google Finance Stocks'!E144) -> FALSE | BL120: 240 | BM120: FALSE | BN120: ='Exchange Rates'!D143 -> 0 | BP120: =IF(BM120,'Exchange Rates'!E143) -> FALSE
L121: 119 | M121: NKE | N121: Nike | O121: F | P121: Yahoo | Q121: 119 | R121: FALSE | S121: =IF(R121,'Yahoo Index'!E171,"") ->  | T121: =IF(R121,'Yahoo Index'!F171,"") ->  | X121: 126 | Y121: FALSE | Z121: =IF($F$6,'FRED Indicies'!E134) -> 0 | AB121: =IF($F$6,'FRED Indicies'!D134) -> 0 | AF121: 127 | AG121: FALSE | AH121: =IF(AG121,'Google Index'!E148) -> FALSE | AJ121: =IF(AF121,'Google Index'!F148) -> 0 | AN121: 127 | AO121: FALSE | AP121: =IF(AO121,'Commodity Prices'!C134) -> FALSE | AR121: =IF(AO121,'Commodity Prices'!D134) -> FALSE | AV121: 130 | AW121: FALSE | AX121: =IF(AW121,'Yahoo Stocks'!D148) -> FALSE | AY121: NKE | AZ121: =IF(AW121,'Yahoo Stocks'!E148) -> FALSE | BA121: Nike | BB121: F | BC121: Yahoo | BD121: 241 | BE121: FALSE | BF121: =IF(BE121,'Google Finance Stocks'!D145) -> FALSE | BH121: =IF(BE121,'Google Finance Stocks'!E145) -> FALSE | BL121: 241 | BM121: FALSE | BN121: ='Exchange Rates'!D144 -> 0 | BP121: =IF(BM121,'Exchange Rates'!E144) -> FALSE
L122: 120 | M122: PFE | N122: Pfizer | O122: F | P122: Yahoo | Q122: 120 | R122: FALSE | S122: =IF(R122,'Yahoo Index'!E172,"") ->  | T122: =IF(R122,'Yahoo Index'!F172,"") ->  | X122: 127 | Y122: FALSE | Z122: =IF($F$6,'FRED Indicies'!E135) -> 0 | AB122: =IF($F$6,'FRED Indicies'!D135) -> 0 | AF122: 128 | AG122: FALSE | AH122: =IF(AG122,'Google Index'!E149) -> FALSE | AJ122: =IF(AF122,'Google Index'!F149) -> 0 | AN122: 128 | AO122: FALSE | AP122: =IF(AO122,'Commodity Prices'!C135) -> FALSE | AR122: =IF(AO122,'Commodity Prices'!D135) -> FALSE | AV122: 131 | AW122: FALSE | AX122: =IF(AW122,'Yahoo Stocks'!D149) -> FALSE | AY122: PFE | AZ122: =IF(AW122,'Yahoo Stocks'!E149) -> FALSE | BA122: Pfizer | BB122: F | BC122: Yahoo | BD122: 242 | BE122: FALSE | BF122: =IF(BE122,'Google Finance Stocks'!D146) -> FALSE | BH122: =IF(BE122,'Google Finance Stocks'!E146) -> FALSE | BL122: 242 | BM122: FALSE | BN122: ='Exchange Rates'!D145 -> 0 | BP122: =IF(BM122,'Exchange Rates'!E145) -> FALSE
L123: 121 | M123: PG | N123: Procter & Gamble | O123: F | P123: Yahoo | Q123: 121 | R123: FALSE | S123: =IF(R123,'Yahoo Index'!E173,"") ->  | T123: =IF(R123,'Yahoo Index'!F173,"") ->  | X123: 128 | Y123: FALSE | Z123: =IF($F$6,'FRED Indicies'!E136) -> 0 | AB123: =IF($F$6,'FRED Indicies'!D136) -> 0 | AF123: 129 | AG123: FALSE | AH123: =IF(AG123,'Google Index'!E150) -> FALSE | AJ123: =IF(AF123,'Google Index'!F150) -> 0 | AN123: 129 | AO123: FALSE | AP123: =IF(AO123,'Commodity Prices'!C136) -> FALSE | AR123: =IF(AO123,'Commodity Prices'!D136) -> FALSE | AV123: 132 | AW123: FALSE | AX123: =IF(AW123,'Yahoo Stocks'!D150) -> FALSE | AY123: PG | AZ123: =IF(AW123,'Yahoo Stocks'!E150) -> FALSE | BA123: Procter & Gamble | BB123: F | BC123: Yahoo | BD123: 243 | BE123: FALSE | BF123: =IF(BE123,'Google Finance Stocks'!D147) -> FALSE | BH123: =IF(BE123,'Google Finance Stocks'!E147) -> FALSE | BL123: 243 | BM123: FALSE | BN123: ='Exchange Rates'!D146 -> 0 | BP123: =IF(BM123,'Exchange Rates'!E146) -> FALSE
L124: 122 | M124: IAG.L | N124: British Airways | O124: F | P124: Yahoo | Q124: 122 | R124: FALSE | S124: =IF(R124,'Yahoo Index'!E174,"") ->  | T124: =IF(R124,'Yahoo Index'!F174,"") ->  | X124: 129 | Y124: FALSE | Z124: =IF($F$6,'FRED Indicies'!E137) -> 0 | AB124: =IF($F$6,'FRED Indicies'!D137) -> 0 | AF124: 130 | AG124: FALSE | AH124: =IF(AG124,'Google Index'!E151) -> FALSE | AJ124: =IF(AF124,'Google Index'!F151) -> 0 | AN124: 130 | AO124: FALSE | AP124: =IF(AO124,'Commodity Prices'!C137) -> FALSE | AR124: =IF(AO124,'Commodity Prices'!D137) -> FALSE | AV124: 133 | AW124: FALSE | AX124: =IF(AW124,'Yahoo Stocks'!D151) -> FALSE | AY124: IAG.L | AZ124: =IF(AW124,'Yahoo Stocks'!E151) -> FALSE | BA124: British Airways | BB124: F | BC124: Yahoo | BD124: 244 | BE124: FALSE | BF124: =IF(BE124,'Google Finance Stocks'!D148) -> FALSE | BH124: =IF(BE124,'Google Finance Stocks'!E148) -> FALSE | BL124: 244 | BM124: FALSE | BN124: ='Exchange Rates'!D147 -> 0 | BP124: =IF(BM124,'Exchange Rates'!E147) -> FALSE
L125: 123 | M125: GDP Inf | N125: Implicit Price Deflator | O125: B | P125: FRED | Q125: 123 | R125: FALSE | S125: =IF(R125,'Yahoo Index'!E175,"") ->  | T125: =IF(R125,'Yahoo Index'!F175,"") ->  | X125: 130 | Y125: FALSE | Z125: =IF($F$6,'FRED Indicies'!E138) -> 0 | AB125: =IF($F$6,'FRED Indicies'!D138) -> 0 | AF125: 131 | AG125: FALSE | AH125: =IF(AG125,'Google Index'!E152) -> FALSE | AJ125: =IF(AF125,'Google Index'!F152) -> 0 | AN125: 131 | AO125: FALSE | AP125: =IF(AO125,'Commodity Prices'!C138) -> FALSE | AR125: =IF(AO125,'Commodity Prices'!D138) -> FALSE | AV125: 134 | AW125: FALSE | AX125: =IF(AW125,'Yahoo Stocks'!D152) -> FALSE | AZ125: =IF(AW125,'Yahoo Stocks'!E152) -> FALSE | BD125: 245 | BE125: FALSE | BF125: =IF(BE125,'Google Finance Stocks'!D149) -> FALSE | BH125: =IF(BE125,'Google Finance Stocks'!E149) -> FALSE | BL125: 245 | BM125: FALSE | BN125: ='Exchange Rates'!D148 -> 0 | BO125: GDP Inf | BP125: =IF(BM125,'Exchange Rates'!E148) -> FALSE | BQ125: Implicit Price Deflator | BR125: B | BS125: FRED
L126: 124 | M126: CPI US | N126: Consumer Price Inflation | O126: B | P126: FRED | Q126: 124 | R126: FALSE | S126: =IF(R126,'Yahoo Index'!E176,"") ->  | T126: =IF(R126,'Yahoo Index'!F176,"") ->  | X126: 131 | Y126: FALSE | Z126: =IF($F$6,'FRED Indicies'!E139) -> 0 | AB126: =IF($F$6,'FRED Indicies'!D139) -> 0 | AF126: 132 | AG126: FALSE | AH126: =IF(AG126,'Google Index'!E153) -> FALSE | AJ126: =IF(AF126,'Google Index'!F153) -> 0 | AN126: 132 | AO126: FALSE | AP126: =IF(AO126,'Commodity Prices'!C139) -> FALSE | AR126: =IF(AO126,'Commodity Prices'!D139) -> FALSE | AV126: 135 | AW126: FALSE | AX126: =IF(AW126,'Yahoo Stocks'!D153) -> FALSE | AZ126: =IF(AW126,'Yahoo Stocks'!E153) -> FALSE | BD126: 246 | BE126: FALSE | BF126: =IF(BE126,'Google Finance Stocks'!D150) -> FALSE | BH126: =IF(BE126,'Google Finance Stocks'!E150) -> FALSE | BL126: 246 | BM126: FALSE | BN126: ='Exchange Rates'!D149 -> 0 | BO126: =IFERROR(INDEX(BN:BN,MATCH(L126,BM:BM,0)),"") -> CPI US | BP126: =IF(BM126,'Exchange Rates'!E149) -> FALSE | BQ126: Consumer Price Inflation | BR126: B | BS126: FRED
L127: 125 | M127: Euro | N127: U.S. / Euro Foreign Exchange Rate (EXUSEU) | O127: B | P127: FRED | Q127: 125 | R127: FALSE | S127: =IF(R127,'Yahoo Index'!E177,"") ->  | T127: =IF(R127,'Yahoo Index'!F177,"") ->  | X127: 132 | Y127: FALSE | Z127: =IF($F$6,'FRED Indicies'!E140) -> 0 | AB127: =IF($F$6,'FRED Indicies'!D140) -> 0 | AF127: 133 | AG127: FALSE | AH127: =IF(AG127,'Google Index'!E154) -> FALSE | AJ127: =IF(AF127,'Google Index'!F154) -> 0 | AN127: 133 | AO127: FALSE | AP127: =IF(AO127,'Commodity Prices'!C140) -> FALSE | AR127: =IF(AO127,'Commodity Prices'!D140) -> FALSE | AV127: 136 | AW127: FALSE | AX127: =IF(AW127,'Yahoo Stocks'!D154) -> FALSE | AZ127: =IF(AW127,'Yahoo Stocks'!E154) -> FALSE | BD127: 247 | BE127: FALSE | BF127: =IF(BE127,'Google Finance Stocks'!D151) -> FALSE | BH127: =IF(BE127,'Google Finance Stocks'!E151) -> FALSE | BL127: 247 | BM127: FALSE | BN127: ='Exchange Rates'!D150 -> 0 | BO127: =IFERROR(INDEX(BN:BN,MATCH(L127,BM:BM,0)),"") -> Euro | BP127: =IF(BM127,'Exchange Rates'!E150) -> FALSE | BQ127: U.S. / Euro Foreign Exchange Rate (EXUSEU) | BR127: B | BS127: FRED
L128: 126 | M128: =S128&AA128&AI128&AQ128&AY128&BG128&BO128 -> INR | N128: =T128&AC128&AK128&AS128&BA128&BI128&BQ128 -> India / U.S. Foreign Exchange Rate (DEXINUS) | O128: =U128&AD128&AL128&AT128&BB128&BJ128&BR128 -> B | P128: =V128&AE128&AM128&AU128&BC128&BK128&BS128 -> FRED | Q128: 126 | R128: =IF(AND($F$3,Q128<=$H$3),Q128) -> FALSE | X128: 133 | Y128: =IF(AND($F$6,X128<=$H$6),X128) -> FALSE | Z128: =IF($F$6,'FRED Indicies'!E141) -> 0 | AA128: =IFERROR(INDEX(Z:Z,MATCH(L128,Y:Y,0)),"") ->  | AB128: =IF($F$6,'FRED Indicies'!D141) -> 0 | AC128: =IFERROR(INDEX(AB:AB,MATCH(L128,Y:Y,0)),"") ->  | AD128: =IF(AA128<>"",$I$6,"") ->  | AE128: =IF(AA128<>"",$J$6,"") ->  | AF128: 134 | AG128: =IF(AND($F$9,AF128<=$H$9),AF128) -> FALSE | AH128: =IF(AG128,'Google Index'!E155) -> FALSE | AI128: =IFERROR(INDEX(AH:AH,MATCH(Q128,AG:AG,0)),"") ->  | AJ128: =IF(AF128,'Google Index'!F155) -> 0 | AK128: =IFERROR(INDEX(AJ:AJ,MATCH(Q128,AG:AG,0)),"") ->  | AL128: =IF(AI128<>"",$I$6,"") ->  | AM128: =IF(AK128<>"",$J$6,"") ->  | AN128: 134 | AO128: =IF(AND($F$12,AN128<=$H$12),AN128) -> FALSE | AP128: =IF(AO128,'Commodity Prices'!C141) -> FALSE | AQ128: =IFERROR(INDEX(AP:AP,MATCH(L128,AO:AO,0)),"") ->  | AR128: =IF(AO128,'Commodity Prices'!D141) -> FALSE | AS128: =IFERROR(INDEX(AR:AR,MATCH(L128,AO:AO,0)),"") ->  | AT128: =IF(AQ128<>"",$I$12,"") ->  | AU128: =IF(AS128<>"",$J$12,"") ->  | AV128: 137 | AW128: FALSE | AX128: =IF(AW128,'Yahoo Stocks'!D155) -> FALSE | AZ128: =IF(AW128,'Yahoo Stocks'!E155) -> FALSE | BD128: 248 | BE128: =IF(AND($F$18,BD128<=$H$18),BD128) -> FALSE | BF128: =IF(BE128,'Google Finance Stocks'!D152) -> FALSE | BG128: =IFERROR(INDEX(BF:BF,MATCH(Q128,BE:BE,0)),"") ->  | BH128: =IF(BE128,'Google Finance Stocks'!E152) -> FALSE | BI128: =IFERROR(INDEX(BH:BH,MATCH(Q128,BE:BE,0)),"") ->  | BJ128: =IF(BI128<>"",$I$18,"") ->  | BK128: =IF(BI128<>"",$J$18,"") ->  | BL128: 248 | BM128: =IF(AND($F$21,BL128<=$H$21),BL128) -> FALSE | BN128: ='Exchange Rates'!D151 -> 0 | BO128: =IFERROR(INDEX(BN:BN,MATCH(L128,BM:BM,0)),"") -> INR | BP128: =IF(BM128,'Exchange Rates'!E151) -> FALSE | BQ128: =IFERROR(INDEX(BP:BP,MATCH(L128,BM:BM,0)),"") -> India / U.S. Foreign Exchange Rate (DEXINUS) | BR128: =IF(BQ128<>"",$I$21,"") -> B | BS128: =IF(BQ128<>"",$J$21,"") -> FRED
L129: 127 | M129: UK | N129: U.S. / U.K. Foreign Exchange Rate (EXUSUK) | O129: B | P129: FRED | Q129: 127 | R129: FALSE | X129: 134 | Y129: FALSE | Z129: =IF($F$6,'FRED Indicies'!E142) -> 0 | AB129: =IF($F$6,'FRED Indicies'!D142) -> 0 | AF129: 135 | AG129: FALSE | AH129: =IF(AG129,'Google Index'!E156) -> FALSE | AJ129: =IF(AF129,'Google Index'!F156) -> 0 | AN129: 135 | AO129: FALSE | AP129: =IF(AO129,'Commodity Prices'!C142) -> FALSE | AR129: =IF(AO129,'Commodity Prices'!D142) -> FALSE | AV129: 138 | AW129: FALSE | AX129: =IF(AW129,'Yahoo Stocks'!D156) -> FALSE | AZ129: =IF(AW129,'Yahoo Stocks'!E156) -> FALSE | BD129: 249 | BE129: FALSE | BF129: =IF(BE129,'Google Finance Stocks'!D153) -> FALSE | BH129: =IF(BE129,'Google Finance Stocks'!E153) -> FALSE | BL129: 249 | BM129: FALSE | BN129: ='Exchange Rates'!D152 -> 0 | BO129: =IFERROR(INDEX(BN:BN,MATCH(L129,BM:BM,0)),"") -> UK | BP129: =IF(BM129,'Exchange Rates'!E152) -> FALSE | BQ129: U.S. / U.K. Foreign Exchange Rate (EXUSUK) | BR129: B | BS129: FRED
L130: 128 | M130: IDR | N130: National Currency to US Dollar Spot Exchange Rate for Indonesia (CCUSSP02IDM650N) | O130: B | P130: FRED | Q130: 128 | R130: FALSE | X130: 135 | Y130: FALSE | Z130: =IF($F$6,'FRED Indicies'!E143) -> 0 | AB130: =IF($F$6,'FRED Indicies'!D143) -> 0 | AF130: 136 | AG130: FALSE | AH130: =IF(AG130,'Google Index'!E157) -> FALSE | AJ130: =IF(AF130,'Google Index'!F157) -> 0 | AN130: 136 | AO130: FALSE | AP130: =IF(AO130,'Commodity Prices'!C143) -> FALSE | AR130: =IF(AO130,'Commodity Prices'!D143) -> FALSE | AV130: 139 | AW130: FALSE | AX130: =IF(AW130,'Yahoo Stocks'!D157) -> FALSE | AZ130: =IF(AW130,'Yahoo Stocks'!E157) -> FALSE | BD130: 250 | BE130: FALSE | BF130: =IF(BE130,'Google Finance Stocks'!D154) -> FALSE | BH130: =IF(BE130,'Google Finance Stocks'!E154) -> FALSE | BL130: 250 | BM130: FALSE | BN130: ='Exchange Rates'!D153 -> 0 | BO130: IDR | BP130: =IF(BM130,'Exchange Rates'!E153) -> FALSE | BQ130: National Currency to US Dollar Spot Exchange Rate for Indonesia (CCUSSP02IDM650N) | BR130: B | BS130: FRED
L131: 129 | M131: US NOM GNP | N131: Gross National Product (GNP) | O131: B | P131: FRED | Q131: 129 | R131: FALSE | X131: 136 | Y131: FALSE | Z131: =IF($F$6,'FRED Indicies'!E144) -> 0 | AB131: =IF($F$6,'FRED Indicies'!D144) -> 0 | AF131: 137 | AG131: FALSE | AH131: =IF(AG131,'Google Index'!E158) -> FALSE | AJ131: =IF(AF131,'Google Index'!F158) -> 0 | AN131: 137 | AO131: FALSE | AP131: =IF(AO131,'Commodity Prices'!C144) -> FALSE | AR131: =IF(AO131,'Commodity Prices'!D144) -> FALSE | AV131: 140 | AW131: FALSE | AX131: =IF(AW131,'Yahoo Stocks'!D158) -> FALSE | AZ131: =IF(AW131,'Yahoo Stocks'!E158) -> FALSE | BD131: 251 | BE131: FALSE | BF131: =IF(BE131,'Google Finance Stocks'!D155) -> FALSE | BH131: =IF(BE131,'Google Finance Stocks'!E155) -> FALSE | BL131: 251 | BM131: FALSE | BN131: ='Exchange Rates'!D154 -> 0 | BO131: US NOM GNP | BP131: =IF(BM131,'Exchange Rates'!E154) -> FALSE | BQ131: Gross National Product (GNP) | BR131: B | BS131: FRED
L132: 130 | M132: India Disc Rate | N132: Interest Rates, Discount Rate for India (INTDSRINM193N) | O132: B | P132: FRED | Q132: 130 | R132: FALSE | X132: 137 | Y132: FALSE | Z132: =IF($F$6,'FRED Indicies'!E145) -> 0 | AB132: =IF($F$6,'FRED Indicies'!D145) -> 0 | AF132: 138 | AG132: FALSE | AH132: =IF(AG132,'Google Index'!E159) -> FALSE | AJ132: =IF(AF132,'Google Index'!F159) -> 0 | AN132: 138 | AO132: FALSE | AP132: =IF(AO132,'Commodity Prices'!C145) -> FALSE | AR132: =IF(AO132,'Commodity Prices'!D145) -> FALSE | AV132: 141 | AW132: FALSE | AX132: =IF(AW132,'Yahoo Stocks'!D159) -> FALSE | AZ132: =IF(AW132,'Yahoo Stocks'!E159) -> FALSE | BC132: =IF(BA132<>"",$J$15,"") ->  | BD132: 252 | BE132: FALSE | BF132: =IF(BE132,'Google Finance Stocks'!D156) -> FALSE | BH132: =IF(BE132,'Google Finance Stocks'!E156) -> FALSE | BL132: 252 | BM132: FALSE | BN132: ='Exchange Rates'!D155 -> 0 | BO132: India Disc Rate | BP132: =IF(BM132,'Exchange Rates'!E155) -> FALSE | BQ132: Interest Rates, Discount Rate for India (INTDSRINM193N) | BR132: B | BS132: FRED
L133: 131 | M133: India Gvt Bonds | N133: Interest Rates, Government Securities, Government Bonds for India (INTGSBINM193N) | O133: B | P133: FRED | Q133: =Q132+1 -> 131 | R133: FALSE | X133: =X132+1 -> 138 | Y133: FALSE | Z133: =IF($F$6,'FRED Indicies'!E146) -> 0 | AB133: =IF($F$6,'FRED Indicies'!D146) -> 0 | AF133: =AF132+1 -> 139 | AG133: FALSE | AH133: =IF(AG133,'Google Index'!E160) -> FALSE | AJ133: =IF(AF133,'Google Index'!F160) -> 0 | AN133: =AN132+1 -> 139 | AO133: FALSE | AP133: =IF(AO133,'Commodity Prices'!C146) -> FALSE | AR133: =IF(AO133,'Commodity Prices'!D146) -> FALSE | AV133: =AV132+1 -> 142 | AW133: FALSE | AX133: =IF(AW133,'Yahoo Stocks'!D160) -> FALSE | AZ133: =IF(AW133,'Yahoo Stocks'!E160) -> FALSE | BD133: =BD132+1 -> 253 | BE133: FALSE | BF133: =IF(BE133,'Google Finance Stocks'!D157) -> FALSE | BH133: =IF(BE133,'Google Finance Stocks'!E157) -> FALSE | BL133: =BL132+1 -> 253 | BM133: FALSE | BN133: ='Exchange Rates'!D156 -> 0 | BO133: India Gvt Bonds | BP133: =IF(BM133,'Exchange Rates'!E156) -> FALSE | BQ133: Interest Rates, Government Securities, Government Bonds for India (INTGSBINM193N) | BR133: B | BS133: FRED
L134: 132 | M134: India 10 Yr Main | N134: Interest Rates: Long-term government bond yields: 10-year: Main including benchmark for India (INDIRLTLT01STM) | O134: B | P134: FRED | Q134: 132 | R134: FALSE | X134: 139 | Y134: FALSE | Z134: =IF($F$6,'FRED Indicies'!E147) -> 0 | AB134: =IF($F$6,'FRED Indicies'!D147) -> 0 | AF134: 140 | AG134: FALSE | AH134: =IF(AG134,'Google Index'!E161) -> FALSE | AJ134: =IF(AF134,'Google Index'!F161) -> 0 | AN134: 140 | AO134: FALSE | AP134: =IF(AO134,'Commodity Prices'!C147) -> FALSE | AR134: =IF(AO134,'Commodity Prices'!D147) -> FALSE | AV134: 143 | AW134: FALSE | AX134: =IF(AW134,'Yahoo Stocks'!D161) -> FALSE | AZ134: =IF(AW134,'Yahoo Stocks'!E161) -> FALSE | BD134: 254 | BE134: FALSE | BF134: =IF(BE134,'Google Finance Stocks'!D158) -> FALSE | BH134: =IF(BE134,'Google Finance Stocks'!E158) -> FALSE | BL134: 254 | BM134: FALSE | BN134: ='Exchange Rates'!D157 -> 0 | BO134: India 10 Yr Main | BP134: =IF(BM134,'Exchange Rates'!E157) -> FALSE | BQ134: Interest Rates: Long-term government bond yields: 10-year: Main including benchmark for India (INDIRLTLT01STM) | BR134: B | BS134: FRED
L135: 133 | M135: =S135&AA135&AI135&AQ135&AY135&BG135&BO135 -> India Inflation | N135: =T135&AC135&AK135&AS135&BA135&BI135&BQ135 -> Consumer Price Index: Total All Items for India (CPALTT01INM659N) | O135: =U135&AD135&AL135&AT135&BB135&BJ135&BR135 -> B | P135: =V135&AE135&AM135&AU135&BC135&BK135&BS135 -> FRED | Q135: 133 | R135: =IF(AND($F$3,Q135<=$H$3),Q135) -> FALSE | X135: 140 | Y135: FALSE | Z135: =IF($F$6,'FRED Indicies'!E148) -> 0 | AB135: =IF($F$6,'FRED Indicies'!D148) -> 0 | AF135: 141 | AG135: FALSE | AH135: =IF(AG135,'Google Index'!E162) -> FALSE | AJ135: =IF(AF135,'Google Index'!F162) -> 0 | AN135: 141 | AO135: FALSE | AP135: =IF(AO135,'Commodity Prices'!C148) -> FALSE | AR135: =IF(AO135,'Commodity Prices'!D148) -> FALSE | AV135: 144 | AW135: FALSE | AX135: =IF(AW135,'Yahoo Stocks'!D162) -> FALSE | AZ135: =IF(AW135,'Yahoo Stocks'!E162) -> FALSE | BD135: 255 | BE135: FALSE | BF135: =IF(BE135,'Google Finance Stocks'!D159) -> FALSE | BH135: =IF(BE135,'Google Finance Stocks'!E159) -> FALSE | BL135: 255 | BM135: FALSE | BN135: ='Exchange Rates'!D158 -> 0 | BO135: India Inflation | BP135: =IF(BM135,'Exchange Rates'!E158) -> FALSE | BQ135: Consumer Price Index: Total All Items for India (CPALTT01INM659N) | BR135: B | BS135: FRED
L136: 134 | M136: 5 yr treasury | N136: 5-Year Treasury Constant Maturity Rate (GS5) | O136: B | P136: FRED | Q136: 134 | R136: FALSE | X136: 141 | Y136: FALSE | Z136: =IF($F$6,'FRED Indicies'!E149) -> 0 | AB136: =IF($F$6,'FRED Indicies'!D149) -> 0 | AF136: 142 | AG136: FALSE | AH136: =IF(AG136,'Google Index'!E163) -> FALSE | AJ136: =IF(AF136,'Google Index'!F163) -> 0 | AN136: 142 | AO136: FALSE | AP136: =IF(AO136,'Commodity Prices'!C149) -> FALSE | AR136: =IF(AO136,'Commodity Prices'!D149) -> FALSE | AV136: 145 | AW136: FALSE | AX136: =IF(AW136,'Yahoo Stocks'!D163) -> FALSE | AZ136: =IF(AW136,'Yahoo Stocks'!E163) -> FALSE | BD136: 256 | BE136: FALSE | BF136: =IF(BE136,'Google Finance Stocks'!D160) -> FALSE | BH136: =IF(BE136,'Google Finance Stocks'!E160) -> FALSE | BL136: 256 | BM136: FALSE | BN136: ='Exchange Rates'!D159 -> 0 | BO136: 5 yr treasury | BP136: =IF(BM136,'Exchange Rates'!E159) -> FALSE | BQ136: 5-Year Treasury Constant Maturity Rate (GS5) | BR136: B | BS136: FRED
L137: 135 | M137: 10 year treasury | N137: 10-Year Treasury Constant Maturity Rate (GS10) | O137: B | P137: FRED | Q137: 135 | R137: FALSE | X137: 142 | Y137: FALSE | Z137: =IF($F$6,'FRED Indicies'!E150) -> 0 | AB137: =IF($F$6,'FRED Indicies'!D150) -> 0 | AF137: 143 | AG137: FALSE | AH137: =IF(AG137,'Google Index'!E164) -> FALSE | AJ137: =IF(AF137,'Google Index'!F164) -> 0 | AN137: 143 | AO137: FALSE | AP137: =IF(AO137,'Commodity Prices'!C150) -> FALSE | AR137: =IF(AO137,'Commodity Prices'!D150) -> FALSE | AV137: 146 | AW137: FALSE | AX137: =IF(AW137,'Yahoo Stocks'!D164) -> FALSE | AZ137: =IF(AW137,'Yahoo Stocks'!E164) -> FALSE | BD137: 257 | BE137: FALSE | BF137: =IF(BE137,'Google Finance Stocks'!D161) -> FALSE | BH137: =IF(BE137,'Google Finance Stocks'!E161) -> FALSE | BL137: 257 | BM137: FALSE | BN137: ='Exchange Rates'!D160 -> 0 | BO137: 10 year treasury | BP137: =IF(BM137,'Exchange Rates'!E160) -> FALSE | BQ137: 10-Year Treasury Constant Maturity Rate (GS10) | BR137: B | BS137: FRED
L138: 136 | M138: US Med Inc Nom | N138: Median Household Income in the United States (MEHOINUSA646N) | O138: B | P138: FRED | Q138: 136 | R138: FALSE | X138: 143 | Y138: FALSE | Z138: =IF($F$6,'FRED Indicies'!E151) -> 0 | AB138: =IF($F$6,'FRED Indicies'!D151) -> 0 | AF138: 144 | AG138: FALSE | AH138: =IF(AG138,'Google Index'!E165) -> FALSE | AJ138: =IF(AF138,'Google Index'!F165) -> 0 | AN138: 144 | AO138: FALSE | AP138: =IF(AO138,'Commodity Prices'!C151) -> FALSE | AR138: =IF(AO138,'Commodity Prices'!D151) -> FALSE | AV138: 147 | AW138: FALSE | AX138: =IF(AW138,'Yahoo Stocks'!D165) -> FALSE | AZ138: =IF(AW138,'Yahoo Stocks'!E165) -> FALSE | BD138: 258 | BE138: FALSE | BF138: =IF(BE138,'Google Finance Stocks'!D162) -> FALSE | BH138: =IF(BE138,'Google Finance Stocks'!E162) -> FALSE | BL138: 258 | BM138: FALSE | BN138: ='Exchange Rates'!D161 -> 0 | BO138: US Med Inc Nom | BP138: =IF(BM138,'Exchange Rates'!E161) -> FALSE | BQ138: Median Household Income in the United States (MEHOINUSA646N) | BR138: B | BS138: FRED
L139: 137 | M139: Median Income | N139: Employed full time: Median usual weekly real earnings: d over (LES1252881600Q) | O139: B | P139: FRED | Q139: 137 | R139: FALSE | X139: 144 | Y139: FALSE | Z139: =IF($F$6,'FRED Indicies'!E152) -> 0 | AB139: =IF($F$6,'FRED Indicies'!D152) -> 0 | AF139: 145 | AG139: FALSE | AH139: =IF(AG139,'Google Index'!E166) -> FALSE | AJ139: =IF(AF139,'Google Index'!F166) -> 0 | AN139: 145 | AO139: FALSE | AP139: =IF(AO139,'Commodity Prices'!C152) -> FALSE | AR139: =IF(AO139,'Commodity Prices'!D152) -> FALSE | AV139: 148 | AW139: FALSE | AX139: =IF(AW139,'Yahoo Stocks'!D166) -> FALSE | AZ139: =IF(AW139,'Yahoo Stocks'!E166) -> FALSE | BD139: 259 | BE139: FALSE | BF139: =IF(BE139,'Google Finance Stocks'!D163) -> FALSE | BH139: =IF(BE139,'Google Finance Stocks'!E163) -> FALSE | BL139: 259 | BM139: FALSE | BN139: ='Exchange Rates'!D162 -> 0 | BO139: Median Income | BP139: =IF(BM139,'Exchange Rates'!E162) -> FALSE | BQ139: Employed full time: Median usual weekly real earnings: d over (LES1252881600Q) | BR139: B | BS139: FRED
L140: 138 | M140: Corp Profit | N140: Corporate Profits | O140: B | P140: FRED | Q140: 138 | R140: FALSE | X140: 145 | Y140: FALSE | Z140: =IF($F$6,'FRED Indicies'!E153) -> 0 | AB140: =IF($F$6,'FRED Indicies'!D153) -> 0 | AF140: 146 | AG140: FALSE | AH140: =IF(AG140,'Google Index'!E167) -> FALSE | AJ140: =IF(AF140,'Google Index'!F167) -> 0 | AN140: 146 | AO140: FALSE | AP140: =IF(AO140,'Commodity Prices'!C153) -> FALSE | AR140: =IF(AO140,'Commodity Prices'!D153) -> FALSE | AV140: 149 | AW140: FALSE | AX140: =IF(AW140,'Yahoo Stocks'!D167) -> FALSE | AZ140: =IF(AW140,'Yahoo Stocks'!E167) -> FALSE | BD140: 260 | BE140: FALSE | BF140: =IF(BE140,'Google Finance Stocks'!D164) -> FALSE | BH140: =IF(BE140,'Google Finance Stocks'!E164) -> FALSE | BL140: 260 | BM140: FALSE | BN140: ='Exchange Rates'!D163 -> 0 | BO140: Corp Profit | BP140: =IF(BM140,'Exchange Rates'!E163) -> FALSE | BQ140: Corporate Profits | BR140: B | BS140: FRED
L141: 139 | M141: =S141&AA141&AI141&AQ141&AY141&BG141&BO141 -> Corp Nonfin | N141: =T141&AC141&AK141&AS141&BA141&BI141&BQ141 -> Non Financial Corporate Profits | O141: =U141&AD141&AL141&AT141&BB141&BJ141&BR141 -> B | P141: =V141&AE141&AM141&AU141&BC141&BK141&BS141 -> FRED | Q141: 139 | R141: FALSE | X141: 146 | Y141: FALSE | Z141: =IF($F$6,'FRED Indicies'!E154) -> 0 | AB141: =IF($F$6,'FRED Indicies'!D154) -> 0 | AF141: 147 | AG141: FALSE | AH141: =IF(AG141,'Google Index'!E168) -> FALSE | AJ141: =IF(AF141,'Google Index'!F168) -> 0 | AN141: 147 | AO141: FALSE | AP141: =IF(AO141,'Commodity Prices'!C154) -> FALSE | AR141: =IF(AO141,'Commodity Prices'!D154) -> FALSE | AV141: 150 | AW141: FALSE | AX141: =IF(AW141,'Yahoo Stocks'!D168) -> FALSE | AZ141: =IF(AW141,'Yahoo Stocks'!E168) -> FALSE | BD141: 261 | BE141: FALSE | BF141: =IF(BE141,'Google Finance Stocks'!D165) -> FALSE | BH141: =IF(BE141,'Google Finance Stocks'!E165) -> FALSE | BL141: 261 | BM141: FALSE | BN141: ='Exchange Rates'!D164 -> 0 | BO141: Corp Nonfin | BP141: =IF(BM141,'Exchange Rates'!E164) -> FALSE | BQ141: Non Financial Corporate Profits | BR141: B | BS141: FRED
L142: 140 | M142: Corp Aft Tax | N142: Corporate Profits After Tax | O142: B | P142: FRED | Q142: 140 | R142: FALSE | X142: 147 | Y142: FALSE | Z142: =IF($F$6,'FRED Indicies'!E155) -> 0 | AB142: =IF($F$6,'FRED Indicies'!D155) -> 0 | AF142: 148 | AG142: FALSE | AH142: =IF(AG142,'Google Index'!E169) -> FALSE | AJ142: =IF(AF142,'Google Index'!F169) -> 0 | AN142: 148 | AO142: FALSE | AP142: =IF(AO142,'Commodity Prices'!C155) -> FALSE | AR142: =IF(AO142,'Commodity Prices'!D155) -> FALSE | AV142: 151 | AW142: FALSE | AX142: =IF(AW142,'Yahoo Stocks'!D169) -> FALSE | AZ142: =IF(AW142,'Yahoo Stocks'!E169) -> FALSE | BD142: 262 | BE142: FALSE | BF142: =IF(BE142,'Google Finance Stocks'!D166) -> FALSE | BH142: =IF(BE142,'Google Finance Stocks'!E166) -> FALSE | BL142: 262 | BM142: FALSE | BN142: ='Exchange Rates'!D165 -> 0 | BO142: Corp Aft Tax | BP142: =IF(BM142,'Exchange Rates'!E165) -> FALSE | BQ142: Corporate Profits After Tax | BR142: B | BS142: FRED
L143: 141 | M143: Corp Inf Adjusted | N143: Corporate Profits with Inflation Adj | O143: B | P143: FRED | Q143: 141 | R143: FALSE | X143: 148 | Y143: FALSE | Z143: =IF($F$6,'FRED Indicies'!E156) -> 0 | AB143: =IF($F$6,'FRED Indicies'!D156) -> 0 | AF143: 149 | AG143: FALSE | AH143: =IF(AG143,'Google Index'!E170) -> FALSE | AJ143: =IF(AF143,'Google Index'!F170) -> 0 | AN143: 149 | AO143: FALSE | AP143: =IF(AO143,'Commodity Prices'!C156) -> FALSE | AR143: =IF(AO143,'Commodity Prices'!D156) -> FALSE | AV143: 152 | AW143: FALSE | AX143: =IF(AW143,'Yahoo Stocks'!D170) -> FALSE | AZ143: =IF(AW143,'Yahoo Stocks'!E170) -> FALSE | BD143: 263 | BE143: FALSE | BF143: =IF(BE143,'Google Finance Stocks'!D167) -> FALSE | BH143: =IF(BE143,'Google Finance Stocks'!E167) -> FALSE | BL143: 263 | BM143: FALSE | BN143: ='Exchange Rates'!D166 -> 0 | BO143: Corp Inf Adjusted | BP143: =IF(BM143,'Exchange Rates'!E166) -> FALSE | BQ143: Corporate Profits with Inflation Adj | BR143: B | BS143: FRED
L144: 142 | M144: GDP Inflation Index | N144: GDP Inflation Index | O144: B | P144: FRED | Q144: 142 | R144: FALSE | X144: 149 | Y144: FALSE | Z144: =IF($F$6,'FRED Indicies'!E157) -> 0 | AB144: =IF($F$6,'FRED Indicies'!D157) -> 0 | AF144: 150 | AG144: FALSE | AH144: =IF(AG144,'Google Index'!E171) -> FALSE | AJ144: =IF(AF144,'Google Index'!F171) -> 0 | AN144: 150 | AO144: FALSE | AP144: =IF(AO144,'Commodity Prices'!C157) -> FALSE | AR144: =IF(AO144,'Commodity Prices'!D157) -> FALSE | AV144: 153 | AW144: FALSE | AX144: =IF(AW144,'Yahoo Stocks'!D171) -> FALSE | AZ144: =IF(AW144,'Yahoo Stocks'!E171) -> FALSE | BD144: 264 | BE144: FALSE | BF144: =IF(BE144,'Google Finance Stocks'!D168) -> FALSE | BH144: =IF(BE144,'Google Finance Stocks'!E168) -> FALSE | BL144: 264 | BM144: FALSE | BN144: ='Exchange Rates'!D167 -> 0 | BO144: GDP Inflation Index | BP144: =IF(BM144,'Exchange Rates'!E167) -> FALSE | BQ144: GDP Inflation Index | BR144: B | BS144: FRED
L145: 143 | M145: CPI US Index | N145: CPI US Index | O145: B | P145: FRED | Q145: 143 | R145: FALSE | X145: 150 | Y145: FALSE | Z145: =IF($F$6,'FRED Indicies'!E158) -> 0 | AB145: =IF($F$6,'FRED Indicies'!D158) -> 0 | AF145: 151 | AG145: FALSE | AH145: =IF(AG145,'Google Index'!E172) -> FALSE | AJ145: =IF(AF145,'Google Index'!F172) -> 0 | AN145: 151 | AO145: FALSE | AP145: =IF(AO145,'Commodity Prices'!C158) -> FALSE | AR145: =IF(AO145,'Commodity Prices'!D158) -> FALSE | AV145: 154 | AW145: FALSE | AX145: =IF(AW145,'Yahoo Stocks'!D172) -> FALSE | AZ145: =IF(AW145,'Yahoo Stocks'!E172) -> FALSE | BD145: 265 | BE145: FALSE | BF145: =IF(BE145,'Google Finance Stocks'!D169) -> FALSE | BH145: =IF(BE145,'Google Finance Stocks'!E169) -> FALSE | BL145: 265 | BM145: FALSE | BN145: ='Exchange Rates'!D168 -> 0 | BO145: CPI US Index | BP145: =IF(BM145,'Exchange Rates'!E168) -> FALSE | BQ145: CPI US Index | BR145: B | BS145: FRED
L146: 144 | M146: US GDP | N146: US GDP Gross Domestic Product (GDP) | O146: B | P146: FRED | Q146: 144 | R146: FALSE | X146: 151 | Y146: FALSE | Z146: =IF($F$6,'FRED Indicies'!E159) -> 0 | AB146: =IF($F$6,'FRED Indicies'!D159) -> 0 | AF146: 152 | AG146: FALSE | AH146: =IF(AG146,'Google Index'!E173) -> FALSE | AJ146: =IF(AF146,'Google Index'!F173) -> 0 | AN146: 152 | AO146: FALSE | AP146: =IF(AO146,'Commodity Prices'!C159) -> FALSE | AR146: =IF(AO146,'Commodity Prices'!D159) -> FALSE | AV146: 155 | AW146: FALSE | AX146: =IF(AW146,'Yahoo Stocks'!D173) -> FALSE | AZ146: =IF(AW146,'Yahoo Stocks'!E173) -> FALSE | BD146: 266 | BE146: FALSE | BF146: =IF(BE146,'Google Finance Stocks'!D170) -> FALSE | BH146: =IF(BE146,'Google Finance Stocks'!E170) -> FALSE | BL146: 266 | BM146: FALSE | BN146: ='Exchange Rates'!D169 -> 0 | BO146: US GDP | BP146: =IF(BM146,'Exchange Rates'!E169) -> FALSE | BQ146: US GDP Gross Domestic Product (GDP) | BR146: B | BS146: FRED
L147: 145 | M147: Median Family Income | N147: Median Family Income in the United States (MEFAINUSA646N) | O147: B | P147: FRED | Q147: 145 | R147: FALSE | X147: 152 | Y147: FALSE | Z147: =IF($F$6,'FRED Indicies'!E160) -> 0 | AB147: =IF($F$6,'FRED Indicies'!D160) -> 0 | AF147: 153 | AG147: FALSE | AH147: =IF(AG147,'Google Index'!E174) -> FALSE | AJ147: =IF(AF147,'Google Index'!F174) -> 0 | AN147: 153 | AO147: FALSE | AP147: =IF(AO147,'Commodity Prices'!C160) -> FALSE | AR147: =IF(AO147,'Commodity Prices'!D160) -> FALSE | AV147: 156 | AW147: FALSE | AX147: =IF(AW147,'Yahoo Stocks'!D174) -> FALSE | AZ147: =IF(AW147,'Yahoo Stocks'!E174) -> FALSE | BD147: 267 | BE147: FALSE | BF147: =IF(BE147,'Google Finance Stocks'!D171) -> FALSE | BH147: =IF(BE147,'Google Finance Stocks'!E171) -> FALSE | BL147: 267 | BM147: FALSE | BN147: ='Exchange Rates'!D170 -> 0 | BO147: Median Family Income | BP147: =IF(BM147,'Exchange Rates'!E170) -> FALSE | BQ147: Median Family Income in the United States (MEFAINUSA646N) | BR147: B | BS147: FRED
L148: 146 | Q148: 146 | R148: FALSE | X148: 153 | Y148: FALSE | Z148: =IF($F$6,'FRED Indicies'!E161) -> 0 | AB148: =IF($F$6,'FRED Indicies'!D161) -> 0 | AF148: 154 | AG148: FALSE | AH148: =IF(AG148,'Google Index'!E175) -> FALSE | AJ148: =IF(AF148,'Google Index'!F175) -> 0 | AN148: 154 | AO148: FALSE | AP148: =IF(AO148,'Commodity Prices'!C161) -> FALSE | AR148: =IF(AO148,'Commodity Prices'!D161) -> FALSE | AV148: 157 | AW148: FALSE | AX148: =IF(AW148,'Yahoo Stocks'!D175) -> FALSE | AZ148: =IF(AW148,'Yahoo Stocks'!E175) -> FALSE | BD148: 268 | BE148: FALSE | BF148: =IF(BE148,'Google Finance Stocks'!D172) -> FALSE | BH148: =IF(BE148,'Google Finance Stocks'!E172) -> FALSE | BL148: 268 | BM148: FALSE | BN148: ='Exchange Rates'!D171 -> 0 | BP148: =IF(BM148,'Exchange Rates'!E171) -> FALSE
L149: 147 | Q149: 147 | R149: FALSE | X149: 154 | Y149: FALSE | Z149: =IF($F$6,'FRED Indicies'!E162) -> 0 | AB149: =IF($F$6,'FRED Indicies'!D162) -> 0 | AF149: 155 | AG149: FALSE | AH149: =IF(AG149,'Google Index'!E176) -> FALSE | AJ149: =IF(AF149,'Google Index'!F176) -> 0 | AN149: 155 | AO149: FALSE | AP149: =IF(AO149,'Commodity Prices'!C162) -> FALSE | AR149: =IF(AO149,'Commodity Prices'!D162) -> FALSE | AV149: 158 | AW149: FALSE | AX149: =IF(AW149,'Yahoo Stocks'!D176) -> FALSE | AZ149: =IF(AW149,'Yahoo Stocks'!E176) -> FALSE | BD149: 269 | BE149: FALSE | BF149: =IF(BE149,'Google Finance Stocks'!D173) -> FALSE | BH149: =IF(BE149,'Google Finance Stocks'!E173) -> FALSE | BL149: 269 | BM149: FALSE | BN149: ='Exchange Rates'!D172 -> 0 | BP149: =IF(BM149,'Exchange Rates'!E172) -> FALSE
L150: 148 | Q150: 148 | R150: FALSE | X150: 155 | Y150: FALSE | Z150: =IF($F$6,'FRED Indicies'!E163) -> 0 | AB150: =IF($F$6,'FRED Indicies'!D163) -> 0 | AF150: 156 | AG150: FALSE | AH150: =IF(AG150,'Google Index'!E177) -> FALSE | AJ150: =IF(AF150,'Google Index'!F177) -> 0 | AN150: 156 | AO150: FALSE | AP150: =IF(AO150,'Commodity Prices'!C163) -> FALSE | AR150: =IF(AO150,'Commodity Prices'!D163) -> FALSE | AV150: 159 | AW150: FALSE | AX150: =IF(AW150,'Yahoo Stocks'!D177) -> FALSE | AZ150: =IF(AW150,'Yahoo Stocks'!E177) -> FALSE | BD150: 270 | BE150: FALSE | BF150: =IF(BE150,'Google Finance Stocks'!D174) -> FALSE | BH150: =IF(BE150,'Google Finance Stocks'!E174) -> FALSE | BL150: 270 | BM150: FALSE | BN150: ='Exchange Rates'!D173 -> 0 | BP150: =IF(BM150,'Exchange Rates'!E173) -> FALSE
L151: 149 | Q151: 149 | R151: FALSE | X151: 156 | Y151: FALSE | Z151: =IF($F$6,'FRED Indicies'!E164) -> 0 | AB151: =IF($F$6,'FRED Indicies'!D164) -> 0 | AF151: 157 | AG151: FALSE | AH151: =IF(AG151,'Google Index'!E178) -> FALSE | AJ151: =IF(AF151,'Google Index'!F178) -> 0 | AN151: 157 | AO151: FALSE | AP151: =IF(AO151,'Commodity Prices'!C164) -> FALSE | AR151: =IF(AO151,'Commodity Prices'!D164) -> FALSE | AV151: 160 | AW151: FALSE | AX151: =IF(AW151,'Yahoo Stocks'!D178) -> FALSE | AZ151: =IF(AW151,'Yahoo Stocks'!E178) -> FALSE | BD151: 271 | BE151: FALSE | BF151: =IF(BE151,'Google Finance Stocks'!D175) -> FALSE | BH151: =IF(BE151,'Google Finance Stocks'!E175) -> FALSE | BL151: 271 | BM151: FALSE | BN151: ='Exchange Rates'!D174 -> 0 | BP151: =IF(BM151,'Exchange Rates'!E174) -> FALSE
L152: 150 | Q152: 150 | R152: FALSE | X152: 157 | Y152: FALSE | Z152: =IF($F$6,'FRED Indicies'!E165) -> 0 | AB152: =IF($F$6,'FRED Indicies'!D165) -> 0 | AF152: 158 | AG152: FALSE | AH152: =IF(AG152,'Google Index'!E179) -> FALSE | AJ152: =IF(AF152,'Google Index'!F179) -> 0 | AN152: 158 | AO152: FALSE | AP152: =IF(AO152,'Commodity Prices'!C165) -> FALSE | AR152: =IF(AO152,'Commodity Prices'!D165) -> FALSE | AV152: 161 | AW152: FALSE | AX152: =IF(AW152,'Yahoo Stocks'!D179) -> FALSE | AZ152: =IF(AW152,'Yahoo Stocks'!E179) -> FALSE | BD152: 272 | BE152: FALSE | BF152: =IF(BE152,'Google Finance Stocks'!D176) -> FALSE | BH152: =IF(BE152,'Google Finance Stocks'!E176) -> FALSE | BL152: 272 | BM152: FALSE | BN152: ='Exchange Rates'!D175 -> 0 | BP152: =IF(BM152,'Exchange Rates'!E175) -> FALSE
L153: 151 | Q153: 151 | R153: FALSE | X153: 158 | Y153: FALSE | Z153: =IF($F$6,'FRED Indicies'!E166) -> 0 | AB153: =IF($F$6,'FRED Indicies'!D166) -> 0 | AF153: 159 | AG153: FALSE | AH153: =IF(AG153,'Google Index'!E180) -> FALSE | AJ153: =IF(AF153,'Google Index'!F180) -> 0 | AN153: 159 | AO153: FALSE | AP153: =IF(AO153,'Commodity Prices'!C166) -> FALSE | AR153: =IF(AO153,'Commodity Prices'!D166) -> FALSE | AV153: 162 | AW153: FALSE | AX153: =IF(AW153,'Yahoo Stocks'!D180) -> FALSE | AZ153: =IF(AW153,'Yahoo Stocks'!E180) -> FALSE | BD153: 273 | BE153: FALSE | BF153: =IF(BE153,'Google Finance Stocks'!D177) -> FALSE | BH153: =IF(BE153,'Google Finance Stocks'!E177) -> FALSE | BL153: 273 | BM153: FALSE | BN153: ='Exchange Rates'!D176 -> 0 | BP153: =IF(BM153,'Exchange Rates'!E176) -> FALSE
L154: 152 | X154: 159 | Y154: FALSE | Z154: =IF($F$6,'FRED Indicies'!E167) -> 0 | AB154: =IF($F$6,'FRED Indicies'!D167) -> 0 | AF154: 160 | AG154: FALSE | AH154: =IF(AG154,'Google Index'!E181) -> FALSE | AJ154: =IF(AF154,'Google Index'!F181) -> 0 | AN154: 160 | AO154: FALSE | AP154: =IF(AO154,'Commodity Prices'!C167) -> FALSE | AR154: =IF(AO154,'Commodity Prices'!D167) -> FALSE | AV154: 163 | AW154: FALSE | AX154: =IF(AW154,'Yahoo Stocks'!D181) -> FALSE | AZ154: =IF(AW154,'Yahoo Stocks'!E181) -> FALSE | BD154: 274 | BE154: FALSE | BF154: =IF(BE154,'Google Finance Stocks'!D178) -> FALSE | BH154: =IF(BE154,'Google Finance Stocks'!E178) -> FALSE | BL154: 274 | BM154: FALSE | BN154: ='Exchange Rates'!D177 -> 0 | BP154: =IF(BM154,'Exchange Rates'!E177) -> FALSE
L155: 153 | X155: 160 | Y155: FALSE | Z155: =IF($F$6,'FRED Indicies'!E168) -> 0 | AB155: =IF($F$6,'FRED Indicies'!D168) -> 0 | AF155: 161 | AG155: FALSE | AH155: =IF(AG155,'Google Index'!E182) -> FALSE | AJ155: =IF(AF155,'Google Index'!F182) -> 0 | AN155: 161 | AO155: FALSE | AP155: =IF(AO155,'Commodity Prices'!C168) -> FALSE | AR155: =IF(AO155,'Commodity Prices'!D168) -> FALSE | AV155: 164 | AW155: =IF(AND($F$15,AV155<=$H$15),AV155) -> FALSE | AX155: =IF(AW155,'Yahoo Stocks'!D182) -> FALSE | AY155: =IFERROR(INDEX(AX:AX,MATCH(L155,AW:AW,0)),"") ->  | AZ155: =IF(AW155,'Yahoo Stocks'!E182) -> FALSE | BA155: =IFERROR(INDEX(AZ:AZ,MATCH(L155,AW:AW,0)),"") ->  | BB155: =IF(AY155<>"",$I$15,"") ->  | BD155: 275 | BE155: FALSE | BF155: =IF(BE155,'Google Finance Stocks'!D179) -> FALSE | BH155: =IF(BE155,'Google Finance Stocks'!E179) -> FALSE | BL155: 275 | BM155: FALSE | BN155: ='Exchange Rates'!D178 -> 0 | BP155: =IF(BM155,'Exchange Rates'!E178) -> FALSE
L156: 154 | X156: 161 | Y156: FALSE | Z156: =IF($F$6,'FRED Indicies'!E169) -> 0 | AB156: =IF($F$6,'FRED Indicies'!D169) -> 0 | AF156: 162 | AG156: FALSE | AH156: =IF(AG156,'Google Index'!E183) -> FALSE | AJ156: =IF(AF156,'Google Index'!F183) -> 0 | AN156: 162 | AO156: FALSE | AP156: =IF(AO156,'Commodity Prices'!C169) -> FALSE | AR156: =IF(AO156,'Commodity Prices'!D169) -> FALSE | AV156: 165 | AW156: FALSE | AX156: =IF(AW156,'Yahoo Stocks'!D183) -> FALSE | AZ156: =IF(AW156,'Yahoo Stocks'!E183) -> FALSE | BD156: 276 | BE156: FALSE | BF156: =IF(BE156,'Google Finance Stocks'!D180) -> FALSE | BH156: =IF(BE156,'Google Finance Stocks'!E180) -> FALSE | BL156: 276 | BM156: FALSE | BN156: ='Exchange Rates'!D179 -> 0 | BP156: =IF(BM156,'Exchange Rates'!E179) -> FALSE
L157: 155 | X157: 162 | Y157: FALSE | Z157: =IF($F$6,'FRED Indicies'!E170) -> 0 | AB157: =IF($F$6,'FRED Indicies'!D170) -> 0 | AF157: 163 | AG157: FALSE | AH157: =IF(AG157,'Google Index'!E184) -> FALSE | AJ157: =IF(AF157,'Google Index'!F184) -> 0 | AN157: 163 | AO157: FALSE | AP157: =IF(AO157,'Commodity Prices'!C170) -> FALSE | AR157: =IF(AO157,'Commodity Prices'!D170) -> FALSE | AV157: 166 | AW157: FALSE | AX157: =IF(AW157,'Yahoo Stocks'!D184) -> FALSE | AZ157: =IF(AW157,'Yahoo Stocks'!E184) -> FALSE | BD157: 277 | BE157: FALSE | BF157: =IF(BE157,'Google Finance Stocks'!D181) -> FALSE | BH157: =IF(BE157,'Google Finance Stocks'!E181) -> FALSE | BL157: 277 | BM157: FALSE | BN157: ='Exchange Rates'!D180 -> 0 | BP157: =IF(BM157,'Exchange Rates'!E180) -> FALSE
L158: 156 | X158: 163 | Y158: FALSE | Z158: =IF($F$6,'FRED Indicies'!E171) -> 0 | AB158: =IF($F$6,'FRED Indicies'!D171) -> 0 | AF158: 164 | AG158: FALSE | AH158: =IF(AG158,'Google Index'!E185) -> FALSE | AJ158: =IF(AF158,'Google Index'!F185) -> 0 | AN158: 164 | AO158: FALSE | AP158: =IF(AO158,'Commodity Prices'!C171) -> FALSE | AR158: =IF(AO158,'Commodity Prices'!D171) -> FALSE | AV158: 167 | AW158: FALSE | AX158: =IF(AW158,'Yahoo Stocks'!D185) -> FALSE | AZ158: =IF(AW158,'Yahoo Stocks'!E185) -> FALSE | BD158: 278 | BE158: FALSE | BF158: =IF(BE158,'Google Finance Stocks'!D182) -> FALSE | BH158: =IF(BE158,'Google Finance Stocks'!E182) -> FALSE | BL158: 278 | BM158: FALSE | BN158: ='Exchange Rates'!D181 -> 0 | BP158: =IF(BM158,'Exchange Rates'!E181) -> FALSE
L159: 157 | X159: 164 | Y159: FALSE | Z159: =IF($F$6,'FRED Indicies'!E172) -> 0 | AB159: =IF($F$6,'FRED Indicies'!D172) -> 0 | AF159: 165 | AG159: FALSE | AH159: =IF(AG159,'Google Index'!E186) -> FALSE | AJ159: =IF(AF159,'Google Index'!F186) -> 0 | AN159: 165 | AO159: FALSE | AP159: =IF(AO159,'Commodity Prices'!C172) -> FALSE | AR159: =IF(AO159,'Commodity Prices'!D172) -> FALSE | AV159: 168 | AW159: FALSE | AX159: =IF(AW159,'Yahoo Stocks'!D186) -> FALSE | AZ159: =IF(AW159,'Yahoo Stocks'!E186) -> FALSE | BD159: 279 | BE159: FALSE | BF159: =IF(BE159,'Google Finance Stocks'!D183) -> FALSE | BH159: =IF(BE159,'Google Finance Stocks'!E183) -> FALSE | BL159: 279 | BM159: FALSE | BN159: ='Exchange Rates'!D182 -> 0 | BP159: =IF(BM159,'Exchange Rates'!E182) -> FALSE
L160: 158 | X160: 165 | Y160: FALSE | Z160: =IF($F$6,'FRED Indicies'!E173) -> 0 | AB160: =IF($F$6,'FRED Indicies'!D173) -> 0 | AF160: 166 | AG160: FALSE | AH160: =IF(AG160,'Google Index'!E187) -> FALSE | AJ160: =IF(AF160,'Google Index'!F187) -> 0 | AN160: 166 | AO160: FALSE | AP160: =IF(AO160,'Commodity Prices'!C173) -> FALSE | AR160: =IF(AO160,'Commodity Prices'!D173) -> FALSE | AV160: 169 | AW160: FALSE | AX160: =IF(AW160,'Yahoo Stocks'!D187) -> FALSE | AZ160: =IF(AW160,'Yahoo Stocks'!E187) -> FALSE | BD160: 280 | BE160: FALSE | BF160: =IF(BE160,'Google Finance Stocks'!D184) -> FALSE | BH160: =IF(BE160,'Google Finance Stocks'!E184) -> FALSE | BL160: 280 | BM160: FALSE | BN160: ='Exchange Rates'!D183 -> 0 | BP160: =IF(BM160,'Exchange Rates'!E183) -> FALSE
L161: 159 | X161: 166 | Y161: FALSE | Z161: =IF($F$6,'FRED Indicies'!E174) -> 0 | AB161: =IF($F$6,'FRED Indicies'!D174) -> 0 | AF161: 167 | AG161: FALSE | AH161: =IF(AG161,'Google Index'!E188) -> FALSE | AJ161: =IF(AF161,'Google Index'!F188) -> 0 | AN161: 167 | AO161: FALSE | AP161: =IF(AO161,'Commodity Prices'!C174) -> FALSE | AR161: =IF(AO161,'Commodity Prices'!D174) -> FALSE | AV161: 170 | AW161: FALSE | AX161: =IF(AW161,'Yahoo Stocks'!D188) -> FALSE | AZ161: =IF(AW161,'Yahoo Stocks'!E188) -> FALSE | BD161: 281 | BE161: FALSE | BF161: =IF(BE161,'Google Finance Stocks'!D185) -> FALSE | BH161: =IF(BE161,'Google Finance Stocks'!E185) -> FALSE | BL161: 281 | BM161: FALSE | BN161: ='Exchange Rates'!D184 -> 0 | BP161: =IF(BM161,'Exchange Rates'!E184) -> FALSE
L162: 160 | X162: 167 | Y162: FALSE | Z162: =IF($F$6,'FRED Indicies'!E175) -> 0 | AB162: =IF($F$6,'FRED Indicies'!D175) -> 0 | AF162: 168 | AG162: FALSE | AH162: =IF(AG162,'Google Index'!E189) -> FALSE | AJ162: =IF(AF162,'Google Index'!F189) -> 0 | AN162: 168 | AO162: FALSE | AP162: =IF(AO162,'Commodity Prices'!C175) -> FALSE | AR162: =IF(AO162,'Commodity Prices'!D175) -> FALSE | AV162: 171 | AW162: FALSE | AX162: =IF(AW162,'Yahoo Stocks'!D189) -> FALSE | AZ162: =IF(AW162,'Yahoo Stocks'!E189) -> FALSE | BD162: 282 | BE162: FALSE | BF162: =IF(BE162,'Google Finance Stocks'!D186) -> FALSE | BH162: =IF(BE162,'Google Finance Stocks'!E186) -> FALSE | BL162: 282 | BM162: FALSE | BN162: ='Exchange Rates'!D185 -> 0 | BP162: =IF(BM162,'Exchange Rates'!E185) -> FALSE
L163: 161 | X163: 168 | Y163: FALSE | Z163: =IF($F$6,'FRED Indicies'!E176) -> 0 | AB163: =IF($F$6,'FRED Indicies'!D176) -> 0 | AF163: 169 | AG163: FALSE | AH163: =IF(AG163,'Google Index'!E190) -> FALSE | AJ163: =IF(AF163,'Google Index'!F190) -> 0 | AN163: 169 | AO163: FALSE | AP163: =IF(AO163,'Commodity Prices'!C176) -> FALSE | AR163: =IF(AO163,'Commodity Prices'!D176) -> FALSE | AV163: 172 | AW163: FALSE | AX163: =IF(AW163,'Yahoo Stocks'!D190) -> FALSE | AZ163: =IF(AW163,'Yahoo Stocks'!E190) -> FALSE | BD163: 283 | BE163: FALSE | BF163: =IF(BE163,'Google Finance Stocks'!D187) -> FALSE | BH163: =IF(BE163,'Google Finance Stocks'!E187) -> FALSE | BL163: 283 | BM163: FALSE | BN163: ='Exchange Rates'!D186 -> 0 | BP163: =IF(BM163,'Exchange Rates'!E186) -> FALSE
L164: 162 | X164: 169 | Y164: FALSE | Z164: =IF($F$6,'FRED Indicies'!E177) -> 0 | AB164: =IF($F$6,'FRED Indicies'!D177) -> 0 | AF164: 170 | AG164: FALSE | AH164: =IF(AG164,'Google Index'!E191) -> FALSE | AJ164: =IF(AF164,'Google Index'!F191) -> 0 | AN164: 170 | AO164: FALSE | AP164: =IF(AO164,'Commodity Prices'!C177) -> FALSE | AR164: =IF(AO164,'Commodity Prices'!D177) -> FALSE | AV164: 173 | AW164: FALSE | AX164: =IF(AW164,'Yahoo Stocks'!D191) -> FALSE | AZ164: =IF(AW164,'Yahoo Stocks'!E191) -> FALSE | BD164: 284 | BE164: FALSE | BF164: =IF(BE164,'Google Finance Stocks'!D188) -> FALSE | BH164: =IF(BE164,'Google Finance Stocks'!E188) -> FALSE | BL164: 284 | BM164: FALSE | BN164: ='Exchange Rates'!D187 -> 0 | BP164: =IF(BM164,'Exchange Rates'!E187) -> FALSE
L165: 163 | X165: 170 | Y165: FALSE | Z165: =IF($F$6,'FRED Indicies'!E178) -> 0 | AB165: =IF($F$6,'FRED Indicies'!D178) -> 0 | AF165: 171 | AG165: FALSE | AH165: =IF(AG165,'Google Index'!E192) -> FALSE | AJ165: =IF(AF165,'Google Index'!F192) -> 0 | AN165: 171 | AO165: FALSE | AP165: =IF(AO165,'Commodity Prices'!C178) -> FALSE | AR165: =IF(AO165,'Commodity Prices'!D178) -> FALSE | AV165: 174 | AW165: FALSE | AX165: =IF(AW165,'Yahoo Stocks'!D192) -> FALSE | AZ165: =IF(AW165,'Yahoo Stocks'!E192) -> FALSE | BD165: 285 | BE165: FALSE | BF165: =IF(BE165,'Google Finance Stocks'!D189) -> FALSE | BH165: =IF(BE165,'Google Finance Stocks'!E189) -> FALSE | BL165: 285 | BM165: FALSE | BN165: ='Exchange Rates'!D188 -> 0 | BP165: =IF(BM165,'Exchange Rates'!E188) -> FALSE
L166: 164 | X166: 171 | Y166: FALSE | Z166: =IF($F$6,'FRED Indicies'!E179) -> 0 | AB166: =IF($F$6,'FRED Indicies'!D179) -> 0 | AF166: 172 | AG166: FALSE | AH166: =IF(AG166,'Google Index'!E193) -> FALSE | AJ166: =IF(AF166,'Google Index'!F193) -> 0 | AN166: 172 | AO166: FALSE | AP166: =IF(AO166,'Commodity Prices'!C179) -> FALSE | AR166: =IF(AO166,'Commodity Prices'!D179) -> FALSE | AV166: 175 | AW166: FALSE | AX166: =IF(AW166,'Yahoo Stocks'!D193) -> FALSE | AZ166: =IF(AW166,'Yahoo Stocks'!E193) -> FALSE | BD166: 286 | BE166: FALSE | BF166: =IF(BE166,'Google Finance Stocks'!D190) -> FALSE | BH166: =IF(BE166,'Google Finance Stocks'!E190) -> FALSE | BL166: 286 | BM166: FALSE | BN166: ='Exchange Rates'!D189 -> 0 | BP166: =IF(BM166,'Exchange Rates'!E189) -> FALSE
L167: 165 | X167: 172 | Y167: FALSE | Z167: =IF($F$6,'FRED Indicies'!E180) -> 0 | AB167: =IF($F$6,'FRED Indicies'!D180) -> 0 | AF167: 173 | AG167: FALSE | AH167: =IF(AG167,'Google Index'!E194) -> FALSE | AJ167: =IF(AF167,'Google Index'!F194) -> 0 | AN167: 173 | AO167: FALSE | AP167: =IF(AO167,'Commodity Prices'!C180) -> FALSE | AR167: =IF(AO167,'Commodity Prices'!D180) -> FALSE | AV167: 176 | AW167: FALSE | AX167: =IF(AW167,'Yahoo Stocks'!D194) -> FALSE | AZ167: =IF(AW167,'Yahoo Stocks'!E194) -> FALSE | BD167: 287 | BE167: FALSE | BF167: =IF(BE167,'Google Finance Stocks'!D191) -> FALSE | BH167: =IF(BE167,'Google Finance Stocks'!E191) -> FALSE | BL167: 287 | BM167: FALSE | BN167: ='Exchange Rates'!D190 -> 0 | BP167: =IF(BM167,'Exchange Rates'!E190) -> FALSE
L168: 166 | X168: 173 | Y168: FALSE | Z168: =IF($F$6,'FRED Indicies'!E181) -> 0 | AB168: =IF($F$6,'FRED Indicies'!D181) -> 0 | AF168: 174 | AG168: FALSE | AH168: =IF(AG168,'Google Index'!E195) -> FALSE | AJ168: =IF(AF168,'Google Index'!F195) -> 0 | AN168: 174 | AO168: FALSE | AP168: =IF(AO168,'Commodity Prices'!C181) -> FALSE | AR168: =IF(AO168,'Commodity Prices'!D181) -> FALSE | AV168: 177 | AW168: FALSE | AX168: =IF(AW168,'Yahoo Stocks'!D195) -> FALSE | AZ168: =IF(AW168,'Yahoo Stocks'!E195) -> FALSE | BD168: 288 | BE168: FALSE | BF168: =IF(BE168,'Google Finance Stocks'!D192) -> FALSE | BH168: =IF(BE168,'Google Finance Stocks'!E192) -> FALSE | BL168: 288 | BM168: FALSE | BN168: ='Exchange Rates'!D191 -> 0 | BP168: =IF(BM168,'Exchange Rates'!E191) -> FALSE
L169: 167 | X169: 174 | Y169: FALSE | Z169: =IF($F$6,'FRED Indicies'!E182) -> 0 | AB169: =IF($F$6,'FRED Indicies'!D182) -> 0 | AF169: 175 | AG169: FALSE | AH169: =IF(AG169,'Google Index'!E196) -> FALSE | AJ169: =IF(AF169,'Google Index'!F196) -> 0 | AN169: 175 | AO169: FALSE | AP169: =IF(AO169,'Commodity Prices'!C182) -> FALSE | AR169: =IF(AO169,'Commodity Prices'!D182) -> FALSE | AV169: 178 | AW169: FALSE | AX169: =IF(AW169,'Yahoo Stocks'!D196) -> FALSE | AZ169: =IF(AW169,'Yahoo Stocks'!E196) -> FALSE | BD169: 289 | BE169: FALSE | BF169: =IF(BE169,'Google Finance Stocks'!D193) -> FALSE | BH169: =IF(BE169,'Google Finance Stocks'!E193) -> FALSE | BL169: 289 | BM169: FALSE | BN169: ='Exchange Rates'!D192 -> 0 | BP169: =IF(BM169,'Exchange Rates'!E192) -> FALSE
L170: 168 | X170: 175 | Y170: FALSE | Z170: =IF($F$6,'FRED Indicies'!E183) -> 0 | AB170: =IF($F$6,'FRED Indicies'!D183) -> 0 | AF170: 176 | AG170: FALSE | AH170: =IF(AG170,'Google Index'!E197) -> FALSE | AJ170: =IF(AF170,'Google Index'!F197) -> 0 | AN170: 176 | AO170: FALSE | AP170: =IF(AO170,'Commodity Prices'!C183) -> FALSE | AR170: =IF(AO170,'Commodity Prices'!D183) -> FALSE | AV170: 179 | AW170: FALSE | AX170: =IF(AW170,'Yahoo Stocks'!D197) -> FALSE | AZ170: =IF(AW170,'Yahoo Stocks'!E197) -> FALSE | BD170: 290 | BE170: FALSE | BF170: =IF(BE170,'Google Finance Stocks'!D194) -> FALSE | BH170: =IF(BE170,'Google Finance Stocks'!E194) -> FALSE | BL170: 290 | BM170: FALSE | BN170: ='Exchange Rates'!D193 -> 0 | BP170: =IF(BM170,'Exchange Rates'!E193) -> FALSE
L171: 169 | X171: 176 | Y171: FALSE | Z171: =IF($F$6,'FRED Indicies'!E184) -> 0 | AB171: =IF($F$6,'FRED Indicies'!D184) -> 0 | AF171: 177 | AG171: FALSE | AH171: =IF(AG171,'Google Index'!E198) -> FALSE | AJ171: =IF(AF171,'Google Index'!F198) -> 0 | AN171: 177 | AO171: FALSE | AP171: =IF(AO171,'Commodity Prices'!C184) -> FALSE | AR171: =IF(AO171,'Commodity Prices'!D184) -> FALSE | AV171: 180 | AW171: FALSE | AX171: =IF(AW171,'Yahoo Stocks'!D198) -> FALSE | AZ171: =IF(AW171,'Yahoo Stocks'!E198) -> FALSE | BD171: 291 | BE171: FALSE | BF171: =IF(BE171,'Google Finance Stocks'!D195) -> FALSE | BH171: =IF(BE171,'Google Finance Stocks'!E195) -> FALSE | BL171: 291 | BM171: FALSE | BN171: ='Exchange Rates'!D194 -> 0 | BP171: =IF(BM171,'Exchange Rates'!E194) -> FALSE
L172: 170 | BD172: 292 | BE172: =IF(AND($F$18,BD172<=$H$18),BD172) -> FALSE | BF172: =IF(BE172,'Google Finance Stocks'!D196) -> FALSE | BG172: =IFERROR(INDEX(BF:BF,MATCH(Q172,BE:BE,0)),"") ->  | BH172: =IF(BE172,'Google Finance Stocks'!E196) -> FALSE | BI172: =IFERROR(INDEX(BH:BH,MATCH(Q172,BE:BE,0)),"") ->  | BJ172: =IF(BI172<>"",$I$18,"") ->  | BK172: =IF(BI172<>"",$J$18,"") ->  | BL172: 292 | BM172: =IF(AND($F$21,BL172<=$H$21),BL172) -> FALSE | BN172: ='Exchange Rates'!D195 -> 0 | BO172: =IFERROR(INDEX(BN:BN,MATCH(L172,BM:BM,0)),"") ->  | BP172: =IF(BM172,'Exchange Rates'!E195) -> FALSE | BQ172: =IFERROR(INDEX(BP:BP,MATCH(L172,BM:BM,0)),"") ->  | BR172: =IF(BQ172<>"",$I$21,"") ->  | BS172: =IF(BQ172<>"",$J$21,"") -> 
L173: 171 | BD173: 293 | BE173: FALSE | BF173: =IF(BE173,'Google Finance Stocks'!D197) -> FALSE | BH173: =IF(BE173,'Google Finance Stocks'!E197) -> FALSE | BL173: 293 | BM173: FALSE | BN173: ='Exchange Rates'!D196 -> 0 | BP173: =IF(BM173,'Exchange Rates'!E196) -> FALSE
L174: 172 | BD174: 294 | BE174: FALSE | BF174: =IF(BE174,'Google Finance Stocks'!D198) -> FALSE | BH174: =IF(BE174,'Google Finance Stocks'!E198) -> FALSE | BL174: 294 | BM174: FALSE | BN174: ='Exchange Rates'!D197 -> 0 | BP174: =IF(BM174,'Exchange Rates'!E197) -> FALSE
L175: 173 | BD175: 295 | BE175: FALSE | BF175: =IF(BE175,'Google Finance Stocks'!D199) -> FALSE | BH175: =IF(BE175,'Google Finance Stocks'!E199) -> FALSE | BL175: 295 | BM175: FALSE | BN175: ='Exchange Rates'!D198 -> 0 | BP175: =IF(BM175,'Exchange Rates'!E198) -> FALSE
L176: 174 | BD176: 296 | BE176: FALSE | BF176: =IF(BE176,'Google Finance Stocks'!D200) -> FALSE | BH176: =IF(BE176,'Google Finance Stocks'!E200) -> FALSE | BL176: 296 | BM176: FALSE | BN176: ='Exchange Rates'!D199 -> 0 | BP176: =IF(BM176,'Exchange Rates'!E199) -> FALSE
BD177: 297 | BE177: FALSE | BF177: =IF(BE177,'Google Finance Stocks'!D201) -> FALSE | BH177: =IF(BE177,'Google Finance Stocks'!E201) -> FALSE | BL177: 297 | BM177: FALSE | BN177: ='Exchange Rates'!D200 -> 0 | BP177: =IF(BM177,'Exchange Rates'!E200) -> FALSE
BD178: 298 | BE178: FALSE | BF178: =IF(BE178,'Google Finance Stocks'!D202) -> FALSE | BH178: =IF(BE178,'Google Finance Stocks'!E202) -> FALSE | BL178: 298 | BM178: FALSE | BN178: ='Exchange Rates'!D201 -> 0 | BP178: =IF(BM178,'Exchange Rates'!E201) -> FALSE
BD179: 299 | BE179: FALSE | BF179: =IF(BE179,'Google Finance Stocks'!D203) -> FALSE | BH179: =IF(BE179,'Google Finance Stocks'!E203) -> FALSE | BL179: 299 | BM179: FALSE | BN179: ='Exchange Rates'!D202 -> 0 | BP179: =IF(BM179,'Exchange Rates'!E202) -> FALSE
BD180: 300 | BE180: FALSE | BF180: =IF(BE180,'Google Finance Stocks'!D204) -> FALSE | BH180: =IF(BE180,'Google Finance Stocks'!E204) -> FALSE | BL180: 300 | BM180: FALSE | BN180: ='Exchange Rates'!D203 -> 0 | BP180: =IF(BM180,'Exchange Rates'!E203) -> FALSE
BD181: 301 | BE181: FALSE | BF181: =IF(BE181,'Google Finance Stocks'!D205) -> FALSE | BH181: =IF(BE181,'Google Finance Stocks'!E205) -> FALSE | BL181: 301 | BM181: FALSE | BN181: ='Exchange Rates'!D204 -> 0 | BP181: =IF(BM181,'Exchange Rates'!E204) -> FALSE
BD182: 302 | BE182: FALSE | BF182: =IF(BE182,'Google Finance Stocks'!D206) -> FALSE | BH182: =IF(BE182,'Google Finance Stocks'!E206) -> FALSE | BL182: 302 | BM182: FALSE | BN182: ='Exchange Rates'!D205 -> 0 | BP182: =IF(BM182,'Exchange Rates'!E205) -> FALSE
BD183: 303 | BE183: FALSE | BF183: =IF(BE183,'Google Finance Stocks'!D207) -> FALSE | BH183: =IF(BE183,'Google Finance Stocks'!E207) -> FALSE | BL183: 303 | BM183: FALSE | BN183: ='Exchange Rates'!D206 -> 0 | BP183: =IF(BM183,'Exchange Rates'!E206) -> FALSE
BD184: 304 | BE184: FALSE | BF184: =IF(BE184,'Google Finance Stocks'!D208) -> FALSE | BH184: =IF(BE184,'Google Finance Stocks'!E208) -> FALSE | BL184: 304 | BM184: FALSE | BN184: ='Exchange Rates'!D207 -> 0 | BP184: =IF(BM184,'Exchange Rates'!E207) -> FALSE
BD185: 305 | BE185: FALSE | BF185: =IF(BE185,'Google Finance Stocks'!D209) -> FALSE | BH185: =IF(BE185,'Google Finance Stocks'!E209) -> FALSE | BL185: 305 | BM185: FALSE | BN185: ='Exchange Rates'!D208 -> 0 | BP185: =IF(BM185,'Exchange Rates'!E208) -> FALSE
BD186: 306 | BE186: FALSE | BF186: =IF(BE186,'Google Finance Stocks'!D210) -> FALSE | BH186: =IF(BE186,'Google Finance Stocks'!E210) -> FALSE | BL186: 306 | BM186: FALSE | BN186: ='Exchange Rates'!D209 -> 0 | BP186: =IF(BM186,'Exchange Rates'!E209) -> FALSE
BD187: 307 | BE187: FALSE | BF187: =IF(BE187,'Google Finance Stocks'!D211) -> FALSE | BH187: =IF(BE187,'Google Finance Stocks'!E211) -> FALSE | BL187: 307 | BM187: FALSE | BN187: ='Exchange Rates'!D210 -> 0 | BP187: =IF(BM187,'Exchange Rates'!E210) -> FALSE
BD188: 308 | BE188: FALSE | BF188: =IF(BE188,'Google Finance Stocks'!D212) -> FALSE | BH188: =IF(BE188,'Google Finance Stocks'!E212) -> FALSE | BL188: 308 | BM188: FALSE | BN188: ='Exchange Rates'!D211 -> 0 | BP188: =IF(BM188,'Exchange Rates'!E211) -> FALSE
BD189: 309 | BE189: FALSE | BF189: =IF(BE189,'Google Finance Stocks'!D213) -> FALSE | BH189: =IF(BE189,'Google Finance Stocks'!E213) -> FALSE | BL189: 309 | BM189: FALSE | BN189: ='Exchange Rates'!D212 -> 0 | BP189: =IF(BM189,'Exchange Rates'!E212) -> FALSE
BD190: 310 | BE190: FALSE | BF190: =IF(BE190,'Google Finance Stocks'!D214) -> FALSE | BH190: =IF(BE190,'Google Finance Stocks'!E214) -> FALSE | BL190: 310 | BM190: FALSE | BN190: ='Exchange Rates'!D213 -> 0 | BP190: =IF(BM190,'Exchange Rates'!E213) -> FALSE
BD191: 311 | BE191: FALSE | BF191: =IF(BE191,'Google Finance Stocks'!D215) -> FALSE | BH191: =IF(BE191,'Google Finance Stocks'!E215) -> FALSE | BL191: 311 | BM191: FALSE | BN191: ='Exchange Rates'!D214 -> 0 | BP191: =IF(BM191,'Exchange Rates'!E214) -> FALSE
BD192: 312 | BE192: FALSE | BF192: =IF(BE192,'Google Finance Stocks'!D216) -> FALSE | BH192: =IF(BE192,'Google Finance Stocks'!E216) -> FALSE | BL192: 312 | BM192: FALSE | BN192: ='Exchange Rates'!D215 -> 0 | BP192: =IF(BM192,'Exchange Rates'!E215) -> FALSE
BD193: 313 | BE193: FALSE | BF193: =IF(BE193,'Google Finance Stocks'!D217) -> FALSE | BH193: =IF(BE193,'Google Finance Stocks'!E217) -> FALSE | BL193: 313 | BM193: FALSE | BN193: ='Exchange Rates'!D216 -> 0 | BP193: =IF(BM193,'Exchange Rates'!E216) -> FALSE
BD194: 314 | BE194: FALSE | BF194: =IF(BE194,'Google Finance Stocks'!D218) -> FALSE | BH194: =IF(BE194,'Google Finance Stocks'!E218) -> FALSE | BL194: 314 | BM194: FALSE | BN194: ='Exchange Rates'!D217 -> 0 | BP194: =IF(BM194,'Exchange Rates'!E217) -> FALSE
BD195: 315 | BE195: FALSE | BF195: =IF(BE195,'Google Finance Stocks'!D219) -> FALSE | BH195: =IF(BE195,'Google Finance Stocks'!E219) -> FALSE | BL195: 315 | BM195: FALSE | BN195: ='Exchange Rates'!D218 -> 0 | BP195: =IF(BM195,'Exchange Rates'!E218) -> FALSE
BD196: 316 | BE196: FALSE | BF196: =IF(BE196,'Google Finance Stocks'!D220) -> FALSE | BH196: =IF(BE196,'Google Finance Stocks'!E220) -> FALSE | BL196: 316 | BM196: FALSE | BN196: ='Exchange Rates'!D219 -> 0 | BP196: =IF(BM196,'Exchange Rates'!E219) -> FALSE
BD197: =BD196+1 -> 317 | BE197: FALSE | BF197: =IF(BE197,'Google Finance Stocks'!D221) -> FALSE | BH197: =IF(BE197,'Google Finance Stocks'!E221) -> FALSE | BL197: =BL196+1 -> 317 | BM197: FALSE | BN197: ='Exchange Rates'!D220 -> 0 | BP197: =IF(BM197,'Exchange Rates'!E220) -> FALSE
BD198: 318 | BE198: FALSE | BF198: =IF(BE198,'Google Finance Stocks'!D222) -> FALSE | BH198: =IF(BE198,'Google Finance Stocks'!E222) -> FALSE | BL198: 318 | BM198: FALSE | BN198: ='Exchange Rates'!D221 -> 0 | BP198: =IF(BM198,'Exchange Rates'!E221) -> FALSE
BD199: 319 | BE199: FALSE | BF199: =IF(BE199,'Google Finance Stocks'!D223) -> FALSE | BH199: =IF(BE199,'Google Finance Stocks'!E223) -> FALSE | BL199: 319 | BM199: FALSE | BN199: ='Exchange Rates'!D222 -> 0 | BP199: =IF(BM199,'Exchange Rates'!E222) -> FALSE
BD200: 320 | BE200: FALSE | BF200: =IF(BE200,'Google Finance Stocks'!D224) -> FALSE | BH200: =IF(BE200,'Google Finance Stocks'!E224) -> FALSE | BL200: 320 | BM200: FALSE | BN200: ='Exchange Rates'!D223 -> 0 | BP200: =IF(BM200,'Exchange Rates'!E223) -> FALSE
... 6 more rows

Sheet Contents
C1: Go to Charts by Pressing Shift and Enter on Menu Item
C3: Sheet Tab | D3: Description | E3: Author
B4: 1 | C4: Introduction
B5: 2 | C5: Read Stocks
B6: 3 | C6: Contents
B7: 4 | C7: Errors
B8: 5 | C8: Multiple Stock Graph
B9: 6 | C9: Summary
B10: 7 | C10: Yahoo Index
B11: 8 | C11: FRED Indicies
B12: 9 | C12: Exchange Rates | J12: Questions: e-mail edwardbodmer@gmail.com
B13: 10 | C13: Commodity Prices
B14: 11 | C14: Yahoo Stocks | J14: Explanation at:
B15: 12 | C15: Google Finance Stocks | J15: http://edbodmer.com/comprehensive-stock-price-analysis/
B16: 13 | C16: Google Index
B17: 14 | C17: International Indicies
B18: 15 | C18: General Points
B19: 16 | C19: Forms
B20: 17 | C20: BREAK
B21: 18 | C21: S&P 500
B22: 19 | C22: DAX
B23: 20 | C23: Nifty Fifty | J23: Notes: Error and still makes sheets
B24: 21 | C24: BSESN Index
B25: 22 | C25: Nasdaq 100
B26: 23 | C26: 30 Industrials
B27: 24 | C27: NASDAQ100
B28: 25 | C28: DCOILBRENTEU
B29: 26 | C29: PCOPPUSDM
B30: 27 | C30: MHHNGSP
B31: 28 | C31: HTMEDIA.NS
B32: 29 | C32: GOOG
B33: 30 | C33: AMZN
B34: 31 | C34: FB
B35: 32 | C35: DTE.DE
B36: 33 | C36: FTE
B37: 34 | C37: BT
B38: 35 | C38: VOD
B39: 36 | C39: VZ
B40: 37 | C40: S
B41: 38 | C41: PHI
B42: 39 | C42: TKC
B43: 40 | C43: JPM
B44: 41 | C44: WMT
B45: 42 | C45: TENA.KL
B46: 43 | C46: VWDRY
B47: 44 | C47: VWS.CO
B48: 45 | C48: NDX1.DE
B49: 46 | C49: 601558.SS
B50: 47 | C50: SUZLON.NS
B51: 48 | C51: 002202.SZ
B52: 49 | C52: LB
B53: 50 | C53: Sheet337
B54: 51 | C54: FSLR
B55: 52 | C55: Sheet339
B56: 53 | C56: SPWR
B57: 54 | C57: Sheet341
B58: 55 | C58: Sheet342
B59: 56 | C59: BN.PA
B60: 57 | C60: PEP
B61: 58 | C61: Sheet345
B62: 59 | C62: K
B63: 60 | C63: GIS
B64: 61 | C64: CAG
B65: 62 | C65: HNZ
B66: 63 | C66: SLE
B67: 64 | C67: Sheet351
B68: 65 | C68: RRC
B69: 66 | C69: CLR
B70: 67 | C70: SD
B71: 68 | C71: MPO
B72: 69 | C72: RDS-B
B73: 70 | C73: TOT
B74: 71 | C74: BP
B75: 72 | C75: GDP
B76: 73 | C76: SN
B77: 74 | C77: Sheet363
B78: 75 | C78: CPE
B79: 76 | C79: C
B80: 77 | C80: HEINY
B81: 78 | C81: NYT
B82: 79 | C82: BUD
B83: 80 | C83: KOF
B84: 81 | C84: DEO
B85: 82 | C85: ECL
B86: 83 | C86: LNT
B87: 84 | C87: IBE.MC
B88: 85 | C88: 5347.KL
B89: 86 | C89: MAEOY
B90: 87 | C90: ED
B91: 88 | C91: 015760.KS
B92: 89 | C92: TKECF
B93: 90 | C93: SO
B94: 91 | C94: EDF.PA
B95: 92 | C95: ENGI.PA
B96: 93 | C96: NG.L
B97: 94 | C97: ENEL.MI
B98: 95 | C98: EOAN.DE
B99: 96 | C99: EXC
B100: 97 | C100: DTE
B101: 98 | C101: AES
B102: 99 | C102: NRG
B103: 100 | C103: PCG
B104: 101 | C104: RWE.DE
B105: 102 | C105: MGEE
B106: 103 | C106: WEC
B107: 104 | C107: AEE
B108: 105 | C108: CMS
B109: 106 | C109: MMM
B110: 107 | C110: AAPL
B111: 108 | C111: BA
B112: 109 | C112: CAT
B113: 110 | C113: CVX
B114: 111 | C114: CSCO
B115: 112 | C115: KO
B116: 113 | C116: DIS
B117: 114 | C117: DWDP
B118: 115 | C118: XOM
B119: 116 | C119: GE
B120: 117 | C120: HD
B121: 118 | C121: IBM
B122: 119 | C122: INTC
B123: 120 | C123: JNJ
B124: 121 | C124: MCD
B125: 122 | C125: MRK
B126: 123 | C126: MSFT
B127: 124 | C127: NKE
B128: 125 | C128: PFE
B129: 126 | C129: PG
B130: 127 | C130: GDP Inf
B131: 128 | C131: CPI US
B132: 129 | C132: Euro
B133: 130 | C133: INR
B134: 131 | C134: UK
B135: 132 | C135: CFH
B136: 133 | C136: US NOM GNP
B137: 134 | C137: India Disc Rate
B138: 135 | C138: India Gvt Bonds
B139: 136 | C139: India 10 Yr Main
B140: 137 | C140: India Inflation
B141: 138 | C141: 5 yr treasury
B142: 139 | C142: 10 year treasury
B143: 140 | C143: US Med Inc Nom
B144: 141 | C144: Median Income
B145: 142 | C145: Corp Profit
B146: 143 | C146: Corp Nonfin
B147: 144 | C147: Corp Aft Tax
B148: 145 | C148: Corp Inf Adjusted
B149: 146 | C149: GDP Inflation Index
B150: 147 | C150: CPI US Index
B151: 148 | C151: US GDP
B152: 149 | C152: Median Family Income

Sheet Errors
E1: https://research.stlouisfed.org/fred2/data/INTDSRINM193N.txt
E2: https://research.stlouisfed.org/fred2/data/INTGSBINM193N.txt
E3: https://research.stlouisfed.org/fred2/data/INDIRLTLT01STM.txt
E4: https://research.stlouisfed.org/fred2/data/CPALTT01INM659N.txt
E5: https://research.stlouisfed.org/fred2/data/GS5.txt
E6: https://research.stlouisfed.org/fred2/data/GS10.txt
E7: https://research.stlouisfed.org/fred2/data/GDPDEF.txt
E8: https://research.stlouisfed.org/fred2/data/CPIAUCSL.txt

Sheet Multiple Stock Graph
C1: Index | K1: IRR | L1: Vol | M1: Beta
J2: =O26 -> US S&P 500 | K2: =Summary!L3 -> 0.04096688599 | L2: =Summary!AU5 -> 0.1227566175 | M2: =Summary!AU3 -> 1 | Y2: =J2 -> US S&P 500 | AA2: 1 | AB2: =IF(AA2,INDEX('Read Stocks'!$BN$3:$BN$11,'Multiple Stock Graph'!AA2),"USD") -> GDP Inf
B3: Comparison vs Base | G3: Counter | H3: Match | I3: Selection | Y3: =J4 -> 10-Year Treasury Constant Maturity Rate (GS10) | AA3: 1 | AB3: =IF(AA3,INDEX('Read Stocks'!$BN$3:$BN$11,'Multiple Stock Graph'!AA3),"USD") -> GDP Inf
A4: 1 | B4: ='Read Stocks'!M3 -> S&P 500 | C4: ='Read Stocks'!N3 -> US S&P 500 | D4: FALSE | F4: =D4*1 -> 0 | G4: 1 | H4: =MATCH(G4,F$1:F$555,0) -> 138 | I4: =INDEX(B:B,H4) -> 10 year treasury | J4: =INDEX(C:C,H4) -> 10-Year Treasury Constant Maturity Rate (GS10) | K4: =IFERROR(TRANSPOSE(Summary!BB4:BG4),"") -> 0.0274733817 | L4: =IFERROR(TRANSPOSE(Summary!AV5:BA5),"") -> 0.01704856413 | M4: =IFERROR(TRANSPOSE(Summary!AV3:BA3),"") -> 0.007845391504 | AA4: 0 | AB4: =IF(AA4,INDEX('Read Stocks'!$BN$3:$BN$11,'Multiple Stock Graph'!AA4),"USD") -> USD
A5: 2 | B5: ='Read Stocks'!M4 -> DAX | C5: ='Read Stocks'!N4 -> DAX in Euro | D5: FALSE | F5: =F4+D5 -> 0 | G5: 2 | H5: =MATCH(G5,F$1:F$555,0) ->  | I5: =INDEX(B:B,H5) ->  | J5: =INDEX(C:C,H5) ->  | L5: 0 | M5: 0 | AA5: 0 | AB5: =IF(AA5,INDEX('Read Stocks'!$BN$3:$BN$11,'Multiple Stock Graph'!AA5),"USD") -> USD
A6: 3 | B6: ='Read Stocks'!M5 -> Milan | C6: ='Read Stocks'!N5 -> Italy Milan | D6: FALSE | F6: 0 | G6: 3 | L6: 0 | M6: 0 | AA6: 0 | AB6: =IF(AA6,INDEX('Read Stocks'!$BN$3:$BN$11,'Multiple Stock Graph'!AA6),"USD") -> USD
A7: 4 | B7: ='Read Stocks'!M6 -> CAC 40 | C7: ='Read Stocks'!N6 -> France CAC 40 | D7: FALSE | F7: 0 | G7: 4 | H7: =MATCH(G7,F$1:F$555,0) ->  | I7: =INDEX(B:B,H7) ->  | L7: 0 | M7: 0 | AA7: 0 | AB7: =IF(AA7,INDEX('Read Stocks'!$BN$3:$BN$11,'Multiple Stock Graph'!AA7),"USD") -> USD
A8: 5 | B8: ='Read Stocks'!M7 -> Nasdaq 100 | C8: ='Read Stocks'!N7 -> Nasdaq 100 | D8: FALSE | F8: 0 | G8: 5 | L8: 0 | M8: 0 | AA8: 0 | AB8: =IF(AA8,INDEX('Read Stocks'!$BN$3:$BN$11,'Multiple Stock Graph'!AA8),"USD") -> USD
A9: 6 | B9: ='Read Stocks'!M8 -> 30 Industrials | C9: ='Read Stocks'!N8 -> Dow Jones 30 Industrials | D9: FALSE | F9: 0 | G9: 6 | H9: =MATCH(G9,F$1:F$555,0) ->  | I9: =INDEX(B:B,H9) ->  | L9: 0 | M9: 0
A10: 7 | B10: ='Read Stocks'!M9 -> Swiss | C10: ='Read Stocks'!N9 -> Swiss SMI | D10: FALSE | F10: 0 | G10: 7
A11: 8 | B11: ='Read Stocks'!M10 -> NASDAQ100 | C11: ='Read Stocks'!N10 -> Nasdaq 100 Index | D11: FALSE | F11: 0 | G11: 8 | K11: Series Start | L11: Final | M11: Years
A12: 9 | B12: ='Read Stocks'!M11 -> DCOILBRENTEU | C12: ='Read Stocks'!N11 -> Crude Oil Prices: Brent - Europe (DCOILBRENTEU) | D12: FALSE | F12: 0 | G12: 9 | J12: =J2 -> US S&P 500 | K12: =Summary!F3 -> 1927-12-01 | L12: =Summary!L2 -> 13.7300507 | M12: =Summary!L4 -> 66.24503765
A13: 10 | B13: ='Read Stocks'!M12 -> PCOPPUSDM | C13: ='Read Stocks'!N12 -> Global price of Copper© (PCOPPUSDM) | D13: FALSE | F13: 0 | G13: 10 | J13: =J4 -> 10-Year Treasury Constant Maturity Rate (GS10) | K13: =IFERROR(TRANSPOSE(Summary!AC2:AH2),"") -> 1953-04-01 | L13: =TRANSPOSE(Summary!BB3:BG3) -> 5.861002551
A14: 11 | B14: ='Read Stocks'!M13 -> MHHNGSP | C14: ='Read Stocks'!N13 -> Henry Hub Natural Gas Spot Price (MHHNGSP) | D14: FALSE | F14: 0 | G14: 11 | J14: =J5 ->  | L14: 1 | AA14: Indices used for Adjustment
A15: 12 | B15: ='Read Stocks'!M14 -> M | C15: ='Read Stocks'!N14 -> Macys | D15: FALSE | F15: 0 | G15: 12 | J15: =J6 ->  | L15: 1
A16: 13 | B16: ='Read Stocks'!M15 -> AAPL | C16: ='Read Stocks'!N15 -> Apple | D16: FALSE | F16: 0 | G16: 13 | J16: =J7 ->  | L16: 1 | AA16: =TRANSPOSE(Summary!BO6:BU6) -> GDP Inf | AB16: Divide
A17: 14 | B17: ='Read Stocks'!M16 -> GOOG | C17: ='Read Stocks'!N16 -> Google | D17: FALSE | F17: 0 | G17: 14 | J17: =J8 ->  | L17: 1 | AA17: CPI US | AB17: Divide
A18: 15 | B18: ='Read Stocks'!M17 -> AMZN | C18: ='Read Stocks'!N17 -> Amazon | D18: FALSE | F18: 0 | G18: 15 | L18: 1 | AA18: Euro | AB18: Multiply
A19: 16 | B19: ='Read Stocks'!M18 -> FB | C19: ='Read Stocks'!N18 -> Facebook | D19: FALSE | F19: 0 | G19: 16 | AA19: INR | AB19: Divide
A20: 17 | B20: ='Read Stocks'!M19 -> UAL | C20: ='Read Stocks'!N19 -> United Airlnes | D20: FALSE | F20: 0 | G20: 17 | J20: Graph Type | AA20: UK | AB20: Multiply
A21: 18 | B21: ='Read Stocks'!M20 -> MAR | C21: ='Read Stocks'!N20 -> Mariott | D21: FALSE | F21: 0 | G21: 18 | O21: Start Year | R21: End Year | AA21: IDR | AB21: Divide
A22: 19 | B22: ='Read Stocks'!M21 -> BT | C22: ='Read Stocks'!N21 -> BT Group plc (ADR) (BT) | D22: FALSE | F22: 0 | G22: 19 | J22: Final Date | K22: =Summary!F2 -> 2020-04-01 | O22: =INDEX(C:C,H14) ->  | U22: 1.2 | AA22: US NOM GNP | AB22: Divide
A23: 20 | B23: ='Read Stocks'!M22 -> VOD | C23: ='Read Stocks'!N22 -> Vodafone Group plc | D23: FALSE | F23: 0 | G23: 20 | U23: 1.55 | V23: =1-U22/U23 -> 0.2258064516
A24: 21 | B24: ='Read Stocks'!M23 -> VZ | C24: ='Read Stocks'!N23 -> Verizon Communications... | D24: FALSE | F24: 0 | G24: 21
A25: 22 | B25: ='Read Stocks'!M24 -> S | C25: ='Read Stocks'!N24 -> Sprint | D25: FALSE | F25: 0 | G25: 22
A26: 23 | B26: ='Read Stocks'!M25 -> PHI | C26: ='Read Stocks'!N25 -> Philippine Long Distance (PHI) | D26: FALSE | F26: 0 | G26: 23 | L26: Primary Stock | N26: =Forms!J4 -> 1 | O26: =INDEX(C4:C195,Forms!J4) -> US S&P 500
A27: 24 | B27: ='Read Stocks'!M26 -> KLL | C27: ='Read Stocks'!N26 -> Kohls | D27: FALSE | F27: 0 | G27: 24 | L27: Use the Drop Down Box for Selecting the Index Value for the base and the date | W27: End Date | X27: =Summary!F2 -> 2020-04-01
A28: 25 | B28: ='Read Stocks'!M27 -> DRI | C28: ='Read Stocks'!N27 -> Darden Resturants | D28: FALSE | F28: 0 | G28: 25 | L28: Use the check boxes for comparison
A29: 26 | B29: ='Read Stocks'!M28 -> MCD | C29: ='Read Stocks'!N28 -> McDonalds | D29: FALSE | F29: 0 | G29: 26 | L29: Use the first check box for index in computing beta and other statistics
A30: 27 | B30: ='Read Stocks'!M29 -> WMT | C30: ='Read Stocks'!N29 -> Wall Mart | D30: FALSE | F30: 0 | G30: 27
A31: 28 | B31: ='Read Stocks'!M30 -> NG.L | C31: ='Read Stocks'!N30 -> National Grid | D31: FALSE | F31: 0 | G31: 28 | L31: When looking at FRED data in individual sheets, shift, CNTL F re-formats. | Y31: Instructions at www.edbodmer.com
A32: 29 | B32: ='Read Stocks'!M31 -> EXC | C32: ='Read Stocks'!N31 -> Exelon | D32: FALSE | F32: 0 | G32: 29 | Y32: Questions: e-mail edwardbodmer@gmail.com
A33: 30 | B33: ='Read Stocks'!M32 -> ENGI.PA | C33: ='Read Stocks'!N32 -> GDF Suez | D33: FALSE | F33: 0 | G33: 30
A34: 31 | B34: ='Read Stocks'!M33 -> EDF.PA | C34: ='Read Stocks'!N33 -> EDF | D34: FALSE | F34: 0 | G34: 31
A35: 32 | B35: ='Read Stocks'!M34 -> ED | C35: ='Read Stocks'!N34 -> Consolidated Edison | D35: FALSE | F35: 0 | G35: 32
A36: 33 | B36: ='Read Stocks'!M35 -> TENA.KL | C36: ='Read Stocks'!N35 -> Tenaga | D36: FALSE | F36: 0 | G36: 33
A37: 34 | B37: ='Read Stocks'!M36 -> MAEOY | C37: ='Read Stocks'!N36 -> Meralco | D37: FALSE | F37: 0 | G37: 34
A38: 35 | B38: ='Read Stocks'!M37 -> VWDRY | C38: ='Read Stocks'!N37 -> Vestas ADR | D38: FALSE | F38: 0 | G38: 35
A39: 36 | B39: ='Read Stocks'!M38 -> VWS.CO | C39: ='Read Stocks'!N38 -> Vestas (Denmark) | D39: FALSE | F39: 0 | G39: 36
A40: 37 | B40: ='Read Stocks'!M39 -> GE | C40: ='Read Stocks'!N39 -> General Electric | D40: FALSE | F40: 0 | G40: 37
A41: 38 | B41: ='Read Stocks'!M40 -> NDX1.DE | C41: ='Read Stocks'!N40 -> Nordex Wind SE: German On-Shore Wind | D41: FALSE | F41: 0 | G41: 38
A42: 39 | B42: ='Read Stocks'!M41 -> 601558.SS | C42: ='Read Stocks'!N41 -> Sinovel Wind: Chinese Wind Manufactrer | D42: FALSE | F42: 0 | G42: 39
A43: 40 | B43: ='Read Stocks'!M42 -> SUZLON.NS | C43: ='Read Stocks'!N42 -> Suzlon: Indian Wind Manufacturer | D43: FALSE | F43: 0 | G43: 40
A44: 41 | B44: ='Read Stocks'!M43 -> 002202.SZ | C44: ='Read Stocks'!N43 -> Goldwind: Chinese Wind Manufacturer | D44: FALSE | F44: =F43+D44 -> 0 | G44: 41 | I44: =INDEX(B:B,H44) -> 
A45: 42 | B45: ='Read Stocks'!M44 -> LB | C45: ='Read Stocks'!N44 -> Victoria Secret | D45: FALSE | F45: =F44+D45 -> 0 | G45: 42
A46: 43 | B46: ='Read Stocks'!M45 -> MY | C46: ='Read Stocks'!N45 -> Ming Yang: Chinese Wind Manufacturer | D46: FALSE | F46: 0 | G46: 43
A47: 44 | B47: ='Read Stocks'!M46 -> FSLR | C47: ='Read Stocks'!N46 -> First Solar (U.S.) | D47: FALSE | F47: 0 | G47: 44
A48: 45 | B48: ='Read Stocks'!M47 -> RECSOL.OL | C48: ='Read Stocks'!N47 -> REC: Solar Manufacturer Norway | D48: FALSE | F48: 0 | G48: 45
A49: 46 | B49: ='Read Stocks'!M48 -> SPWR | C49: ='Read Stocks'!N48 -> SunPower Corporation (U.S.) | D49: FALSE | F49: =F48+D49 -> 0 | G49: 45 | I49: =INDEX(B:B,H49) -> 
A50: 47 | B50: ='Read Stocks'!M49 -> TSL | C50: ='Read Stocks'!N49 -> Trina Solar Limited (China) | D50: FALSE | F50: 0 | G50: 45
A51: 48 | B51: ='Read Stocks'!M50 -> SCTY | C51: ='Read Stocks'!N50 -> Solar City | D51: FALSE | F51: 0 | G51: 45
A52: 49 | B52: ='Read Stocks'!M51 -> BN.PA | C52: ='Read Stocks'!N51 -> Dannone | D52: FALSE | F52: 0 | G52: 45
A53: 50 | B53: ='Read Stocks'!M52 -> PEP | C53: ='Read Stocks'!N52 -> Pepsi Co | D53: FALSE | F53: 0 | G53: 45
A54: 51 | B54: ='Read Stocks'!M53 -> CCE | C54: ='Read Stocks'!N53 -> Coca Cola | D54: FALSE | F54: 0 | G54: 45
A55: 52 | B55: ='Read Stocks'!M54 -> K | C55: ='Read Stocks'!N54 -> Kellog | D55: FALSE | F55: 0 | G55: 45
A56: 53 | B56: ='Read Stocks'!M55 -> GIS | C56: ='Read Stocks'!N55 -> General Mills | D56: FALSE | F56: 0 | G56: 45
A57: 54 | B57: ='Read Stocks'!M56 -> CAG | C57: ='Read Stocks'!N56 -> ConAgra | D57: FALSE | F57: 0 | G57: 45
A58: 55 | B58: ='Read Stocks'!M57 -> HNZ | C58: ='Read Stocks'!N57 -> Heinz | D58: FALSE | F58: 0 | G58: 45
A59: 56 | B59: ='Read Stocks'!M58 -> SLE | C59: ='Read Stocks'!N58 -> Sara Lee | D59: FALSE | F59: 0 | G59: 45
A60: 57 | B60: ='Read Stocks'!M59 -> CHK | C60: ='Read Stocks'!N59 -> Cheasapeak Energy | D60: FALSE | F60: 0 | G60: 45
A61: 58 | B61: ='Read Stocks'!M60 -> RRC | C61: ='Read Stocks'!N60 -> Range Resources | D61: FALSE | F61: 0 | G61: 45
A62: 59 | B62: ='Read Stocks'!M61 -> CLR | C62: ='Read Stocks'!N61 -> Contential Resources | D62: FALSE | F62: 0 | G62: 45
A63: 60 | B63: ='Read Stocks'!M62 -> SD | C63: ='Read Stocks'!N62 -> Sandy Ridge | D63: FALSE | F63: 0 | G63: 45
A64: 61 | B64: ='Read Stocks'!M63 -> MPO | C64: ='Read Stocks'!N63 -> Midstates Petroleum | D64: FALSE | F64: 0 | G64: 45
A65: 62 | B65: ='Read Stocks'!M64 -> RDS-B | C65: ='Read Stocks'!N64 -> Shell Oil | D65: FALSE | F65: 0 | G65: 45
A66: 63 | B66: ='Read Stocks'!M65 -> XOM | C66: ='Read Stocks'!N65 -> Exxon Mobil | D66: FALSE | F66: 0 | G66: 45
A67: 64 | B67: ='Read Stocks'!M66 -> CVX | C67: ='Read Stocks'!N66 -> Chevron | D67: FALSE | F67: 0 | G67: 45
A68: 65 | B68: ='Read Stocks'!M67 -> TOT | C68: ='Read Stocks'!N67 -> Total | D68: FALSE | F68: 0 | G68: 45
A69: 66 | B69: ='Read Stocks'!M68 -> BP | C69: ='Read Stocks'!N68 -> BP | D69: FALSE | F69: 0 | G69: 45 | H69: =MATCH(G69,F$1:F$555,0) ->  | J69: =INDEX(C:C,H69) -> 
A70: 67 | B70: ='Read Stocks'!M69 -> GDP | C70: ='Read Stocks'!N69 -> Goodrich Petroleum Corp. | D70: FALSE | F70: 0 | G70: 45
A71: 68 | B71: ='Read Stocks'!M70 -> SN | C71: ='Read Stocks'!N70 -> Sanchez Energy Corp. | D71: FALSE | F71: 0 | G71: 45
A72: 69 | B72: ='Read Stocks'!M71 -> CWEI | C72: ='Read Stocks'!N71 -> Clayton Williams Energy Inc. | D72: FALSE | F72: 0 | G72: 45
A73: 70 | B73: ='Read Stocks'!M72 -> CPE | C73: ='Read Stocks'!N72 -> Callon Petroleum Co. | D73: FALSE | F73: 0 | G73: 45
A74: 71 | B74: ='Read Stocks'!M73 -> C | C74: ='Read Stocks'!N73 -> Citibank | D74: FALSE | F74: 0 | G74: 45
A75: 72 | B75: ='Read Stocks'!M74 -> HEINY | C75: ='Read Stocks'!N74 -> Heineken | D75: FALSE | F75: 0 | G75: 45
A76: 73 | B76: ='Read Stocks'!M75 -> NYT | C76: ='Read Stocks'!N75 -> New York Times | D76: FALSE | F76: 0 | G76: 45
A77: 74 | B77: ='Read Stocks'!M76 -> BUD | C77: ='Read Stocks'!N76 -> Anheuser-Busch Inbev SA (USD) | D77: FALSE | F77: 0 | G77: 45
A78: 75 | B78: ='Read Stocks'!M77 -> KOF | C78: ='Read Stocks'!N77 -> Coca Cola | D78: FALSE | F78: 0 | G78: 45
A79: 76 | B79: ='Read Stocks'!M78 -> DEO | C79: ='Read Stocks'!N78 -> Diageo | D79: FALSE | F79: 0 | G79: 45
A80: 77 | B80: ='Read Stocks'!M79 -> ECL | C80: ='Read Stocks'!N79 -> Eco Lab | D80: FALSE | F80: 0 | G80: 45
A81: 78 | B81: ='Read Stocks'!M80 -> LNT | C81: ='Read Stocks'!N80 -> Alliant Energy | D81: FALSE | F81: 0 | G81: 45
A82: 79 | B82: ='Read Stocks'!M81 -> IBE.MC | C82: ='Read Stocks'!N81 -> Ibdrola | D82: FALSE | F82: 0 | G82: 45
A83: 80 | B83: ='Read Stocks'!M82 -> 5347.KL | C83: ='Read Stocks'!N82 -> Tenaga | D83: FALSE | F83: 0 | G83: 45
A84: 81 | B84: ='Read Stocks'!M83 -> MAEOY | C84: ='Read Stocks'!N83 -> Meralco | D84: FALSE | F84: 0 | G84: 45
A85: 82 | B85: ='Read Stocks'!M84 -> ED | C85: ='Read Stocks'!N84 -> ConEd | D85: FALSE | F85: 0 | G85: 45
A86: 83 | B86: ='Read Stocks'!M85 -> 015760.KS | C86: ='Read Stocks'!N85 -> Kepco | D86: FALSE | F86: 0 | G86: 45
A87: 84 | B87: ='Read Stocks'!M86 -> TKECF | C87: ='Read Stocks'!N86 -> Tepco | D87: FALSE | F87: 0 | G87: 45
A88: 85 | B88: ='Read Stocks'!M87 -> SO | C88: ='Read Stocks'!N87 -> Southern Companies | D88: FALSE | F88: 0 | G88: 45
A89: 86 | B89: ='Read Stocks'!M88 -> EDF.PA | C89: ='Read Stocks'!N88 -> EDF | D89: FALSE | F89: 0 | G89: 45
A90: 87 | B90: ='Read Stocks'!M89 -> ENGI.PA | C90: ='Read Stocks'!N89 -> Engie | D90: FALSE | F90: 0 | G90: 45
A91: 88 | B91: ='Read Stocks'!M90 -> NG.L | C91: ='Read Stocks'!N90 -> National Grid | D91: FALSE | F91: 0 | G91: 45
A92: 89 | B92: ='Read Stocks'!M91 -> ENEL.MI | C92: ='Read Stocks'!N91 -> Enel | D92: FALSE | F92: 0 | G92: 45
A93: 90 | B93: ='Read Stocks'!M92 -> EOAN.DE | C93: ='Read Stocks'!N92 -> E.on | D93: FALSE | F93: 0 | G93: 45
A94: 91 | B94: ='Read Stocks'!M93 -> EXC | C94: ='Read Stocks'!N93 -> Exelon | D94: FALSE | F94: 0 | G94: 45
A95: 92 | B95: ='Read Stocks'!M94 -> DTE | C95: ='Read Stocks'!N94 -> Detroit Edison | D95: FALSE | F95: 0 | G95: 45
A96: 93 | B96: ='Read Stocks'!M95 -> AES | C96: ='Read Stocks'!N95 -> AES | D96: FALSE | F96: 0 | G96: 45
A97: 94 | B97: ='Read Stocks'!M96 -> NRG | C97: ='Read Stocks'!N96 -> NRG Energy | D97: FALSE | F97: 0 | G97: 45
A98: 95 | B98: ='Read Stocks'!M97 -> PCG | C98: ='Read Stocks'!N97 -> PG&E | D98: FALSE | F98: 0 | G98: 45
A99: 96 | B99: ='Read Stocks'!M98 -> RWE.DE | C99: ='Read Stocks'!N98 -> RWE | D99: FALSE | F99: 0 | G99: 45
A100: 97 | B100: ='Read Stocks'!M99 -> MGEE | C100: ='Read Stocks'!N99 -> Madison Gas and Electric | D100: FALSE | F100: 0 | G100: 45
A101: 98 | B101: ='Read Stocks'!M100 -> WEC | C101: ='Read Stocks'!N100 -> Wisconsin Public Service | D101: FALSE | F101: 0 | G101: 45
A102: 99 | B102: ='Read Stocks'!M101 -> AEE | C102: ='Read Stocks'!N101 -> Ameren | D102: FALSE | F102: 0 | G102: 45
A103: 100 | B103: ='Read Stocks'!M102 -> CMS | C103: ='Read Stocks'!N102 -> CMS Energy | D103: FALSE | F103: 0 | G103: 45
A104: 101 | B104: ='Read Stocks'!M103 -> MMM | C104: ='Read Stocks'!N103 -> 3M | D104: FALSE | F104: 0 | G104: 45
A105: 102 | B105: ='Read Stocks'!M104 -> AAPL | C105: ='Read Stocks'!N104 -> Apple | D105: FALSE | F105: 0 | G105: 45
A106: 103 | B106: ='Read Stocks'!M105 -> BA | C106: ='Read Stocks'!N105 -> Boeing | D106: FALSE | F106: 0 | G106: 45
A107: 104 | B107: ='Read Stocks'!M106 -> CAT | C107: ='Read Stocks'!N106 -> Caterpillar | D107: FALSE | F107: 0 | G107: 45
A108: 105 | B108: ='Read Stocks'!M107 -> CVX | C108: ='Read Stocks'!N107 -> Chevron | D108: FALSE | F108: 0 | G108: 45
A109: 106 | B109: ='Read Stocks'!M108 -> CSCO | C109: ='Read Stocks'!N108 -> Cisco | D109: FALSE | F109: 0 | G109: 45
A110: 107 | B110: ='Read Stocks'!M109 -> KO | C110: ='Read Stocks'!N109 -> Coca-Cola | D110: FALSE | F110: 0 | G110: 45
A111: 108 | B111: ='Read Stocks'!M110 -> DIS | C111: ='Read Stocks'!N110 -> Disney | D111: FALSE | F111: 0 | G111: 45
A112: 109 | B112: ='Read Stocks'!M111 -> DWDP | C112: ='Read Stocks'!N111 -> E I du Pont de Nemours and Co | D112: FALSE | F112: 0 | G112: 45
A113: 110 | B113: ='Read Stocks'!M112 -> XOM | C113: ='Read Stocks'!N112 -> Exxon Mobil | D113: FALSE | F113: =F112+D113 -> 0 | G113: 45 | I113: =INDEX(B:B,H113) -> 
A114: 111 | B114: ='Read Stocks'!M113 -> GE | C114: ='Read Stocks'!N113 -> General Electric | D114: FALSE | F114: 0 | G114: 45
A115: 112 | B115: ='Read Stocks'!M114 -> HD | C115: ='Read Stocks'!N114 -> Home Depot | D115: FALSE | F115: 0 | G115: 45
A116: 113 | B116: ='Read Stocks'!M115 -> IBM | C116: ='Read Stocks'!N115 -> IBM | D116: FALSE | F116: 0 | G116: 45
A117: 114 | B117: ='Read Stocks'!M116 -> INTC | C117: ='Read Stocks'!N116 -> Intel | D117: FALSE | F117: 0 | G117: 45
A118: 115 | B118: ='Read Stocks'!M117 -> JNJ | C118: ='Read Stocks'!N117 -> Johnson & Johnson | D118: FALSE | F118: 0 | G118: 45
A119: 116 | B119: ='Read Stocks'!M118 -> MCD | C119: ='Read Stocks'!N118 -> McDonald's | D119: FALSE | F119: 0 | G119: 45
A120: 117 | B120: ='Read Stocks'!M119 -> MRK | C120: ='Read Stocks'!N119 -> Merck | D120: FALSE | F120: 0 | G120: 45
A121: 118 | B121: ='Read Stocks'!M120 -> MSFT | C121: ='Read Stocks'!N120 -> Microsoft | D121: FALSE | F121: 0 | G121: 45
A122: 119 | B122: ='Read Stocks'!M121 -> NKE | C122: ='Read Stocks'!N121 -> Nike | D122: FALSE | F122: 0 | G122: 45
A123: 120 | B123: ='Read Stocks'!M122 -> PFE | C123: ='Read Stocks'!N122 -> Pfizer | D123: FALSE | F123: 0 | G123: 45
A124: 121 | B124: ='Read Stocks'!M123 -> PG | C124: ='Read Stocks'!N123 -> Procter & Gamble | D124: FALSE | F124: 0 | G124: 45
A125: 122 | B125: ='Read Stocks'!M124 -> IAG.L | C125: ='Read Stocks'!N124 -> British Airways | D125: FALSE | F125: 0 | G125: 45
A126: 123 | B126: ='Read Stocks'!M125 -> GDP Inf | C126: ='Read Stocks'!N125 -> Implicit Price Deflator | D126: FALSE | F126: 0 | G126: 45
A127: 124 | B127: ='Read Stocks'!M126 -> CPI US | C127: ='Read Stocks'!N126 -> Consumer Price Inflation | D127: FALSE | F127: 0 | G127: 45
A128: 125 | B128: ='Read Stocks'!M127 -> Euro | C128: ='Read Stocks'!N127 -> U.S. / Euro Foreign Exchange Rate (EXUSEU) | D128: FALSE | F128: 0 | G128: 45
A129: 126 | B129: ='Read Stocks'!M128 -> INR | C129: ='Read Stocks'!N128 -> India / U.S. Foreign Exchange Rate (DEXINUS) | D129: FALSE | F129: 0 | G129: 45
A130: 127 | B130: ='Read Stocks'!M129 -> UK | C130: ='Read Stocks'!N129 -> U.S. / U.K. Foreign Exchange Rate (EXUSUK) | D130: FALSE | F130: 0 | G130: 45
A131: 128 | B131: ='Read Stocks'!M130 -> IDR | C131: ='Read Stocks'!N130 -> National Currency to US Dollar Spot Exchange Rate for Indonesia (CCUSSP02IDM650N) | D131: FALSE | F131: 0 | G131: 45
A132: 129 | B132: ='Read Stocks'!M131 -> US NOM GNP | C132: ='Read Stocks'!N131 -> Gross National Product (GNP) | D132: FALSE | F132: 0 | G132: 45
A133: 130 | B133: ='Read Stocks'!M132 -> India Disc Rate | C133: ='Read Stocks'!N132 -> Interest Rates, Discount Rate for India (INTDSRINM193N) | D133: FALSE | F133: 0 | G133: 45 | H133: =MATCH(G133,F$1:F$555,0) ->  | J133: =INDEX(C:C,H133) -> 
A134: 131 | B134: ='Read Stocks'!M133 -> India Gvt Bonds | C134: ='Read Stocks'!N133 -> Interest Rates, Government Securities, Government Bonds for India (INTGSBINM193N) | D134: FALSE | F134: 0 | G134: 45
A135: 132 | B135: ='Read Stocks'!M134 -> India 10 Yr Main | C135: ='Read Stocks'!N134 -> Interest Rates: Long-term government bond yields: 10-year: Main including benchmark for India (INDIRLTLT01STM) | D135: FALSE | F135: 0 | G135: 45
A136: 133 | B136: ='Read Stocks'!M135 -> India Inflation | C136: ='Read Stocks'!N135 -> Consumer Price Index: Total All Items for India (CPALTT01INM659N) | D136: FALSE | F136: 0 | G136: 45
A137: 134 | B137: ='Read Stocks'!M136 -> 5 yr treasury | C137: ='Read Stocks'!N136 -> 5-Year Treasury Constant Maturity Rate (GS5) | D137: FALSE | F137: 0 | G137: 45
A138: 135 | B138: ='Read Stocks'!M137 -> 10 year treasury | C138: ='Read Stocks'!N137 -> 10-Year Treasury Constant Maturity Rate (GS10) | D138: TRUE | F138: 1 | G138: 45
A139: 136 | B139: ='Read Stocks'!M138 -> US Med Inc Nom | C139: ='Read Stocks'!N138 -> Median Household Income in the United States (MEHOINUSA646N) | D139: FALSE | F139: 1 | G139: 45
A140: 137 | B140: ='Read Stocks'!M139 -> Median Income | C140: ='Read Stocks'!N139 -> Employed full time: Median usual weekly real earnings: d over (LES1252881600Q) | D140: FALSE | F140: 1 | G140: 45
A141: 138 | B141: ='Read Stocks'!M140 -> Corp Profit | C141: ='Read Stocks'!N140 -> Corporate Profits | D141: FALSE | F141: 1 | G141: 45
A142: 139 | B142: ='Read Stocks'!M141 -> Corp Nonfin | C142: ='Read Stocks'!N141 -> Non Financial Corporate Profits | D142: FALSE | F142: 1 | G142: 45
A143: 140 | B143: ='Read Stocks'!M142 -> Corp Aft Tax | C143: ='Read Stocks'!N142 -> Corporate Profits After Tax | D143: FALSE | F143: 1 | G143: 45
A144: 141 | B144: ='Read Stocks'!M143 -> Corp Inf Adjusted | C144: ='Read Stocks'!N143 -> Corporate Profits with Inflation Adj | D144: FALSE | F144: 1 | G144: 45
A145: 142 | B145: ='Read Stocks'!M144 -> GDP Inflation Index | C145: ='Read Stocks'!N144 -> GDP Inflation Index | D145: FALSE | F145: 1 | G145: 45
A146: 143 | B146: ='Read Stocks'!M145 -> CPI US Index | C146: ='Read Stocks'!N145 -> CPI US Index | D146: FALSE | F146: 1 | G146: 45
A147: 144 | B147: ='Read Stocks'!M146 -> US GDP | C147: ='Read Stocks'!N146 -> US GDP Gross Domestic Product (GDP) | D147: FALSE | F147: 1 | G147: 45
A148: 145 | B148: ='Read Stocks'!M147 -> Median Family Income | C148: ='Read Stocks'!N147 -> Median Family Income in the United States (MEFAINUSA646N) | D148: FALSE | F148: 1 | G148: 45
A149: 146 | B149: ='Read Stocks'!M148 ->  | C149: ='Read Stocks'!N148 ->  | D149: FALSE | F149: 1 | G149: 45
A150: 147 | B150: ='Read Stocks'!M149 ->  | C150: ='Read Stocks'!N149 ->  | D150: FALSE | F150: 1 | G150: 45
A151: 148 | B151: ='Read Stocks'!M150 ->  | C151: ='Read Stocks'!N150 ->  | D151: FALSE | F151: 1 | G151: 45
A152: 149 | B152: ='Read Stocks'!M151 ->  | C152: ='Read Stocks'!N151 ->  | D152: FALSE | F152: 1 | G152: 45
A153: 150 | B153: ='Read Stocks'!M152 ->  | C153: ='Read Stocks'!N152 ->  | D153: FALSE | F153: 1 | G153: 45
A154: 151 | B154: ='Read Stocks'!M153 ->  | C154: ='Read Stocks'!N153 ->  | D154: FALSE | F154: 1 | G154: 45
A155: 152 | B155: ='Read Stocks'!M154 ->  | C155: ='Read Stocks'!N154 ->  | D155: FALSE | F155: 1 | G155: 45
A156: 153 | B156: ='Read Stocks'!M155 ->  | C156: ='Read Stocks'!N155 ->  | D156: FALSE | F156: 1 | G156: 45
A157: 154 | B157: ='Read Stocks'!M156 ->  | C157: ='Read Stocks'!N156 ->  | D157: FALSE | F157: 1 | G157: 45
A158: 155 | B158: ='Read Stocks'!M157 ->  | C158: ='Read Stocks'!N157 ->  | D158: FALSE | F158: 1 | G158: 45
A159: 156 | B159: ='Read Stocks'!M158 ->  | C159: ='Read Stocks'!N158 ->  | D159: FALSE | F159: 1 | G159: 45
A160: 157 | B160: ='Read Stocks'!M159 ->  | C160: ='Read Stocks'!N159 ->  | D160: FALSE | F160: 1 | G160: 45
A161: 158 | B161: ='Read Stocks'!M160 ->  | C161: ='Read Stocks'!N160 ->  | D161: FALSE | F161: 1 | G161: 45
A162: 159 | B162: ='Read Stocks'!M161 ->  | C162: ='Read Stocks'!N161 ->  | D162: FALSE | F162: 1 | G162: 45
A163: 160 | B163: ='Read Stocks'!M162 ->  | C163: ='Read Stocks'!N162 ->  | D163: FALSE | F163: 1 | G163: 45
A164: 161 | B164: ='Read Stocks'!M163 ->  | C164: ='Read Stocks'!N163 ->  | D164: FALSE | F164: 1 | G164: 45
A165: 162 | B165: ='Read Stocks'!M164 ->  | C165: ='Read Stocks'!N164 ->  | D165: FALSE | F165: 1 | G165: 45
A166: 163 | B166: ='Read Stocks'!M165 ->  | C166: ='Read Stocks'!N165 ->  | D166: FALSE | F166: 1 | G166: 45
A167: 164 | B167: ='Read Stocks'!M166 ->  | C167: ='Read Stocks'!N166 ->  | D167: FALSE | F167: 1 | G167: 45
A168: 165 | B168: ='Read Stocks'!M167 ->  | C168: ='Read Stocks'!N167 ->  | D168: FALSE | F168: 1 | G168: 45
A169: 166 | B169: ='Read Stocks'!M168 ->  | C169: ='Read Stocks'!N168 ->  | D169: FALSE | F169: 1 | G169: 45
A170: 167 | B170: ='Read Stocks'!M169 ->  | C170: ='Read Stocks'!N169 ->  | D170: FALSE | F170: 1 | G170: 45
A171: 168 | B171: ='Read Stocks'!M170 ->  | C171: ='Read Stocks'!N170 ->  | D171: FALSE | F171: 1 | G171: 45
A172: 169 | B172: ='Read Stocks'!M171 ->  | C172: ='Read Stocks'!N171 ->  | D172: FALSE | F172: 1 | G172: 45
A173: 170 | B173: ='Read Stocks'!M172 ->  | C173: ='Read Stocks'!N172 ->  | D173: FALSE | F173: 1 | G173: 45
A174: 171 | B174: ='Read Stocks'!M173 ->  | C174: ='Read Stocks'!N173 ->  | D174: FALSE | F174: 1 | G174: 45
A175: 172 | B175: ='Read Stocks'!M174 ->  | C175: ='Read Stocks'!N174 ->  | D175: FALSE | F175: 1 | G175: 45
A176: 173 | B176: ='Read Stocks'!M175 ->  | C176: ='Read Stocks'!N175 ->  | D176: FALSE | F176: 1 | G176: 45
A177: 174 | B177: ='Read Stocks'!M176 ->  | C177: ='Read Stocks'!N176 ->  | D177: FALSE | F177: =F176+D177 -> 1 | G177: 45 | I177: =INDEX(B:B,H177) -> 
A178: 175 | B178: ='Read Stocks'!M177 -> 0 | C178: ='Read Stocks'!N177 -> 0 | D178: FALSE | F178: 1 | G178: 45
A179: 176 | B179: ='Read Stocks'!M178 -> 0 | C179: ='Read Stocks'!N178 -> 0 | D179: FALSE | F179: 1 | G179: 45
A180: 177 | B180: ='Read Stocks'!M179 -> 0 | C180: ='Read Stocks'!N179 -> 0 | D180: FALSE | F180: 1 | G180: 45
A181: 178 | B181: ='Read Stocks'!M180 -> 0 | C181: ='Read Stocks'!N180 -> 0 | D181: FALSE | F181: 1 | G181: 45
A182: 179 | B182: ='Read Stocks'!M181 -> 0 | C182: ='Read Stocks'!N181 -> 0 | D182: FALSE | F182: 1 | G182: 45
A183: 180 | B183: ='Read Stocks'!M182 -> 0 | C183: ='Read Stocks'!N182 -> 0 | D183: FALSE | F183: 1 | G183: 45
A184: 181 | B184: ='Read Stocks'!M183 -> 0 | C184: ='Read Stocks'!N183 -> 0 | D184: FALSE | F184: 1 | G184: 45
A185: 182 | B185: ='Read Stocks'!M184 -> 0 | C185: ='Read Stocks'!N184 -> 0 | D185: FALSE | F185: 1 | G185: 45
A186: 183 | B186: ='Read Stocks'!M185 -> 0 | C186: ='Read Stocks'!N185 -> 0 | D186: FALSE | F186: 1 | G186: 45
A187: 184 | B187: ='Read Stocks'!M186 -> 0 | C187: ='Read Stocks'!N186 -> 0 | D187: FALSE | F187: 1 | G187: 45
A188: 185 | B188: ='Read Stocks'!M187 -> 0 | C188: ='Read Stocks'!N187 -> 0 | D188: FALSE | F188: 1 | G188: 45
A189: 186 | B189: ='Read Stocks'!M188 -> 0 | C189: ='Read Stocks'!N188 -> 0 | D189: FALSE | F189: 1 | G189: 45
A190: 187 | B190: ='Read Stocks'!M189 -> 0 | C190: ='Read Stocks'!N189 -> 0 | D190: FALSE | F190: 1 | G190: 45
A191: 188 | B191: ='Read Stocks'!M190 -> 0 | C191: ='Read Stocks'!N190 -> 0 | D191: FALSE | F191: 1 | G191: 45
A192: 189 | B192: ='Read Stocks'!M191 -> 0 | C192: ='Read Stocks'!N191 -> 0 | D192: FALSE | F192: 1 | G192: 45
A193: 190 | B193: ='Read Stocks'!M192 -> 0 | C193: ='Read Stocks'!N192 -> 0 | D193: FALSE | F193: 1 | G193: 45
A194: 191 | B194: ='Read Stocks'!M193 -> 0 | C194: ='Read Stocks'!N193 -> 0 | D194: FALSE | F194: 1 | G194: 45
A195: 192 | B195: ='Read Stocks'!M194 -> 0 | C195: ='Read Stocks'!N194 -> 0 | D195: FALSE | F195: 1 | G195: 45
D196: FALSE | F196: 1 | G196: 45
D197: FALSE | F197: 1 | G197: 45 | H197: =MATCH(G197,F$1:F$555,0) ->  | J197: =INDEX(C:C,H197) -> 
D198: FALSE | F198: 1 | G198: 45
D199: FALSE | F199: 1 | G199: 45
D200: FALSE | F200: 1 | G200: 45
... 100 more rows

Sheet Summary
E1: Selected Start | F1: =Forms!G9 -> 1954-01-01 | G1: Index No (Frms) | H1: =Forms!J4 -> 1 | M1: Graph Code for Index etc. --> | N1: =Forms!P3 -> 3 | O1: Height | P1: =COUNT(E10:E10000)+1 -> 797 | Q1: Graph Cols | R1: =COUNTIF('Multiple Stock Graph'!D:D,TRUE)+2 -> 3 | X1: Instructions at www.edbodmer.com | AT1: Periods in Yr | AV1: =IF(E7,52,12) -> 12 | BO1: These Are Indices Used
E2: End Date | F2: =Forms!L9 -> 2020-04-01 | G2: Col to Read | H2: =INDEX('Read Stocks'!O3:O202,Summary!H1) -> F | K2: Fin Value | L2: =LOOKUP(F2,$E$10:$E$837,L10:L837) -> 13.7300507 | O2: The Data Shaded in Grey is the Selection for the Graph | X2: Questions: e-mail edwardbodmer@gmail.com | AC2: =MIN(INDIRECT("'"&AC5&"'!A:A")) -> 1953-04-01 | AD2: =MIN(INDIRECT("'"&AD5&"'!A:A")) ->  | BH2: Inflation and Index from Sheet Names | BO2: First two are inflation, next 5 are exchange rates with multiplication
E3: Start of Series | F3: =IFERROR(MIN(INDIRECT("'"&$B$6&"'!A:A")),start_of_date) -> 1927-12-01 | K3: IRR | L3: =(L2)^(1/($L$4-1))-1 -> 0.04096688599 | O3: This uses graph_output -- a range name with offset (Height and width above) | AI3: Exchange Rate Adjustments to Individual Stocks | AO3: Adjusted Values for Exchange Rate | AT3: Beta | AU3: =IFERROR(SLOPE(AU10:AU2000,$AU$10:$AU$2000),0) -> 1 | AV3: =IFERROR(SLOPE(AV12:AV2000,AU12:AU2000),0) -> 0.007845391504 | AW3: =IFERROR(SLOPE(AW12:AW2000,AU12:AU2000),0) -> 0 | AX3: =IFERROR(SLOPE(AX11:AX1999,AU11:AU1999),0) -> 0 | AY3: =IFERROR(SLOPE(AY12:AY2000,AU12:AU2000),0) -> 0 | AZ3: =IFERROR(SLOPE(AZ12:AZ2000,AU12:AU2000),0) -> 0 | BA3: =IFERROR(SLOPE(BA12:BA837,AU12:AU837),0) -> 0 | BB3: =LOOKUP($F$2,$E:$E,BB:BB) -> 5.861002551 | BC3: 1 | BD3: 1 | BE3: 1 | BF3: 1 | BG3: 1 | BH3: Raw Retrieval of Inflation and Exchange Indirect
B4: Raw Date | E4: Final Start | F4: =MAX(F3,F1) -> 1954-01-01 | H4: See Right Data | K4: Yrs for IRR | L4: =(F2-F4-1)/365.25 -> 66.24503765 | O4: Use CNTL F3 to look at range | W4: Raw Values without Index, Inflation Adj from INDIRECT | AC4: Re-orded Lookup Value for Raw Value with Adjusted Date | AT4: Std Dev | AU4: =IFERROR(STDEV(AU10:AU200),0) -> 0.03543678307 | AV4: =IFERROR(STDEV(AV10:AV2000),0) -> 0.004921496546 | AW4: 0 | AX4: 0 | AY4: 0 | AZ4: 0 | BA4: 0 | BB4: =IF(BB3<>1,(BB3)^(1/($L$4-1))-1,"") -> 0.0274733817 | BH4: Retrieves first six items | BO4: Exchange Rate with Lookup
B5: Base Index | F5: Base Stock | H5: Exchange Rate | I5: Adjusted | J5: Adjusted Base | N5: Single | P5: Main | Q5: Comparators from Choose and Data to Right | V5: Code | W5: =TRANSPOSE('Multiple Stock Graph'!I4:I9) -> 10 year treasury | AC5: =W5 -> 10 year treasury | AD5: =X5 ->  | AT5: Volatiltiy | AU5: =AU4*$AV$1^0.5 -> 0.1227566175 | AV5: =AV4*$AV$1^0.5 -> 0.01704856413 | AW5: 0 | AX5: 0 | AY5: 0 | AZ5: 0 | BA5: 0
A6: Base | B6: =Forms!L4 -> S&P 500 | D6: Monthly | E6: Weekly Switch | F6: From Applied | H6: or Inflation | I6: Index | J6: For Exch or Inf | K6: Change | L6: Index | N6: Graph | P6: Item | Q6: First Comparator(Stats) | W6: =MATCH(W5,'Read Stocks'!$M:$M,0) -> 137 | X6: =MATCH(X5,'Read Stocks'!$M:$M,0) ->  | Y6: =MATCH(Y5,'Read Stocks'!$M:$M,0) ->  | Z6: =MATCH(Z5,'Read Stocks'!$M:$M,0) ->  | AA6: =MATCH(AA5,'Read Stocks'!$M:$M,0) ->  | AB6: =MATCH(AB5,'Read Stocks'!$M:$M,0) ->  | AI6: FALSE | AJ6: FALSE | AK6: FALSE | AL6: FALSE | AM6: FALSE | AN6: FALSE | AU6: Growth Rate | AV6: Growth Rate | BB6: Index | BH6: =BO6 -> GDP Inf | BI6: =BP6 -> CPI US | BJ6: Euro | BK6: INR | BL6: UK | BO6: =TRANSPOSE('Exchange Rates'!D13:D47) -> GDP Inf | BP6: CPI US | BQ6: Euro | BR6: INR | BS6: UK | BT6: IDR | BU6: US NOM GNP
A7: Date | B7: Raw Data | D7: Date from | E7: FALSE | F7: Date | G7: Date Selected | H7: Adjustment | I7: for Zero | J7: =B6 -> S&P 500 | K7: =B6 -> S&P 500 | L7: =K7 -> S&P 500 | M7: X-Axis | N7: =CHOOSE($N$1,B6,K7,L7) -> S&P 500 | O7: x-axis | P7: =INDEX('Read Stocks'!N3:N202,Summary!H1) -> US S&P 500 | Q7: =TRANSPOSE('Multiple Stock Graph'!J4:J9) -> 10-Year Treasury Constant Maturity Rate (GS10) | W7: =INDEX('Read Stocks'!$O:$O,Summary!W6) -> B | X7: =INDEX('Read Stocks'!$O:$O,Summary!X6) ->  | Y7: =INDEX('Read Stocks'!$O:$O,Summary!Y6) ->  | Z7: =INDEX('Read Stocks'!$O:$O,Summary!Z6) ->  | AA7: =INDEX('Read Stocks'!$O:$O,Summary!AA6) ->  | AB7: =INDEX('Read Stocks'!$O:$O,Summary!AB6) ->  | AI7: =TRANSPOSE('Multiple Stock Graph'!AA3:AA8) -> 1 | AJ7: 0 | AK7: 0 | AL7: 0 | AM7: 0 | AN7: 0 | AO7: =Q7 -> 10-Year Treasury Constant Maturity Rate (GS10) | AU7: =K7 -> S&P 500 | AV7: =W5 -> 10 year treasury | BB7: =AV7 -> 10 year treasury | BO7: B | BP7: B | BQ7: B | BR7: B | BS7: B | BT7: B | BU7: B | BW7: Weekely
A8: Copied | B8: From Start | D8: Selected Start | E8: Month or Day | F8: Re-Ordered | G8: Switch | H8: ='Multiple Stock Graph'!AA2 -> 1 | J8: Absolute | K8: LN Funct | L8: Index | N8: Choose | Q8: 1 | R8: 2 | S8: 3 | T8: 4 | U8: 5 | V8: 6 | W8: 1 | X8: 2 | Y8: 3 | Z8: 4 | AA8: 5 | AB8: 6 | AI8: =IFERROR(INDEX($BO$6:$BU$6,AI7),"") -> GDP Inf | AJ8: =IFERROR(INDEX($BO$6:$BU$6,AJ7),"") ->  | AO8: 1 | AP8: 2 | AQ8: 3 | AR8: 4 | AS8: 5 | AT8: 6 | BO8: =TRANSPOSE('Multiple Stock Graph'!AB16:AB22) -> Divide | BP8: Divide | BQ8: Multiply | BR8: Divide | BS8: Multiply | BT8: Divide | BU8: Divide | BW8: Date
B9: =H2 -> F | D9: =IF(E7,"Not Used","Applied") -> Applied | E9: Date | F9: =H2 -> F | L9: 1 | P9: =P7 -> US S&P 500 | Q9: =Q7 -> 10-Year Treasury Constant Maturity Rate (GS10) | R9: =R7 ->  | BB9: 1 | BC9: 1 | BD9: 1 | BE9: 1 | BF9: 1 | BG9: 1 | BW9: =IF(E7,"Applied","Not Used") -> Not Used
A10: 1927-12-01 | B10: =IFERROR(LOOKUP($A10,INDIRECT("'"&B$6&"'!A:A"),INDIRECT("'"&B$6&"'!"&$B$9&":"&$B$9)),0) -> 17.66 | D10: =MAX(F3,F1) -> 1954-01-01 | E10: =IF($E$7,BW10,D10) -> 1954-01-01 | F10: =LOOKUP(E10,A:A,B:B) -> 26.08 | G10: =AND(E10>=$F$4,E10<=$F$2) -> TRUE | H10: =IF(H$8<>0,INDEX($BO10:$BU10,H$8),1) -> 0.06876160352 | I10: =IF(H10,H10,I11) -> 0.06876160352 | J10: =IF(ISNUMBER(F10),F10,J11)*I10 -> 1.79330262 | K10: =IFERROR(LN(B10/B9),FALSE) -> FALSE | L10: =IF($G10,(L9*(1+K10)),1) -> 1 | M10: =IF(G10,E10,NA()) -> 1954-01-01 | N10: =CHOOSE($N$1,J10,K10,L10) -> 1 | O10: =M10 -> 1954-01-01 | P10: =N10 -> 1 | Q10: =CHOOSE($N$1,AO10,AV10,BB10) -> 1 | R10: =CHOOSE($N$1,AP10,AW10,BC10) -> 1 | S10: =CHOOSE($N$1,AQ10,AX10,BD10) -> 1 | T10: =CHOOSE($N$1,AR10,AY10,BE10) -> 1 | U10: =CHOOSE($N$1,AS10,AZ10,BF10) -> 1 | V10: =CHOOSE($N$1,AT10,BA10,BG10) -> 1 | W10: =LOOKUP($A10,INDIRECT("'"&W$5&"'!A:A"),INDIRECT("'"&W$5&"'!"&W$7&":"&W$7)) ->  | X10: =LOOKUP($A10,INDIRECT("'"&X$5&"'!A:A"),INDIRECT("'"&X$5&"'!"&X$7&":"&X$7)) ->  | Y10: =LOOKUP($A10,INDIRECT("'"&Y$5&"'!A:A"),INDIRECT("'"&Y$5&"'!"&Y$7&":"&Y$7)) ->  | AC10: =IF(ISNUMBER(LOOKUP($E10,$A:$A,W:W)),LOOKUP($E10,$A:$A,W:W),AC9) -> 1.021397637 | AD10: =IF(ISNUMBER(LOOKUP($E10,$A:$A,X:X)),LOOKUP($E10,$A:$A,X:X),AD9) -> 0 | AE10: =IF(ISNUMBER(LOOKUP($E10,$A:$A,Y:Y)),LOOKUP($E10,$A:$A,Y:Y),AE9) -> 0 | AF10: =IF(ISNUMBER(LOOKUP($E10,$A:$A,Z:Z)),LOOKUP($E10,$A:$A,Z:Z),AF9) -> 0 | AG10: =IF(ISNUMBER(LOOKUP($E10,$A:$A,AA:AA)),LOOKUP($E10,$A:$A,AA:AA),AG9) -> 0 | AH10: =IF(ISNUMBER(LOOKUP($E10,$A:$A,AB:AB)),LOOKUP($E10,$A:$A,AB:AB),AH9) -> 0 | AI10: =IF(AI$7,INDEX($BO10:$BU10,AI$7),1) -> 0.06876160352 | AJ10: =IF(AJ$7,INDEX($BO10:$BU10,AJ$7),1) -> 1 | AK10: 1 | AL10: 1 | AM10: 1 | AN10: 1 | AO10: =IFERROR(IF(ISNUMBER(AC10)>0.1,AC10,AO11)*AI10,AO11) -> 0.07023293935 | AP10: 0 | AQ10: 0 | AR10: 0 | AS10: 0 | AT10: 0 | AU10: =K10 -> FALSE | AV10: =IF(G10,IFERROR(LN(AO10/AO9),FALSE)) -> FALSE | AW10: =IF(G10,IFERROR(LN(AP10/AP9),FALSE)) -> FALSE | AX10: =IF(G10,IFERROR(LN(AQ10/AQ9),FALSE)) -> FALSE | AY10: =IF(G10,IFERROR(LN(AR10/AR9),FALSE)) -> FALSE | AZ10: =IF(G10,IFERROR(LN(AS10/AS9),FALSE)) -> FALSE | BA10: =IF(G10,IFERROR(LN(AT10/AT9),FALSE)) -> FALSE | BB10: 1 | BC10: 1 | BD10: 1 | BE10: 1 | BF10: 1 | BG10: 1 | BH10: =IFERROR(LOOKUP($A10,INDIRECT("'"&BO$6&"'!A:A"),INDIRECT("'"&BO$6&"'!"&BO$7&":"&BO$7)),0) -> 0 | BI10: =IFERROR(LOOKUP($A10,INDIRECT("'"&BP$6&"'!A:A"),INDIRECT("'"&BP$6&"'!"&BP$7&":"&BP$7)),0) -> 0 | BJ10: 0 | BK10: 0 | BL10: 0 | BM10: 0 | BN10: 0 | BO10: =IFERROR(IF(BO$8="Divide",1/LOOKUP($E10,$A:$A,BH:BH)*1,LOOKUP($E10,$A:$A,BH:BH)*1),BO11) -> 0.06876160352 | BP10: =IFERROR(IF(BP$8="Divide",1/LOOKUP($E10,$A:$A,BI:BI)*1,LOOKUP($E10,$A:$A,BI:BI)*1),BP11) -> 0.03711952487 | BQ10: =IFERROR(IF(BQ$8="Divide",1/LOOKUP($E10,$A:$A,BJ:BJ)*1,LOOKUP($E10,$A:$A,BJ:BJ)*1),BQ11) -> 0 | BR10: =IFERROR(IF(BR$8="Divide",1/LOOKUP($E10,$A:$A,BK:BK)*1,LOOKUP($E10,$A:$A,BK:BK)*1),BR11) -> 0.125 | BS10: =IFERROR(IF(BS$8="Divide",1/LOOKUP($E10,$A:$A,BL:BL)*1,LOOKUP($E10,$A:$A,BL:BL)*1),BS11) -> 0 | BT10: =IFERROR(IF(BT$8="Divide",1/LOOKUP($E10,$A:$A,BM:BM)*1,LOOKUP($E10,$A:$A,BM:BM)*1),BT11) -> 0.007299270073 | BU10: =IFERROR(IF(BU$8="Divide",1/LOOKUP($E10,$A:$A,BN:BN)*1,LOOKUP($E10,$A:$A,BN:BN)*1),BU11) -> 0.002581677832 | BW10: =D10 -> 1954-01-01
A11: 1928-01-01 | B11: 17.57 | D11: =IF(D10<$F$2,MIN(EOMONTH(D10,1),$F$2)) -> 1954-02-28 | E11: 1954-02-28 | F11: 26.15 | G11: =AND(E11>=$F$4,E10<=$F$2) -> TRUE | H11: =IF(H$8<>0,INDEX($BO11:$BU11,H$8),1) -> 0.06876160352 | I11: =IF(H11,H11,I12) -> 0.06876160352 | J11: =IF(ISNUMBER(F11),F11,J12)*I11 -> 1.798115932 | K11: =IFERROR(LN(J11/J10),FALSE) -> 0.002680453452 | L11: =IF($G11,(L10*J11/J10),1) -> 1.002684049 | M11: 1954-02-28 | N11: =CHOOSE($N$1,J11,K11,L11) -> 1.002684049 | O11: =M11 -> 1954-02-28 | P11: =N11 -> 1.002684049 | Q11: =IFERROR(CHOOSE($N$1,AO11,AV11,BB11),1) -> 1.002097808 | R11: 1 | S11: 1 | T11: 1 | U11: 1 | V11: 1 | W11: =LOOKUP($A11,INDIRECT("'"&W$5&"'!A:A"),INDIRECT("'"&W$5&"'!"&W$7&":"&W$7)) ->  | Z11: =LOOKUP($A11,INDIRECT("'"&Z$5&"'!A:A"),INDIRECT("'"&Z$5&"'!"&Z$7&":"&Z$7)) ->  | AC11: 1.023540333 | AD11: 0 | AE11: 0 | AF11: 0 | AG11: 0 | AH11: 0 | AI11: =IF(AI$7,INDEX($BO11:$BU11,AI$7),1) -> 0.06876160352 | AJ11: 1 | AK11: 1 | AL11: 1 | AM11: 1 | AN11: 1 | AO11: =IFERROR(IF(ISNUMBER(AC11)>0.1,AC11,AO12)*AI11,AO12) -> 0.07038027459 | AP11: =IFERROR(IF(ISNUMBER(AD11)>0.1,AD11,AP12)*AJ11,AP12) -> 0 | AQ11: =IFERROR(IF(ISNUMBER(AE11)>0.1,AE11,AQ12)*AK11,AQ12) -> 0 | AR11: =IFERROR(IF(ISNUMBER(AF11)>0.1,AF11,AR12)*AL11,AR12) -> 0 | AS11: =IFERROR(IF(ISNUMBER(AG11)>0.1,AG11,AS12)*AM11,AS12) -> 0 | AT11: =IFERROR(IF(ISNUMBER(AH11)>0.1,AH11,AT12)*AN11,AT12) -> 0 | AU11: =K11 -> 0.002680453452 | AV11: 0.002095610892 | AW11: FALSE | AX11: FALSE | AY11: FALSE | AZ11: FALSE | BA11: FALSE | BB11: =IFERROR(IF($G11,BB10*AO11/AO10,1),1) -> 1.002097808 | BC11: =IFERROR(IF($G11,BC10*AP11/AP10,1),1) -> 1 | BD11: =IFERROR(IF($G11,BD10*AQ11/AQ10,1),1) -> 1 | BE11: =IFERROR(IF($G11,BE10*AR11/AR10,1),1) -> 1 | BF11: =IFERROR(IF($G11,BF10*AS11/AS10,1),1) -> 1 | BG11: =IFERROR(IF($G11,BG10*AT11/AT10,1),1) -> 1 | BH11: =IFERROR(LOOKUP($A11,INDIRECT("'"&BO$6&"'!A:A"),INDIRECT("'"&BO$6&"'!"&BO$7&":"&BO$7)),0) -> 0 | BI11: =IFERROR(LOOKUP($A11,INDIRECT("'"&BP$6&"'!A:A"),INDIRECT("'"&BP$6&"'!"&BP$7&":"&BP$7)),0) -> 0 | BJ11: =IFERROR(LOOKUP($A11,INDIRECT("'"&BQ$6&"'!A:A"),INDIRECT("'"&BQ$6&"'!"&BQ$7&":"&BQ$7)),0) -> 0 | BK11: =IFERROR(LOOKUP($A11,INDIRECT("'"&BR$6&"'!A:A"),INDIRECT("'"&BR$6&"'!"&BR$7&":"&BR$7)),0) -> 0 | BL11: =IFERROR(LOOKUP($A11,INDIRECT("'"&BS$6&"'!A:A"),INDIRECT("'"&BS$6&"'!"&BS$7&":"&BS$7)),0) -> 0 | BM11: =IFERROR(LOOKUP($A11,INDIRECT("'"&BT$6&"'!A:A"),INDIRECT("'"&BT$6&"'!"&BT$7&":"&BT$7)),0) -> 0 | BN11: =IFERROR(LOOKUP($A11,INDIRECT("'"&BU$6&"'!A:A"),INDIRECT("'"&BU$6&"'!"&BU$7&":"&BU$7)),0) -> 0 | BO11: 0.06876160352 | BP11: 0.03705075954 | BQ11: 0 | BR11: 0.125 | BS11: 0 | BT11: 0.007299270073 | BU11: 0.002581677832 | BW11: =IF(BW10<=$F$2,BW10+7) -> 1954-01-08
A12: 1928-02-01 | B12: 17.26 | D12: 1954-03-31 | E12: 1954-03-31 | F12: 26.940001 | G12: TRUE | H12: 0.06876160352 | I12: 0.06876160352 | J12: 1.852437668 | K12: =IFERROR(LN(J12/J11),FALSE) -> 0.02976301759 | L12: 1.032975498 | M12: 1954-03-31 | N12: 1.032975498 | O12: 1954-03-31 | P12: =N12 -> 1.032975498 | Q12: =IFERROR(CHOOSE($N$1,AO12,AV12,BB12),1) -> 1.003919704 | R12: =IFERROR(CHOOSE($N$1,AP12,AW12,BC12),1) -> 1 | S12: =IFERROR(CHOOSE($N$1,AQ12,AX12,BD12),1) -> 1 | T12: =IFERROR(CHOOSE($N$1,AR12,AY12,BE12),1) -> 1 | U12: =IFERROR(CHOOSE($N$1,AS12,AZ12,BF12),1) -> 1 | V12: =IFERROR(CHOOSE($N$1,AT12,BA12,BG12),1) -> 1 | AC12: 1.025401214 | AD12: 0 | AE12: 0 | AF12: 0 | AG12: 0 | AH12: 0 | AI12: 0.06876160352 | AJ12: 1 | AK12: 1 | AL12: 1 | AM12: 1 | AN12: 1 | AO12: =IFERROR(IF(ISNUMBER(AC12)>0.1,AC12,AO13)*AI12,AO13) -> 0.07050823172 | AP12: =IFERROR(IF(ISNUMBER(AD12)>0.1,AD12,AP13)*AJ12,AP13) -> 0 | AQ12: =IFERROR(IF(ISNUMBER(AE12)>0.1,AE12,AQ13)*AK12,AQ13) -> 0 | AR12: =IFERROR(IF(ISNUMBER(AF12)>0.1,AF12,AR13)*AL12,AR13) -> 0 | AS12: =IFERROR(IF(ISNUMBER(AG12)>0.1,AG12,AS13)*AM12,AS13) -> 0 | AT12: =IFERROR(IF(ISNUMBER(AH12)>0.1,AH12,AT13)*AN12,AT13) -> 0 | AU12: =K12 -> 0.02976301759 | AV12: 0.001816431481 | AW12: FALSE | AX12: FALSE | AY12: FALSE | AZ12: FALSE | BA12: FALSE | BB12: 1.003919704 | BC12: 1 | BD12: 1 | BE12: 1 | BF12: 1 | BG12: 1 | BH12: 0 | BI12: 0 | BJ12: 0 | BK12: 0 | BL12: 0 | BM12: 0 | BN12: 0 | BO12: 0.06876160352 | BP12: 0.03713330858 | BQ12: 0 | BR12: 0.125 | BS12: 0 | BT12: 0.007299270073 | BU12: 0.002581677832 | BW12: 1954-01-15
A13: 1928-03-01 | B13: 19.280001 | D13: 1954-04-30 | E13: 1954-04-30 | F13: 28.26 | G13: TRUE | H13: 0.06870019236 | I13: 0.06870019236 | J13: 1.941467436 | K13: 0.0469416676 | L13: 1.082621201 | M13: 1954-04-30 | N13: =CHOOSE($N$1,J13,K13,L13) -> 1.082621201 | O13: =M13 -> 1954-04-30 | P13: =N13 -> 1.082621201 | Q13: =IFERROR(CHOOSE($N$1,AO13,AV13,BB13),1) -> 1.004973912 | R13: =IFERROR(CHOOSE($N$1,AP13,AW13,BC13),1) -> 1 | S13: =IFERROR(CHOOSE($N$1,AQ13,AX13,BD13),1) -> 1 | T13: =IFERROR(CHOOSE($N$1,AR13,AY13,BE13),1) -> 1 | U13: =IFERROR(CHOOSE($N$1,AS13,AZ13,BF13),1) -> 1 | V13: =IFERROR(CHOOSE($N$1,AT13,BA13,BG13),1) -> 1 | AC13: 1.027395549 | AD13: 0 | AE13: 0 | AF13: 0 | AG13: 0 | AH13: 0 | AI13: 0.06870019236 | AJ13: 1 | AK13: 1 | AL13: 1 | AM13: 1 | AN13: 1 | AO13: 0.07058227185 | AP13: 0 | AQ13: 0 | AR13: 0 | AS13: 0 | AT13: 0 | AU13: =K13 -> 0.0469416676 | AV13: 0.001049541022 | AW13: FALSE | AX13: FALSE | AY13: FALSE | AZ13: FALSE | BA13: FALSE | BB13: 1.004973912 | BC13: 1 | BD13: 1 | BE13: 1 | BF13: 1 | BG13: 1 | BH13: 0 | BI13: 0 | BJ13: 0 | BK13: 0 | BL13: 0 | BM13: 0 | BN13: 0 | BO13: 0.06870019236 | BP13: 0.03723008191 | BQ13: 0 | BR13: 0.125 | BS13: 0 | BT13: 0.007299270073 | BU13: 0.002576529363 | BW13: 1954-01-22
A14: 1928-04-01 | B14: 19.75 | D14: 1954-05-31 | E14: 1954-05-31 | F14: 29.190001 | G14: TRUE | H14: 0.06870019236 | I14: 0.06870019236 | J14: 2.005358684 | K14: 0.03237884187 | L14: 1.118248901 | M14: 1954-05-31 | N14: 1.118248901 | O14: 1954-05-31 | P14: 1.118248901 | Q14: 1.006931547 | R14: 1 | S14: 1 | T14: 1 | U14: 1 | V14: 1 | AC14: 1.029396859 | AD14: 0 | AE14: 0 | AF14: 0 | AG14: 0 | AH14: 0 | AI14: 0.06870019236 | AJ14: 1 | AK14: 1 | AL14: 1 | AM14: 1 | AN14: 1 | AO14: 0.07071976224 | AP14: 0 | AQ14: 0 | AR14: 0 | AS14: 0 | AT14: 0 | AU14: 0.03237884187 | AV14: 0.00194605042 | AW14: FALSE | AX14: FALSE | AY14: FALSE | AZ14: FALSE | BA14: FALSE | BB14: 1.006931547 | BC14: 1 | BD14: 1 | BE14: 1 | BF14: 1 | BG14: 1 | BH14: 0 | BI14: 0 | BJ14: 0 | BK14: 0 | BL14: 0 | BM14: 0 | BN14: 0 | BO14: 0.06870019236 | BP14: 0.03713330858 | BQ14: 0 | BR14: 0.125 | BS14: 0 | BT14: 0.007299270073 | BU14: 0.002576529363 | BW14: 1954-01-29
A15: 1928-05-01 | B15: 20 | D15: 1954-06-30 | E15: 1954-06-30 | F15: 29.209999 | G15: TRUE | H15: 0.06870019236 | I15: 0.06870019236 | J15: 2.00673255 | K15: 0.0006848630405 | L15: 1.119015011 | M15: 1954-06-30 | N15: 1.119015011 | O15: 1954-06-30 | P15: 1.119015011 | Q15: 1.008966928 | R15: 1 | S15: 1 | T15: 1 | U15: 1 | V15: 1 | AC15: 1.031477651 | AD15: 0 | AE15: 0 | AF15: 0 | AG15: 0 | AH15: 0 | AI15: 0.06870019236 | AJ15: 1 | AK15: 1 | AL15: 1 | AM15: 1 | AN15: 1 | AO15: 0.07086271304 | AP15: 0 | AQ15: 0 | AR15: 0 | AS15: 0 | AT15: 0 | AU15: 0.0006848630405 | AV15: 0.002019329644 | AW15: FALSE | AX15: FALSE | AY15: FALSE | AZ15: FALSE | BA15: FALSE | BB15: 1.008966928 | BC15: 1 | BD15: 1 | BE15: 1 | BF15: 1 | BG15: 1 | BH15: 0 | BI15: 0 | BJ15: 0 | BK15: 0 | BL15: 0 | BM15: 0 | BN15: 0 | BO15: 0.06870019236 | BP15: 0.03711952487 | BQ15: 0 | BR15: 0.125 | BS15: 0 | BT15: 0.007299270073 | BU15: 0.002576529363 | BW15: 1954-02-05
A16: 1928-06-01 | B16: 19.139999 | D16: 1954-07-31 | E16: 1954-07-31 | F16: 30.879999 | G16: TRUE | H16: 0.06861063465 | I16: 0.06861063465 | J16: 2.118696329 | K16: 0.05429315812 | L16: 1.181449414 | M16: 1954-07-31 | N16: 1.181449414 | O16: 1954-07-31 | P16: 1.181449414 | Q16: 1.009556512 | R16: 1 | S16: 1 | T16: 1 | U16: 1 | V16: 1 | AC16: 1.033427568 | AD16: 0 | AE16: 0 | AF16: 0 | AG16: 0 | AH16: 0 | AI16: 0.06861063465 | AJ16: 1 | AK16: 1 | AL16: 1 | AM16: 1 | AN16: 1 | AO16: 0.07090412128 | AP16: 0 | AQ16: 0 | AR16: 0 | AS16: 0 | AT16: 0 | AU16: 0.05429315812 | AV16: 0.0005841738942 | AW16: FALSE | AX16: FALSE | AY16: FALSE | AZ16: FALSE | BA16: FALSE | BB16: 1.009556512 | BC16: 1 | BD16: 1 | BE16: 1 | BF16: 1 | BG16: 1 | BH16: 0 | BI16: 0 | BJ16: 0 | BK16: 0 | BL16: 0 | BM16: 0 | BN16: 0 | BO16: 0.06861063465 | BP16: 0.03723008191 | BQ16: 0 | BR16: 0.125 | BS16: 0 | BT16: 0.007299270073 | BU16: 0.002544309144 | BW16: 1954-02-12
A17: 1928-07-01 | B17: 19.43 | D17: 1954-08-31 | E17: 1954-08-31 | F17: 29.83 | G17: TRUE | H17: 0.06861063465 | I17: 0.06861063465 | J17: 2.046655232 | K17: -0.03459409425 | L17: 1.14127711 | M17: 1954-08-31 | N17: 1.14127711 | O17: 1954-08-31 | P17: 1.14127711 | Q17: 1.01158005 | R17: 1 | S17: 1 | T17: 1 | U17: 1 | V17: 1 | AC17: 1.035498953 | AD17: 0 | AE17: 0 | AF17: 0 | AG17: 0 | AH17: 0 | AI17: 0.06861063465 | AJ17: 1 | AK17: 1 | AL17: 1 | AM17: 1 | AN17: 1 | AO17: 0.07104624033 | AP17: 0 | AQ17: 0 | AR17: 0 | AS17: 0 | AT17: 0 | AU17: -0.03459409425 | AV17: 0.002002377465 | AW17: FALSE | AX17: FALSE | AY17: FALSE | AZ17: FALSE | BA17: FALSE | BB17: 1.01158005 | BC17: 1 | BD17: 1 | BE17: 1 | BF17: 1 | BG17: 1 | BH17: 0 | BI17: 0 | BJ17: 0 | BK17: 0 | BL17: 0 | BM17: 0 | BN17: 0 | BO17: 0.06861063465 | BP17: 0.03724394786 | BQ17: 0 | BR17: 0.125 | BS17: 0 | BT17: 0.007299270073 | BU17: 0.002544309144 | BW17: 1954-02-19
A18: 1928-08-01 | B18: 20.870001 | D18: 1954-09-30 | E18: 1954-09-30 | F18: 32.310001 | G18: TRUE | H18: 0.06861063465 | I18: 0.06861063465 | J18: 2.216809674 | K18: 0.07986221226 | L18: 1.236160395 | M18: 1954-09-30 | N18: 1.236160395 | O18: 1954-09-30 | P18: 1.236160395 | Q18: 1.013624828 | R18: 1 | S18: 1 | T18: 1 | U18: 1 | V18: 1 | AC18: 1.037592079 | AD18: 0 | AE18: 0 | AF18: 0 | AG18: 0 | AH18: 0 | AI18: 0.06861063465 | AJ18: 1 | AK18: 1 | AL18: 1 | AM18: 1 | AN18: 1 | AO18: 0.07118985106 | AP18: 0 | AQ18: 0 | AR18: 0 | AS18: 0 | AT18: 0 | AU18: 0.07986221226 | AV18: 0.002019329644 | AW18: FALSE | AX18: FALSE | AY18: FALSE | AZ18: FALSE | BA18: FALSE | BB18: 1.013624828 | BC18: 1 | BD18: 1 | BE18: 1 | BF18: 1 | BG18: 1 | BH18: 0 | BI18: 0 | BJ18: 0 | BK18: 0 | BL18: 0 | BM18: 0 | BN18: 0 | BO18: 0.06861063465 | BP18: 0.03729951511 | BQ18: 0 | BR18: 0.125 | BS18: 0 | BT18: 0.007299270073 | BU18: 0.002544309144 | BW18: 1954-02-26
A19: 1928-09-01 | B19: 21.139999 | D19: 1954-10-31 | E19: 1954-10-31 | F19: 31.68 | G19: TRUE | H19: 0.06842285323 | I19: 0.06842285323 | J19: 2.16763599 | K19: -0.02243191017 | L19: 1.208739655 | M19: 1954-10-31 | N19: 1.208739655 | O19: 1954-10-31 | P19: 1.208739655 | Q19: 1.012869556 | R19: 1 | S19: 1 | T19: 1 | U19: 1 | V19: 1 | AC19: 1.039664421 | AD19: 0 | AE19: 0 | AF19: 0 | AG19: 0 | AH19: 0 | AI19: 0.06842285323 | AJ19: 1 | AK19: 1 | AL19: 1 | AM19: 1 | AN19: 1 | AO19: 0.07113680607 | AP19: 0 | AQ19: 0 | AR19: 0 | AS19: 0 | AT19: 0 | AU19: -0.02243191017 | AV19: -0.0007453979252 | AW19: FALSE | AX19: FALSE | AY19: FALSE | AZ19: FALSE | BA19: FALSE | BB19: 1.012869556 | BC19: 1 | BD19: 1 | BE19: 1 | BF19: 1 | BG19: 1 | BH19: 0 | BI19: 0 | BJ19: 0 | BK19: 0 | BL19: 0 | BM19: 0 | BN19: 0 | BO19: 0.06842285323 | BP19: 0.0374251497 | BQ19: 0 | BR19: 0.125 | BS19: 0 | BT19: 0.007299270073 | BU19: 0.002487085807 | BW19: 1954-03-05
A20: 1928-10-01 | B20: 21.68 | D20: 1954-11-30 | E20: 1954-11-30 | F20: 34.240002 | G20: TRUE | H20: 0.06842285323 | I20: 0.06842285323 | J20: 2.342798632 | K20: 0.07770904274 | L20: 1.306415663 | M20: 1954-11-30 | N20: 1.306415663 | O20: 1954-11-30 | P20: 1.306415663 | Q20: 1.015002964 | R20: 1 | S20: 1 | T20: 1 | U20: 1 | V20: 1 | AC20: 1.041854267 | AD20: 0 | AE20: 0 | AF20: 0 | AG20: 0 | AH20: 0 | AI20: 0.06842285323 | AJ20: 1 | AK20: 1 | AL20: 1 | AM20: 1 | AN20: 1 | AO20: 0.07128664162 | AP20: 0 | AQ20: 0 | AR20: 0 | AS20: 0 | AT20: 0 | AU20: 0.07770904274 | AV20: 0.002104086227 | AW20: FALSE | AX20: FALSE | AY20: FALSE | AZ20: FALSE | BA20: FALSE | BB20: 1.015002964 | BC20: 1 | BD20: 1 | BE20: 1 | BF20: 1 | BG20: 1 | BH20: 0 | BI20: 0 | BJ20: 0 | BK20: 0 | BL20: 0 | BM20: 0 | BN20: 0 | BO20: 0.06842285323 | BP20: 0.03734129948 | BQ20: 0 | BR20: 0.125 | BS20: 0 | BT20: 0.007299270073 | BU20: 0.002487085807 | BW20: 1954-03-12
A21: 1928-11-01 | B21: 24.280001 | D21: 1954-12-31 | E21: 1954-12-31 | F21: 35.98 | G21: TRUE | H21: 0.06842285323 | I21: 0.06842285323 | J21: 2.461854259 | K21: 0.04956861884 | L21: 1.372804697 | M21: 1954-12-31 | N21: 1.372804697 | O21: 1954-12-31 | P21: 1.372804697 | Q21: 1.017096929 | R21: 1 | S21: 1 | T21: 1 | U21: 1 | V21: 1 | AC21: 1.044003627 | AD21: 0 | AE21: 0 | AF21: 0 | AG21: 0 | AH21: 0 | AI21: 0.06842285323 | AJ21: 1 | AK21: 1 | AL21: 1 | AM21: 1 | AN21: 1 | AO21: 0.07143370694 | AP21: 0 | AQ21: 0 | AR21: 0 | AS21: 0 | AT21: 0 | AU21: 0.04956861884 | AV21: 0.002060888608 | AW21: FALSE | AX21: FALSE | AY21: FALSE | AZ21: FALSE | BA21: FALSE | BB21: 1.017096929 | BC21: 1 | BD21: 1 | BE21: 1 | BF21: 1 | BG21: 1 | BH21: 0 | BI21: 0 | BJ21: 0 | BK21: 0 | BL21: 0 | BM21: 0 | BN21: 0 | BO21: 0.06842285323 | BP21: 0.03735524841 | BQ21: 0 | BR21: 0.125 | BS21: 0 | BT21: 0.007299270073 | BU21: 0.002487085807 | BW21: 1954-03-19
A22: 1928-12-01 | B22: 24.35 | D22: 1955-01-31 | E22: 1955-01-31 | F22: 36.630001 | G22: TRUE | H22: 0.06810597289 | I22: 0.06810597289 | J22: 2.494721855 | K22: 0.01326241215 | L22: 1.391132666 | M22: 1955-01-31 | N22: 1.391132666 | O22: 1955-01-31 | P22: 1.391132666 | Q22: 1.014630713 | R22: 1 | S22: 1 | T22: 1 | U22: 1 | V22: 1 | AC22: 1.046317883 | AD22: 0 | AE22: 0 | AF22: 0 | AG22: 0 | AH22: 0 | AI22: 0.06810597289 | AJ22: 1 | AK22: 1 | AL22: 1 | AM22: 1 | AN22: 1 | AO22: 0.07126049735 | AP22: 0 | AQ22: 0 | AR22: 0 | AS22: 0 | AT22: 0 | AU22: 0.01326241215 | AV22: -0.002427704371 | AW22: FALSE | AX22: FALSE | AY22: FALSE | AZ22: FALSE | BA22: FALSE | BB22: 1.014630713 | BC22: 1 | BD22: 1 | BE22: 1 | BF22: 1 | BG22: 1 | BH22: 0 | BI22: 0 | BJ22: 0 | BK22: 0 | BL22: 0 | BM22: 0 | BN22: 0 | BO22: 0.06810597289 | BP22: 0.03735524841 | BQ22: 0 | BR22: 0.125 | BS22: 0 | BT22: 0.007299270073 | BU22: 0.002406762039 | BW22: 1954-03-26
A23: 1929-01-01 | B23: 25.74 | D23: 1955-02-28 | E23: 1955-02-28 | F23: 36.759998 | G23: TRUE | H23: 0.06810597289 | I23: 0.06810597289 | J23: 2.503575427 | K23: 0.00354263899 | L23: 1.396069687 | M23: 1955-02-28 | N23: 1.396069687 | O23: 1955-02-28 | P23: 1.396069687 | Q23: 1.016914327 | R23: 1 | S23: 1 | T23: 1 | U23: 1 | V23: 1 | AC23: 1.048672815 | AD23: 0 | AE23: 0 | AF23: 0 | AG23: 0 | AH23: 0 | AI23: 0.06810597289 | AJ23: 1 | AK23: 1 | AL23: 1 | AM23: 1 | AN23: 1 | AO23: 0.07142088228 | AP23: 0 | AQ23: 0 | AR23: 0 | AS23: 0 | AT23: 0 | AU23: 0.00354263899 | AV23: 0.002248155934 | AW23: FALSE | AX23: FALSE | AY23: FALSE | AZ23: FALSE | BA23: FALSE | BB23: 1.016914327 | BC23: 1 | BD23: 1 | BE23: 1 | BF23: 1 | BG23: 1 | BH23: 0 | BI23: 0 | BJ23: 0 | BK23: 0 | BL23: 0 | BM23: 0 | BN23: 0 | BO23: 0.06810597289 | BP23: 0.03728560776 | BQ23: 0 | BR23: 0.125 | BS23: 0 | BT23: 0.007299270073 | BU23: 0.002406762039 | BW23: 1954-04-02
A24: 1929-02-01 | B24: 25.59 | D24: 1955-03-31 | E24: 1955-03-31 | F24: 36.580002 | G24: TRUE | H24: 0.06810597289 | I24: 0.06810597289 | J24: 2.491316625 | K24: -0.004908545443 | L24: 1.389233806 | M24: 1955-03-31 | N24: 1.389233806 | O24: 1955-03-31 | P24: 1.389233806 | Q24: 1.019004992 | R24: 1 | S24: 1 | T24: 1 | U24: 1 | V24: 1 | AC24: 1.050828771 | AD24: 0 | AE24: 0 | AF24: 0 | AG24: 0 | AH24: 0 | AI24: 0.06810597289 | AJ24: 1 | AK24: 1 | AL24: 1 | AM24: 1 | AN24: 1 | AO24: 0.07156771579 | AP24: 0 | AQ24: 0 | AR24: 0 | AS24: 0 | AT24: 0 | AU24: -0.004908545443 | AV24: 0.00205377996 | AW24: FALSE | AX24: FALSE | AY24: FALSE | AZ24: FALSE | BA24: FALSE | BB24: 1.019004992 | BC24: 1 | BD24: 1 | BE24: 1 | BF24: 1 | BG24: 1 | BH24: 0 | BI24: 0 | BJ24: 0 | BK24: 0 | BL24: 0 | BM24: 0 | BN24: 0 | BO24: 0.06810597289 | BP24: 0.03732736096 | BQ24: 0 | BR24: 0.125 | BS24: 0 | BT24: 0.007299270073 | BU24: 0.002406762039 | BW24: 1954-04-09
A25: 1929-03-01 | B25: 25.530001 | D25: 1955-04-30 | E25: 1955-04-30 | F25: 37.959999 | G25: TRUE | H25: 0.06782419967 | I25: 0.06782419967 | J25: 2.574606552 | K25: 0.03288539137 | L25: 1.435678799 | M25: 1955-04-30 | N25: 1.435678799 | O25: 1955-04-30 | P25: 1.435678799 | Q25: 1.017159245 | R25: 1 | S25: 1 | T25: 1 | U25: 1 | V25: 1 | AC25: 1.053283104 | AD25: 0 | AE25: 0 | AF25: 0 | AG25: 0 | AH25: 0 | AI25: 0.06782419967 | AJ25: 1 | AK25: 1 | AL25: 1 | AM25: 1 | AN25: 1 | AO25: 0.07143808355 | AP25: 0 | AQ25: 0 | AR25: 0 | AS25: 0 | AT25: 0 | AU25: 0.03288539137 | AV25: -0.001812965261 | AW25: FALSE | AX25: FALSE | AY25: FALSE | AZ25: FALSE | BA25: FALSE | BB25: 1.017159245 | BC25: 1 | BD25: 1 | BE25: 1 | BF25: 1 | BG25: 1 | BH25: 0 | BI25: 0 | BJ25: 0 | BK25: 0 | BL25: 0 | BM25: 0 | BN25: 0 | BO25: 0.06782419967 | BP25: 0.03732736096 | BQ25: 0 | BR25: 0.125 | BS25: 0 | BT25: 0.007299270073 | BU25: 0.002358880004 | BW25: 1954-04-16
A26: 1929-04-01 | B26: 25.940001 | D26: 1955-05-31 | E26: 1955-05-31 | F26: 37.91 | G26: TRUE | H26: 0.06782419967 | I26: 0.06782419967 | J26: 2.57121541 | K26: -0.00131801787 | L26: 1.433787795 | M26: 1955-05-31 | N26: 1.433787795 | O26: 1955-05-31 | P26: 1.433787795 | Q26: 1.019466664 | R26: 1 | S26: 1 | T26: 1 | U26: 1 | V26: 1 | Z26: =LOOKUP($A26,INDIRECT("'"&Z$5&"'!A:A"),INDIRECT("'"&Z$5&"'!"&Z$7&":"&Z$7)) ->  | AC26: 1.055672469 | AD26: 0 | AE26: 0 | AF26: 0 | AG26: 0 | AH26: 0 | AI26: 0.06782419967 | AJ26: 1 | AK26: 1 | AL26: 1 | AM26: 1 | AN26: 1 | AO26: 0.07160014035 | AP26: 0 | AQ26: 0 | AR26: 0 | AS26: 0 | AT26: 0 | AU26: -0.00131801787 | AV26: 0.002265924005 | AW26: FALSE | AX26: FALSE | AY26: FALSE | AZ26: FALSE | BA26: FALSE | BB26: 1.019466664 | BC26: 1 | BD26: 1 | BE26: 1 | BF26: 1 | BG26: 1 | BH26: 0 | BI26: 0 | BJ26: 0 | BK26: 0 | BL26: 0 | BM26: 0 | BN26: 0 | BO26: 0.06782419967 | BP26: 0.03735524841 | BQ26: 0 | BR26: 0.125 | BS26: 0 | BT26: 0.007299270073 | BU26: 0.002358880004 | BW26: 1954-04-23
A27: 1929-05-01 | B27: 24.83 | D27: 1955-06-30 | E27: 1955-06-30 | F27: 41.029999 | G27: TRUE | H27: 0.06782419967 | I27: 0.06782419967 | J27: 2.782826845 | K27: 0.07908855255 | L27: 1.551788758 | M27: 1955-06-30 | N27: 1.551788758 | O27: 1955-06-30 | P27: 1.551788758 | Q27: 1.021873722 | R27: 1 | S27: 1 | T27: 1 | U27: 1 | V27: 1 | AC27: 1.058165013 | AD27: 0 | AE27: 0 | AF27: 0 | AG27: 0 | AH27: 0 | AI27: 0.06782419967 | AJ27: 1 | AK27: 1 | AL27: 1 | AM27: 1 | AN27: 1 | AO27: 0.07176919515 | AP27: 0 | AQ27: 0 | AR27: 0 | AS27: 0 | AT27: 0 | AU27: 0.07908855255 | AV27: 0.002358312883 | AW27: FALSE | AX27: FALSE | AY27: FALSE | AZ27: FALSE | BA27: FALSE | BB27: 1.021873722 | BC27: 1 | BD27: 1 | BE27: 1 | BF27: 1 | BG27: 1 | BH27: 0 | BI27: 0 | BJ27: 0 | BK27: 0 | BL27: 0 | BM27: 0 | BN27: 0 | BO27: 0.06782419967 | BP27: 0.03743916136 | BQ27: 0 | BR27: 0.125 | BS27: 0 | BT27: 0.007299270073 | BU27: 0.002358880004 | BW27: 1954-04-30
A28: 1929-06-01 | B28: 27.41 | D28: 1955-07-31 | E28: 1955-07-31 | F28: 43.52 | G28: TRUE | H28: 0.06735367414 | I28: 0.06735367414 | J28: 2.931231899 | K28: 0.0519555162 | L28: 1.634543923 | M28: 1955-07-31 | N28: 1.634543923 | O28: 1955-07-31 | P28: 1.634543923 | Q28: 1.017203348 | R28: 1 | S28: 1 | T28: 1 | U28: 1 | V28: 1 | AC28: 1.060687215 | AD28: 0 | AE28: 0 | AF28: 0 | AG28: 0 | AH28: 0 | AI28: 0.06735367414 | AJ28: 1 | AK28: 1 | AL28: 1 | AM28: 1 | AN28: 1 | AO28: 0.07144118104 | AP28: 0 | AQ28: 0 | AR28: 0 | AS28: 0 | AT28: 0 | AU28: 0.0519555162 | AV28: -0.004580878804 | AW28: FALSE | AX28: FALSE | AY28: FALSE | AZ28: FALSE | BA28: FALSE | BB28: 1.017203348 | BC28: 1 | BD28: 1 | BE28: 1 | BF28: 1 | BG28: 1 | BH28: 0 | BI28: 0 | BJ28: 0 | BK28: 0 | BL28: 0 | BM28: 0 | BN28: 0 | BO28: 0.06735367414 | BP28: 0.03736920777 | BQ28: 0 | BR28: 0.125 | BS28: 0 | BT28: 0.007299270073 | BU28: 0.002311240951 | BW28: 1954-05-07
A29: 1929-07-01 | B29: 28.879999 | D29: 1955-08-31 | E29: 1955-08-31 | F29: 43.18 | G29: TRUE | H29: 0.06735367414 | I29: 0.06735367414 | J29: 2.908331649 | K29: -0.007843177461 | L29: 1.621774048 | M29: 1955-08-31 | N29: 1.621774048 | O29: 1955-08-31 | P29: 1.621774048 | Q29: 1.019769208 | R29: 1 | S29: 1 | T29: 1 | U29: 1 | V29: 1 | AC29: 1.063362762 | AD29: 0 | AE29: 0 | AF29: 0 | AG29: 0 | AH29: 0 | AI29: 0.06735367414 | AJ29: 1 | AK29: 1 | AL29: 1 | AM29: 1 | AN29: 1 | AO29: 0.07162138897 | AP29: 0 | AQ29: 0 | AR29: 0 | AS29: 0 | AT29: 0 | AU29: -0.007843177461 | AV29: 0.002519289677 | AW29: FALSE | AX29: FALSE | AY29: FALSE | AZ29: FALSE | BA29: FALSE | BB29: 1.019769208 | BC29: 1 | BD29: 1 | BE29: 1 | BF29: 1 | BG29: 1 | BH29: 0 | BI29: 0 | BJ29: 0 | BK29: 0 | BL29: 0 | BM29: 0 | BN29: 0 | BO29: 0.06735367414 | BP29: 0.0374251497 | BQ29: 0 | BR29: 0.125 | BS29: 0 | BT29: 0.007299270073 | BU29: 0.002311240951 | BW29: 1954-05-14
A30: 1929-08-01 | B30: 31.709999 | D30: 1955-09-30 | E30: 1955-09-30 | F30: 43.669998 | G30: TRUE | H30: 0.06735367414 | I30: 0.06735367414 | J30: 2.941334815 | K30: 0.01128389661 | L30: 1.640177616 | M30: 1955-09-30 | N30: 1.640177616 | O30: 1955-09-30 | P30: 1.640177616 | Q30: 1.022341541 | R30: 1 | S30: 1 | T30: 1 | U30: 1 | V30: 1 | AC30: 1.066045058 | AD30: 0 | AE30: 0 | AF30: 0 | AG30: 0 | AH30: 0 | AI30: 0.06735367414 | AJ30: 1 | AK30: 1 | AL30: 1 | AM30: 1 | AN30: 1 | AO30: 0.07180205147 | AP30: 0 | AQ30: 0 | AR30: 0 | AS30: 0 | AT30: 0 | AU30: 0.01128389661 | AV30: 0.002519289677 | AW30: FALSE | AX30: FALSE | AY30: FALSE | AZ30: FALSE | BA30: FALSE | BB30: 1.022341541 | BC30: 1 | BD30: 1 | BE30: 1 | BF30: 1 | BG30: 1 | BH30: 0 | BI30: 0 | BJ30: 0 | BK30: 0 | BL30: 0 | BM30: 0 | BN30: 0 | BO30: 0.06735367414 | BP30: 0.03724394786 | BQ30: 0 | BR30: 0.125 | BS30: 0 | BT30: 0.007299270073 | BU30: 0.002311240951 | BW30: 1954-05-21
A31: 1929-09-01 | B31: 30.16 | D31: 1955-10-31 | E31: 1955-10-31 | F31: 42.34 | G31: TRUE | H31: 0.0666888963 | I31: 0.0666888963 | J31: 2.823607869 | K31: -0.04084804356 | L31: 1.574529496 | M31: 1955-10-31 | N31: 1.574529496 | O31: 1955-10-31 | P31: 1.574529496 | Q31: 1.014647198 | R31: 1 | S31: 1 | T31: 1 | U31: 1 | V31: 1 | AC31: 1.068568518 | AD31: 0 | AE31: 0 | AF31: 0 | AG31: 0 | AH31: 0 | AI31: 0.0666888963 | AJ31: 1 | AK31: 1 | AL31: 1 | AM31: 1 | AN31: 1 | AO31: 0.0712616551 | AP31: 0 | AQ31: 0 | AR31: 0 | AS31: 0 | AT31: 0 | AU31: -0.04084804356 | AV31: -0.007554661498 | AW31: FALSE | AX31: FALSE | AY31: FALSE | AZ31: FALSE | BA31: FALSE | BB31: 1.014647198 | BC31: 1 | BD31: 1 | BE31: 1 | BF31: 1 | BG31: 1 | BH31: 0 | BI31: 0 | BJ31: 0 | BK31: 0 | BL31: 0 | BM31: 0 | BN31: 0 | BO31: 0.0666888963 | BP31: 0.03728560776 | BQ31: 0 | BR31: 0.125 | BS31: 0 | BT31: 0.007299270073 | BU31: 0.002274696953 | BW31: 1954-05-28
A32: 1929-10-01 | B32: 24.15 | D32: 1955-11-30 | E32: 1955-11-30 | F32: 45.509998 | G32: TRUE | H32: 0.0666888963 | I32: 0.0666888963 | J32: 3.035011537 | K32: 0.07219977238 | L32: 1.692414601 | M32: 1955-11-30 | N32: 1.692414601 | O32: 1955-11-30 | P32: 1.692414601 | Q32: 1.01713767 | R32: 1 | S32: 1 | T32: 1 | U32: 1 | V32: 1 | AC32: 1.071191342 | AD32: 0 | AE32: 0 | AF32: 0 | AG32: 0 | AH32: 0 | AI32: 0.0666888963 | AJ32: 1 | AK32: 1 | AL32: 1 | AM32: 1 | AN32: 1 | AO32: 0.0714365683 | AP32: 0 | AQ32: 0 | AR32: 0 | AS32: 0 | AT32: 0 | AU32: 0.07219977238 | AV32: 0.002451513133 | AW32: FALSE | AX32: FALSE | AY32: FALSE | AZ32: FALSE | BA32: FALSE | BB32: 1.01713767 | BC32: 1 | BD32: 1 | BE32: 1 | BF32: 1 | BG32: 1 | BH32: 0 | BI32: 0 | BJ32: 0 | BK32: 0 | BL32: 0 | BM32: 0 | BN32: 0 | BO32: 0.0666888963 | BP32: 0.03720238095 | BQ32: 0 | BR32: 0.125 | BS32: 0 | BT32: 0.007299270073 | BU32: 0.002274696953 | BW32: 1954-06-04
A33: 1929-11-01 | B33: 20.92 | D33: 1955-12-31 | E33: 1955-12-31 | F33: 45.48 | G33: TRUE | H33: 0.0666888963 | I33: 0.0666888963 | J33: 3.033011004 | K33: -0.0006593691998 | L33: 1.691299042 | M33: 1955-12-31 | N33: 1.691299042 | O33: 1955-12-31 | P33: 1.691299042 | Q33: 1.019612241 | R33: 1 | S33: 1 | T33: 1 | U33: 1 | V33: 1 | AC33: 1.073797418 | AD33: 0 | AE33: 0 | AF33: 0 | AG33: 0 | AH33: 0 | AI33: 0.0666888963 | AJ33: 1 | AK33: 1 | AL33: 1 | AM33: 1 | AN33: 1 | AO33: 0.07161036466 | AP33: 0 | AQ33: 0 | AR33: 0 | AS33: 0 | AT33: 0 | AU33: -0.0006593691998 | AV33: 0.002429922059 | AW33: FALSE | AX33: FALSE | AY33: FALSE | AZ33: FALSE | BA33: FALSE | BB33: 1.019612241 | BC33: 1 | BD33: 1 | BE33: 1 | BF33: 1 | BG33: 1 | BH33: 0 | BI33: 0 | BJ33: 0 | BK33: 0 | BL33: 0 | BM33: 0 | BN33: 0 | BO33: 0.0666888963 | BP33: 0.03721622627 | BQ33: 0 | BR33: 0.125 | BS33: 0 | BT33: 0.007299270073 | BU33: 0.002274696953 | BW33: 1954-06-11
A34: 1929-12-01 | B34: 21.450001 | D34: 1956-01-31 | E34: 1956-01-31 | F34: 43.82 | G34: TRUE | H34: 0.06603275225 | I34: 0.06603275225 | J34: 2.893555203 | K34: -0.04706993642 | L34: 1.613534253 | M34: 1956-01-31 | N34: 1.613534253 | O34: 1956-01-31 | P34: 1.613534253 | Q34: 1.012067008 | R34: 1 | S34: 1 | T34: 1 | U34: 1 | V34: 1 | AC34: 1.076442196 | AD34: 0 | AE34: 0 | AF34: 0 | AG34: 0 | AH34: 0 | AI34: 0.06603275225 | AJ34: 1 | AK34: 1 | AL34: 1 | AM34: 1 | AN34: 1 | AO34: 0.07108044082 | AP34: 0 | AQ34: 0 | AR34: 0 | AS34: 0 | AT34: 0 | AU34: -0.04706993642 | AV34: -0.007427616254 | AW34: FALSE | AX34: FALSE | AY34: FALSE | AZ34: FALSE | BA34: FALSE | BB34: 1.012067008 | BC34: 1 | BD34: 1 | BE34: 1 | BF34: 1 | BG34: 1 | BH34: 0 | BI34: 0 | BJ34: 0 | BK34: 0 | BL34: 0 | BM34: 0 | BN34: 0 | BO34: 0.06603275225 | BP34: 0.03727171077 | BQ34: 0 | BR34: 0.125 | BS34: 0 | BT34: 0.007299270073 | BU34: 0.002259391727 | BW34: 1954-06-18
A35: 1930-01-01 | B35: 22.790001 | D35: 1956-02-29 | E35: 1956-02-29 | F35: 45.34 | G35: TRUE | H35: 0.06603275225 | I35: 0.06603275225 | J35: 2.993924987 | K35: 0.03409931091 | L35: 1.669503492 | M35: 1956-02-29 | N35: 1.669503492 | O35: 1956-02-29 | P35: 1.669503492 | Q35: 1.014508169 | R35: 1 | S35: 1 | T35: 1 | U35: 1 | V35: 1 | AC35: 1.079038633 | AD35: 0 | AE35: 0 | AF35: 0 | AG35: 0 | AH35: 0 | AI35: 0.06603275225 | AJ35: 1 | AK35: 1 | AL35: 1 | AM35: 1 | AN35: 1 | AO35: 0.07125189074 | AP35: 0 | AQ35: 0 | AR35: 0 | AS35: 0 | AT35: 0 | AU35: 0.03409931091 | AV35: 0.00240915046 | AW35: FALSE | AX35: FALSE | AY35: FALSE | AZ35: FALSE | BA35: FALSE | BB35: 1.014508169 | BC35: 1 | BD35: 1 | BE35: 1 | BF35: 1 | BG35: 1 | BH35: 0 | BI35: 0 | BJ35: 0 | BK35: 0 | BL35: 0 | BM35: 0 | BN35: 0 | BO35: 0.06603275225 | BP35: 0.03723008191 | BQ35: 0 | BR35: 0.125 | BS35: 0 | BT35: 0.007299270073 | BU35: 0.002259391727 | BW35: 1954-06-25
A36: 1930-02-01 | B36: 23.280001 | D36: 1956-03-31 | E36: 1956-03-31 | F36: 48.48 | G36: TRUE | H36: 0.06603275225 | I36: 0.06603275225 | J36: 3.201267829 | K36: 0.06696169668 | L36: 1.785124158 | M36: 1956-03-31 | N36: 1.785124158 | O36: 1956-03-31 | P36: 1.785124158 | Q36: 1.01689407 | R36: 1 | S36: 1 | T36: 1 | U36: 1 | V36: 1 | AC36: 1.081576296 | AD36: 0 | AE36: 0 | AF36: 0 | AG36: 0 | AH36: 0 | AI36: 0.06603275225 | AJ36: 1 | AK36: 1 | AL36: 1 | AM36: 1 | AN36: 1 | AO36: 0.07141945957 | AP36: 0 | AQ36: 0 | AR36: 0 | AS36: 0 | AT36: 0 | AU36: 0.06696169668 | AV36: 0.002349019714 | AW36: FALSE | AX36: FALSE | AY36: FALSE | AZ36: FALSE | BA36: FALSE | BB36: 1.01689407 | BC36: 1 | BD36: 1 | BE36: 1 | BF36: 1 | BG36: 1 | BH36: 0 | BI36: 0 | BJ36: 0 | BK36: 0 | BL36: 0 | BM36: 0 | BN36: 0 | BO36: 0.06603275225 | BP36: 0.03718854593 | BQ36: 0 | BR36: 0.125 | BS36: 0 | BT36: 0.007299270073 | BU36: 0.002259391727 | BW36: 1954-07-02
A37: 1930-03-01 | B37: 24.15 | D37: 1956-04-30 | E37: 1956-04-30 | F37: 48.380001 | G37: TRUE | H37: 0.06564264146 | I37: 0.06564264146 | J37: 3.175791059 | K37: -0.007990173953 | L37: 1.770917537 | M37: 1956-04-30 | N37: 1.770917537 | O37: 1956-04-30 | P37: 1.770917537 | Q37: 1.013616649 | R37: 1 | S37: 1 | T37: 1 | U37: 1 | V37: 1 | AC37: 1.084497441 | AD37: 0 | AE37: 0 | AF37: 0 | AG37: 0 | AH37: 0 | AI37: 0.06564264146 | AJ37: 1 | AK37: 1 | AL37: 1 | AM37: 1 | AN37: 1 | AO37: 0.07118927667 | AP37: 0 | AQ37: 0 | AR37: 0 | AS37: 0 | AT37: 0 | AU37: -0.007990173953 | AV37: -0.003228176792 | AW37: FALSE | AX37: FALSE | AY37: FALSE | AZ37: FALSE | BA37: FALSE | BB37: 1.013616649 | BC37: 1 | BD37: 1 | BE37: 1 | BF37: 1 | BG37: 1 | BH37: 0 | BI37: 0 | BJ37: 0 | BK37: 0 | BL37: 0 | BM37: 0 | BN37: 0 | BO37: 0.06564264146 | BP37: 0.03713330858 | BQ37: 0 | BR37: 0.125 | BS37: 0 | BT37: 0.007299270073 | BU37: 0.002227925712 | BW37: 1954-07-09
A38: 1930-04-01 | B38: 24.9 | D38: 1956-05-31 | E38: 1956-05-31 | F38: 45.200001 | G38: TRUE | H38: 0.06564264146 | I38: 0.06564264146 | J38: 2.96704746 | K38: -0.06798941689 | L38: 1.654515767 | M38: 1956-05-31 | N38: 1.654515767 | O38: 1956-05-31 | P38: 1.654515767 | Q38: 1.016174296 | R38: 1 | S38: 1 | T38: 1 | U38: 1 | V38: 1 | AC38: 1.08723394 | AD38: 0 | AE38: 0 | AF38: 0 | AG38: 0 | AH38: 0 | AI38: 0.06564264146 | AJ38: 1 | AK38: 1 | AL38: 1 | AM38: 1 | AN38: 1 | AO38: 0.07136890769 | AP38: 0 | AQ38: 0 | AR38: 0 | AS38: 0 | AT38: 0 | AU38: -0.06798941689 | AV38: 0.002520109526 | AW38: FALSE | AX38: FALSE | AY38: FALSE | AZ38: FALSE | BA38: FALSE | BB38: 1.016174296 | BC38: 1 | BD38: 1 | BE38: 1 | BF38: 1 | BG38: 1 | BH38: 0 | BI38: 0 | BJ38: 0 | BK38: 0 | BL38: 0 | BM38: 0 | BN38: 0 | BO38: 0.06564264146 | BP38: 0.03699593045 | BQ38: 0 | BR38: 0.125 | BS38: 0 | BT38: 0.007299270073 | BU38: 0.002227925712 | BW38: 1954-07-16
A39: 1930-05-01 | B39: 24.49 | D39: 1956-06-30 | E39: 1956-06-30 | F39: 46.970001 | G39: TRUE | H39: 0.06564264146 | I39: 0.06564264146 | J39: 3.083234935 | K39: 0.03841201237 | L39: 1.719305432 | M39: 1956-06-30 | N39: 1.719305432 | O39: 1956-06-30 | P39: 1.719305432 | Q39: 1.018763452 | R39: 1 | S39: 1 | T39: 1 | U39: 1 | V39: 1 | AC39: 1.090004152 | AD39: 0 | AE39: 0 | AF39: 0 | AG39: 0 | AH39: 0 | AI39: 0.06564264146 | AJ39: 1 | AK39: 1 | AL39: 1 | AM39: 1 | AN39: 1 | AO39: 0.07155075176 | AP39: 0 | AQ39: 0 | AR39: 0 | AS39: 0 | AT39: 0 | AU39: 0.03841201237 | AV39: 0.002544704696 | AW39: FALSE | AX39: FALSE | AY39: FALSE | AZ39: FALSE | BA39: FALSE | BB39: 1.018763452 | BC39: 1 | BD39: 1 | BE39: 1 | BF39: 1 | BG39: 1 | BH39: 0 | BI39: 0 | BJ39: 0 | BK39: 0 | BL39: 0 | BM39: 0 | BN39: 0 | BO39: 0.06564264146 | BP39: 0.03683241252 | BQ39: 0 | BR39: 0.125 | BS39: 0 | BT39: 0.007299270073 | BU39: 0.002227925712 | BW39: 1954-07-23
A40: 1930-06-01 | B40: 20.459999 | D40: 1956-07-31 | E40: 1956-07-31 | F40: 49.389999 | G40: TRUE | H40: 0.06482982172 | I40: 0.06482982172 | J40: 3.20194483 | K40: 0.03777903514 | L40: 1.785501674 | M40: 1956-07-31 | N40: 1.785501674 | O40: 1956-07-31 | P40: 1.785501674 | Q40: 1.008720499 | R40: 1 | S40: 1 | T40: 1 | U40: 1 | V40: 1 | AC40: 1.092790382 | AD40: 0 | AE40: 0 | AF40: 0 | AG40: 0 | AH40: 0 | AI40: 0.06482982172 | AJ40: 1 | AK40: 1 | AL40: 1 | AM40: 1 | AN40: 1 | AO40: 0.07084540564 | AP40: 0 | AQ40: 0 | AR40: 0 | AS40: 0 | AT40: 0 | AU40: 0.03777903514 | AV40: -0.009906894889 | AW40: FALSE | AX40: FALSE | AY40: FALSE | AZ40: FALSE | BA40: FALSE | BB40: 1.008720499 | BC40: 1 | BD40: 1 | BE40: 1 | BF40: 1 | BG40: 1 | BH40: 0 | BI40: 0 | BJ40: 0 | BK40: 0 | BL40: 0 | BM40: 0 | BN40: 0 | BO40: 0.06482982172 | BP40: 0.03664345914 | BQ40: 0 | BR40: 0.125 | BS40: 0 | BT40: 0.007299270073 | BU40: 0.002202036884 | BW40: 1954-07-30
A41: 1930-07-01 | B41: 21.209999 | D41: 1956-08-31 | E41: 1956-08-31 | F41: 47.509998 | G41: TRUE | H41: 0.06482982172 | I41: 0.06482982172 | J41: 3.0800647 | K41: -0.0388077812 | L41: 1.717537613 | M41: 1956-08-31 | N41: 1.717537613 | O41: 1956-08-31 | P41: 1.717537613 | Q41: 1.011573382 | R41: 1 | S41: 1 | T41: 1 | U41: 1 | V41: 1 | AC41: 1.095881033 | AD41: 0 | AE41: 0 | AF41: 0 | AG41: 0 | AH41: 0 | AI41: 0.06482982172 | AJ41: 1 | AK41: 1 | AL41: 1 | AM41: 1 | AN41: 1 | AO41: 0.07104577198 | AP41: 0 | AQ41: 0 | AR41: 0 | AS41: 0 | AT41: 0 | AU41: -0.0388077812 | AV41: 0.002824227291 | AW41: FALSE | AX41: FALSE | AY41: FALSE | AZ41: FALSE | BA41: FALSE | BB41: 1.011573382 | BC41: 1 | BD41: 1 | BE41: 1 | BF41: 1 | BG41: 1 | BH41: 0 | BI41: 0 | BJ41: 0 | BK41: 0 | BL41: 0 | BM41: 0 | BN41: 0 | BO41: 0.06482982172 | BP41: 0.03661662395 | BQ41: 0 | BR41: 0.125 | BS41: 0 | BT41: 0.007299270073 | BU41: 0.002202036884 | BW41: 1954-08-06
A42: 1930-08-01 | B42: 21.370001 | D42: 1956-09-30 | E42: 1956-09-30 | F42: 45.349998 | G42: TRUE | H42: 0.06482982172 | I42: 0.06482982172 | J42: 2.940032285 | K42: -0.04653004064 | L42: 1.639451285 | M42: 1956-09-30 | N42: 1.639451285 | O42: 1956-09-30 | P42: 1.639451285 | Q42: 1.01447729 | R42: 1 | S42: 1 | T42: 1 | U42: 1 | V42: 1 | AC42: 1.099026962 | AD42: 0 | AE42: 0 | AF42: 0 | AG42: 0 | AH42: 0 | AI42: 0.06482982172 | AJ42: 1 | AK42: 1 | AL42: 1 | AM42: 1 | AN42: 1 | AO42: 0.07124972201 | AP42: 0 | AQ42: 0 | AR42: 0 | AS42: 0 | AT42: 0 | AU42: -0.04653004064 | AV42: 0.002866572384 | AW42: FALSE | AX42: FALSE | AY42: FALSE | AZ42: FALSE | BA42: FALSE | BB42: 1.01447729 | BC42: 1 | BD42: 1 | BE42: 1 | BF42: 1 | BG42: 1 | BH42: 0 | BI42: 0 | BJ42: 0 | BK42: 0 | BL42: 0 | BM42: 0 | BN42: 0 | BO42: 0.06482982172 | BP42: 0.0365630713 | BQ42: 0 | BR42: 0.125 | BS42: 0 | BT42: 0.007299270073 | BU42: 0.002202036884 | BW42: 1954-08-13
A43: 1930-09-01 | B43: 18.59 | D43: 1956-10-31 | E43: 1956-10-31 | F43: 45.580002 | G43: TRUE | H43: 0.06457028475 | I43: 0.06457028475 | J43: 2.943113708 | K43: 0.001047542694 | L43: 1.64116958 | M43: 1956-10-31 | N43: 1.64116958 | O43: 1956-10-31 | P43: 1.64116958 | Q43: 1.013189774 | R43: 1 | S43: 1 | T43: 1 | U43: 1 | V43: 1 | AC43: 1.102044017 | AD43: 0 | AE43: 0 | AF43: 0 | AG43: 0 | AH43: 0 | AI43: 0.06457028475 | AJ43: 1 | AK43: 1 | AL43: 1 | AM43: 1 | AN43: 1 | AO43: 0.07115929598 | AP43: 0 | AQ43: 0 | AR43: 0 | AS43: 0 | AT43: 0 | AU43: 0.001047542694 | AV43: -0.001269948258 | AW43: FALSE | AX43: FALSE | AY43: FALSE | AZ43: FALSE | BA43: FALSE | BB43: 1.013189774 | BC43: 1 | BD43: 1 | BE43: 1 | BF43: 1 | BG43: 1 | BH43: 0 | BI43: 0 | BJ43: 0 | BK43: 0 | BL43: 0 | BM43: 0 | BN43: 0 | BO43: 0.06457028475 | BP43: 0.03635041803 | BQ43: 0 | BR43: 0.125 | BS43: 0 | BT43: 0.007299270073 | BU43: 0.002159719928 | BW43: 1954-08-20
A44: 1930-10-01 | B44: 16.940001 | D44: 1956-11-30 | E44: 1956-11-30 | F44: 45.080002 | G44: TRUE | H44: 0.06457028475 | I44: 0.06457028475 | J44: 2.910828566 | K44: -0.01103033416 | L44: 1.623166405 | M44: 1956-11-30 | N44: 1.623166405 | O44: 1956-11-30 | P44: 1.623166405 | Q44: 1.01619298 | R44: 1 | S44: 1 | T44: 1 | U44: 1 | V44: 1 | AC44: 1.105310596 | AD44: 0 | AE44: 0 | AF44: 0 | AG44: 0 | AH44: 0 | AI44: 0.06457028475 | AJ44: 1 | AK44: 1 | AL44: 1 | AM44: 1 | AN44: 1 | AO44: 0.07137021993 | AP44: 0 | AQ44: 0 | AR44: 0 | AS44: 0 | AT44: 0 | AU44: -0.01103033416 | AV44: 0.002959725278 | AW44: FALSE | AX44: FALSE | AY44: FALSE | AZ44: FALSE | BA44: FALSE | BB44: 1.01619298 | BC44: 1 | BD44: 1 | BE44: 1 | BF44: 1 | BG44: 1 | BH44: 0 | BI44: 0 | BJ44: 0 | BK44: 0 | BL44: 0 | BM44: 0 | BN44: 0 | BO44: 0.06457028475 | BP44: 0.03635041803 | BQ44: 0 | BR44: 0.125 | BS44: 0 | BT44: 0.007299270073 | BU44: 0.002159719928 | BW44: 1954-08-27
A45: 1930-11-01 | B45: 16.379999 | D45: 1956-12-31 | E45: 1956-12-31 | F45: 46.669998 | G45: TRUE | H45: 0.06457028475 | I45: 0.06457028475 | J45: 3.01349506 | K45: 0.03466278357 | L45: 1.68041636 | M45: 1956-12-31 | N45: 1.68041636 | O45: 1956-12-31 | P45: 1.68041636 | Q45: 1.019191445 | R45: 1 | S45: 1 | T45: 1 | U45: 1 | V45: 1 | AC45: 1.108572019 | AD45: 0 | AE45: 0 | AF45: 0 | AG45: 0 | AH45: 0 | AI45: 0.06457028475 | AJ45: 1 | AK45: 1 | AL45: 1 | AM45: 1 | AN45: 1 | AO45: 0.07158081096 | AP45: 0 | AQ45: 0 | AR45: 0 | AS45: 0 | AT45: 0 | AU45: 0.03466278357 | AV45: 0.002946340205 | AW45: FALSE | AX45: FALSE | AY45: FALSE | AZ45: FALSE | BA45: FALSE | BB45: 1.019191445 | BC45: 1 | BD45: 1 | BE45: 1 | BF45: 1 | BG45: 1 | BH45: 0 | BI45: 0 | BJ45: 0 | BK45: 0 | BL45: 0 | BM45: 0 | BN45: 0 | BO45: 0.06457028475 | BP45: 0.03619254434 | BQ45: 0 | BR45: 0.125 | BS45: 0 | BT45: 0.007299270073 | BU45: 0.002159719928 | BW45: 1954-09-03
A46: 1930-12-01 | B46: 15.34 | D46: 1957-01-31 | E46: 1957-01-31 | F46: 44.720001 | G46: TRUE | H46: 0.06369426752 | I46: 0.06369426752 | J46: 2.848407707 | K46: -0.05634041592 | L46: 1.588358638 | M46: 1957-01-31 | N46: 1.588358638 | O46: 1957-01-31 | P46: 1.588358638 | Q46: 1.008318592 | R46: 1 | S46: 1 | T46: 1 | U46: 1 | V46: 1 | AC46: 1.111829702 | AD46: 0 | AE46: 0 | AF46: 0 | AG46: 0 | AH46: 0 | AI46: 0.06369426752 | AJ46: 1 | AK46: 1 | AL46: 1 | AM46: 1 | AN46: 1 | AO46: 0.0708171785 | AP46: 0 | AQ46: 0 | AR46: 0 | AS46: 0 | AT46: 0 | AU46: -0.05634041592 | AV46: -0.01072542922 | AW46: FALSE | AX46: FALSE | AY46: FALSE | AZ46: FALSE | BA46: FALSE | BB46: 1.008318592 | BC46: 1 | BD46: 1 | BE46: 1 | BF46: 1 | BG46: 1 | BH46: 0 | BI46: 0 | BJ46: 0 | BK46: 0 | BL46: 0 | BM46: 0 | BN46: 0 | BO46: 0.06369426752 | BP46: 0.03614022407 | BQ46: 0 | BR46: 0.125 | BS46: 0 | BT46: 0.007299270073 | BU46: 0.002114772958 | BW46: 1954-09-10
A47: 1931-01-01 | B47: 16.190001 | D47: 1957-02-28 | E47: 1957-02-28 | F47: 43.259998 | G47: TRUE | H47: 0.06369426752 | I47: 0.06369426752 | J47: 2.755413885 | K47: -0.03319247692 | L47: 1.536502459 | M47: 1957-02-28 | N47: 1.536502459 | O47: 1957-02-28 | P47: 1.536502459 | Q47: 1.011178901 | R47: 1 | S47: 1 | T47: 1 | U47: 1 | V47: 1 | AC47: 1.114983643 | AD47: 0 | AE47: 0 | AF47: 0 | AG47: 0 | AH47: 0 | AI47: 0.06369426752 | AJ47: 1 | AK47: 1 | AL47: 1 | AM47: 1 | AN47: 1 | AO47: 0.07101806646 | AP47: 0 | AQ47: 0 | AR47: 0 | AS47: 0 | AT47: 0 | AU47: -0.03319247692 | AV47: 0.002832696453 | AW47: FALSE | AX47: FALSE | AY47: FALSE | AZ47: FALSE | BA47: FALSE | BB47: 1.011178901 | BC47: 1 | BD47: 1 | BE47: 1 | BF47: 1 | BG47: 1 | BH47: 0 | BI47: 0 | BJ47: 0 | BK47: 0 | BL47: 0 | BM47: 0 | BN47: 0 | BO47: 0.06369426752 | BP47: 0.03597122302 | BQ47: 0 | BR47: 0.125 | BS47: 0 | BT47: 0.007299270073 | BU47: 0.002114772958 | BW47: 1954-09-17
A48: 1931-02-01 | B48: 18.030001 | D48: 1957-03-31 | E48: 1957-03-31 | F48: 44.110001 | G48: TRUE | H48: 0.06369426752 | I48: 0.06369426752 | J48: 2.809554204 | K48: 0.01945816249 | L48: 1.566692745 | M48: 1957-03-31 | N48: 1.566692745 | O48: 1957-03-31 | P48: 1.566692745 | Q48: 1.013824035 | R48: 1 | S48: 1 | T48: 1 | U48: 1 | V48: 1 | AC48: 1.117900319 | AD48: 0 | AE48: 0 | AF48: 0 | AG48: 0 | AH48: 0 | AI48: 0.06369426752 | AJ48: 1 | AK48: 1 | AL48: 1 | AM48: 1 | AN48: 1 | AO48: 0.07120384194 | AP48: 0 | AQ48: 0 | AR48: 0 | AS48: 0 | AT48: 0 | AU48: 0.01945816249 | AV48: 0.002612474925 | AW48: FALSE | AX48: FALSE | AY48: FALSE | AZ48: FALSE | BA48: FALSE | BB48: 1.013824035 | BC48: 1 | BD48: 1 | BE48: 1 | BF48: 1 | BG48: 1 | BH48: 0 | BI48: 0 | BJ48: 0 | BK48: 0 | BL48: 0 | BM48: 0 | BN48: 0 | BO48: 0.06369426752 | BP48: 0.03589375449 | BQ48: 0 | BR48: 0.125 | BS48: 0 | BT48: 0.007299270073 | BU48: 0.002114772958 | BW48: 1954-09-24
A49: 1931-03-01 | B49: 16.690001 | D49: 1957-04-30 | E49: 1957-04-30 | F49: 45.740002 | G49: TRUE | H49: 0.06325110689 | I49: 0.06325110689 | J49: 2.893105756 | K49: 0.02930475667 | L49: 1.613283628 | M49: 1957-04-30 | N49: 1.613283628 | O49: 1957-04-30 | P49: 1.613283628 | Q49: 1.009745857 | R49: 1 | S49: 1 | T49: 1 | U49: 1 | V49: 1 | AC49: 1.121204403 | AD49: 0 | AE49: 0 | AF49: 0 | AG49: 0 | AH49: 0 | AI49: 0.06325110689 | AJ49: 1 | AK49: 1 | AL49: 1 | AM49: 1 | AN49: 1 | AO49: 0.07091741955 | AP49: 0 | AQ49: 0 | AR49: 0 | AS49: 0 | AT49: 0 | AU49: 0.02930475667 | AV49: -0.004030681676 | AW49: FALSE | AX49: FALSE | AY49: FALSE | AZ49: FALSE | BA49: FALSE | BB49: 1.009745857 | BC49: 1 | BD49: 1 | BE49: 1 | BF49: 1 | BG49: 1 | BH49: 0 | BI49: 0 | BJ49: 0 | BK49: 0 | BL49: 0 | BM49: 0 | BN49: 0 | BO49: 0.06325110689 | BP49: 0.0358037952 | BQ49: 0 | BR49: 0.125 | BS49: 0 | BT49: 0.007299270073 | BU49: 0.002103527194 | BW49: 1954-10-01
A50: 1931-04-01 | B50: 15.09 | D50: 1957-05-31 | E50: 1957-05-31 | F50: 47.43 | G50: TRUE | H50: 0.06325110689 | I50: 0.06325110689 | J50: 3 | K50: 0.03628170757 | L50: 1.672891104 | M50: 1957-05-31 | N50: 1.672891104 | O50: 1957-05-31 | P50: 1.672891104 | Q50: 1.012733598 | R50: 1 | S50: 1 | T50: 1 | U50: 1 | V50: 1 | AC50: 1.124521939 | AD50: 0 | AE50: 0 | AF50: 0 | AG50: 0 | AH50: 0 | AI50: 0.06325110689 | AJ50: 1 | AK50: 1 | AL50: 1 | AM50: 1 | AN50: 1 | AO50: 0.07112725739 | AP50: 0 | AQ50: 0 | AR50: 0 | AS50: 0 | AT50: 0 | AU50: 0.03628170757 | AV50: 0.002954535169 | AW50: FALSE | AX50: FALSE | AY50: FALSE | AZ50: FALSE | BA50: FALSE | BB50: 1.012733598 | BC50: 1 | BD50: 1 | BE50: 1 | BF50: 1 | BG50: 1 | BH50: 0 | BI50: 0 | BJ50: 0 | BK50: 0 | BL50: 0 | BM50: 0 | BN50: 0 | BO50: 0.06325110689 | BP50: 0.03571428571 | BQ50: 0 | BR50: 0.125 | BS50: 0 | BT50: 0.007299270073 | BU50: 0.002103527194 | BW50: 1954-10-08
A51: 1931-05-01 | B51: 13.02 | D51: 1957-06-30 | E51: 1957-06-30 | F51: 47.369999 | G51: TRUE | H51: 0.06325110689 | I51: 0.06325110689 | J51: 2.99620487 | K51: -0.001265844064 | L51: 1.670774825 | M51: 1957-06-30 | N51: 1.670774825 | O51: 1957-06-30 | P51: 1.670774825 | Q51: 1.016002092 | R51: 1 | S51: 1 | T51: 1 | U51: 1 | V51: 1 | AC51: 1.128151218 | AD51: 0 | AE51: 0 | AF51: 0 | AG51: 0 | AH51: 0 | AI51: 0.06325110689 | AJ51: 1 | AK51: 1 | AL51: 1 | AM51: 1 | AN51: 1 | AO51: 0.07135681331 | AP51: 0 | AQ51: 0 | AR51: 0 | AS51: 0 | AT51: 0 | AU51: -0.001265844064 | AV51: 0.003222200392 | AW51: FALSE | AX51: FALSE | AY51: FALSE | AZ51: FALSE | BA51: FALSE | BB51: 1.016002092 | BC51: 1 | BD51: 1 | BE51: 1 | BF51: 1 | BG51: 1 | BH51: 0 | BI51: 0 | BJ51: 0 | BK51: 0 | BL51: 0 | BM51: 0 | BN51: 0 | BO51: 0.06325110689 | BP51: 0.03557452864 | BQ51: 0 | BR51: 0.125 | BS51: 0 | BT51: 0.007299270073 | BU51: 0.002103527194 | BW51: 1954-10-15
A52: 1931-06-01 | B52: 14.83 | D52: 1957-07-31 | E52: 1957-07-31 | F52: 47.91 | G52: TRUE | H52: 0.06287726358 | I52: 0.06287726358 | J52: 3.012449698 | K52: 0.005407156377 | L52: 1.679833434 | M52: 1957-07-31 | N52: 1.679833434 | O52: 1957-07-31 | P52: 1.679833434 | Q52: 1.013259478 | R52: 1 | S52: 1 | T52: 1 | U52: 1 | V52: 1 | AC52: 1.131795301 | AD52: 0 | AE52: 0 | AF52: 0 | AG52: 0 | AH52: 0 | AI52: 0.06287726358 | AJ52: 1 | AK52: 1 | AL52: 1 | AM52: 1 | AN52: 1 | AO52: 0.07116419149 | AP52: 0 | AQ52: 0 | AR52: 0 | AS52: 0 | AT52: 0 | AU52: 0.005407156377 | AV52: -0.002703067392 | AW52: FALSE | AX52: FALSE | AY52: FALSE | AZ52: FALSE | BA52: FALSE | BB52: 1.013259478 | BC52: 1 | BD52: 1 | BE52: 1 | BF52: 1 | BG52: 1 | BH52: 0 | BI52: 0 | BJ52: 0 | BK52: 0 | BL52: 0 | BM52: 0 | BN52: 0 | BO52: 0.06287726358 | BP52: 0.03547357219 | BQ52: 0 | BR52: 0.125 | BS52: 0 | BT52: 0.007299270073 | BU52: 0.002071581425 | BW52: 1954-10-22
A53: 1931-07-01 | B53: 13.73 | D53: 1957-08-31 | E53: 1957-08-31 | F53: 45.220001 | G53: TRUE | H53: 0.06287726358 | I53: 0.06287726358 | J53: 2.843309922 | K53: -0.05778476193 | L53: 1.585515958 | M53: 1957-08-31 | N53: 1.585515958 | O53: 1957-08-31 | P53: 1.585515958 | Q53: 1.016641544 | R53: 1 | S53: 1 | T53: 1 | U53: 1 | V53: 1 | AC53: 1.135573017 | AD53: 0 | AE53: 0 | AF53: 0 | AG53: 0 | AH53: 0 | AI53: 0.06287726358 | AJ53: 1 | AK53: 1 | AL53: 1 | AM53: 1 | AN53: 1 | AO53: 0.07140172391 | AP53: 0 | AQ53: 0 | AR53: 0 | AS53: 0 | AT53: 0 | AU53: -0.05778476193 | AV53: 0.003332250102 | AW53: FALSE | AX53: FALSE | AY53: FALSE | AZ53: FALSE | BA53: FALSE | BB53: 1.016641544 | BC53: 1 | BD53: 1 | BE53: 1 | BF53: 1 | BG53: 1 | BH53: 0 | BI53: 0 | BJ53: 0 | BK53: 0 | BL53: 0 | BM53: 0 | BN53: 0 | BO53: 0.06287726358 | BP53: 0.03536067893 | BQ53: 0 | BR53: 0.125 | BS53: 0 | BT53: 0.007299270073 | BU53: 0.002071581425 | BW53: 1954-10-29
A54: 1931-08-01 | B54: 13.86 | D54: 1957-09-30 | E54: 1957-09-30 | F54: 42.419998 | G54: TRUE | H54: 0.06287726358 | I54: 0.06287726358 | J54: 2.667253395 | K54: -0.06391958697 | L54: 1.487341493 | M54: 1957-09-30 | N54: 1.487341493 | O54: 1957-09-30 | P54: 1.487341493 | Q54: 1.020026264 | R54: 1 | S54: 1 | T54: 1 | U54: 1 | V54: 1 | AC54: 1.139353697 | AD54: 0 | AE54: 0 | AF54: 0 | AG54: 0 | AH54: 0 | AI54: 0.06287726358 | AJ54: 1 | AK54: 1 | AL54: 1 | AM54: 1 | AN54: 1 | AO54: 0.07163944274 | AP54: 0 | AQ54: 0 | AR54: 0 | AS54: 0 | AT54: 0 | AU54: -0.06391958697 | AV54: 0.00332378517 | AW54: FALSE | AX54: FALSE | AY54: FALSE | AZ54: FALSE | BA54: FALSE | BB54: 1.020026264 | BC54: 1 | BD54: 1 | BE54: 1 | BF54: 1 | BG54: 1 | BH54: 0 | BI54: 0 | BJ54: 0 | BK54: 0 | BL54: 0 | BM54: 0 | BN54: 0 | BO54: 0.06287726358 | BP54: 0.03531073446 | BQ54: 0 | BR54: 0.125 | BS54: 0 | BT54: 0.007299270073 | BU54: 0.002071581425 | BW54: 1954-11-05
A55: 1931-09-01 | B55: 9.71 | D55: 1957-10-31 | E55: 1957-10-31 | F55: 41.060001 | G55: TRUE | H55: 0.06283380459 | I55: 0.06283380459 | J55: 2.579956079 | K55: -0.03327687686 | L55: 1.438661858 | M55: 1957-10-31 | N55: 1.438661858 | O55: 1957-10-31 | P55: 1.438661858 | Q55: 1.02264731 | R55: 1 | S55: 1 | T55: 1 | U55: 1 | V55: 1 | AC55: 1.143071424 | AD55: 0 | AE55: 0 | AF55: 0 | AG55: 0 | AH55: 0 | AI55: 0.06283380459 | AJ55: 1 | AK55: 1 | AL55: 1 | AM55: 1 | AN55: 1 | AO55: 0.07182352649 | AP55: 0 | AQ55: 0 | AR55: 0 | AS55: 0 | AT55: 0 | AU55: -0.03327687686 | AV55: 0.002566290802 | AW55: FALSE | AX55: FALSE | AY55: FALSE | AZ55: FALSE | BA55: FALSE | BB55: 1.02264731 | BC55: 1 | BD55: 1 | BE55: 1 | BF55: 1 | BG55: 1 | BH55: 0 | BI55: 0 | BJ55: 0 | BK55: 0 | BL55: 0 | BM55: 0 | BN55: 0 | BO55: 0.06283380459 | BP55: 0.03531073446 | BQ55: 0 | BR55: 0.125 | BS55: 0 | BT55: 0.007299270073 | BU55: 0.002094688289 | BW55: 1954-11-12
A56: 1931-10-01 | B56: 10.43 | D56: 1957-11-30 | E56: 1957-11-30 | F56: 41.720001 | G56: TRUE | H56: 0.06283380459 | I56: 0.06283380459 | J56: 2.62142639 | K56: 0.01594621816 | L56: 1.461786963 | M56: 1957-11-30 | N56: 1.461786963 | O56: 1957-11-30 | P56: 1.461786963 | Q56: 1.025878315 | R56: 1 | S56: 1 | T56: 1 | U56: 1 | V56: 1 | AC56: 1.146682903 | AD56: 0 | AE56: 0 | AF56: 0 | AG56: 0 | AH56: 0 | AI56: 0.06283380459 | AJ56: 1 | AK56: 1 | AL56: 1 | AM56: 1 | AN56: 1 | AO56: 0.07205044948 | AP56: 0 | AQ56: 0 | AR56: 0 | AS56: 0 | AT56: 0 | AU56: 0.01594621816 | AV56: 0.003154471474 | AW56: FALSE | AX56: FALSE | AY56: FALSE | AZ56: FALSE | BA56: FALSE | BB56: 1.025878315 | BC56: 1 | BD56: 1 | BE56: 1 | BF56: 1 | BG56: 1 | BH56: 0 | BI56: 0 | BJ56: 0 | BK56: 0 | BL56: 0 | BM56: 0 | BN56: 0 | BO56: 0.06283380459 | BP56: 0.03519887364 | BQ56: 0 | BR56: 0.125 | BS56: 0 | BT56: 0.007299270073 | BU56: 0.002094688289 | BW56: 1954-11-19
A57: 1931-11-01 | B57: 9.5 | D57: 1957-12-31 | E57: 1957-12-31 | F57: 39.990002 | G57: TRUE | H57: 0.06283380459 | I57: 0.06283380459 | J57: 2.512723971 | K57: -0.04235118123 | L57: 1.401171193 | M57: 1957-12-31 | N57: 1.401171193 | O57: 1957-12-31 | P57: 1.401171193 | Q57: 1.028584947 | R57: 1 | S57: 1 | T57: 1 | U57: 1 | V57: 1 | AC57: 1.149708261 | AD57: 0 | AE57: 0 | AF57: 0 | AG57: 0 | AH57: 0 | AI57: 0.06283380459 | AJ57: 1 | AK57: 1 | AL57: 1 | AM57: 1 | AN57: 1 | AO57: 0.07224054423 | AP57: 0 | AQ57: 0 | AR57: 0 | AS57: 0 | AT57: 0 | AU57: -0.04235118123 | AV57: 0.002634881812 | AW57: FALSE | AX57: FALSE | AY57: FALSE | AZ57: FALSE | BA57: FALSE | BB57: 1.028584947 | BC57: 1 | BD57: 1 | BE57: 1 | BF57: 1 | BG57: 1 | BH57: 0 | BI57: 0 | BJ57: 0 | BK57: 0 | BL57: 0 | BM57: 0 | BN57: 0 | BO57: 0.06283380459 | BP57: 0.03512469266 | BQ57: 0 | BR57: 0.125 | BS57: 0 | BT57: 0.007299270073 | BU57: 0.002094688289 | BW57: 1954-11-26
A58: 1931-12-01 | B58: 8.12 | D58: 1958-01-31 | E58: 1958-01-31 | F58: 41.700001 | G58: TRUE | H58: 0.06216199416 | I58: 0.06216199416 | J58: 2.592155218 | K58: 0.03112224824 | L58: 1.445464469 | M58: 1958-01-31 | N58: 1.445464469 | O58: 1958-01-31 | P58: 1.445464469 | Q58: 1.020257998 | R58: 1 | S58: 1 | T58: 1 | U58: 1 | V58: 1 | AC58: 1.152725537 | AD58: 0 | AE58: 0 | AF58: 0 | AG58: 0 | AH58: 0 | AI58: 0.06216199416 | AJ58: 1 | AK58: 1 | AL58: 1 | AM58: 1 | AN58: 1 | AO58: 0.07165571809 | AP58: 0 | AQ58: 0 | AR58: 0 | AS58: 0 | AT58: 0 | AU58: 0.03112224824 | AV58: -0.008128485794 | AW58: FALSE | AX58: FALSE | AY58: FALSE | AZ58: FALSE | BA58: FALSE | BB58: 1.020257998 | BC58: 1 | BD58: 1 | BE58: 1 | BF58: 1 | BG58: 1 | BH58: 0 | BI58: 0 | BJ58: 0 | BK58: 0 | BL58: 0 | BM58: 0 | BN58: 0 | BO58: 0.06216199416 | BP58: 0.03491620112 | BQ58: 0 | BR58: 0.125 | BS58: 0 | BT58: 0.007299270073 | BU58: 0.002126890274 | BW58: 1954-12-03
A59: 1932-01-01 | B59: 7.94 | D59: 1958-02-28 | E59: 1958-02-28 | F59: 40.84 | G59: TRUE | H59: 0.06216199416 | I59: 0.06216199416 | J59: 2.538695841 | K59: -0.02083915949 | L59: 1.415653897 | M59: 1958-02-28 | N59: 1.415653897 | O59: 1958-02-28 | P59: 1.415653897 | Q59: 1.022900885 | R59: 1 | S59: 1 | T59: 1 | U59: 1 | V59: 1 | AC59: 1.15571157 | AD59: 0 | AE59: 0 | AF59: 0 | AG59: 0 | AH59: 0 | AI59: 0.06216199416 | AJ59: 1 | AK59: 1 | AL59: 1 | AM59: 1 | AN59: 1 | AO59: 0.07184133584 | AP59: 0 | AQ59: 0 | AR59: 0 | AS59: 0 | AT59: 0 | AU59: -0.02083915949 | AV59: 0.002587061627 | AW59: FALSE | AX59: FALSE | AY59: FALSE | AZ59: FALSE | BA59: FALSE | BB59: 1.022900885 | BC59: 1 | BD59: 1 | BE59: 1 | BF59: 1 | BG59: 1 | BH59: 0 | BI59: 0 | BJ59: 0 | BK59: 0 | BL59: 0 | BM59: 0 | BN59: 0 | BO59: 0.06216199416 | BP59: 0.03484320557 | BQ59: 0 | BR59: 0.125 | BS59: 0 | BT59: 0.007299270073 | BU59: 0.002126890274 | BW59: 1954-12-10
A60: 1932-02-01 | B60: 8.29 | D60: 1958-03-31 | E60: 1958-03-31 | F60: 42.099998 | G60: TRUE | H60: 0.06216199416 | I60: 0.06216199416 | J60: 2.61701983 | K60: 0.03038569989 | L60: 1.459329731 | M60: 1958-03-31 | N60: 1.459329731 | O60: 1958-03-31 | P60: 1.459329731 | Q60: 1.025239265 | R60: 1 | S60: 1 | T60: 1 | U60: 1 | V60: 1 | AC60: 1.158353558 | AD60: 0 | AE60: 0 | AF60: 0 | AG60: 0 | AH60: 0 | AI60: 0.06216199416 | AJ60: 1 | AK60: 1 | AL60: 1 | AM60: 1 | AN60: 1 | AO60: 0.07200556711 | AP60: 0 | AQ60: 0 | AR60: 0 | AS60: 0 | AT60: 0 | AU60: 0.03038569989 | AV60: 0.002283418412 | AW60: FALSE | AX60: FALSE | AY60: FALSE | AZ60: FALSE | BA60: FALSE | BB60: 1.025239265 | BC60: 1 | BD60: 1 | BE60: 1 | BF60: 1 | BG60: 1 | BH60: 0 | BI60: 0 | BJ60: 0 | BK60: 0 | BL60: 0 | BM60: 0 | BN60: 0 | BO60: 0.06216199416 | BP60: 0.03463803256 | BQ60: 0 | BR60: 0.125 | BS60: 0 | BT60: 0.007299270073 | BU60: 0.002126890274 | BW60: 1954-12-17
A61: 1932-03-01 | B61: 7.31 | D61: 1958-04-30 | E61: 1958-04-30 | F61: 43.439999 | G61: TRUE | H61: 0.06198090988 | I61: 0.06198090988 | J61: 2.692450663 | K61: 0.02841560532 | L61: 1.501392254 | M61: 1958-04-30 | N61: 1.501392254 | O61: 1958-04-30 | P61: 1.501392254 | Q61: 1.024753095 | R61: 1 | S61: 1 | T61: 1 | U61: 1 | V61: 1 | AC61: 1.161186923 | AD61: 0 | AE61: 0 | AF61: 0 | AG61: 0 | AH61: 0 | AI61: 0.06198090988 | AJ61: 1 | AK61: 1 | AL61: 1 | AM61: 1 | AN61: 1 | AO61: 0.071971422 | AP61: 0 | AQ61: 0 | AR61: 0 | AS61: 0 | AT61: 0 | AU61: 0.02841560532 | AV61: -0.0004743133651 | AW61: FALSE | AX61: FALSE | AY61: FALSE | AZ61: FALSE | BA61: FALSE | BB61: 1.024753095 | BC61: 1 | BD61: 1 | BE61: 1 | BF61: 1 | BG61: 1 | BH61: 0 | BI61: 0 | BJ61: 0 | BK61: 0 | BL61: 0 | BM61: 0 | BN61: 0 | BO61: 0.06198090988 | BP61: 0.03455425017 | BQ61: 0 | BR61: 0.125 | BS61: 0 | BT61: 0.007299270073 | BU61: 0.002106717902 | BW61: 1954-12-24
A62: 1932-04-01 | B62: 5.83 | D62: 1958-05-31 | E62: 1958-05-31 | F62: 44.09 | G62: TRUE | H62: 0.06198090988 | I62: 0.06198090988 | J62: 2.732738317 | K62: 0.01485234676 | L62: 1.523857873 | M62: 1958-05-31 | N62: 1.523857873 | O62: 1958-05-31 | P62: 1.523857873 | Q62: 1.027212503 | R62: 1 | S62: 1 | T62: 1 | U62: 1 | V62: 1 | AC62: 1.163973771 | AD62: 0 | AE62: 0 | AF62: 0 | AG62: 0 | AH62: 0 | AI62: 0.06198090988 | AJ62: 1 | AK62: 1 | AL62: 1 | AM62: 1 | AN62: 1 | AO62: 0.07214415341 | AP62: 0 | AQ62: 0 | AR62: 0 | AS62: 0 | AT62: 0 | AU62: 0.01485234676 | AV62: 0.0023971246 | AW62: FALSE | AX62: FALSE | AY62: FALSE | AZ62: FALSE | BA62: FALSE | BB62: 1.027212503 | BC62: 1 | BD62: 1 | BE62: 1 | BF62: 1 | BG62: 1 | BH62: 0 | BI62: 0 | BJ62: 0 | BK62: 0 | BL62: 0 | BM62: 0 | BN62: 0 | BO62: 0.06198090988 | BP62: 0.03455425017 | BQ62: 0 | BR62: 0.125 | BS62: 0 | BT62: 0.007299270073 | BU62: 0.002106717902 | BW62: 1954-12-31
A63: 1932-05-01 | B63: 4.47 | D63: 1958-06-30 | E63: 1958-06-30 | F63: 45.240002 | G63: TRUE | H63: 0.06198090988 | I63: 0.06198090988 | J63: 2.804016487 | K63: 0.02574869609 | L63: 1.563604746 | M63: 1958-06-30 | N63: 1.563604746 | O63: 1958-06-30 | P63: 1.563604746 | Q63: 1.029803611 | R63: 1 | S63: 1 | T63: 1 | U63: 1 | V63: 1 | AC63: 1.166909855 | AD63: 0 | AE63: 0 | AF63: 0 | AG63: 0 | AH63: 0 | AI63: 0.06198090988 | AJ63: 1 | AK63: 1 | AL63: 1 | AM63: 1 | AN63: 1 | AO63: 0.07232613457 | AP63: 0 | AQ63: 0 | AR63: 0 | AS63: 0 | AT63: 0 | AU63: 0.02574869609 | AV63: 0.002519289677 | AW63: FALSE | AX63: FALSE | AY63: FALSE | AZ63: FALSE | BA63: FALSE | BB63: 1.029803611 | BC63: 1 | BD63: 1 | BE63: 1 | BF63: 1 | BG63: 1 | BH63: 0 | BI63: 0 | BJ63: 0 | BK63: 0 | BL63: 0 | BM63: 0 | BN63: 0 | BO63: 0.06198090988 | BP63: 0.03459010723 | BQ63: 0 | BR63: 0.125 | BS63: 0 | BT63: 0.007299270073 | BU63: 0.002106717902 | BW63: 1955-01-07
A64: 1932-06-01 | B64: 4.43 | D64: 1958-07-31 | E64: 1958-07-31 | F64: 47.189999 | G64: TRUE | H64: 0.06160670281 | I64: 0.06160670281 | J64: 2.907220244 | K64: 0.03614453308 | L64: 1.621154295 | M64: 1958-07-31 | N64: 1.621154295 | O64: 1958-07-31 | P64: 1.621154295 | Q64: 1.026278388 | R64: 1 | S64: 1 | T64: 1 | U64: 1 | V64: 1 | AC64: 1.169978988 | AD64: 0 | AE64: 0 | AF64: 0 | AG64: 0 | AH64: 0 | AI64: 0.06160670281 | AJ64: 1 | AK64: 1 | AL64: 1 | AM64: 1 | AN64: 1 | AO64: 0.0720785478 | AP64: 0 | AQ64: 0 | AR64: 0 | AS64: 0 | AT64: 0 | AU64: 0.03614453308 | AV64: -0.00342907178 | AW64: FALSE | AX64: FALSE | AY64: FALSE | AZ64: FALSE | BA64: FALSE | BB64: 1.026278388 | BC64: 1 | BD64: 1 | BE64: 1 | BF64: 1 | BG64: 1 | BH64: 0 | BI64: 0 | BJ64: 0 | BK64: 0 | BL64: 0 | BM64: 0 | BN64: 0 | BO64: 0.06160670281 | BP64: 0.03461405331 | BQ64: 0 | BR64: 0.125 | BS64: 0 | BT64: 0.007299270073 | BU64: 0.002047309221 | BW64: 1955-01-14
A65: 1932-07-01 | B65: 6.03 | D65: 1958-08-31 | E65: 1958-08-31 | F65: 47.75 | G65: TRUE | H65: 0.06160670281 | I65: 0.06160670281 | J65: 2.941720059 | K65: 0.01179708238 | L65: 1.640392439 | M65: 1958-08-31 | N65: 1.640392439 | O65: 1958-08-31 | P65: 1.640392439 | Q65: 1.029363972 | R65: 1 | S65: 1 | T65: 1 | U65: 1 | V65: 1 | AC65: 1.173496618 | AD65: 0 | AE65: 0 | AF65: 0 | AG65: 0 | AH65: 0 | AI65: 0.06160670281 | AJ65: 1 | AK65: 1 | AL65: 1 | AM65: 1 | AN65: 1 | AO65: 0.07229525739 | AP65: 0 | AQ65: 0 | AR65: 0 | AS65: 0 | AT65: 0 | AU65: 0.01179708238 | AV65: 0.003002064634 | AW65: FALSE | AX65: FALSE | AY65: FALSE | AZ65: FALSE | BA65: FALSE | BB65: 1.029363972 | BC65: 1 | BD65: 1 | BE65: 1 | BF65: 1 | BG65: 1 | BH65: 0 | BI65: 0 | BJ65: 0 | BK65: 0 | BL65: 0 | BM65: 0 | BN65: 0 | BO65: 0.06160670281 | BP65: 0.03455425017 | BQ65: 0 | BR65: 0.125 | BS65: 0 | BT65: 0.007299270073 | BU65: 0.002047309221 | BW65: 1955-01-21
A66: 1932-08-01 | B66: 8.39 | D66: 1958-09-30 | E66: 1958-09-30 | F66: 50.060001 | G66: TRUE | H66: 0.06160670281 | I66: 0.06160670281 | J66: 3.084031604 | K66: 0.04724323905 | L66: 1.719749679 | M66: 1958-09-30 | N66: 1.719749679 | O66: 1958-09-30 | P66: 1.719749679 | Q66: 1.032651168 | R66: 1 | S66: 1 | T66: 1 | U66: 1 | V66: 1 | Z66: =LOOKUP($A66,INDIRECT("'"&Z$5&"'!A:A"),INDIRECT("'"&Z$5&"'!"&Z$7&":"&Z$7)) ->  | AC66: 1.177244091 | AD66: 0 | AE66: 0 | AF66: 0 | AG66: 0 | AH66: 0 | AI66: =IF(AI$7,INDEX($BO66:$BU66,AI$7),1) -> 0.06160670281 | AJ66: 1 | AK66: 1 | AL66: 1 | AM66: 1 | AN66: 1 | AO66: 0.07252612685 | AP66: 0 | AQ66: 0 | AR66: 0 | AS66: 0 | AT66: 0 | AU66: 0.04724323905 | AV66: 0.003188336507 | AW66: FALSE | AX66: FALSE | AY66: FALSE | AZ66: FALSE | BA66: FALSE | BB66: 1.032651168 | BC66: 1 | BD66: 1 | BE66: 1 | BF66: 1 | BG66: 1 | BH66: 0 | BI66: 0 | BJ66: 0 | BK66: 0 | BL66: 0 | BM66: 0 | BN66: 0 | BO66: 0.06160670281 | BP66: 0.03459010723 | BQ66: 0 | BR66: 0.125 | BS66: 0 | BT66: 0.007299270073 | BU66: 0.002047309221 | BW66: 1955-01-28
A67: 1932-09-01 | B67: 8.08 | D67: 1958-10-31 | E67: 1958-10-31 | F67: 51.330002 | G67: TRUE | H67: 0.06131583788 | I67: 0.06131583788 | J67: 3.147342081 | K67: 0.0203206094 | L67: 1.755053523 | M67: 1958-10-31 | N67: 1.755053523 | O67: 1958-10-31 | P67: 1.755053523 | Q67: 1.030985731 | R67: 1 | S67: 1 | T67: 1 | U67: 1 | V67: 1 | AC67: 1.180920963 | AD67: 0 | AE67: 0 | AF67: 0 | AG67: 0 | AH67: 0 | AI67: 0.06131583788 | AJ67: 1 | AK67: 1 | AL67: 1 | AM67: 1 | AN67: 1 | AO67: 0.07240915831 | AP67: 0 | AQ67: 0 | AR67: 0 | AS67: 0 | AT67: 0 | AU67: 0.0203206094 | AV67: -0.001614079811 | AW67: FALSE | AX67: FALSE | AY67: FALSE | AZ67: FALSE | BA67: FALSE | BB67: 1.030985731 | BC67: 1 | BD67: 1 | BE67: 1 | BF67: 1 | BG67: 1 | BH67: 0 | BI67: 0 | BJ67: 0 | BK67: 0 | BL67: 0 | BM67: 0 | BN67: 0 | BO67: 0.06131583788 | BP67: 0.03459010723 | BQ67: 0 | BR67: 0.125 | BS67: 0 | BT67: 0.007299270073 | BU67: 0.001991476481 | BW67: 1955-02-04
A68: 1932-10-01 | B68: 6.96 | D68: 1958-11-30 | E68: 1958-11-30 | F68: 52.48 | G68: TRUE | H68: 0.06131583788 | I68: 0.06131583788 | J68: 3.217855172 | K68: 0.0221567291 | L68: 1.794373764 | M68: 1958-11-30 | N68: 1.794373764 | O68: 1958-11-30 | P68: 1.794373764 | Q68: 1.034260593 | R68: 1 | S68: 1 | T68: 1 | U68: 1 | V68: 1 | AC68: 1.184672086 | AD68: 0 | AE68: 0 | AF68: 0 | AG68: 0 | AH68: 0 | AI68: 0.06131583788 | AJ68: 1 | AK68: 1 | AL68: 1 | AM68: 1 | AN68: 1 | AO68: 0.07263916154 | AP68: 0 | AQ68: 0 | AR68: 0 | AS68: 0 | AT68: 0 | AU68: 0.0221567291 | AV68: 0.003171404134 | AW68: FALSE | AX68: FALSE | AY68: FALSE | AZ68: FALSE | BA68: FALSE | BB68: 1.034260593 | BC68: 1 | BD68: 1 | BE68: 1 | BF68: 1 | BG68: 1 | BH68: 0 | BI68: 0 | BJ68: 0 | BK68: 0 | BL68: 0 | BM68: 0 | BN68: 0 | BO68: 0.06131583788 | BP68: 0.03454231434 | BQ68: 0 | BR68: 0.125 | BS68: 0 | BT68: 0.007299270073 | BU68: 0.001991476481 | BW68: 1955-02-11
A69: 1932-11-01 | B69: 6.55 | D69: 1958-12-31 | E69: 1958-12-31 | F69: 55.209999 | G69: TRUE | H69: 0.06131583788 | I69: 0.06131583788 | J69: 3.385247348 | K69: 0.05071193355 | L69: 1.887716725 | M69: 1958-12-31 | N69: 1.887716725 | O69: 1958-12-31 | P69: 1.887716725 | Q69: 1.037541891 | R69: 1 | S69: 1 | T69: 1 | U69: 1 | V69: 1 | AC69: 1.188430579 | AD69: 0 | AE69: 0 | AF69: 0 | AG69: 0 | AH69: 0 | AI69: 0.06131583788 | AJ69: 1 | AK69: 1 | AL69: 1 | AM69: 1 | AN69: 1 | AO69: 0.07286961674 | AP69: 0 | AQ69: 0 | AR69: 0 | AS69: 0 | AT69: 0 | AU69: 0.05071193355 | AV69: 0.003167580655 | AW69: FALSE | AX69: FALSE | AY69: FALSE | AZ69: FALSE | BA69: FALSE | BB69: 1.037541891 | BC69: 1 | BD69: 1 | BE69: 1 | BF69: 1 | BG69: 1 | BH69: 0 | BI69: 0 | BJ69: 0 | BK69: 0 | BL69: 0 | BM69: 0 | BN69: 0 | BO69: 0.06131583788 | BP69: 0.03451846738 | BQ69: 0 | BR69: 0.125 | BS69: 0 | BT69: 0.007299270073 | BU69: 0.001991476481 | BW69: 1955-02-18
A70: 1932-12-01 | B70: 6.92 | D70: 1959-01-31 | E70: 1959-01-31 | F70: 55.450001 | G70: TRUE | H70: 0.06117330397 | I70: 0.06117330397 | J70: 3.392059766 | K70: 0.002010362053 | L70: 1.891515536 | M70: 1959-01-31 | N70: 1.891515536 | O70: 1959-01-31 | P70: 1.891515536 | Q70: 1.038664226 | R70: 1 | S70: 1 | T70: 1 | U70: 1 | V70: 1 | AC70: 1.192488174 | AD70: 0 | AE70: 0 | AF70: 0 | AG70: 0 | AH70: 0 | AI70: 0.06117330397 | AJ70: 1 | AK70: 1 | AL70: 1 | AM70: 1 | AN70: 1 | AO70: 0.07294844158 | AP70: 0 | AQ70: 0 | AR70: 0 | AS70: 0 | AT70: 0 | AU70: 0.002010362053 | AV70: 0.001081139674 | AW70: FALSE | AX70: FALSE | AY70: FALSE | AZ70: FALSE | BA70: FALSE | BB70: 1.038664226 | BC70: 1 | BD70: 1 | BE70: 1 | BF70: 1 | BG70: 1 | BH70: 0 | BI70: 0 | BJ70: 0 | BK70: 0 | BL70: 0 | BM70: 0 | BN70: 0 | BO70: 0.06117330397 | BP70: 0.03447087211 | BQ70: 0 | BR70: 0.125 | BS70: 0 | BT70: 0.007299270073 | BU70: 0.001949648381 | BW70: 1955-02-25
A71: 1933-01-01 | B71: 6.94 | D71: 1959-02-28 | E71: 1959-02-28 | F71: 55.41 | G71: TRUE | H71: 0.06117330397 | I71: 0.06117330397 | J71: 3.389612773 | K71: -0.0007216489514 | L71: 1.890151018 | M71: 1959-02-28 | N71: 1.890151018 | O71: 1959-02-28 | P71: 1.890151018 | Q71: 1.042157552 | R71: 1 | S71: 1 | T71: 1 | U71: 1 | V71: 1 | AC71: 1.196498855 | AD71: 0 | AE71: 0 | AF71: 0 | AG71: 0 | AH71: 0 | AI71: 0.06117330397 | AJ71: 1 | AK71: 1 | AL71: 1 | AM71: 1 | AN71: 1 | AO71: 0.07319378817 | AP71: 0 | AQ71: 0 | AR71: 0 | AS71: 0 | AT71: 0 | AU71: -0.0007216489514 | AV71: 0.003357644469 | AW71: FALSE | AX71: FALSE | AY71: FALSE | AZ71: FALSE | BA71: FALSE | BB71: 1.042157552 | BC71: 1 | BD71: 1 | BE71: 1 | BF71: 1 | BG71: 1 | BH71: 0 | BI71: 0 | BJ71: 0 | BK71: 0 | BL71: 0 | BM71: 0 | BN71: 0 | BO71: 0.06117330397 | BP71: 0.03448275862 | BQ71: 0 | BR71: 0.125 | BS71: 0 | BT71: 0.007299270073 | BU71: 0.001949648381 | BW71: 1955-03-04
A72: 1933-02-01 | B72: 5.66 | D72: 1959-03-31 | E72: 1959-03-31 | F72: 55.439999 | G72: TRUE | H72: 0.06117330397 | I72: 0.06117330397 | J72: 3.391447911 | K72: 0.0005412539649 | L72: 1.891174347 | M72: 1959-03-31 | N72: 1.891174347 | O72: 1959-03-31 | P72: 1.891174347 | Q72: 1.045347411 | R72: 1 | S72: 1 | T72: 1 | U72: 1 | V72: 1 | AC72: 1.200161125 | AD72: 0 | AE72: 0 | AF72: 0 | AG72: 0 | AH72: 0 | AI72: 0.06117330397 | AJ72: 1 | AK72: 1 | AL72: 1 | AM72: 1 | AN72: 1 | AO72: 0.07341782132 | AP72: 0 | AQ72: 0 | AR72: 0 | AS72: 0 | AT72: 0 | AU72: 0.0005412539649 | AV72: 0.003056147139 | AW72: FALSE | AX72: FALSE | AY72: FALSE | AZ72: FALSE | BA72: FALSE | BB72: 1.045347411 | BC72: 1 | BD72: 1 | BE72: 1 | BF72: 1 | BG72: 1 | BH72: 0 | BI72: 0 | BJ72: 0 | BK72: 0 | BL72: 0 | BM72: 0 | BN72: 0 | BO72: 0.06117330397 | BP72: 0.03451846738 | BQ72: 0 | BR72: 0.125 | BS72: 0 | BT72: 0.007299270073 | BU72: 0.001949648381 | BW72: 1955-03-11
A73: 1933-03-01 | B73: 5.85 | D73: 1959-04-30 | E73: 1959-04-30 | F73: 57.59 | G73: TRUE | H73: 0.0610798925 | I73: 0.0610798925 | J73: 3.517591009 | K73: 0.03651944031 | L73: 1.961515569 | M73: 1959-04-30 | N73: 1.961515569 | O73: 1959-04-30 | P73: 1.961515569 | Q73: 1.04740344 | R73: 1 | S73: 1 | T73: 1 | U73: 1 | V73: 1 | AC73: 1.204360703 | AD73: 0 | AE73: 0 | AF73: 0 | AG73: 0 | AH73: 0 | AI73: 0.0610798925 | AJ73: 1 | AK73: 1 | AL73: 1 | AM73: 1 | AN73: 1 | AO73: 0.07356222225 | AP73: 0 | AQ73: 0 | AR73: 0 | AS73: 0 | AT73: 0 | AU73: 0.03651944031 | AV73: 0.001964905842 | AW73: FALSE | AX73: FALSE | AY73: FALSE | AZ73: FALSE | BA73: FALSE | BB73: 1.04740344 | BC73: 1 | BD73: 1 | BE73: 1 | BF73: 1 | BG73: 1 | BH73: 0 | BI73: 0 | BJ73: 0 | BK73: 0 | BL73: 0 | BM73: 0 | BN73: 0 | BO73: 0.0610798925 | BP73: 0.03450655625 | BQ73: 0 | BR73: 0.125 | BS73: 0 | BT73: 0.007299270073 | BU73: 0.001903844433 | BW73: 1955-03-18
A74: 1933-04-01 | B74: =IFERROR(LOOKUP($A74,INDIRECT("'"&B$6&"'!A:A"),INDIRECT("'"&B$6&"'!"&$B$9&":"&$B$9)),0) -> 7.83 | D74: 1959-05-31 | E74: =IF($E$7,BW74,D74) -> 1959-05-31 | F74: =LOOKUP(E74,A:A,B:B) -> 58.68 | G74: TRUE | H74: 0.0610798925 | I74: 0.0610798925 | J74: 3.584168092 | K74: 0.01875001176 | L74: 1.998640972 | M74: =IF(G74,E74,NA()) -> 1959-05-31 | N74: 1.998640972 | O74: 1959-05-31 | P74: 1.998640972 | Q74: 1.05111383 | R74: 1 | S74: 1 | T74: 1 | U74: 1 | V74: 1 | AC74: =IF(ISNUMBER(LOOKUP($E74,$A:$A,W:W)),LOOKUP($E74,$A:$A,W:W),AC73) -> 1.208627109 | AD74: =IF(ISNUMBER(LOOKUP($E74,$A:$A,X:X)),LOOKUP($E74,$A:$A,X:X),AD73) -> 0 | AE74: =IF(ISNUMBER(LOOKUP($E74,$A:$A,Y:Y)),LOOKUP($E74,$A:$A,Y:Y),AE73) -> 0 | AF74: =IF(ISNUMBER(LOOKUP($E74,$A:$A,Z:Z)),LOOKUP($E74,$A:$A,Z:Z),AF73) -> 0 | AG74: =IF(ISNUMBER(LOOKUP($E74,$A:$A,AA:AA)),LOOKUP($E74,$A:$A,AA:AA),AG73) -> 0 | AH74: =IF(ISNUMBER(LOOKUP($E74,$A:$A,AB:AB)),LOOKUP($E74,$A:$A,AB:AB),AH73) -> 0 | AI74: 0.0610798925 | AJ74: 1 | AK74: 1 | AL74: 1 | AM74: 1 | AN74: 1 | AO74: 0.0738228139 | AP74: 0 | AQ74: 0 | AR74: 0 | AS74: 0 | AT74: 0 | AU74: 0.01875001176 | AV74: =IF(G74,IFERROR(LN(AO74/AO73),FALSE)) -> 0.003536206001 | AW74: =IF(G74,IFERROR(LN(AP74/AP73),FALSE)) -> FALSE | AX74: =IF(G74,IFERROR(LN(AQ74/AQ73),FALSE)) -> FALSE | AY74: =IF(G74,IFERROR(LN(AR74/AR73),FALSE)) -> FALSE | AZ74: =IF(G74,IFERROR(LN(AS74/AS73),FALSE)) -> FALSE | BA74: =IF(G74,IFERROR(LN(AT74/AT73),FALSE)) -> FALSE | BB74: 1.05111383 | BC74: 1 | BD74: 1 | BE74: 1 | BF74: 1 | BG74: 1 | BH74: 0 | BI74: 0 | BJ74: 0 | BK74: 0 | BL74: 0 | BM74: 0 | BN74: 0 | BO74: =IFERROR(IF(BO$8="Divide",1/LOOKUP($E74,$A:$A,BH:BH)*1,LOOKUP($E74,$A:$A,BH:BH)*1),BO75) -> 0.0610798925 | BP74: =IFERROR(IF(BP$8="Divide",1/LOOKUP($E74,$A:$A,BI:BI)*1,LOOKUP($E74,$A:$A,BI:BI)*1),BP75) -> 0.03443526171 | BQ74: =IFERROR(IF(BQ$8="Divide",1/LOOKUP($E74,$A:$A,BJ:BJ)*1,LOOKUP($E74,$A:$A,BJ:BJ)*1),BQ75) -> 0 | BR74: =IFERROR(IF(BR$8="Divide",1/LOOKUP($E74,$A:$A,BK:BK)*1,LOOKUP($E74,$A:$A,BK:BK)*1),BR75) -> 0.125 | BS74: =IFERROR(IF(BS$8="Divide",1/LOOKUP($E74,$A:$A,BL:BL)*1,LOOKUP($E74,$A:$A,BL:BL)*1),BS75) -> 0 | BT74: =IFERROR(IF(BT$8="Divide",1/LOOKUP($E74,$A:$A,BM:BM)*1,LOOKUP($E74,$A:$A,BM:BM)*1),BT75) -> 0.007299270073 | BU74: =IFERROR(IF(BU$8="Divide",1/LOOKUP($E74,$A:$A,BN:BN)*1,LOOKUP($E74,$A:$A,BN:BN)*1),BU75) -> 0.001903844433 | BW74: 1955-03-25
A75: 1933-05-01 | B75: 9.64 | D75: =IF(D74<$F$2,MIN(EOMONTH(D74,1),$F$2)) -> 1959-06-30 | E75: 1959-06-30 | F75: 58.470001 | G75: =AND(E75>=$F$4,E74<=$F$2) -> TRUE | H75: =IF(H$8<>0,INDEX($BO75:$BU75,H$8),1) -> 0.0610798925 | I75: =IF(H75,H75,I76) -> 0.0610798925 | J75: =IF(ISNUMBER(F75),F75,J76)*I75 -> 3.571341376 | K75: -0.003585133984 | L75: =IF($G75,(L74*J75/J74),1) -> 1.991488406 | M75: 1959-06-30 | N75: 1.991488406 | O75: 1959-06-30 | P75: 1.991488406 | Q75: 1.054988265 | R75: 1 | S75: 1 | T75: 1 | U75: 1 | V75: 1 | W75: =LOOKUP($A75,INDIRECT("'"&W$5&"'!A:A"),INDIRECT("'"&W$5&"'!"&W$7&":"&W$7)) ->  | AC75: 1.213082142 | AD75: 0 | AE75: 0 | AF75: 0 | AG75: 0 | AH75: 0 | AI75: 0.0610798925 | AJ75: 1 | AK75: 1 | AL75: 1 | AM75: 1 | AN75: 1 | AO75: 0.07409492682 | AP75: 0 | AQ75: 0 | AR75: 0 | AS75: 0 | AT75: 0 | AU75: -0.003585133984 | AV75: 0.003679250646 | AW75: FALSE | AX75: FALSE | AY75: FALSE | AZ75: FALSE | BA75: FALSE | BB75: =IFERROR(IF($G75,BB74*AO75/AO74,1),1) -> 1.054988265 | BC75: =IFERROR(IF($G75,BC74*AP75/AP74,1),1) -> 1 | BD75: =IFERROR(IF($G75,BD74*AQ75/AQ74,1),1) -> 1 | BE75: =IFERROR(IF($G75,BE74*AR75/AR74,1),1) -> 1 | BF75: =IFERROR(IF($G75,BF74*AS75/AS74,1),1) -> 1 | BG75: =IFERROR(IF($G75,BG74*AT75/AT74,1),1) -> 1 | BH75: =IFERROR(LOOKUP($A75,INDIRECT("'"&BO$6&"'!A:A"),INDIRECT("'"&BO$6&"'!"&BO$7&":"&BO$7)),0) -> 0 | BI75: =IFERROR(LOOKUP($A75,INDIRECT("'"&BP$6&"'!A:A"),INDIRECT("'"&BP$6&"'!"&BP$7&":"&BP$7)),0) -> 0 | BJ75: =IFERROR(LOOKUP($A75,INDIRECT("'"&BQ$6&"'!A:A"),INDIRECT("'"&BQ$6&"'!"&BQ$7&":"&BQ$7)),0) -> 0 | BK75: =IFERROR(LOOKUP($A75,INDIRECT("'"&BR$6&"'!A:A"),INDIRECT("'"&BR$6&"'!"&BR$7&":"&BR$7)),0) -> 0 | BL75: =IFERROR(LOOKUP($A75,INDIRECT("'"&BS$6&"'!A:A"),INDIRECT("'"&BS$6&"'!"&BS$7&":"&BS$7)),0) -> 0 | BM75: =IFERROR(LOOKUP($A75,INDIRECT("'"&BT$6&"'!A:A"),INDIRECT("'"&BT$6&"'!"&BT$7&":"&BT$7)),0) -> 0 | BN75: =IFERROR(LOOKUP($A75,INDIRECT("'"&BU$6&"'!A:A"),INDIRECT("'"&BU$6&"'!"&BU$7&":"&BU$7)),0) -> 0 | BO75: 0.0610798925 | BP75: 0.0343524562 | BQ75: 0 | BR75: 0.125 | BS75: 0 | BT75: 0.007299270073 | BU75: 0.001903844433 | BW75: =IF(BW74<=$F$2,BW74+7) -> 1955-04-01
A76: 1933-06-01 | B76: 10.91 | D76: 1959-07-31 | E76: 1959-07-31 | F76: 60.509998 | G76: TRUE | H76: 0.06084575601 | I76: 0.06084575601 | J76: 3.681776574 | K76: =IFERROR(LN(J76/J75),FALSE) -> 0.03045413981 | L76: 2.053070426 | M76: 1959-07-31 | N76: 2.053070426 | O76: 1959-07-31 | P76: 2.053070426 | Q76: 1.054744871 | R76: 1 | S76: 1 | T76: 1 | U76: 1 | V76: 1 | AC76: 1.217469179 | AD76: 0 | AE76: 0 | AF76: 0 | AG76: 0 | AH76: 0 | AI76: 0.06084575601 | AJ76: 1 | AK76: 1 | AL76: 1 | AM76: 1 | AN76: 1 | AO76: =IFERROR(IF(ISNUMBER(AC76)>0.1,AC76,AO77)*AI76,AO77) -> 0.07407783259 | AP76: =IFERROR(IF(ISNUMBER(AD76)>0.1,AD76,AP77)*AJ76,AP77) -> 0 | AQ76: =IFERROR(IF(ISNUMBER(AE76)>0.1,AE76,AQ77)*AK76,AQ77) -> 0 | AR76: =IFERROR(IF(ISNUMBER(AF76)>0.1,AF76,AR77)*AL76,AR77) -> 0 | AS76: =IFERROR(IF(ISNUMBER(AG76)>0.1,AG76,AS77)*AM76,AS77) -> 0 | AT76: =IFERROR(IF(ISNUMBER(AH76)>0.1,AH76,AT77)*AN76,AT77) -> 0 | AU76: 0.03045413981 | AV76: -0.0002307337197 | AW76: FALSE | AX76: FALSE | AY76: FALSE | AZ76: FALSE | BA76: FALSE | BB76: 1.054744871 | BC76: 1 | BD76: 1 | BE76: 1 | BF76: 1 | BG76: 1 | BH76: 0 | BI76: 0 | BJ76: 0 | BK76: 0 | BL76: 0 | BM76: 0 | BN76: 0 | BO76: 0.06084575601 | BP76: 0.03430531732 | BQ76: 0 | BR76: 0.125 | BS76: 0 | BT76: 0.007299270073 | BU76: 0.001894427352 | BW76: 1955-04-08
A77: 1933-07-01 | B77: 9.95 | D77: 1959-08-31 | E77: 1959-08-31 | F77: 59.599998 | G77: TRUE | H77: 0.06084575601 | I77: 0.06084575601 | J77: 3.626406936 | K77: -0.01515306707 | L77: 2.022194635 | M77: 1959-08-31 | N77: =CHOOSE($N$1,J77,K77,L77) -> 2.022194635 | O77: =M77 -> 1959-08-31 | P77: =N77 -> 2.022194635 | Q77: =IFERROR(CHOOSE($N$1,AO77,AV77,BB77),1) -> 1.058713313 | R77: =IFERROR(CHOOSE($N$1,AP77,AW77,BC77),1) -> 1 | S77: =IFERROR(CHOOSE($N$1,AQ77,AX77,BD77),1) -> 1 | T77: =IFERROR(CHOOSE($N$1,AR77,AY77,BE77),1) -> 1 | U77: =IFERROR(CHOOSE($N$1,AS77,AZ77,BF77),1) -> 1 | V77: =IFERROR(CHOOSE($N$1,AT77,BA77,BG77),1) -> 1 | AC77: 1.222049865 | AD77: 0 | AE77: 0 | AF77: 0 | AG77: 0 | AH77: 0 | AI77: 0.06084575601 | AJ77: 1 | AK77: 1 | AL77: 1 | AM77: 1 | AN77: 1 | AO77: 0.0743565479 | AP77: 0 | AQ77: 0 | AR77: 0 | AS77: 0 | AT77: 0 | AU77: =K77 -> -0.01515306707 | AV77: 0.003755405383 | AW77: FALSE | AX77: FALSE | AY77: FALSE | AZ77: FALSE | BA77: FALSE | BB77: 1.058713313 | BC77: 1 | BD77: 1 | BE77: 1 | BF77: 1 | BG77: 1 | BH77: 0 | BI77: 0 | BJ77: 0 | BK77: 0 | BL77: 0 | BM77: 0 | BN77: 0 | BO77: 0.06084575601 | BP77: 0.03427004798 | BQ77: 0 | BR77: 0.125 | BS77: 0 | BT77: 0.007299270073 | BU77: 0.001894427352 | BW77: 1955-04-15
A78: 1933-08-01 | B78: 11.09 | D78: 1959-09-30 | E78: 1959-09-30 | F78: 56.880001 | G78: TRUE | H78: 0.06084575601 | I78: 0.06084575601 | J78: 3.460906663 | K78: -0.04671173744 | L78: 1.929906656 | M78: 1959-09-30 | N78: 1.929906656 | O78: 1959-09-30 | P78: 1.929906656 | Q78: 1.062921481 | R78: 1 | S78: 1 | T78: 1 | U78: 1 | V78: 1 | AC78: 1.226907262 | AD78: 0 | AE78: 0 | AF78: 0 | AG78: 0 | AH78: 0 | AI78: 0.06084575601 | AJ78: 1 | AK78: 1 | AL78: 1 | AM78: 1 | AN78: 1 | AO78: 0.0746520999 | AP78: 0 | AQ78: 0 | AR78: 0 | AS78: 0 | AT78: 0 | AU78: -0.04671173744 | AV78: 0.003966915895 | AW78: FALSE | AX78: FALSE | AY78: FALSE | AZ78: FALSE | BA78: FALSE | BB78: 1.062921481 | BC78: 1 | BD78: 1 | BE78: 1 | BF78: 1 | BG78: 1 | BH78: 0 | BI78: 0 | BJ78: 0 | BK78: 0 | BL78: 0 | BM78: 0 | BN78: 0 | BO78: 0.06084575601 | BP78: 0.03418803419 | BQ78: 0 | BR78: 0.125 | BS78: 0 | BT78: 0.007299270073 | BU78: 0.001894427352 | BW78: 1955-04-22
A79: 1933-09-01 | B79: 9.72 | D79: 1959-10-31 | E79: 1959-10-31 | F79: 57.52 | G79: TRUE | H79: 0.06060973392 | I79: 0.06060973392 | J79: 3.486271895 | K79: 0.007302344444 | L79: 1.94405108 | M79: 1959-10-31 | N79: 1.94405108 | O79: 1959-10-31 | P79: 1.94405108 | Q79: 1.062740595 | R79: 1 | S79: 1 | T79: 1 | U79: 1 | V79: 1 | AC79: 1.231475391 | AD79: 0 | AE79: 0 | AF79: 0 | AG79: 0 | AH79: 0 | AI79: 0.06060973392 | AJ79: 1 | AK79: 1 | AL79: 1 | AM79: 1 | AN79: 1 | AO79: 0.07463939575 | AP79: 0 | AQ79: 0 | AR79: 0 | AS79: 0 | AT79: 0 | AU79: 0.007302344444 | AV79: -0.0001701925002 | AW79: FALSE | AX79: FALSE | AY79: FALSE | AZ79: FALSE | BA79: FALSE | BB79: 1.062740595 | BC79: 1 | BD79: 1 | BE79: 1 | BF79: 1 | BG79: 1 | BH79: 0 | BI79: 0 | BJ79: 0 | BK79: 0 | BL79: 0 | BM79: 0 | BN79: 0 | BO79: 0.06060973392 | BP79: 0.03407155026 | BQ79: 0 | BR79: 0.125 | BS79: 0 | BT79: 0.007299270073 | BU79: 0.001881007468 | BW79: 1955-04-29
A80: 1933-10-01 | B80: 8.96 | D80: 1959-11-30 | E80: 1959-11-30 | F80: 58.279999 | G80: TRUE | H80: 0.06060973392 | I80: 0.06060973392 | J80: 3.532335232 | K80: 0.01312625076 | L80: 1.969737396 | M80: 1959-11-30 | N80: 1.969737396 | O80: 1959-11-30 | P80: 1.969737396 | Q80: 1.06682938 | R80: 1 | S80: 1 | T80: 1 | U80: 1 | V80: 1 | AC80: 1.236213366 | AD80: 0 | AE80: 0 | AF80: 0 | AG80: 0 | AH80: 0 | AI80: 0.06060973392 | AJ80: 1 | AK80: 1 | AL80: 1 | AM80: 1 | AN80: 1 | AO80: 0.07492656316 | AP80: 0 | AQ80: 0 | AR80: 0 | AS80: 0 | AT80: 0 | AU80: 0.01312625076 | AV80: 0.003840014956 | AW80: FALSE | AX80: FALSE | AY80: FALSE | AZ80: FALSE | BA80: FALSE | BB80: 1.06682938 | BC80: 1 | BD80: 1 | BE80: 1 | BF80: 1 | BG80: 1 | BH80: 0 | BI80: 0 | BJ80: 0 | BK80: 0 | BL80: 0 | BM80: 0 | BN80: 0 | BO80: 0.06060973392 | BP80: 0.03407155026 | BQ80: 0 | BR80: 0.125 | BS80: 0 | BT80: 0.007299270073 | BU80: 0.001881007468 | BW80: 1955-05-06
A81: 1933-11-01 | B81: 9.88 | D81: 1959-12-31 | E81: 1959-12-31 | F81: 59.889999 | G81: TRUE | H81: 0.06060973392 | I81: 0.06060973392 | J81: 3.629916904 | K81: 0.02725056541 | L81: 2.024151899 | M81: 1959-12-31 | N81: 2.024151899 | O81: 1959-12-31 | P81: 2.024151899 | Q81: 1.070941788 | R81: 1 | S81: 1 | T81: 1 | U81: 1 | V81: 1 | AC81: 1.240978714 | AD81: 0 | AE81: 0 | AF81: 0 | AG81: 0 | AH81: 0 | AI81: 0.06060973392 | AJ81: 1 | AK81: 1 | AL81: 1 | AM81: 1 | AN81: 1 | AO81: 0.07521538967 | AP81: 0 | AQ81: 0 | AR81: 0 | AS81: 0 | AT81: 0 | AU81: 0.02725056541 | AV81: 0.003847383838 | AW81: FALSE | AX81: FALSE | AY81: FALSE | AZ81: FALSE | BA81: FALSE | BB81: 1.070941788 | BC81: 1 | BD81: 1 | BE81: 1 | BF81: 1 | BG81: 1 | BH81: 0 | BI81: 0 | BJ81: 0 | BK81: 0 | BL81: 0 | BM81: 0 | BN81: 0 | BO81: 0.06060973392 | BP81: 0.03400204012 | BQ81: 0 | BR81: 0.125 | BS81: 0 | BT81: 0.007299270073 | BU81: 0.001881007468 | BW81: 1955-05-13
A82: 1933-12-01 | B82: 9.97 | D82: 1960-01-31 | E82: 1960-01-31 | F82: 55.610001 | G82: TRUE | H82: 0.0603646022 | I82: 0.0603646022 | J82: 3.356875589 | K82: -0.07819909956 | L82: 1.87189577 | M82: 1960-01-31 | N82: 1.87189577 | O82: 1960-01-31 | P82: 1.87189577 | Q82: 1.070886234 | R82: 1 | S82: 1 | T82: 1 | U82: 1 | V82: 1 | AC82: 1.245953509 | AD82: 0 | AE82: 0 | AF82: 0 | AG82: 0 | AH82: 0 | AI82: 0.0603646022 | AJ82: 1 | AK82: 1 | AL82: 1 | AM82: 1 | AN82: 1 | AO82: 0.07521148791 | AP82: 0 | AQ82: 0 | AR82: 0 | AS82: 0 | AT82: 0 | AU82: -0.07819909956 | AV82: -5.187574084e-05 | AW82: FALSE | AX82: FALSE | AY82: FALSE | AZ82: FALSE | BA82: FALSE | BB82: 1.070886234 | BC82: 1 | BD82: 1 | BE82: 1 | BF82: 1 | BG82: 1 | BH82: 0 | BI82: 0 | BJ82: 0 | BK82: 0 | BL82: 0 | BM82: 0 | BN82: 0 | BO82: 0.0603646022 | BP82: 0.03404834866 | BQ82: 0 | BR82: 0.125 | BS82: 0 | BT82: 0.007299270073 | BU82: 0.001832928562 | BW82: 1955-05-20
A83: 1934-01-01 | B83: 11.17 | D83: 1960-02-29 | E83: 1960-02-29 | F83: 56.119999 | G83: TRUE | H83: 0.0603646022 | I83: 0.0603646022 | J83: 3.387661415 | K83: 0.009129178233 | L83: 1.889062882 | M83: 1960-02-29 | N83: 1.889062882 | O83: 1960-02-29 | P83: 1.889062882 | Q83: 1.074969978 | R83: 1 | S83: 1 | T83: 1 | U83: 1 | V83: 1 | AC83: 1.250704859 | AD83: 0 | AE83: 0 | AF83: 0 | AG83: 0 | AH83: 0 | AI83: 0.0603646022 | AJ83: 1 | AK83: 1 | AL83: 1 | AM83: 1 | AN83: 1 | AO83: 0.07549830125 | AP83: 0 | AQ83: 0 | AR83: 0 | AS83: 0 | AT83: 0 | AU83: 0.009129178233 | AV83: 0.003806171986 | AW83: FALSE | AX83: FALSE | AY83: FALSE | AZ83: FALSE | BA83: FALSE | BB83: 1.074969978 | BC83: 1 | BD83: 1 | BE83: 1 | BF83: 1 | BG83: 1 | BH83: 0 | BI83: 0 | BJ83: 0 | BK83: 0 | BL83: 0 | BM83: 0 | BN83: 0 | BO83: 0.0603646022 | BP83: 0.03400204012 | BQ83: 0 | BR83: 0.125 | BS83: 0 | BT83: 0.007299270073 | BU83: 0.001832928562 | BW83: 1955-05-27
A84: 1934-02-01 | B84: 10.76 | D84: 1960-03-31 | E84: 1960-03-31 | F84: 55.34 | G84: TRUE | H84: 0.0603646022 | I84: 0.0603646022 | J84: 3.340577086 | K84: -0.01399626306 | L84: 1.86280723 | M84: 1960-03-31 | N84: 1.86280723 | O84: 1960-03-31 | P84: 1.86280723 | Q84: 1.078599842 | R84: 1 | S84: 1 | T84: 1 | U84: 1 | V84: 1 | AC84: 1.254928129 | AD84: 0 | AE84: 0 | AF84: 0 | AG84: 0 | AH84: 0 | AI84: 0.0603646022 | AJ84: 1 | AK84: 1 | AL84: 1 | AM84: 1 | AN84: 1 | AO84: 0.0757532373 | AP84: 0 | AQ84: 0 | AR84: 0 | AS84: 0 | AT84: 0 | AU84: -0.01399626306 | AV84: 0.003371024037 | AW84: FALSE | AX84: FALSE | AY84: FALSE | AZ84: FALSE | BA84: FALSE | BB84: 1.078599842 | BC84: 1 | BD84: 1 | BE84: 1 | BF84: 1 | BG84: 1 | BH84: 0 | BI84: 0 | BJ84: 0 | BK84: 0 | BL84: 0 | BM84: 0 | BN84: 0 | BO84: 0.0603646022 | BP84: 0.03400204012 | BQ84: 0 | BR84: 0.125 | BS84: 0 | BT84: 0.007299270073 | BU84: 0.001832928562 | BW84: 1955-06-03
A85: 1934-03-01 | B85: 10.62 | D85: 1960-04-30 | E85: 1960-04-30 | F85: 54.369999 | G85: TRUE | H85: 0.06021557175 | I85: 0.06021557175 | J85: 3.273920576 | K85: -0.02015535264 | L85: 1.825637536 | M85: 1960-04-30 | N85: 1.825637536 | O85: 1960-04-30 | P85: 1.825637536 | Q85: 1.079848058 | R85: 1 | S85: 1 | T85: 1 | U85: 1 | V85: 1 | AC85: 1.259489879 | AD85: 0 | AE85: 0 | AF85: 0 | AG85: 0 | AH85: 0 | AI85: 0.06021557175 | AJ85: 1 | AK85: 1 | AL85: 1 | AM85: 1 | AN85: 1 | AO85: 0.07584090316 | AP85: 0 | AQ85: 0 | AR85: 0 | AS85: 0 | AT85: 0 | AU85: -0.02015535264 | AV85: 0.001156586551 | AW85: FALSE | AX85: FALSE | AY85: FALSE | AZ85: FALSE | BA85: FALSE | BB85: 1.079848058 | BC85: 1 | BD85: 1 | BE85: 1 | BF85: 1 | BG85: 1 | BH85: 0 | BI85: 0 | BJ85: 0 | BK85: 0 | BL85: 0 | BM85: 0 | BN85: 0 | BO85: 0.06021557175 | BP85: 0.03385240352 | BQ85: 0 | BR85: 0.125 | BS85: 0 | BT85: 0.007299270073 | BU85: 0.001837951493 | BW85: 1955-06-10
A86: 1934-04-01 | B86: 10.46 | D86: 1960-05-31 | E86: 1960-05-31 | F86: 55.830002 | G86: TRUE | H86: 0.06021557175 | I86: 0.06021557175 | J86: 3.361835491 | K86: 0.02649888238 | L86: 1.874661562 | M86: 1960-05-31 | N86: 1.874661562 | O86: 1960-05-31 | P86: 1.874661562 | Q86: 1.083708885 | R86: 1 | S86: 1 | T86: 1 | U86: 1 | V86: 1 | AC86: 1.263992986 | AD86: 0 | AE86: 0 | AF86: 0 | AG86: 0 | AH86: 0 | AI86: 0.06021557175 | AJ86: 1 | AK86: 1 | AL86: 1 | AM86: 1 | AN86: 1 | AO86: 0.07611206036 | AP86: 0 | AQ86: 0 | AR86: 0 | AS86: 0 | AT86: 0 | AU86: 0.02649888238 | AV86: 0.003568966123 | AW86: FALSE | AX86: FALSE | AY86: FALSE | AZ86: FALSE | BA86: FALSE | BB86: 1.083708885 | BC86: 1 | BD86: 1 | BE86: 1 | BF86: 1 | BG86: 1 | BH86: 0 | BI86: 0 | BJ86: 0 | BK86: 0 | BL86: 0 | BM86: 0 | BN86: 0 | BO86: 0.06021557175 | BP86: 0.03381805884 | BQ86: 0 | BR86: 0.125 | BS86: 0 | BT86: 0.007299270073 | BU86: 0.001837951493 | BW86: 1955-06-17
A87: 1934-05-01 | B87: 9.61 | D87: 1960-06-30 | E87: 1960-06-30 | F87: 56.919998 | G87: TRUE | H87: 0.06021557175 | I87: 0.06021557175 | J87: 3.427470223 | K87: 0.01933534294 | L87: 1.911261482 | M87: 1960-06-30 | N87: 1.911261482 | O87: 1960-06-30 | P87: 1.911261482 | Q87: 1.087528587 | R87: 1 | S87: 1 | T87: 1 | U87: 1 | V87: 1 | AC87: 1.268448129 | AD87: 0 | AE87: 0 | AF87: 0 | AG87: 0 | AH87: 0 | AI87: 0.06021557175 | AJ87: 1 | AK87: 1 | AL87: 1 | AM87: 1 | AN87: 1 | AO87: 0.07638032931 | AP87: 0 | AQ87: 0 | AR87: 0 | AS87: 0 | AT87: 0 | AU87: 0.01933534294 | AV87: 0.003518460486 | AW87: FALSE | AX87: FALSE | AY87: FALSE | AZ87: FALSE | BA87: FALSE | BB87: 1.087528587 | BC87: 1 | BD87: 1 | BE87: 1 | BF87: 1 | BG87: 1 | BH87: 0 | BI87: 0 | BJ87: 0 | BK87: 0 | BL87: 0 | BM87: 0 | BN87: 0 | BO87: 0.06021557175 | BP87: 0.0337723742 | BQ87: 0 | BR87: 0.125 | BS87: 0 | BT87: 0.007299270073 | BU87: 0.001837951493 | BW87: 1955-06-24
A88: 1934-06-01 | B88: 9.81 | D88: 1960-07-31 | E88: 1960-07-31 | F88: 55.509998 | G88: TRUE | H88: 0.0600060006 | I88: 0.0600060006 | J88: 3.330932973 | K88: -0.02857000795 | L88: 1.85742938 | M88: 1960-07-31 | N88: 1.85742938 | O88: 1960-07-31 | P88: 1.85742938 | Q88: 1.087217527 | R88: 1 | S88: 1 | T88: 1 | U88: 1 | V88: 1 | AC88: 1.272514113 | AD88: 0 | AE88: 0 | AF88: 0 | AG88: 0 | AH88: 0 | AI88: 0.0600060006 | AJ88: 1 | AK88: 1 | AL88: 1 | AM88: 1 | AN88: 1 | AO88: 0.07635848264 | AP88: 0 | AQ88: 0 | AR88: 0 | AS88: 0 | AT88: 0 | AU88: -0.02857000795 | AV88: -0.0002860656797 | AW88: FALSE | AX88: FALSE | AY88: FALSE | AZ88: FALSE | BA88: FALSE | BB88: 1.087217527 | BC88: 1 | BD88: 1 | BE88: 1 | BF88: 1 | BG88: 1 | BH88: 0 | BI88: 0 | BJ88: 0 | BK88: 0 | BL88: 0 | BM88: 0 | BN88: 0 | BO88: 0.0600060006 | BP88: 0.03384094755 | BQ88: 0 | BR88: 0.125 | BS88: 0 | BT88: 0.007299270073 | BU88: 0.001822263689 | BW88: 1955-07-01
A89: 1934-07-01 | B89: 8.68 | D89: 1960-08-31 | E89: 1960-08-31 | F89: 56.959999 | G89: TRUE | H89: 0.0600060006 | I89: 0.0600060006 | J89: 3.417941734 | K89: 0.02578610088 | L89: 1.905948107 | M89: 1960-08-31 | N89: 1.905948107 | O89: 1960-08-31 | P89: 1.905948107 | Q89: 1.09072641 | R89: 1 | S89: 1 | T89: 1 | U89: 1 | V89: 1 | AC89: 1.276621022 | AD89: 0 | AE89: 0 | AF89: 0 | AG89: 0 | AH89: 0 | AI89: 0.0600060006 | AJ89: 1 | AK89: 1 | AL89: 1 | AM89: 1 | AN89: 1 | AO89: 0.0766049218 | AP89: 0 | AQ89: 0 | AR89: 0 | AS89: 0 | AT89: 0 | AU89: 0.02578610088 | AV89: 0.003222200392 | AW89: FALSE | AX89: FALSE | AY89: FALSE | AZ89: FALSE | BA89: FALSE | BB89: 1.09072641 | BC89: 1 | BD89: 1 | BE89: 1 | BF89: 1 | BG89: 1 | BH89: 0 | BI89: 0 | BJ89: 0 | BK89: 0 | BL89: 0 | BM89: 0 | BN89: 0 | BO89: 0.0600060006 | BP89: 0.0337723742 | BQ89: 0 | BR89: 0.125 | BS89: 0 | BT89: 0.007299270073 | BU89: 0.001822263689 | BW89: 1955-07-08
A90: 1934-08-01 | B90: 9.15 | D90: 1960-09-30 | E90: 1960-09-30 | F90: 53.52 | G90: TRUE | H90: 0.0600060006 | I90: 0.0600060006 | J90: 3.211521152 | K90: -0.06229383373 | L90: 1.790841722 | M90: 1960-09-30 | N90: 1.790841722 | O90: 1960-09-30 | P90: 1.790841722 | Q90: 1.094246617 | R90: 1 | S90: 1 | T90: 1 | U90: 1 | V90: 1 | AC90: 1.280741185 | AD90: 0 | AE90: 0 | AF90: 0 | AG90: 0 | AH90: 0 | AI90: 0.0600060006 | AJ90: 1 | AK90: 1 | AL90: 1 | AM90: 1 | AN90: 1 | AO90: 0.07685215632 | AP90: 0 | AQ90: 0 | AR90: 0 | AS90: 0 | AT90: 0 | AU90: -0.06229383373 | AV90: 0.003222200392 | AW90: FALSE | AX90: FALSE | AY90: FALSE | AZ90: FALSE | BA90: FALSE | BB90: 1.094246617 | BC90: 1 | BD90: 1 | BE90: 1 | BF90: 1 | BG90: 1 | BH90: 0 | BI90: 0 | BJ90: 0 | BK90: 0 | BL90: 0 | BM90: 0 | BN90: 0 | BO90: 0.0600060006 | BP90: 0.0337723742 | BQ90: 0 | BR90: 0.125 | BS90: 0 | BT90: 0.007299270073 | BU90: 0.001822263689 | BW90: 1955-07-15
